{"text_format":"1","workbook":"xlsx","n_sheets":35,"sheets":["Основные данные","Титульный лист","Описание","Содержание","1","2","3","4","5","6","7","8","9","10","11","12","13","14","15","16","17","18","19","20","Подпись","Логический контроль","Пояснения (каз.)","Пояснения (рус.)","Валюты","Страны","Классификация услуг","Вид исполнения обязательства","Инструкция","Настройки","Расшифровки строк"],"not_rendered":{"charts":0,"images":8,"macros":1,"external_links":0,"defined_names":246,"comments":0,"pivot_tables":0},"unopened":[],"bounds":{"document_bytes":16777216,"sheet_cells":100000,"rows_first":2000,"rows_last":500,"rows_between":2000,"halvings":0,"cell_chars":16384,"cell_head_chars":4096},"cells_cut":0,"cells_raw":0,"read":"whole","date_system":"1900"}

{"sheet":"Основные данные","index":0,"n_rows":38,"n_cols":7,"rows_kept":38,"cut":false,"hidden":false,"merged":[[0,2,1,6],[3,2,4,6],[15,3,15,6],[6,3,6,6],[9,3,9,6],[10,3,10,6],[11,3,11,6],[12,3,12,6],[7,3,7,6],[8,3,8,6],[13,3,13,6],[37,2,37,6],[25,3,25,6],[27,3,27,6],[28,3,28,6],[30,2,31,2],[33,2,33,6],[35,2,35,6],[29,3,29,6],[26,3,26,6],[19,3,19,6],[24,3,24,6],[18,3,18,6],[16,3,16,6],[17,3,17,6],[22,3,22,6],[23,3,23,6],[20,3,20,6],[21,3,21,6]]}
[null,"Бейрезиденттермен  халықаралық операциялар туралы есеп","Бейрезиденттермен  халықаралық операциялар туралы есеп\nОтчет о международных операциях с нерезидентами"]
[null,"Отчет о международных операциях с нерезидентами"]
[]
[null,null,"Негізгі мәліметтер\nОсновные данные"]
[]
[]
[null,null,"Есептің коды / Код отчета","pb_10_2020"]
[null,null,"Тілі / Язык заполнения *"]
[{"$f":"CONCATENATE(p1_enterprise)","v":""},null,"Резидент типі / Тип резидента","Предприятие"]
[{"$f":"CONCATENATE(p1_enterprise)","v":""},null,"Кәсіпорын / Предприятие"]
[null,null,"БСН / БИН",""]
[{"$f":"CONCATENATE(p1_bank)","v":""},null,"Шетелдік банктің атауы / Наименование иностранного банка",""]
[null,null,"Шетел банкінің елі / Страна иностранного банка"]
[null,null,"Есептік нөмірі / Учетный номер",""]
[null,null,"Кезең / Период","Тоқсан\nКвартал",null,"Жыл / Год"]
[null,null,"Есепті беру күні / Дата предоставления отчета"]
[{"$f":"CONCATENATE(p1_currency)","v":"АҚШ ДОЛЛАРЫ\nДОЛЛАР США"},null,"Валюта","АҚШ ДОЛЛАРЫ\nДОЛЛАР США"]
[null,null,"Басшының аты-жөні немесе оның міндетін атқарушы тұлға\nФ.И.О. Руководителя или лица, исполняющего его обязанности",""]
[null,null,"Бас бухгалтердің аты-жөні немесе оның міндетін атқарушы тұлға\nФ.И.О. Главного бухгалтера или лица, исполняющего его обязанности",""]
[null,null,"Орындаушының аты-жөні / Ф.И.О. Исполнителя",""]
[null,null,"Орындаушының телефоны / Телефон исполнителя",""]
["2\n1",null,"Алғашқы статистикалық деректерді таратуға келісеміз\nСогласны на распространение первичных статистических данных **",""]
[{"$f":"CONCATENATE(p1_comment)","v":""},null,"Түсініктемелер\nКомментарий"]
[null,null,"Есептің күні / Дата отчета"]
[{"$f":"CONCATENATE(p1_address)","v":""},null,"Мекен-жайы / Адрес",""]
[null,null,"Стационарлық телефоны (респонденттің)\nСтационарный телефон (респондента)",""]
[null,null,"Ұялы телефоны (респонденттің)\nМобильный телефон (респондента)",""]
[null,null,"Электрондық пошта мекенжайы (респонденттің)\nАдрес электронной почты (респондента)",""]
[null,null,"Қазақстан Республикасы Ұлттық Банкі толтырады\nЗаполняется Национальным Банком Республики Казахстан"]
[null,null,"Есепті беру күні / Дата предоставления отчета"]
[null,null,"Бөлімдер\nРазделы",1,4,5,6]
["2\n1",null,null,true,true,true,false]
[]
[null,{"$f":"C34","v":"* Тілді өзгерткен кезде есептің мәліметтері нөлге аударылады. Есепті толтыра бастамай тілді таңдаңыз.\nПри смене языка данные отчета обнулятся. Выберите язык до начала заполнения отчета"},"* Тілді өзгерткен кезде есептің мәліметтері нөлге аударылады. Есепті толтыра бастамай тілді таңдаңыз.\nПри смене языка данные отчета обнулятся. Выберите язык до начала заполнения отчета"]
[]
[null,{"$f":"C36","v":"** Аталған тармақ «Мемлекеттік статистика туралы» Қазақстан Республикасының 2010 жылғы 19 наурыздағы Заңының 8-бабының 5-тармағына сәйкес толтырылады\nДанный пункт заполняется согласно пункту 5 статьи 8 Закона Республики Казахстан от 19 марта 2010 года «О государственной статистике»"},"** Аталған тармақ «Мемлекеттік статистика туралы» Қазақстан Республикасының 2010 жылғы 19 наурыздағы Заңының 8-бабының 5-тармағына сәйкес толтырылады\nДанный пункт заполняется согласно пункту 5 статьи 8 Закона Республики Казахстан от 19 марта 2010 года «О государственной статистике»"]
[]
[null,{"$f":"C38","v":"Мемлекеттік статистиканың тиісті органдарына анық емес бастапқы статистикалық деректерді ұсыну және бастапқы статистикалық деректерді белгіленген мерзімде ұсынбау «Әкімшілік құқық бұзушылық туралы» Қазақстан Республикасы Кодексінің 497-бабында көзделген әкімшілік құқық бұзушылықтар болып табылады\nПредставление недостоверных и непредставление первичных статистических данных в соответствующие органы государственной статистики в установленный срок являются административными правонарушениями, предусмотренными статьей 497 Кодекса Республики Казахстан «Об административных правонарушениях»"},"Мемлекеттік статистиканың тиісті органдарына анық емес бастапқы статистикалық деректерді ұсыну және бастапқы статистикалық деректерді белгіленген мерзімде ұсынбау «Әкімшілік құқық бұзушылық туралы» Қазақстан Республикасы Кодексінің 497-бабында көзделген әкімшілік құқық бұзушылықтар болып табылады\nПредставление недостоверных и непредставление первичных статистических данных в соответствующие органы государственной статистики в установленный срок являются административными правонарушениями, предусмотренными статьей 497 Кодекса Республики Казахстан «Об административных правонарушениях»"]

{"sheet":"Титульный лист","index":1,"n_rows":154,"n_cols":21,"rows_kept":154,"cut":false,"hidden":false,"merged":[[100,15,100,21],[111,3,111,21],[72,18,72,21],[101,15,101,21],[102,15,102,21],[124,3,124,21],[125,3,125,21],[68,18,68,21],[69,18,69,21],[70,18,70,21],[73,18,73,21],[74,18,74,21],[75,18,75,21],[76,18,76,21],[77,18,77,21],[78,18,78,21],[71,18,71,21],[79,18,79,21],[80,18,80,21],[81,18,81,21],[84,18,84,21],[85,18,85,21],[86,18,86,21],[87,18,87,21],[82,18,82,21],[96,15,96,21],[152,15,153,15],[152,16,153,16],[152,17,153,17],[97,15,97,21],[98,15,98,21],[120,3,120,21],[121,3,121,21],[99,15,99,21],[152,6,153,6],[152,7,153,7],[152,8,153,8],[152,9,153,9],[152,10,153,10],[152,11,153,11],[152,12,153,12],[152,13,153,13],[152,14,153,14],[113,13,114,13],[113,16,114,16],[113,17,114,17],[113,18,114,18],[113,19,114,19],[110,3,110,21],[83,18,83,21],[132,3,132,21],[133,3,133,21],[105,15,105,21],[106,15,106,21],[107,15,107,21],[108,15,108,21],[128,3,128,21],[129,3,129,21],[130,3,130,21],[131,3,131,21],[122,3,122,21],[123,3,123,21],[118,3,118,21],[119,3,119,21],[89,15,89,21],[90,15,90,21],[91,15,91,21],[93,15,93,21],[94,15,94,21],[92,15,92,21],[103,15,103,21],[104,15,104,21],[95,15,95,21],[46,3,46,22],[47,3,47,22],[48,3,48,22],[49,3,49,22],[66,3,66,22],[67,3,67,22],[61,3,61,22],[62,3,62,22],[63,3,63,22],[64,3,64,22],[65,3,65,22],[51,3,51,22],[52,3,52,22],[53,3,53,22],[54,3,54,22],[55,3,55,22],[56,3,56,22],[57,3,57,22],[58,3,58,22],[59,3,59,22],[60,3,60,22],[50,3,50,22],[36,3,36,22],[37,3,37,22],[38,3,38,22],[39,3,39,22],[41,3,41,22],[42,3,42,22],[43,3,43,22],[44,3,44,22],[45,3,45,22],[40,3,40,22],[0,3,0,22],[1,3,1,22],[2,3,2,22],[3,3,3,22],[4,3,4,22],[10,3,10,22],[16,3,16,22],[17,3,17,22],[18,3,18,22],[5,3,5,22],[6,3,6,22],[7,3,7,22],[8,3,8,22],[9,3,9,22],[33,3,33,22],[34,3,34,22],[35,3,35,22],[25,3,25,22],[19,3,19,22],[11,3,11,22],[12,3,12,22],[13,3,13,22],[14,3,14,22],[15,3,15,22],[29,3,29,22],[30,3,30,22],[31,3,31,22],[20,3,20,22],[26,3,26,22],[27,3,27,22],[28,3,28,22],[21,3,21,22],[22,3,22,22],[23,3,23,22],[24,3,24,22],[32,3,32,22]]}
[4,null,"3\n2\n1","Қазақстан Республикасында\nвалюталық операцияларды\nмониторингтеу қағидаларына"]
[4,null,null,{"$f":"CONCATENATE(VLOOKUP(p_report_current_id,p_report,COLUMN(p_report_pril),FALSE),\"-қосымша\")","v":"15-қосымша"}]
[4,null,null,{"$f":"CONCATENATE(\"Приложение \",VLOOKUP(p_report_current_id,p_report,COLUMN(p_report_pril),FALSE))","v":"Приложение 15"}]
[4,null,"3\n2\n1","к Правилам мониторинга\nвалютных операций в\nРеспублике Казахстан"]
[4]
[4,null,null,"Әкімшілік деректерді"]
[4,null,null,"жинау үшін арналған нысан"]
[4,null,null,"Форма, предназначенная для сбора"]
[4,null,null,"административных данных"]
[4]
[4,null,null,{"$f":"CONCATENATE(\"«\",VLOOKUP(p_report_current_id,p_report,COLUMN(p_report_name_2)-1,FALSE),\"»\")","v":"«Бейрезиденттермен  халықаралық операциялар туралы есеп»"}]
[4,null,null,{"$f":"CONCATENATE(\"«\",VLOOKUP(p_report_current_id,p_report,COLUMN(p_report_name_2)-2,FALSE),\"»\")","v":"«Отчет о международных операциях с нерезидентами»"}]
[4]
[4,null,null,{"$f":"CONCATENATE(\"Есепті кезең: \",IF(p1_year=\"\",\"________\",p1_year),\" жылғы \",IF(p1_quarter=\"\",\"__\",p1_quarter),\" тоқсан\")","v":"Есепті кезең: ________ жылғы __ тоқсан"}]
[4,null,null,{"$f":"CONCATENATE(\"Отчетный период: \",IF(p1_quarter=\"\",\"__\",p1_quarter),\" квартал \",IF(p1_year=\"\",\"________\",p1_year),\" года\")","v":"Отчетный период: __ квартал ________ года"}]
[4]
[4,null,null,{"$f":"CONCATENATE(\"Нысанның индексі: \",VLOOKUP(p_report_current_id,p_report,COLUMN(p_report_index),FALSE))","v":"Нысанның индексі: 10-ТБ\n10-ПБ"}]
[4,null,null,{"$f":"CONCATENATE(\"Индекс: \",VLOOKUP(p_report_current_id,p_report,COLUMN(p_report_index),FALSE))","v":"Индекс: 10-ТБ\n10-ПБ"}]
[4]
[4,null,null,"Кезеңділігі: тоқсан сайын"]
[4,null,null,"Периодичность: ежеквартальная"]
[4]
[4,null,null,{"$f":"CONCATENATE(\"Ақпаратты ұсынатын тұлғалар тобы: \",IF(VLOOKUP(p_report_current_id,p_report,COLUMN(p_report_type)+1,FALSE)=1,\"резидент\",\"резидент-заңды тұлға\"))","v":"Ақпаратты ұсынатын тұлғалар тобы: резидент"}]
[4,null,null,{"$f":"CONCATENATE(\"Круг лиц представляющих информацию: \",IF(VLOOKUP(p_report_current_id,p_report,COLUMN(p_report_type)+1,FALSE)=1,\"резидент\",\"юридическое лицо-резидент\"))","v":"Круг лиц представляющих информацию: резидент"}]
[4]
[4,null,null,"Есептік нөмір беру орны бойынша Қазақстан Республикасы Ұлттық Банкінің аумақтық филиалына ұсынылады"]
[4,null,null,"Представляется в территориальный филиал Национального Банка Республики Казахстан по месту присвоения учетного номера"]
[4]
[4,null,null,"Әкімшілік деректерге арналған нысан Қазақстан Республикасы Ұлттық Банкінің www.nationalbank.kz интернет-ресурсына орналастырылған"]
[4,null,null,"Форма административных данных размещена на интернет-ресурсе Национального Банка Республики Казахстан www.nationalbank.kz"]
[4]
[4,null,null,"Ұсыну мерзімі: есепті кезеңнен кейінгі айдың 10 (оныншы) күніне (қоса алғанда) дейін"]
[4,null,null,"Срок представления: до десятого числа (включительно) месяца, следующего за отчетным периодом"]
[5,null,null,"Шетелдік қаржылық емес ұйымдардың"]
[5,null,null,"Қазақстан Республикасында қызметін"]
[5,null,null,"жүзеге асыратын филиалдарының (өкілдіктерінің)"]
[5,null,null,"ақпарат ұсыну қағидаларына"]
[5,null,null,{"$f":"CONCATENATE(VLOOKUP(p_report_current_id,p_report,COLUMN(p_report_pril),FALSE),\"-қосымша\")","v":"15-қосымша"}]
[5,null,null,{"$f":"CONCATENATE(\"Приложение \",VLOOKUP(p_report_current_id,p_report,COLUMN(p_report_pril),FALSE))","v":"Приложение 15"}]
[5,null,null,"к Правилам представления"]
[5,null,null,"информации филиалами (представительствами)"]
[5,null,null,"иностранных нефинансовых организаций,"]
[5,null,null,"осуществляющими деятельность"]
[5,null,null,"в Республике Казахстан"]
[5]
[5,null,null,"Әкімшілік деректерді жинауға арналған нысан"]
[5,null,null,"Форма, предназначенная для сбора административных данных"]
[5]
[5,null,null,{"$f":"CONCATENATE(\"«\",VLOOKUP(p_report_current_id,p_report,COLUMN(p_report_name_2)-1,FALSE),\"»\")","v":"«Бейрезиденттермен  халықаралық операциялар туралы есеп»"}]
[5,null,null,{"$f":"CONCATENATE(\"«\",VLOOKUP(p_report_current_id,p_report,COLUMN(p_report_name_2)-2,FALSE),\"»\")","v":"«Отчет о международных операциях с нерезидентами»"}]
[5]
[5,null,null,{"$f":"CONCATENATE(\"Есепті кезең: \",IF(p1_year=\"\",\"________\",p1_year),\" жылғы \",IF(p1_quarter=\"\",\"__\",p1_quarter),\" тоқсан\")","v":"Есепті кезең: ________ жылғы __ тоқсан"}]
[5,null,null,{"$f":"CONCATENATE(\"Отчетный период: \",IF(p1_quarter=\"\",\"__\",p1_quarter),\" квартал \",IF(p1_year=\"\",\"________\",p1_year),\" года\")","v":"Отчетный период: __ квартал ________ года"}]
[5]
[5,null,null,{"$f":"CONCATENATE(\"Индексі: \",VLOOKUP(p_report_current_id,p_report,COLUMN(p_report_index),FALSE))","v":"Индексі: 10-ТБ\n10-ПБ"}]
[5,null,null,{"$f":"CONCATENATE(\"Индекс: \",VLOOKUP(p_report_current_id,p_report,COLUMN(p_report_index),FALSE))","v":"Индекс: 10-ТБ\n10-ПБ"}]
[5]
[5,null,null,"Кезеңділігі: тоқсан сайын"]
[5,null,null,"Периодичность: ежеквартальная"]
[5]
[5,null,"2\n1","Ұсынады: Шетелдік қаржылық емес ұйымдардың Қазақстан Республикасында қызметін жүзеге асыратын филиалдарының (өкілдіктерінің) ақпарат ұсыну қағидаларының 5-тармағына сәйкес қалыптастырылатын филиалдардың (өкілдіктердің) тізіміне енгізілген шетелдік қаржылық емес ұйымның филиалы (өкілдігі)"]
[5,null,"2\n1","Представляют: филиал (представительство) иностранной нефинансовой организации, включенный в список филиалов (представительств), формируемый в соответствии с пунктом 5 Правил представления информации филиалами (представительствами) иностранных нефинансовых организаций, осуществляющими деятельность в Республике Казахстан"]
[5]
[5,null,"2\n1","Нысан қайда ұсынылады: Қазақстан Республикасында қызметін бір жылдан астам жүзеге асыратын шетелдік қаржылық емес ұйымның филиалы (өкілдігі) орналасқан орны бойынша Қазақстан Республикасы Ұлттық Банкінің аумақтық филиалы"]
[5,null,"2\n1","Куда представляется форма: территориальный филиал Национального Банка Республики Казахстан по месту нахождения филиала (представительства) иностранной нефинансовой организации, осуществляющего деятельность в Республике Казахстан более одного года"]
[5]
[5,null,null,"Ұсыну мерзімі: есепті тоқсаннан кейінгі бірінші айдың жиырмасына (қоса алғанда) дейін"]
[5,null,null,"Срок представления: до двадцатого числа (включительно) первого месяца, следующего за отчетным кварталом"]
[1,11,null,null,null,null,null,null,null,null,null,null,null,null,null,null,null,null,"Приложение 1 к постановлению"]
[1,1,null,null,null,null,null,null,null,null,null,null,null,null,null,null,null,null,"Приложение 2 к постановлению"]
[1,2,null,null,null,null,null,null,null,null,null,null,null,null,null,null,null,null,"Приложение 3 к постановлению"]
[1,3,null,null,null,null,null,null,null,null,null,null,null,null,null,null,null,null,"Приложение 4 к постановлению"]
[1,4,null,null,null,null,null,null,null,null,null,null,null,null,null,null,null,null,"Приложение 5 к постановлению"]
[1,6,null,null,null,null,null,null,null,null,null,null,null,null,null,null,null,null,"Приложение 6 к постановлению"]
[1,7,null,null,null,null,null,null,null,null,null,null,null,null,null,null,null,null,"Приложение 8 к постановлению"]
[1,8,null,null,null,null,null,null,null,null,null,null,null,null,null,null,null,null,"Приложение 9 к постановлению"]
[1,8,null,null,null,null,null,null,null,null,null,null,null,null,null,null,null,null,"Приложение 14 к постановлению"]
[1,null,null,null,null,null,null,null,null,null,null,null,null,null,null,null,null,null,"от 29 июня 2023 года № 43"]
[1,null,null,null,null,null,null,null,null,null,null,null,null,null,null,null,null,null,"2023 жылғы  29 маусымдағы № 43"]
[1,11,null,null,null,null,null,null,null,null,null,null,null,null,null,null,null,null,"Қаулыға 1-қосымша"]
[1,1,null,null,null,null,null,null,null,null,null,null,null,null,null,null,null,null,"Қаулыға 2-қосымша"]
[1,2,null,null,null,null,null,null,null,null,null,null,null,null,null,null,null,null,"Қаулыға 3-қосымша"]
[1,3,null,null,null,null,null,null,null,null,null,null,null,null,null,null,null,null,"Қаулыға 4-қосымша"]
[1,4,null,null,null,null,null,null,null,null,null,null,null,null,null,null,null,null,"Қаулыға 5-қосымша"]
[1,6,null,null,null,null,null,null,null,null,null,null,null,null,null,null,null,null,"Қаулыға 6-қосымша"]
[1,7,null,null,null,null,null,null,null,null,null,null,null,null,null,null,null,null,"Қаулыға 8-қосымша"]
[1,8,null,null,null,null,null,null,null,null,null,null,null,null,null,null,null,null,"Қаулыға 9-қосымша"]
[1,8,null,null,null,null,null,null,null,null,null,null,null,null,null,null,null,null,"Қаулыға 14-қосымша"]
[1]
[1,null,"2\n1",null,null,null,null,null,null,null,null,null,null,null,null,"Ақпаратты алушы органдар құпиялылығына кепілдік береді"]
[1,null,"2\n1",null,null,null,null,null,null,null,null,null,null,null,null,"Конфиденциальность гарантируется органами получателями информации"]
[1,null,"2\n1",null,null,null,null,null,null,null,null,null,null,null,null,"Ведомстволық статистикалық байқаудың статистикалық нысаны"]
[1,null,"2\n1",null,null,null,null,null,null,null,null,null,null,null,null,"Статистическая форма ведомственного статистического наблюдения"]
[1,11,"3\n2\n1",null,null,null,null,null,null,null,null,null,null,null,null,"Қазақстан Республикасы Ұлттық Банкінің аумақтық филиалына  респонденттің орналасқан жері бойынша ұсынылады"]
[1,11,"3\n2\n1",null,null,null,null,null,null,null,null,null,null,null,null,"Представляется территориальному филиалу Национального Банка Республики Казахстан по месту нахождения респондента"]
[1,1,"3\n2\n1",null,null,null,null,null,null,null,null,null,null,null,null,"Қазақстан Республикасы Ұлттық Банкінің аумақтық филиалына  респонденттің орналасқан жері бойынша ұсынылады"]
[1,1,"3\n2\n1",null,null,null,null,null,null,null,null,null,null,null,null,"Представляется территориальному филиалу Национального Банка Республики Казахстан по месту нахождения респондента"]
[1,2,"3\n2\n1",null,null,null,null,null,null,null,null,null,null,null,null,"Қазақстан Республикасы Ұлттық Банкінің аумақтық филиалына  респонденттің орналасқан жері бойынша ұсынылады"]
[1,2,"3\n2\n1",null,null,null,null,null,null,null,null,null,null,null,null,"Представляется территориальному филиалу Национального Банка Республики Казахстан по месту нахождения респондента"]
[1,3,"3\n2\n1",null,null,null,null,null,null,null,null,null,null,null,null,"Қазақстан Республикасы Ұлттық Банкінің аумақтық филиалына  респонденттің орналасқан жері бойынша ұсынылады"]
[1,3,"3\n2\n1",null,null,null,null,null,null,null,null,null,null,null,null,"Представляется территориальному филиалу Национального Банка Республики Казахстан по месту нахождения респондента"]
[1,4,"3\n2\n1",null,null,null,null,null,null,null,null,null,null,null,null,"Қазақстан Республикасы Ұлттық Банкінің аумақтық филиалына  респонденттің орналасқан жері бойынша ұсынылады"]
[1,4,"3\n2\n1",null,null,null,null,null,null,null,null,null,null,null,null,"Представляется территориальному филиалу Национального Банка Республики Казахстан по месту нахождения респондента"]
[1,6,"3\n2\n1",null,null,null,null,null,null,null,null,null,null,null,null,"Қазақстан Республикасы Ұлттық Банкінің аумақтық филиалына  респонденттің орналасқан жері бойынша ұсынылады"]
[1,6,"3\n2\n1",null,null,null,null,null,null,null,null,null,null,null,null,"Представляется территориальному филиалу Национального Банка Республики Казахстан по месту нахождения респондента"]
[1,7,"3\n2\n1",null,null,null,null,null,null,null,null,null,null,null,null,"Қазақстан Республикасы Ұлттық Банкінің аумақтық филиалына  респонденттің орналасқан жері бойынша ұсынылады"]
[1,7,"3\n2\n1",null,null,null,null,null,null,null,null,null,null,null,null,"Представляется территориальному филиалу Национального Банка Республики Казахстан по месту нахождения респондента"]
[1,8,null,null,null,null,null,null,null,null,null,null,null,null,null,"Қазақстан Республикасының Ұлттық Банкіне ұсынылады"]
[1,8,null,null,null,null,null,null,null,null,null,null,null,null,null,"Представляется  Национальному Банку Республики Казахстан"]
[1]
[1,null,"2\n1",{"$f":"VLOOKUP(p_report_current_id,p_report,COLUMN(p_report_name_2)-1,FALSE)","v":"Бейрезиденттермен  халықаралық операциялар туралы есеп"}]
[1,null,"2\n1",{"$f":"VLOOKUP(p_report_current_id,p_report,COLUMN(p_report_name_2)-2,FALSE)","v":"Отчет о международных операциях с нерезидентами"}]
[1]
[1,null,null,"Индексі",null,{"$f":"VLOOKUP(p_report_current_id,p_report,COLUMN(p_report_name_1)-1,FALSE)","v":"10-ТБ"},null,"Тоқсандық",null,null,"Есепті кезең",null,null,{"$f":"CONCATENATE(p1_quarter)","v":""},"тоқсан",null,{"$f":"LEFT(p1_year,1)","v":""},{"$f":"LEFT(RIGHT(p1_year,3),1)","v":""},{"$f":"LEFT(RIGHT(p1_year,2),1)","v":""},{"$f":"RIGHT(p1_year,1)","v":""},"жыл"]
[1,null,null,"Индекс",null,{"$f":"VLOOKUP(p_report_current_id,p_report,COLUMN(p_report_name_1)-2,FALSE)","v":"10-ПБ"},null,"Квартальная",null,null,"Отчетный период",null,null,null,"квартал",null,null,null,null,null,"год"]
[1]
[1,11,null,"Респонденттер тізіміне енгізілген заңды тұлғалар ұсынады"]
[1,11,null,"Представляют юридические лица, включенные в перечень респондентов"]
[1,1,"2\n1","Респонденттер тобы: тасымалдау  және  көлік – экспедициялық  қызметтерін   авиациялық, теңіз (өзен), автомобиль, құбыр арқылы    жүргізу және электроэнергияны тасымалдау кәсіпорындары  ұсынады"]
[1,1,"2\n1","Круг респондентов: предприятия, осуществляющие перевозки  и транспортно-экспедиционные услуги авиационным, морским (речным), автомобильным, трубопроводным транспортом и передачу электроэнергии"]
[1,2,"2\n1","Респонденттер тобы: Ұлттық компания «Қазақстан Темір Жолы» акционерлік қоғамы, «Жолаушы тасымалдау» акционерлік қоғамы,  темір жол көлігінің кәсіпорындары ұсынады"]
[1,2,"2\n1","Круг респондентов: Акционерное общество «Национальная компания Қазақстан Темір Жолы», акционерное общество «Пассажирские перевозки»,  предприятия железнодорожного транспорта"]
[1,3,null,"Темір жолдан басқа бейрезидент көлік кәсіпорындарының өкілдері ұсынады"]
[1,3,null,"Представляют представители транспортных предприятий-нерезидентов всех видов транспорта, кроме железнодорожного"]
[1,4,null,"Қосалқы және қосымша көлік қызметімен айналысатын кәсіпорындар ұсынады"]
[1,4,null,"Представляют предприятия, занимающиеся вспомогательной и дополнительной транспортной деятельностью"]
[1,6,null,"Қазақстан Республикасының мемлекеттік басқару органдары ұсынады"]
[1,6,null,"Представляют органы государственного управления Республики Казахстан"]
[1,7,null,"Респонденттер тізбесіне қосылған ұйымдар ұсынады"]
[1,7,null,"Представляют организации, включенные в перечень респондентов"]
[1,8,"2\n1","«Жалпы сақтандыру» саласы бойынша лицензия негізінде өз қызметін  жүзеге асыратын сақтандыру ұйымдары, бейрезидент сақтандыру (қайта сақтандыру) ұйымдарының филиалдары ұсынады"]
[1,8,"2\n1","Представляют страховые организации, филиалы страховых (перестраховочных) организаций - нерезидентов осуществляющие свою деятельность на основании лицензии по отрасли «общее страхование»"]
[1,8,"2\n1"," «Өмірді сақтандыру» саласы бойынша лицензия негізінде өз қызметін  жүзеге асыратын сақтандыру ұйымдары, бейрезидент сақтандыру (қайта сақтандыру) ұйымдарының филиалдары ұсынады"]
[1,8,"2\n1","Представляют страховые организации, филиалы страховых(перестраховочных) организаций - нерезидентов осуществляющие свою деятельность на основании лицензии по отрасли «страхование жизни»"]
[1]
[1,11,null,"Ұсыну мерзімі – есептік кезеңнен кейінгі екінші айдың 10-күнінен кешіктірмей"]
[1,11,null,"Срок представления – не позднее 10 числа второго месяца после отчетного периода"]
[1,1,null,"Ұсыну мерзімі – есептік кезеңнен кейінгі бірінші айдың 30-нан кешіктірмей"]
[1,1,null,"Срок представления – не позднее 30 числа первого месяца после отчетного периода"]
[1,2,null,"Ұсыну мерзімі – есептік кезеңнен кейінгі бірінші айдың 30-нан кешіктірмей"]
[1,2,null,"Срок представления – не позднее 30 числа первого месяца после отчетного периода"]
[1,3,null,"Ұсыну мерзімі – есептік кезеңнен кейінгі бірінші айдың 30-нан кешіктірмей"]
[1,3,null,"Срок представления – не позднее 30 числа первого месяца после отчетного периода"]
[1,4,null,"Ұсыну мерзімі – есептік кезеңнен кейінгі бірінші айдың 30-нан кешіктірмей"]
[1,4,null,"Срок представления – не позднее 30 числа первого месяца после отчетного периода"]
[1,6,null,"Ұсыну мерзімі – есептік кезеңнен кейінгі бірінші айдың 30-нан кешіктірмей"]
[1,6,null,"Срок представления – не позднее 30 числа первого месяца после отчетного периода"]
[1,7,null,"Ұсыну мерзімі – есептік кезеңнен кейінгі бірінші айдың 30-нан кешіктірмей"]
[1,7,null,"Срок представления – не позднее 30 числа первого месяца после отчетного периода"]
[1,8,null,"Ұсыну мерзімі - есептік кезеңнен кейінгі бірінші айдың 20-нан кешіктірмей"]
[1,8,null,"Срок представления - не позднее 20 числа первого месяца после отчетного периода"]
[1]
[1,null,null,"БСН коды",null,null,{"$f":"LEFT(p1_bin,1)","v":""},{"$f":"LEFT(RIGHT(p1_bin,11),1)","v":""},{"$f":"LEFT(RIGHT(p1_bin,10),1)","v":""},{"$f":"LEFT(RIGHT(p1_bin,9),1)","v":""},{"$f":"LEFT(RIGHT(p1_bin,8),1)","v":""},{"$f":"LEFT(RIGHT(p1_bin,7),1)","v":""},{"$f":"LEFT(RIGHT(p1_bin,6),1)","v":""},{"$f":"LEFT(RIGHT(p1_bin,5),1)","v":""},{"$f":"LEFT(RIGHT(p1_bin,4),1)","v":""},{"$f":"LEFT(RIGHT(p1_bin,3),1)","v":""},{"$f":"LEFT(RIGHT(p1_bin,2),1)","v":""},{"$f":"RIGHT(p1_bin,1)","v":""}]
[1,null,null,"Код БИН"]

{"sheet":"Описание","index":2,"n_rows":1,"n_cols":1,"rows_kept":1,"cut":false,"hidden":true,"merged":[]}
[{"$f":"IF(p_report_current_id=47,1,0)","v":0}]

{"sheet":"Содержание","index":3,"n_rows":13,"n_cols":9,"rows_kept":13,"cut":false,"hidden":false,"merged":[[9,3,9,4],[10,3,10,4],[11,3,11,4],[12,3,12,4],[0,0,0,4],[2,3,2,4],[6,3,6,4],[7,3,7,4],[8,3,8,4]]}
["Мазмұны\nСодержание",null,null,null,null,null,{"$f":"CONCATENATE($A$1)","v":"Мазмұны\nСодержание"}]
[]
[null,1,"1-бөлім.\nРаздел 1.","Қызмет көрсету бойынша операциялар (2-5 бөлімдеріне қосылмайтындары), Америка Құрама Штаттарының (бұдан әрі – АҚШ) мың доллары\nОперации по оказанию услуг (не включаемые в разделы 2-5), тысяч долларов Соединенных Штатов Америки (далее – США)",null,{"$f":"OR(OR(NOT(ISERROR(AREAS(p5_1058_country_name))),IF(NOT(ISERROR(AREAS(p5_1058_sum))),SUM(p5_1058_sum)>0,FALSE)),OR(NOT(ISERROR(AREAS(p6_1059_country_name))),IF(NOT(ISERROR(AREAS(p6_1059_sum))),SUM(p6_1059_sum)>0,FALSE)),OR(NOT(ISERROR(AREAS(p7_1060_country_name))),IF(NOT(ISERROR(AREAS(p7_1060_sum))),SUM(p7_1060_sum)>0,FALSE)))","v":false},null,{"$f":"CONCATENATE($D$3)","v":"Қызмет көрсету бойынша операциялар (2-5 бөлімдеріне қосылмайтындары), Америка Құрама Штаттарының (бұдан әрі – АҚШ) мың доллары\nОперации по оказанию услуг (не включаемые в разделы 2-5), тысяч долларов Соединенных Штатов Америки (далее – США)"},"1\n1"]
[null,"А",null,"А-бөлік.\nЧасть А.","Бейрезиденттерге көрсетілген қызметтер\nУслуги, оказанные нерезидентам",{"$f":"OR(NOT(ISERROR(AREAS(p5_1058_country_name))),IF(NOT(ISERROR(AREAS(p5_1058_sum))),SUM(p5_1058_sum)>0,FALSE))","v":false},null,null,"1\n1"]
[null,"Б",null,"Б-бөлік.\nЧасть Б.","Бейрезиденттерден алынған қызметтер\nУслуги, полученные от нерезидентов",{"$f":"OR(NOT(ISERROR(AREAS(p6_1059_country_name))),IF(NOT(ISERROR(AREAS(p6_1059_sum))),SUM(p6_1059_sum)>0,FALSE))","v":false},null,null,"1\n1"]
[null,"В",null,"В-бөлік.\nЧасть В.","Бейрезиденттерге көрсетілген денсаулық сақтау қызметтері (тұтастай алғанда Қазақстан бойынша «Әлеуметтік медициналық сақтандыру қоры» акционерлік қоғамы толтырады)\nУслуги здравоохранения, оказанные нерезидентам (заполняется акционерным обществом  «Фонд социального медицинского страхования»  в целом по  Казахстану)",{"$f":"OR(NOT(ISERROR(AREAS(p7_1060_country_name))),IF(NOT(ISERROR(AREAS(p7_1060_sum))),SUM(p7_1060_sum)>0,FALSE))","v":false},null,null,"1\n1"]
[null,2,"2-бөлім.\nРаздел 2.","Жолаушылар көлігі қызметтері және қосалқы көлік қызметтері, мың АҚШ доллары\nУслуги пассажирского транспорта и вспомогательные транспортные услуги, тысяч долларов США",null,{"$f":"OR(NOT(ISERROR(AREAS(p8_1062_country_name))),IF(NOT(ISERROR(AREAS(p8_1062_sum))),SUM(p8_1062_sum)>0,FALSE))","v":false},null,{"$f":"CONCATENATE($D$7)","v":"Жолаушылар көлігі қызметтері және қосалқы көлік қызметтері, мың АҚШ доллары\nУслуги пассажирского транспорта и вспомогательные транспортные услуги, тысяч долларов США"},"1\n1"]
[null,3,"3-бөлім.\nРаздел 3.","Қазақстанда орналасқан халықаралық ұйымдарға, шетел елшіліктеріне, консулдықтарына және басқа да шетел дипломатиялық және ресми өкілдіктерге ұсынған тауарлары мен қызметтері, мың АҚШ доллары\nТовары и услуги, оказанные находящимся в Казахстане международным организациям, иностранным посольствам, консульствам и другим иностранным дипломатическим и официальным представительствам, тысяч долларов США",null,{"$f":"OR(NOT(ISERROR(AREAS(p9_19_country_name))),IF(NOT(ISERROR(AREAS(p9_19_sum))),SUM(p9_19_sum)>0,FALSE))","v":false},null,{"$f":"CONCATENATE($D$8)","v":"Қазақстанда орналасқан халықаралық ұйымдарға, шетел елшіліктеріне, консулдықтарына және басқа да шетел дипломатиялық және ресми өкілдіктерге ұсынған тауарлары мен қызметтері, мың АҚШ доллары\nТовары и услуги, оказанные находящимся в Казахстане международным организациям, иностранным посольствам, консульствам и другим иностранным дипломатическим и официальным представительствам, тысяч долларов США"},"1\n1"]
[null,4,"4-бөлім.\nРаздел 4.","Жүк көлігінің қызметтері (жүкті сақтандыруды есептемегенде), мың АҚШ доллары\nУслуги грузового транспорта (без учета страхования грузов), тысяч долларов США",null,{"$f":"SUM(OFFSET(p10_161_data,ROW(p10_161_indicator_code)-ROW(p10_161_data),COLUMN(p10_161_cols_code)-COLUMN(p10_161_data),ROWS(p10_161_indicator_code),COLUMNS(p10_161_cols_code)))>0","v":false},null,{"$f":"CONCATENATE($D$9)","v":"Жүк көлігінің қызметтері (жүкті сақтандыруды есептемегенде), мың АҚШ доллары\nУслуги грузового транспорта (без учета страхования грузов), тысяч долларов США"},"1\n1"]
[null,5,"5-бөлім.\nРаздел 5.","Материалдық емес активтермен және табиғи ресурстарды жалдаумен операциялар, мың АҚШ доллары\nОперации с нематериальными активами и арендой природных ресурсов, тысяч долларов США",null,{"$f":"OR(NOT(ISERROR(AREAS(p11_18_country_name))),IF(NOT(ISERROR(AREAS(p11_18_sum))),SUM(p11_18_sum)>0,FALSE))","v":false},null,{"$f":"CONCATENATE($D$10)","v":"Материалдық емес активтермен және табиғи ресурстарды жалдаумен операциялар, мың АҚШ доллары\nОперации с нематериальными активами и арендой природных ресурсов, тысяч долларов США"},"1\n1"]
[null,6,"6-бөлім.\nРаздел 6.","Қайта өңдеуге, жөндеуге және қайта сатуға арналған тауарлар, тауарлардың реэкспорты және реимпорты, мың АҚШ доллары\nТовары для переработки, ремонта и перепродажи, реэкспорт и реимпорт товаров, тысяч долларов США",null,{"$f":"OR(NOT(ISERROR(AREAS(p12_160_country_name))),IF(NOT(ISERROR(AREAS(p12_160_sum))),SUM(p12_160_sum)>0,FALSE))","v":false},null,{"$f":"CONCATENATE($D$11)","v":"Қайта өңдеуге, жөндеуге және қайта сатуға арналған тауарлар, тауарлардың реэкспорты және реимпорты, мың АҚШ доллары\nТовары для переработки, ремонта и перепродажи, реэкспорт и реимпорт товаров, тысяч долларов США"},"1\n1"]
[null,7,"7-бөлім.\nРаздел 7.","Бейрезидент қызметкерлерге төленген жалақы, мың АҚШ доллары\nЗаработная плата, выплаченная работникам-нерезидентам, тысяч долларов США",null,{"$f":"OR(NOT(ISERROR(AREAS(p13_16_country_name))),IF(NOT(ISERROR(AREAS(p13_16_sum))),SUM(p13_16_sum)>0,FALSE))","v":false},null,{"$f":"CONCATENATE($D$12)","v":"Бейрезидент қызметкерлерге төленген жалақы, мың АҚШ доллары\nЗаработная плата, выплаченная работникам-нерезидентам, тысяч долларов США"},"1\n1"]
[null,8,"8-бөлім.\nРаздел 8.","Ағымдағы және күрделі трансферттер, коммерциялық емес ұйымдарға мүшелік жарналар, мың АҚШ доллары\nТекущие и капитальные трансферты, членские взносы в некоммерческие организации, тысяч долларов США",null,{"$f":"OR(NOT(ISERROR(AREAS(p14_17_country_name))),IF(NOT(ISERROR(AREAS(p14_17_sum))),SUM(p14_17_sum)>0,FALSE))","v":false},null,{"$f":"CONCATENATE($D$13)","v":"Ағымдағы және күрделі трансферттер, коммерциялық емес ұйымдарға мүшелік жарналар, мың АҚШ доллары\nТекущие и капитальные трансферты, членские взносы в некоммерческие организации, тысяч долларов США"},"1\n1"]

{"sheet":"1","index":4,"n_rows":69,"n_cols":5,"rows_kept":69,"cut":false,"hidden":false,"merged":[[1,2,1,4],[2,2,3,2],[2,3,3,3],[2,4,3,4],[0,2,0,4]]}
["1-бөлім. Қызмет көрсету бойынша операциялар (2-5 бөлімдеріне қосылмайтындары), Америка Құрама Штаттарының (бұдан әрі – АҚШ) мың доллары\nРаздел 1. Операции по оказанию услуг (не включаемые в разделы 2-5), тысяч долларов Соединенных Штатов Америки (далее – США)",null,"1-бөлім. Қызмет көрсету бойынша операциялар (2-5 бөлімдеріне қосылмайтындары), Америка Құрама Штаттарының (бұдан әрі – АҚШ) мың доллары\nРаздел 1. Операции по оказанию услуг (не включаемые в разделы 2-5), тысяч долларов Соединенных Штатов Америки (далее – США)"]
["А-бөлік. Бейрезиденттерге көрсетілген қызметтер\nЧасть А. Услуги, оказанные нерезидентам",null,"А-бөлік. Бейрезиденттерге көрсетілген қызметтер\nЧасть А. Услуги, оказанные нерезидентам"]
[null,0,"Көрсеткіштің атауы\nНаименование показателя","Көрсеткіш коды\nКод показателя","Барлығы\nВсего"]
[null,0]
[null,0,"А","Б",1]
[null,-1,0,0,0]
[null,3,"Құрылыс қызметі (құрылыс жұмыстарына байланысты жөндеу және техникалық қызмет көрсетуді қосқанда), оның ішінде:\nСтроительные услуги (включая ремонт и техническое обслуживание в связи со строительством), в том числе:"]
[null,1,"шетелдегі құрылыс (құрылыстың жалпы негіздегі құны құрылыс қызметі жүзеге асырылатын елдегі шетелдік кәсіпорын немесе филиал ретінде тіркелмеген құрылыс алаңында орналасқан құрылысты басқару құрылыстың жобасын жүзеге асыратын мердігер құрылыс ұйымымен толтырылады), оның ішінде:\nстроительство за границей (стоимость строительства на валовой основе заполняется подрядчиком, выполняющим строительный проект через находящееся на строительной площадке строительное управление, не регистрируемое как иностранное лицо или отделение в стране, в которой ведется строительная деятельность), в том числе:","10",{"$f":"0","v":0}]
[null,0,"     сіздің ұйым өндірістік процесске жұмсаған құрылыс жұмыстарының, еңбектің құны\n     стоимость строительных работ, труда, вложенных в производственный процесс Вашей организацией","11",{"$f":"0","v":0}]
[null,0,"     құрылыс қызметі жүргізіліп жатқан елге Сіздің ұйым шығарған тауалар\n     товары, вывезенные Вашей организацией в страну, в которой ведется строительная деятельность","12",{"$f":"0","v":0}]
[null,0,"    құрылыс қызметі жүргізіліп жатқан елде бейрезиденттермен орындалған құрылыс жұмыстары\n     строительные работы, выполненные нерезидентами в стране, в которой ведется строительная деятельность","13",{"$f":"0","v":0}]
[null,0,"     құрылыс қызметі жүргізіліп жатқан елде  Сіздің ұйым алған тауарлар\n     товары, приобретенные Вашей организацией в стране, в которой ведется строительная деятельность","14",{"$f":"0","v":0}]
[null,0,"     үшінші елдерде Сіздің ұйым алған тауалар\n     товары, приобретенные Вашей организацией в третьих странах","15",{"$f":"0","v":0}]
[null,0,"     бейрезидент-жалдамалы қызметкерлердің еңбекақысы (Сіздің ұйым қызметкерлерін қоспағанда)\n     оплата труда наемных работников-нерезидентов (за исключением сотрудников Вашей организации)","16",{"$f":"0","v":0}]
[null,0,"     сіздің ұйым жалпы кіріс және оған теңестірілген табыстарды есептеуі \n     начисление  Вашей организацией валовой прибыли и приравненных к ней доходов","17",{"$f":"0","v":0}]
[null,0,"шетелдегі құрылыс (бейрезидент - мердігерге арналған құрылыс жұмыстарын орындаушы қосалқы-мердігермен толтырылады)\nстроительство за границей (заполняется субподрядчиком, выполняющим строительные работы для подрядчика-нерезидента)","18",{"$f":"0","v":0}]
[null,0,"Қазақстандағы құрылыс (сіздің ұйымыңыз бейрезидент құрылыс компанияларына сатқан тауарларды қоса алғанда)\nстроительство в Казахстане (включая товары, проданные Вашей организацией строительным предприятиям-нерезидентам)","19",{"$f":"0","v":0}]
[null,0,"Қаржы қызметтері\nФинансовые услуги","20",{"$f":"0","v":0}]
[null,1,"Телекоммуникациялық қызметтер (берілетін ақпарат құнын есептемегенде), оның ішінде:\nТелекоммунакационные услуги (без учета стоимости передаваемой информации), в том числе:","21",{"$f":"0","v":0}]
[null,0,"     шетелден Қазақстанмен телефондық, ұялы байланыс\n     услуги телефонной, мобильной связи из-за рубежа с Казахстаном","22",{"$f":"0","v":0}]
[null,0,"     Қазақстан аумағындағы бейрезиденттер үшін телефондық, ұялы байланыс қызметтері\n     услуги телефонной, мобильной связи для нерезидентов, находящихся на территории Казахстана","23",{"$f":"0","v":0}]
[null,0,"     Қазақстанның меншігіндегі жерсеріктерді пайдалану\n     использование спутников, находящихся в собственности Казахстана","24",{"$f":"0","v":0}]
[null,0,"     услуги магистрального кабеля интернета и услуги доступа к сети, включая предоставление доступа к интернету\n     интернет магистралды кабелі қызметтері және интернетке қолжетімділікті қоса алғанда желіге қолжетімділік қызметтері","25",{"$f":"0","v":0}]
[null,0,"     іскерлік желілер қызметтері, телеконференциялар ұйымдастыру, қолдау қызметтерінің жұмыстары\n     услуги деловых сетей, организация телеконференций, услуги служб поддержки","26",{"$f":"0","v":0}]
[null,0,"     телекс, телеграф, телефакс, радио, телевизиялық кабель арқылы тасымалдау қызметтері\n     услуги телекса, телеграфа, телефакса, радио, передача по телевизионным кабелям","27",{"$f":"0","v":0}]
[null,0,"     өзге телекоммуникациялық қызметтер\n     прочие телекоммуникационные услуги","28",{"$f":"0","v":0}]
[null,1,"Компьютерлік қызметтер (компьютерлерді жөндеу және техникалық қызмет көрсетуді қосқанда), оның ішінде:\nКомпьютерные услуги (включая ремонт и техническое обслуживание компьютеров), в том числе:","30",{"$f":"0","v":0}]
[null,0,"     компьютерлік бағдарламалық қамтамасыз ету\n     компьютерное программное обеспечение","31",{"$f":"0","v":0}]
[null,0,"     жөндеуші тарап ұсынатын қосалқы бөлшектер мен материалдар \n     запасные части и материалы, предоставляемые ремонтирующей стороной","32",{"$f":"0","v":0}]
[null,0,"     өзге компьютерлік қызметтер\n     прочие компьютерные услуги","33",{"$f":"0","v":0}]
[null,1,"Ақпараттық қызметтер, оның ішінде:\nИнформационные услуги, в том числе:","40",{"$f":"0","v":0}]
[null,0,"     ақпараттық агенттіктердің қызметтері\n     услуги информационных агентств","41",{"$f":"0","v":0}]
[null,0,"     өзге ақпараттық қызметтер\n     прочие информационные услуги","42",{"$f":"0","v":0}]
[null,0,"Пошталық қызметтер және курьерлік байланыс қызметтері (Қазақстанда шетелден жіберілген хаттарды, мерзімдік және баспасөз басылымдарын, жіберілімдер және бандерольдарды  жинау, тасымалдау және жеткізу)\nПочтовые услуги и услуги курьерской связи (сбор, транспортировка и доставка в Казахстане  присланных из-за рубежа писем, периодических и печатных изданий, посылок и бандеролей)","45",{"$f":"0","v":0}]
[null,0,"Тауарларды қайта өңдеу бойынша қызметтер\nУслуги по переработке товаров","50",{"$f":"0","v":0}]
[null,1,"Басқа санатқа жатпайтын жөндеу және техникалық қызметтер,  оның ішінде:\nУслуги по ремонту и техническому обслуживанию, не отнесенные к другим категориям, в том числе:","60",{"$f":"0","v":0}]
[null,0,"     шетелде темір жолдарды, теңіз порттарында және әуежайларда конструкцияларды және құрылымдарды, қосалқы бөлшектер мен жөндеуге арналған материалдарды қоса алғанда жөндеу\n     ремонт железнодорожных путей и конструкций и сооружений в морских портах и аэропортах за границей, включая запасные части и материалы для ремонта","61",{"$f":"0","v":0}]
[null,0,"     Қазақстанда темір жолдарды, теңіз порттарында және әуежайларда конструкцияларды және құрылымдарды, оның ішінде қосалқы бөлшектер мен жөндеуге арналған материалдарды қоса алғанда жөндеу\n     ремонт железнодорожных путей и конструкций и сооружений в морских портах и аэропортах в Казахстане, включая запасные части и материалы для ремонта","62",{"$f":"0","v":0}]
[null,0,"     басқа да жөндеу және техникалық қызмет көрсету бойынша жұмыстар\n     работы по прочему ремонту и техническому обслуживанию","63",{"$f":"0","v":0}]
[null,0,"     басқа да жөндеу және техникалық қызмет көрсету үшін жөндеуші жақпен ұсынылған қосалқы бөлшектер мен материалдар \n     запасные части и материалы, предоставляемые ремонтирующей стороной при прочем ремонте и техническом обслуживании","64",{"$f":"0","v":0}]
[null,1,"Зияткерлік меншікті пайдалану үшін төлем, оның ішінде:\nПлата за использование интеллектуальной собственности, в том числе:","70",{"$f":"0","v":0}]
[null,0,"     франшиза және тауарлық белгілер үшін алымдар\n     сборы за франшизы и товарные знаки","71",{"$f":"0","v":0}]
[null,0,"     ғылыми зерттеулер мен зерттемелердің нәтижелерін пайдалану үшін лицензиялар\n     лицензии за использование результатов научных исследований и разработок","72",{"$f":"0","v":0}]
[null,0,"     бағдарламалық қамтамасыз етуді қайта жаңғыртуға және (немесе) таратуға лицензиялар\n     лицензии на воспроизведение и (или) распространения программного обеспечения","73",{"$f":"0","v":0}]
[null,0,"     аудиовизуалды (кинофильмдер, радио- және телевизиялық бағдарламалар, музыкалық шығармалар) және онымен байланысты өнімдерді қайта жаңғыртуға және (немесе) таратуға лицензиялар\n     лицензии на воспроизведение и (или) распространения аудиовизуальных (кинофильмов, радио- и телевизионных программ, музыкальных произведений) и связанных с ними продуктов","74",{"$f":"0","v":0}]
[null,0,"     зияткерлік меншікті пайдалану үшін өзге алымдар\n     прочие сборы за использование интеллектуальной собственности","75",{"$f":"0","v":0}]
[null,1,"Әр түрлі іскерлік қызметтер, оның ішінде:\nРазные деловые услуги, в том числе:","80",{"$f":"0","v":0}]
[null,0,"     ғылыми-зерттеу және тәжірибелік-конструкторлық әзірлемелер, және олардың нәтижесінде пайда болатын меншіктік құқықтар\n     научно-исследовательские и опытно-конструкторские разработки, включая права собственности, возникающие в их результате","81",{"$f":"0","v":0}]
[null,0,"     заңгерлік\n     юридические ","82",{"$f":"0","v":0}]
[null,0,"     бухгалтерлік, аудиторлық \n     бухгалтерские, аудиторские ","83",{"$f":"0","v":0}]
[null,0,"     бизнес және басқару бойынша консультациялық қызметтер \n     услуги по консультации бизнеса и управления","84",{"$f":"0","v":0}]
[null,0,"     конференцияларды, сауда жәрмеңкелерін және көрмелерін ұйымдастыру бойынша жарнама және нарық коньюнктурасын зерделеу саласындағы қызметтер\n     услуги в области рекламы и изучения конъюнктуры рынка, по организации конференций, торговых ярмарок и выставок","85",{"$f":"0","v":0}]
[null,0,"     сәулет, инженерлік және басқа да техникалық қызметтер\n     архитектурные, инженерные и  прочие технические услуги","86",{"$f":"0","v":0}]
[null,0,"     қалдықтарды қайта өңдеу және қоршаған ортаны тазарту\n     переработка отходов и очистка окружающей среды","87",{"$f":"0","v":0}]
[null,0,"     ауыл шаруашылығы саласындағы қызметтер \n     услуги в области сельского хозяйства ","88",{"$f":"0","v":0}]
[null,0,"     жабдықтардың қызметкерсіз операциялық лизингі (жалдау) (жолаушыларды, жүктерді тасымалдау үшін көлік құралдарын жалдауды қоса алғанда) \n     операционный лизинг (аренда) оборудования без персонала (включая аренду транспортных средств для перевозки пассажиров, грузов)","89",{"$f":"0","v":0}]
[null,0,"     трейдерлердің, биржалық тауарлар брокерлерінің, дилерлердің, аукционшылардың және делдалдардың саудамен байланысты қызметтері (қаржылық құралдар бойынша қызметтерді қоспағанда)\n     связанные с торговлей услуги трейдеров, брокеров биржевых товаров, дилеров, аукционистов и комиссионеров (кроме услуг по финансовым инструментам)","90",{"$f":"0","v":0}]
[null,0,"     үлестіру желілерінің, жұмысқа орналастыру және басқа да іскерлік қызметтер\n     услуги распределительных сетей, трудоустройства и прочие деловые услуги","91",{"$f":"0","v":0}]
[null,0,"     пайдалы қазбаларды өндіру саласындағы қызметтер\n     услуги в области добычи полезных ископаемых","92",{"$f":"0","v":0}]
[null,1,"Жеке тұлғаларға қызмет көрсету және мәдениет пен демалыс саласындағы қызмет көрсету, оның ішінде:\nУслуги частным лицам и услуги в сфере культуры и отдыха, в том числе:","100",{"$f":"0","v":0}]
[null,0,"     актерлердің, режиссерлердің және Сіздің ұйымыңыздың қызметкерлері болып табылмайтын басқа қызметкерлердің еңбекақысын қосқандағы аудиовизуалды өнімдерді (көркем фильмдер, радио- және телевизиялық бағдарламалар, музыкалық шығармалар) жасау, аудиовизуалды өнімдерді жалға алу, кабельді және жерсеріктік теледидар қызметтері\n     производство аудиовизуальных продуктов (художественных фильмов, радио- и телевизионных программ, музыкальных произведений), включая оплату актерам, режиссерам и другим работникам, не являющимся сотрудниками Вашей организации, аренда аудиовизуальных продуктов, услуги кабельного и спутникового телевидения","101",{"$f":"0","v":0}]
[null,0,"     әртістердің және Сіздің ұйымыңыздың қызметкерлері болып табылмайтын басқа қызметкерлердің еңбекақысын қосқандағы мәдени және спорттық іс-шараларын жарнамалау және ұйымдастыру\n     организация и реклама культурных и спортивных мероприятий, включая оплату артистам и другим работникам, не являющимся сотрудниками Вашей организации","102",{"$f":"0","v":0}]
[null,0,"     кітаптарды, әдеби және өзге өнер туындыларының түпнұсқаларына, радио- және телевизиялық бағдарламалар, кинофильмдер бейнежазбаларының және дыбысжазбаларының түпнұсқаларына меншіктік құқықтарды сатып алу, сату\n     покупка, продажа книг, прав собственности на оригиналы литературных и прочих произведений искусства, на оригиналы видеозаписей и звукозаписей радио- и телевизионных программ, кинофильмов","103",{"$f":"0","v":0}]
[null,0,"     Қазақстан аумағында бейрезиденттерді оқыту\n     обучение нерезидентов, находящихся на территории Казахстана","104",{"$f":"0","v":0}]
[null,0,"     шетелдегі бейрезиденттерді оқыту (қашықтан, қазақстандық оқытушылардың шығуы)\n     обучение нерезидентов, находящихся за рубежом (дистанционно, выезд казахстанских преподавателей)","105",{"$f":"0","v":0}]
[null,0,"     төлемдер мен сыйлықтарды, оның ішінде спортшы-резиденттерге берілетіндерін есептегенде мұражайларға және мәдениет, спорт, құмар ойындар мен демалыс саласындағы өзге қызмет түрлеріне жататын қызметтер және жеке тұлғаларға басқа қызметтер\n     услуги, относящиеся к музеям и прочим видам деятельности в области культуры, спорта, азартных игр и отдыха, включая платежи и призы, в том числе спортсменам-резидентам, и прочие услуги частным лицам","106",{"$f":"0","v":0}]
[null,5,"Сіздің ұйыммен бейрезиденттерге көрсетілген басқа қызметтер (толық көрсетіңіз)\nПрочие услуги, оказанные Вашей организацией нерезидентам (расшифровать)","109",{"$f":"0","v":0}]
[null,-1,"   басқа да\n   прочие","109/01",{"$f":"0","v":0}]
[null,7]

{"sheet":"2","index":5,"n_rows":70,"n_cols":5,"rows_kept":70,"cut":false,"hidden":false,"merged":[[1,2,1,4],[2,2,3,2],[2,3,3,3],[2,4,3,4],[0,2,0,4]]}
["1-бөлім. Қызмет көрсету бойынша операциялар (2-5 бөлімдеріне қосылмайтындары), Америка Құрама Штаттарының (бұдан әрі – АҚШ) мың доллары\nРаздел 1. Операции по оказанию услуг (не включаемые в разделы 2-5), тысяч долларов Соединенных Штатов Америки (далее – США)",null,"1-бөлім. Қызмет көрсету бойынша операциялар (2-5 бөлімдеріне қосылмайтындары), Америка Құрама Штаттарының (бұдан әрі – АҚШ) мың доллары\nРаздел 1. Операции по оказанию услуг (не включаемые в разделы 2-5), тысяч долларов Соединенных Штатов Америки (далее – США)"]
["Б-бөлік. Бейрезиденттерден алынған қызметтер\nЧасть Б. Услуги, полученные от нерезидентов",null,"Б-бөлік. Бейрезиденттерден алынған қызметтер\nЧасть Б. Услуги, полученные от нерезидентов"]
[null,0,"Көрсеткіштің атауы\nНаименование показателя","Көрсеткіш коды\nКод показателя","Барлығы\nВсего"]
[null,0]
[null,0,"А","Б",1]
[null,-1,0,0,0]
[null,1,"Қазақстандағы құрылыста (құрылыспен байланысты жөндеу және техникалық қызмет көрсетуді қосқанда) құрылыс қызметтері, оның ішінде:\nСтроительные услуги (включая ремонт и техническое обслуживание в связи со строительством) при строительстве в Казахстане, в том числе:","110",{"$f":"0","v":0}]
[null,0,"     сіздің ұйым үшін Бейрезидент-құрылыс кәсіпорындарымен орындалған құрылыс жұмыстары \n     строительные работы, выполненные строительными предприятиями-нерезидентами для Вашей организации","111",{"$f":"0","v":0}]
[null,0,"     сіздің ұйымға бейрезидент-құрылыс кәсіпорындарымен сатылған тауарлар\n     товары, проданные Вашей организации строительными предприятиями-нерезидентами","112",{"$f":"0","v":0}]
[null,0,"Шетелдегі құрылыста (сіздің ұйымыңызға бейрезидент құрылыс компаниялары сатқан тауарларды қоса алғанда) құрылыс қызметтері\nСтроительные услуги (включая товары, проданные Вашей организации строительными предприятиями-нерезидентами) при строительстве за границей","115",{"$f":"0","v":0}]
[null,0,"Қаржылық  қызметтері\nФинансовые услуги","120",{"$f":"0","v":0}]
[null,1,"Телекоммуникациялық қызметтер (берілетін ақпарат құнын есептемегенде), оның ішінде:\nТелекоммунакационные услуги (без учета стоимости передаваемой информации), в том числе:","121",{"$f":"0","v":0}]
[null,0,"     Қазақстаннан басқа елдермен телефондық, ұялы байланыс\n     услуги телефонной, мобильной связи из Казахстана с другими странами","122",{"$f":"0","v":0}]
[null,0,"     резидент еместердің меншігіндегі жерсеріктерді пайдалану\n     использование спутников, находящихся в собственности нерезидентов","123",{"$f":"0","v":0}]
[null,0,"     интернет магистралды кабелі қызметтері және интернетке кіру құқығын беруді қоса алғанда желіге кіргізу қызметтері\n     услуги магистрального кабеля интернета и услуги доступа к сети, включая предоставление доступа к интернету","124",{"$f":"0","v":0}]
[null,0,"     іскерлік желілер қызметтері, телеконференциялар ұйымдастыру, қолдау қызметтерінің жұмыстары\n     услуги деловых сетей, организация телеконференций, услуги служб поддержки","125",{"$f":"0","v":0}]
[null,0,"     телекс, телеграф, телефакс, радио, телевизиялық кабель арқылы тасымалдау қызметтері\n     услуги телекса, телеграфа, телефакса, радио, передача по телевизионным кабелям","126",{"$f":"0","v":0}]
[null,0,"     өзге телекоммуникациялық қызметтер\n     прочие телекоммуникационные услуги","127",{"$f":"0","v":0}]
[null,3,"Сақтандыру қызметі, оның ішінде:\nСтраховые услуги, в том числе:"]
[null,0,"     Қазақстанның бейрезиденттерімен экспорттық тауарларды сақтандыру шарттары бойынша төленген сақтандыру сыйлықақылары\n     выплаченные страховые премии по договорам страхования с нерезидентами экспортных товаров Казахстана","130",{"$f":"0","v":0}]
[null,0,"     Қазақстанның бейрезиденттерімен импорттық тауарларды сақтандыру шарттары бойынша төленген сақтандыру сыйлықақылары\n     выплаченные страховые премии по договорам страхования с нерезидентами импортных товаров Казахстана","131",{"$f":"0","v":0}]
[null,0,"     бейрезиденттермен өзге сақтандыру шарттары бойынша төленген сақтандыру сыйлықақылары\n     выплаченные страховые премии по прочим договорам страхования с нерезидентами","132",{"$f":"0","v":0}]
[null,0,"     Қазақстанның бейрезиденттерімен экспорттық тауарларды сақтандыру шарттары бойынша алынған сақтандыру төлемдері\n     страховые выплаты, полученные по договорам страхования с нерезидентами экспортных товаров Казахстана","133",{"$f":"0","v":0}]
[null,0,"     Қазақстанның бейрезиденттерімен импорттық тауарларды сақтандыру шарттары бойынша алынған сақтандыру төлемдері\n     страховые выплаты, полученные по договорам страхования с нерезидентами импортных товаров Казахстана","134",{"$f":"0","v":0}]
[null,0,"     бейрезиденттермен өзге сақтандыру шарттары бойынша алынған сақтандыру төлемдері\n     страховые выплаты, полученные по прочим договорам страхования с нерезидентами","135",{"$f":"0","v":0}]
[null,1,"Компьютерлік қызметтер (компьютерлерді жөндеу және техникалық қызмет көрсетуді қосқанда), оның ішінде:\nКомпьютерные услуги (включая ремонт и техническое обслуживание компьютеров), в том числе:","140",{"$f":"0","v":0}]
[null,0,"     компьютерлік бағдарламалық қамтамасыз ету\n     компьютерное программное обеспечение","141",{"$f":"0","v":0}]
[null,0,"     жөндеуші тарап ұсынатын қосалқы бөлшектер мен материалдар \n     запасные части и материалы, предоставляемые ремонтирующей стороной","142",{"$f":"0","v":0}]
[null,0,"     өзге компьютерлік қызметтер\n     прочие компьютерные услуги","143",{"$f":"0","v":0}]
[null,1,"Ақпараттық қызметтер\nИнформационные услуги","150",{"$f":"0","v":0}]
[null,0,"     ақпараттық агенттіктердің қызметтері\n     услуги информационных агентств","151",{"$f":"0","v":0}]
[null,0,"     өзге ақпараттық қызметтер\n     прочие информационные услуги","152",{"$f":"0","v":0}]
[null,0,"Пошталық қызметтер және курьерлік байланыс қызметтері (Қазақстаннан жіберілген хаттарды, мерзімдік және баспасөз басылымдарын, жіберілімдер және бандерольдарды басқа елдерде жинау, тасымалдау және жеткізу)\nПочтовые услуги и услуги курьерской связи (сбор, транспортировка и доставка в других странах отправленных из Казахстана писем, периодических и печатных изданий, посылок и бандеролей)","155",{"$f":"0","v":0}]
[null,0,"Тауарларды қайта өңдеу бойынша қызметтер\nУслуги по переработке товаров","160",{"$f":"0","v":0}]
[null,1,"Басқа санатқа жатпайтын жөндеу және техникалық қызметтер бойынша қызметтер, оның ішінде:\nУслуги по ремонту и техническому обслуживанию, не отнесенные к другим категориям, в том числе:","170",{"$f":"0","v":0}]
[null,0,"     шетелде темір жолдарды, теңіз порттарында және әуежайларда конструкцияларды және құрылымдарды, оның ішінде қосалқы бөлшектер мен жөндеуге арналған материалдарды қоса алғанда жөндеу\n     ремонт железнодорожных путей и конструкций и сооружений в морских портах и аэропортах за границей, включая запасные части и материалы для ремонта","171",{"$f":"0","v":0}]
[null,0,"     Қазақстанда темір жолдарды, теңіз порттарында және әуежайларда конструкцияларды және құрылымдарды, оның ішінде қосалқы бөлшектер мен жөндеуге арналған материалдарды жөндеу\n     ремонт железнодорожных путей и конструкций и сооружений в морских портах и аэропортах в Казахстане, включая запасные части и материалы для ремонта","172",{"$f":"0","v":0}]
[null,0,"     басқа да жөндеу және техникалық қызмет көрсету бойынша жұмыстар\n     работы по прочему ремонту и техническому обслуживанию","173",{"$f":"0","v":0}]
[null,0,"     басқа да жөндеу және техникалық қызмет көрсету үшін жөндеуші жақпен ұсынылған қосалқы бөлшектер мен материалдар \n     запасные части и материалы, предоставляемые ремонтирующей стороной при прочем ремонте и техническом обслуживании","174",{"$f":"0","v":0}]
[null,1,"Зияткерлік меншікті пайдалануға төлем\nПлата за использование интеллектуальной собственности ","180",{"$f":"0","v":0}]
[null,0,"     франшиза және тауарлық белгілер үшін алымдар\n     сборы за франшизы и товарные знаки","181",{"$f":"0","v":0}]
[null,0,"     ғылыми зерттеулер мен зерттемелердің нәтижелерін пайдалану үшін лицензиялар\n     лицензии за использование результатов научных исследований и разработок","182",{"$f":"0","v":0}]
[null,0,"     бағдарламалық қамтамасыз етуді қайта жаңғыртуға және (немесе) таратуға лицензиялар\n     лицензии на воспроизведение и (или) распространения программного обеспечения","183",{"$f":"0","v":0}]
[null,0,"     аудиовизуалды және онымен байланысты өнімдерді қайта жаңғыртуға және (немесе) таратуға лицензиялар\n     лицензии на воспроизведение и (или) распространения аудиовизуальных и связанных с ними продуктов","184",{"$f":"0","v":0}]
[null,0,"     зияткерлік меншікті пайдалану үшін өзге алымдар\n     прочие сборы за использование интеллектуальной собственности","185",{"$f":"0","v":0}]
[null,1,"Әртүрлі іскерлік қызметтер, оның ішінде:\nРазные деловые услуги, в том числе:","190",{"$f":"0","v":0}]
[null,0,"     ғылыми-зерттеу және тәжірибелік-конструкторлық әзірлемелер, және олардың нәтижесінде пайда болатын меншіктік құқықтар\n     научно-исследовательские и опытно-конструкторские разработки, включая права собственности, возникающие в их результате","191",{"$f":"0","v":0}]
[null,0,"     заңгерлік\n     юридические","192",{"$f":"0","v":0}]
[null,0,"     бухгалтерлік, аудиторлық\n     бухгалтерские, аудиторские ","193",{"$f":"0","v":0}]
[null,0,"     бизнес және басқару бойынша консультациялық қызметтер\n     услуги по консультации бизнеса и управления","194",{"$f":"0","v":0}]
[null,0,"     конференцияларды, сауда жәрмеңкелерін және көрмелерін ұйымдастыру бойынша жарнама және нарық коньюнктурасын зерделеу саласындағы қызметтер\n     услуги в области рекламы и изучения конъюнктуры рынка, по организации конференций, торговых ярмарок и выставок","195",{"$f":"0","v":0}]
[null,0,"     сәулет, инженерлік және басқа да техникалық қызметтер\n     архитектурные, инженерные и  прочие технические услуги","196",{"$f":"0","v":0}]
[null,0,"     қалдықтарды қайта өңдеу және қоршаған ортаны тазарту\n     переработка отходов и очистка окружающей среды","197",{"$f":"0","v":0}]
[null,0,"     ауыл шаруашылығы саласындағы қызметтер\n     услуги в области сельского хозяйства","198",{"$f":"0","v":0}]
[null,0,"     жабдықтардың қызметкерсіз операциялық лизингі (жалдау) (жолаушыларды, жүктерді тасымалдау үшін көлік құралдарын жалға беруді қоса алғанда) \n     операционный лизинг (аренда) оборудования без персонала (включая аренду транспортных средств для перевозки пассажиров, грузов)","199",{"$f":"0","v":0}]
[null,0,"     трейдерлердің, биржалық тауарлар брокерлерінің, дилерлердің, аукционшылардың және делдалдардың саудамен байланысты қызметтері (қаржылық құралдар бойынша қызметтерді қоспағанда)\n     связанные с торговлей услуги трейдеров, брокеров биржевых товаров, дилеров, аукционистов и комиссионеров (кроме услуг по финансовым инструментам)","200",{"$f":"0","v":0}]
[null,0,"     үлестіру желілерінің, жұмысқа орналастыру және басқа да іскерлік қызметтер\n     услуги распределительных сетей, трудоустройства и прочие деловые услуги","201",{"$f":"0","v":0}]
[null,0,"     пайдалы қазбаларды өндіру саласындағы қызметтер\n     услуги в области добычи полезных ископаемых","202",{"$f":"0","v":0}]
[null,1,"Жеке тұлғаларға қызмет көрсету және мәдениет пен демалыс саласындағы қызметтер, оның ішінде:\nУслуги частным лицам и услуги в сфере культуры и отдыха, в том числе:","210",{"$f":"0","v":0}]
[null,0,"     актерлердің, режиссерлердің және Сіздің ұйымыңыздың қызметкерлері болып табылмайтын басқа қызметкерлердің еңбекақысын қосқандағы аудиовизуалды өнімдерді (көркем фильмдер, радио- және телевизиялық бағдарламалар, музыкалық шығармалар) жасау, аудиовизуалды өнімдерді жалға алу, кабельді және жерсеріктік теледидар қызметтері\n     производство аудиовизуальных продуктов (художественных фильмов, радио- и телевизионных программ, музыкальных произведений), включая оплату актерам, режиссерам и другим работникам, не являющимся сотрудниками Вашей организации, аренда аудиовизуальных продуктов, услуги кабельного и спутникового телевидения","211",{"$f":"0","v":0}]
[null,0,"     әртістердің және Сіздің ұйымыңыздың қызметкерлері болып табылмайтын басқа қызметкерлердің еңбекақысын қосқандағы мәдени және спорттық іс-шараларын жарнамалау және  ұйымдастыру\n     организация и реклама культурных и спортивных мероприятий, включая оплату артистам и другим работникам, не являющимся сотрудниками Вашей организации","212",{"$f":"0","v":0}]
[null,0,"     кітаптарды, әдеби және өзге өнер туындыларының түпнұсқаларына, радио- және телевизиялық бағдарламалар, кинофильмдер бейнежазбаларының және дыбысжазбаларының түпнұсқаларына меншіктік құқықтарды сатып алу, сату\n     покупка, продажа книг, прав собственности на оригиналы литературных и прочих произведений искусства, на оригиналы видеозаписей и звукозаписей радио- и телевезионных программ, кинофильмов","213",{"$f":"0","v":0}]
[null,0,"     шетелдегі резиденттерді оқыту\n     обучение резидентов, находящихся за рубежом","214",{"$f":"0","v":0}]
[null,0,"     Қазақстан аумағындағы резиденттерді оқыту (қашықтан, шетелдік оқытушылардың келуі)\n     обучение резидентов, находящихся на территории Казахстана (дистанционно, приезд иностранных преподавателей)","215",{"$f":"0","v":0}]
[null,0,"     шетелдегі резиденттерге көрсетілген денсаулық сақтау қызметтері\n     услуги здравоохранения, предоставленные резидентам, находящимся за рубежом","216",{"$f":"0","v":0}]
[null,0,"     Қазақстан аумағындағы резиденттерге көрсетілген денсаулық сақтау қызметтері (қашықтан, шетелдік медициналық қызметкерлердің келуі)\n     услуги здравоохранения, предоставленные резидентам, находящимся на территории Казахстана (дистанционно, приезд иностранных медицинских работников)","217",{"$f":"0","v":0}]
[null,0,"     төлемдер мен сыйлықтарды, оның ішінде спортшыларға берілетіндерін есептегенде мұражайларға және мәдениет, спорт, құмар ойындар мен демалыс саласындағы өзге қызмет түрлеріне жататын басқа қызметтер\n     услуги, относящиеся к музеям и прочим видам деятельности в области культуры, спорта, азартных игр и отдыха, включая платежи и призы, в том числе спортсменам-нерезидентам, и прочие услуги частным лицам","218",{"$f":"0","v":0}]
[null,5,"Сіздің ұйыммен бейрезиденттерден алынған басқа қызметтер (толық көрсетіңіз)\nПрочие услуги, полученные Вашей организацией от нерезидентов (расшифровать)","219",{"$f":"0","v":0}]
[null,-1,"   басқа да\n   прочие","219/01",{"$f":"0","v":0}]
[null,7]

{"sheet":"3","index":6,"n_rows":49,"n_cols":5,"rows_kept":49,"cut":false,"hidden":false,"merged":[[1,2,1,4],[2,2,3,2],[2,3,3,3],[2,4,3,4],[0,2,0,4]]}
["1-бөлім. Қызмет көрсету бойынша операциялар (2-5 бөлімдеріне қосылмайтындары), Америка Құрама Штаттарының (бұдан әрі – АҚШ) мың доллары\nРаздел 1. Операции по оказанию услуг (не включаемые в разделы 2-5), тысяч долларов Соединенных Штатов Америки (далее – США)",null,"1-бөлім. Қызмет көрсету бойынша операциялар (2-5 бөлімдеріне қосылмайтындары), Америка Құрама Штаттарының (бұдан әрі – АҚШ) мың доллары\nРаздел 1. Операции по оказанию услуг (не включаемые в разделы 2-5), тысяч долларов Соединенных Штатов Америки (далее – США)"]
["В-бөлік. Бейрезиденттерге көрсетілген денсаулық сақтау қызметтері (тұтастай алғанда Қазақстан бойынша «Әлеуметтік медициналық сақтандыру қоры» акционерлік қоғамы толтырады)\nЧасть В. Услуги здравоохранения, оказанные нерезидентам (заполняется акционерным обществом  «Фонд социального медицинского страхования»  в целом по  Казахстану)",null,"В-бөлік. Бейрезиденттерге көрсетілген денсаулық сақтау қызметтері (тұтастай алғанда Қазақстан бойынша «Әлеуметтік медициналық сақтандыру қоры» акционерлік қоғамы толтырады)\nЧасть В. Услуги здравоохранения, оказанные нерезидентам (заполняется акционерным обществом  «Фонд социального медицинского страхования»  в целом по  Казахстану)"]
[null,0,"Көрсеткіштің атауы\nНаименование показателя","Көрсеткіш коды\nКод показателя","Барлығы\nВсего"]
[null,0]
[null,0,"А","Б",1]
[null,-1,0,0,0]
[null,5,"Қазақстан аумағындағы бейрезиденттерге көрсетілген денсаулық сақтау қызметтері, оның ішінде Қазақстан аймақтары бойынша:\nУслуги здравоохранения, оказанные нерезидентам, находящимся на территории Казахстана, в том числе по регионам Казахстана:","221",{"$f":"0","v":0}]
[null,-1,"Абай облысы (Семей қ.)\nАбай область (г. Семей)","221/10",{"$f":"0","v":0}]
[null,-1,"Ақмола облысы\nАкмолинская область","221/11",{"$f":"0","v":0}]
[null,-1,"Ақтөбе облысы\nАктюбинская область","221/15",{"$f":"0","v":0}]
[null,-1,"Алматы облысы (г.Қонаев)\nАлматинская область (г.Қонаев)","221/19",{"$f":"0","v":0}]
[null,-1,"Атырау облысы\nАтырауская область","221/23",{"$f":"0","v":0}]
[null,-1,"Батыс Қазақстан облысы\nЗападно-Казахстанская область","221/27",{"$f":"0","v":0}]
[null,-1,"Жамбыл облысы\nЖамбылская область","221/31",{"$f":"0","v":0}]
[null,-1,"Жетісу облысы (қ. Талдыкорган)\nЖетісу область (г. Талдыкорган)","221/33",{"$f":"0","v":0}]
[null,-1,"Қарағанды облысы\nКарагандинская область","221/35",{"$f":"0","v":0}]
[null,-1,"Қостанай облысы\nКостанайская область","221/39",{"$f":"0","v":0}]
[null,-1,"Қызылорда облысы\nКызылординская область","221/43",{"$f":"0","v":0}]
[null,-1,"Маңғыстау облысы\nМангистауская область","221/47",{"$f":"0","v":0}]
[null,-1,"Павлодар облысы\nПавлодарская область","221/55",{"$f":"0","v":0}]
[null,-1,"Солтүстік Қазақстан облысы\nСеверо-Казахстанская область","221/59",{"$f":"0","v":0}]
[null,-1,"Түркістан облысы\nТуркестанская область","221/61",{"$f":"0","v":0}]
[null,-1,"Ұлытау облысы (г. Жезказган)\nҰлытау область (г. Жезказган)","221/62",{"$f":"0","v":0}]
[null,-1,"Шығыс Қазақстан облысы\nВосточно-Казахстанская область","221/63",{"$f":"0","v":0}]
[null,-1,"Астана қ.\nг. Астана","221/71",{"$f":"0","v":0}]
[null,-1,"Алматы қ.\nг. Алматы","221/75",{"$f":"0","v":0}]
[null,-1,"Шымкент қ.\nг. Шымкент","221/79",{"$f":"0","v":0}]
[null,5,"Шетелдегі бейрезиденттерге көрсетілген денсаулық сақтау қызметтері (қашықтан, қазақстандық медициналық жұмысшылардың шығуы), оның ішінде Қазақстан аймақтары бойынша:\nУслуги здравоохранения, оказанные нерезидентам, находящимся за рубежом (дистанционно, выезд казахстанских медицинских работников), в том числе по регионам Казахстана:","222",{"$f":"0","v":0}]
[null,-1,"Абай облысы (Семей қ.)\nАбай область (г. Семей)","222/10",{"$f":"0","v":0}]
[null,-1,"Ақмола облысы\nАкмолинская область","222/11",{"$f":"0","v":0}]
[null,-1,"Ақтөбе облысы\nАктюбинская область","222/15",{"$f":"0","v":0}]
[null,-1,"Алматы облысы (г.Қонаев)\nАлматинская область (г.Қонаев)","222/19",{"$f":"0","v":0}]
[null,-1,"Атырау облысы\nАтырауская область","222/23",{"$f":"0","v":0}]
[null,-1,"Батыс Қазақстан облысы\nЗападно-Казахстанская область","222/27",{"$f":"0","v":0}]
[null,-1,"Жамбыл облысы\nЖамбылская область","222/31",{"$f":"0","v":0}]
[null,-1,"Жетісу облысы (қ. Талдыкорган)\nЖетісу область (г. Талдыкорган)","222/33",{"$f":"0","v":0}]
[null,-1,"Қарағанды облысы\nКарагандинская область","222/35",{"$f":"0","v":0}]
[null,-1,"Қостанай облысы\nКостанайская область","222/39",{"$f":"0","v":0}]
[null,-1,"Қызылорда облысы\nКызылординская область","222/43",{"$f":"0","v":0}]
[null,-1,"Маңғыстау облысы\nМангистауская область","222/47",{"$f":"0","v":0}]
[null,-1,"Павлодар облысы\nПавлодарская область","222/55",{"$f":"0","v":0}]
[null,-1,"Солтүстік Қазақстан облысы\nСеверо-Казахстанская область","222/59",{"$f":"0","v":0}]
[null,-1,"Түркістан облысы\nТуркестанская область","222/61",{"$f":"0","v":0}]
[null,-1,"Ұлытау облысы (г. Жезказган)\nҰлытау область (г. Жезказган)","222/62",{"$f":"0","v":0}]
[null,-1,"Шығыс Қазақстан облысы\nВосточно-Казахстанская область","222/63",{"$f":"0","v":0}]
[null,-1,"Астана қ.\nг. Астана","222/71",{"$f":"0","v":0}]
[null,-1,"Алматы қ.\nг. Алматы","222/75",{"$f":"0","v":0}]
[null,-1,"Шымкент қ.\nг. Шымкент","222/79",{"$f":"0","v":0}]
[null,7]

{"sheet":"4","index":7,"n_rows":40,"n_cols":5,"rows_kept":40,"cut":false,"hidden":false,"merged":[[0,2,0,4],[1,2,2,2],[1,3,2,3],[1,4,2,4]]}
["2-бөлім. Жолаушылар көлігі қызметтері және қосалқы көлік қызметтері, мың АҚШ доллары\nРаздел 2. Услуги пассажирского транспорта и вспомогательные транспортные услуги, тысяч долларов США",null,"2-бөлім. Жолаушылар көлігі қызметтері және қосалқы көлік қызметтері, мың АҚШ доллары\nРаздел 2. Услуги пассажирского транспорта и вспомогательные транспортные услуги, тысяч долларов США"]
[null,0,"Көрсеткіштің атауы\nНаименование показателя","Көрсеткіш коды\nКод показателя","Барлығы\nВсего"]
[null,0]
[null,0,"А","Б",1]
[null,-1,0,0,0]
[null,1,"Сіздің ұйымыңыздың бейрезидент көлік кәсіпорындарының сапарына бейрезиденттерден және (немесе) бейрезидент көлік кәсіпорындардың интернет-ресурсында сатып алған билет құны (қайтарылған билеттер құнын шегерумен), оның ішінде көлік түрлері бойынша:\nСтоимость билетов на рейсы транспортных предприятий-нерезидентов, купленных Вашей организацией у нерезидентов и (или) на интернет-ресурсе транспортных предприятий-нерезидентов (минус стоимость возвращенных билетов), в том числе по видам транспорта:","231",{"$f":"0","v":0}]
[null,0,"     теңіз\n     морской","232",{"$f":"0","v":0}]
[null,0,"     әуе\n     воздушный","233",{"$f":"0","v":0}]
[null,0,"     теміржол\n     железнодорожный","234",{"$f":"0","v":0}]
[null,0,"     автокөлік\n     автомобильный","235",{"$f":"0","v":0}]
[null,1,"Сіздің ұйым бейрезиденттерден жолаушылар тасымалы үшін көлік құралдарын экипажымен жалға алуы, оның ішінде көлік түрлері бойынша:\nАренда Вашей организацией у нерезидентов транспортных средств с экипажем для перевозки пассажиров, в том числе по видам транспорта:","236",{"$f":"0","v":0}]
[null,0,"     теңіз\n     морской","237",{"$f":"0","v":0}]
[null,0,"     әуе\n     воздушный","238",{"$f":"0","v":0}]
[null,0,"     автокөлік\n     автомобильный","239",{"$f":"0","v":0}]
[null,1,"Резидент агенттерге билеттер сатылымы үшін, көлік құралдарын жалға бергені үшін комиссиялық сыйақы, оның ішінде көлік түрлері бойынша:\nКомиссионное вознаграждение агентам-нерезидентам за продажу билетов, за аренду транспортных средств у нерезидентов, в том числе по видам транспорта:","241",{"$f":"0","v":0}]
[null,0,"     теңіз\n     морской","242",{"$f":"0","v":0}]
[null,0,"     әуе\n     воздушный","243",{"$f":"0","v":0}]
[null,0,"     теміржол\n     железнодорожный","244",{"$f":"0","v":0}]
[null,0,"     автокөлік\n     автомобильный","245",{"$f":"0","v":0}]
[null,1,"Сіздің ұйымыңыздың кемелеріне, ұшақтарына, автокөліктік құралдарына бейрезиденттердің қызмет көрсетуі, оның ішінде:\nУслуги по обслуживанию нерезидентами судов, самолетов, автотранспортных средств Вашей организации, в том числе:","251",{"$f":"0","v":0}]
[null,0,"     көліктік құралдарды сүйрету, лоцмандық алып өту, тұрақ, навигациялық қолдау, әуе реттеуші, өзге де порттық және ұқсас алымдар \n     буксировка, лоцманская проводка, стоянка, навигационная поддержка, авиадиспетчерские и прочие портовые и аналогичные сборы","252",{"$f":"0","v":0}]
[null,0,"     порттарда көлік құралдарын жинау және тазалау, тиеу-түсіру жұмыстары, сақтау және қоймада сақтау, орау және қайта орау\n     уборка и очистка транспортных средств, погрузочно-разгрузочные работы, хранение и  складирование, упаковка и переупаковка в портах","253",{"$f":"0","v":0}]
[null,1,"     жөндеу және техникалық қызмет көрсету, оның ішінде:\n     услуги по ремонту и техническому обслуживанию, в том числе:","254",{"$f":"0","v":0}]
[null,0,"          жөндеу және техникалық қызмет көрсету бойынша жұмыстар\n          работы по ремонту и техническому обслуживанию","255",{"$f":"0","v":0}]
[null,0,"          жөндеуші тарап ұсынатын қосалқы бөлшектер мен материалдар \n          запасные части и материалы, предоставляемые ремонтирующей стороной","256",{"$f":"0","v":0}]
[null,0,"     көлік құралына жеткізілетін тауарлар (отын, тамақ, борттық материалдар, балласт және бекітпе материалдары)\n     товары, доставляемые на транспортное средство (топливо, продовольствие, бортовые запасы, балласт и крепежные материалы)","257",{"$f":"0","v":0}]
[null,0,"     көлік құралдарына қызмет көрсету бойынша өзге қызметтер\n     прочие услуги по обслуживанию транспортных средств","258",{"$f":"0","v":0}]
[null,1,"Бейрезиденттердің Сіздің ұйымыңыздың кемелер, ұшақтар, көлік құралдарын жолаушыларды тасымалдау үшін экипажымен жалға алуы, соның ішінде көлік түрлері бойынша:\nАренда нерезидентами судов, самолетов, автотранспортных средств Вашей организации с экипажем для перевозки пассажиров, в том числе по видам транспорта:","261",{"$f":"0","v":0}]
[null,0,"     теңіз\n     морской","262",{"$f":"0","v":0}]
[null,0,"     әуе\n     воздушный","263",{"$f":"0","v":0}]
[null,0,"     автокөлік\n     автомобильный","264",{"$f":"0","v":0}]
[null,1,"Бейрезидент-агенттерге Сіздің ұйымыңыздың көлік құралдарын жалға алу үшін комиссиялық сыйақы, оның ішінде көлік түрлері бойынша:\nКомиссионное вознаграждение агентам-нерезидентам за аренду нерезидентами транспортных средств Вашей организации, в том числе по видам транспорта:","265",{"$f":"0","v":0}]
[null,0,"     теңіз\n     морской","266",{"$f":"0","v":0}]
[null,0,"     әуе\n     воздушный","267",{"$f":"0","v":0}]
[null,0,"     автокөлік\n     автомобильный","268",{"$f":"0","v":0}]
[null,5,"Бейрезиденттерге көрсетілген өзге де қызметтер (толық көрсетіңіз)\nПрочие услуги, оказанные нерезидентам (расшифровать)","271",{"$f":"0","v":0}]
[null,-1,"   басқа да\n   прочие","271/01",{"$f":"0","v":0}]
[null,5,"Бейрезиденттерден алынған өзге де қызметтер (толық көрсетіңіз)\nПрочие услуги, полученные от нерезидентов (расшифровать)","275",{"$f":"0","v":0}]
[null,-1,"   басқа да\n   прочие","275/01",{"$f":"0","v":0}]
[null,7]

{"sheet":"5","index":8,"n_rows":15,"n_cols":5,"rows_kept":15,"cut":false,"hidden":false,"merged":[[0,2,0,4],[1,2,2,2],[1,3,2,3],[1,4,2,4]]}
["3-бөлім. Қазақстанда орналасқан халықаралық ұйымдарға, шетел елшіліктеріне, консулдықтарына және басқа да шетел дипломатиялық және ресми өкілдіктерге ұсынған тауарлары мен қызметтері, мың АҚШ доллары\nРаздел 3. Товары и услуги, оказанные находящимся в Казахстане международным организациям, иностранным посольствам, консульствам и другим иностранным дипломатическим и официальным представительствам, тысяч долларов США",null,"3-бөлім. Қазақстанда орналасқан халықаралық ұйымдарға, шетел елшіліктеріне, консулдықтарына және басқа да шетел дипломатиялық және ресми өкілдіктерге ұсынған тауарлары мен қызметтері, мың АҚШ доллары\nРаздел 3. Товары и услуги, оказанные находящимся в Казахстане международным организациям, иностранным посольствам, консульствам и другим иностранным дипломатическим и официальным представительствам, тысяч долларов США"]
[null,0,"Көрсеткіштің атауы\nНаименование показателя","Көрсеткіш коды\nКод показателя","Барлығы\nВсего"]
[null,0]
[null,0,"А","Б",1]
[null,-1,0,0,0]
[null,0,"Электр және жылу энергиясымен, сумен, газбен қамтамасыз ету\nСнабжение электро и теплоэнергией, водой, газом","280",{"$f":"0","v":0}]
[null,0,"Жылжымайтын мүлік объектілерін сату\nПродажа объектов недвижимости","290",{"$f":"0","v":0}]
[null,0,"Жылжымайтын мүлік жалдау\nАренда недвижимости","300",{"$f":"0","v":0}]
[null,0,"Құрылыс қызметін көрсету\nСтроительные услуги","310",{"$f":"0","v":0}]
[null,1,"Жөндеу және техникалық қызмет көрсету, оның ішінде:\nУслуги по ремонту и техническому обслуживанию, в том числе:","320",{"$f":"0","v":0}]
[null,0,"     жөндеу және техникалық қызмет көрсету жұмыстары\n     работы по ремонту и техническому обслуживанию","321",{"$f":"0","v":0}]
[null,0,"     жөндеуші  тарап ұсынатын қосалқы бөлшектер мен материалдар\n     запасные части и материалы, предоставляемые ремонтирующей стороной","322",{"$f":"0","v":0}]
[null,5,"Басқа да тауарлар мен қызмет көрсетулер (толық көрсетіңіз)\nПрочие товары и услуги (расшифровать)","330",{"$f":"0","v":0}]
[null,-1,"   басқа да\n   прочие","330/01",{"$f":"0","v":0}]
[null,7]

{"sheet":"6","index":9,"n_rows":16,"n_cols":10,"rows_kept":16,"cut":false,"hidden":false,"merged":[[1,5,1,9],[0,2,0,9],[1,2,2,2],[1,3,2,3],[1,4,2,4]]}
["4-бөлім. Жүк көлігінің қызметтері (жүкті сақтандыруды есептемегенде), мың АҚШ доллары\nРаздел 4. Услуги грузового транспорта (без учета страхования грузов), тысяч долларов США",null,"4-бөлім. Жүк көлігінің қызметтері (жүкті сақтандыруды есептемегенде), мың АҚШ доллары\nРаздел 4. Услуги грузового транспорта (без учета страхования грузов), тысяч долларов США"]
["2\n1",0,"Көрсеткіштің атауы\nНаименование показателя","Көрсеткіш коды\nКод показателя","Барлығы\nВсего","Оның ішінде көлік түрлері бойынша\nВ том числе по видам транспорта"]
[null,0,null,null,null,"автомобиль\nавтомобильный","әуе\nвоздушный","теміржол\nжелезнодорожный","құбыр жүргізу\nтрубопроводный","теңіз\nморской"]
[null,0,"А","Б","1","2","3","4","5","6"]
[null,-1,0,0,0,0,0,0,0,0]
[null,1,"Сіздің ұйымыңыздың Қазақстанның экспорттық тауарларын тасымалдау шығыстары\nРасходы Вашей организации на транспортировку экспортных товаров Казахстана","350",{"$f":"+$J$7+$I$7+$H$7+$G$7+$F$7+$F$8+$G$8+$H$8+$I$8+$J$8","v":0},{"$f":"+$F$8+$F$7","v":0},{"$f":"+$G$8+$G$7","v":0},{"$f":"+$H$8+$H$7","v":0},{"$f":"+$I$8+$I$7","v":0},{"$f":"+$J$8+$J$7","v":0}]
[null,0,"   резиденттердің\n   резидентами","351",{"$f":"+$J$7+$I$7+$H$7+$G$7+$F$7","v":0}]
[null,0,"   бейрезиденттердің\n   нерезидентами","352",{"$f":"+$J$8+$I$8+$H$8+$G$8+$F$8","v":0}]
[null,1,"Сіздің ұйымыңыздың Қазақстанның импорттық тауарларын тасымалдау шығыстары\nРасходы Вашей организации на транспортировку импортных товаров Казахстана","370",{"$f":"+$J$10+$I$10+$H$10+$G$10+$F$10+$F$11+$G$11+$H$11+$I$11+$J$11","v":0},{"$f":"+$F$11+$F$10","v":0},{"$f":"+$G$11+$G$10","v":0},{"$f":"+$H$11+$H$10","v":0},{"$f":"+$I$11+$I$10","v":0},{"$f":"+$J$11+$J$10","v":0}]
[null,0,"   резиденттердің\n   резидентами ","371",{"$f":"+$J$10+$I$10+$H$10+$G$10+$F$10","v":0}]
[null,0,"   бейрезиденттердің\n   нерезидентами","372",{"$f":"+$J$11+$I$11+$H$11+$G$11+$F$11","v":0}]
[null,1,"Бейрезиденттерге көрсетілген өзге де қызметтер (толық көрсетіңіз)\nПрочие услуги, оказанные нерезидентам (расшифровать)","373",{"$f":"+$J$12+$I$12+$H$12+$G$12+$F$12","v":0},{"$f":"SUM(F13:F13)","v":0},{"$f":"SUM(G13:G13)","v":0},{"$f":"SUM(H13:H13)","v":0},{"$f":"SUM(I13:I13)","v":0},{"$f":"SUM(J13:J13)","v":0}]
[null,-1,"   басқа да\n   прочие","373/01"]
[null,1,"Бейрезиденттерден алынған өзге де қызметтер (толық көрсетіңіз)\nПрочие услуги,  полученные от нерезидентов (расшифровать)","376",{"$f":"+$J$14+$I$14+$H$14+$G$14+$F$14","v":0},{"$f":"SUM(F15:F15)","v":0},{"$f":"SUM(G15:G15)","v":0},{"$f":"SUM(H15:H15)","v":0},{"$f":"SUM(I15:I15)","v":0},{"$f":"SUM(J15:J15)","v":0}]
[null,-1,"   басқа да\n   прочие","376/01"]
[null,7]

{"sheet":"7","index":10,"n_rows":10,"n_cols":5,"rows_kept":10,"cut":false,"hidden":false,"merged":[[0,2,0,4],[1,2,2,2],[1,3,2,3],[1,4,2,4]]}
["5-бөлім. Материалдық емес активтермен және табиғи ресурстарды жалдаумен операциялар, мың АҚШ доллары\nРаздел 5. Операции с нематериальными активами и арендой природных ресурсов, тысяч долларов США",null,"5-бөлім. Материалдық емес активтермен және табиғи ресурстарды жалдаумен операциялар, мың АҚШ доллары\nРаздел 5. Операции с нематериальными активами и арендой природных ресурсов, тысяч долларов США"]
[null,0,"Көрсеткіштің атауы\nНаименование показателя","Көрсеткіш коды\nКод показателя","Барлығы\nВсего"]
[null,0]
[null,0,"А","Б",1]
[null,-1,0,0,0]
[null,0,"Бейрезидент материалдық емес активтерді сатудан түскен түсімдер\nПоступления от продажи нерезидентам нематериальных активов","380",{"$f":"0","v":0}]
[null,0,"Бейрезиденттерге сатып алынған материалдық емес активтер үшін төлемдер\nПлатежи нерезидентам за приобретенные нематериальные активы","390",{"$f":"0","v":0}]
[null,0,"Бейрезиденттерге табиғи ресурстарды жалға беруден (пайдаланудан) түскен түсімдер\nПоступления от предоставления в аренду (пользование) нерезидентам природных ресурсов","400",{"$f":"0","v":0}]
[null,0,"Бейрезиденттерге табиғи ресурстарды жалдау үшін (пайдалану) төлемдер\nПлатежи нерезидентам за аренду (использование) природных ресурсов","410",{"$f":"0","v":0}]
[null,7]

{"sheet":"8","index":11,"n_rows":22,"n_cols":5,"rows_kept":22,"cut":false,"hidden":false,"merged":[[0,2,0,4],[1,2,2,2],[1,3,2,3],[1,4,2,4]]}
["6-бөлім. Қайта өңдеуге, жөндеуге және қайта сатуға арналған тауарлар, тауарлардың реэкспорты және реимпорты, мың АҚШ доллары\nРаздел 6. Товары для переработки, ремонта и перепродажи, реэкспорт и реимпорт товаров, тысяч долларов США",null,"6-бөлім. Қайта өңдеуге, жөндеуге және қайта сатуға арналған тауарлар, тауарлардың реэкспорты және реимпорты, мың АҚШ доллары\nРаздел 6. Товары для переработки, ремонта и перепродажи, реэкспорт и реимпорт товаров, тысяч долларов США"]
[null,0,"Көрсеткіштің атауы\nНаименование показателя","Көрсеткіш коды\nКод показателя","Барлығы\nВсего"]
[null,0]
[null,0,"А","Б",1]
[null,-1,0,0,0]
[null,3,"Қазақстанда қайта өңдеуге және жөндеуге арналған тауарлар\nТовары для переработки и ремонта в Казахстане"]
[null,0,"     Қайта өңдеу үшін шетелден алынған тауарлар\n     Товары, полученные из-за рубежа для переработки ","420",{"$f":"0","v":0}]
[null,0,"     Қайта өңдеуден кейін шетелге жіберілген тауарлар\n     Товары, отправленные за рубеж после переработки","430",{"$f":"0","v":0}]
[null,0,"     Жөндеу үшін шетелден  алынған тауарлар\n     Товары, полученные из-за рубежа для ремонта ","440",{"$f":"0","v":0}]
[null,0,"     Жөндеуден кейін шетелге жіберілген  тауарлар\n     Товары, отправленные за рубеж после ремонта","450",{"$f":"0","v":0}]
[null,3,"Шетелде қайта өңдеуге және жөндеуге арналған тауарлар\nТовары для переработки и ремонта за рубежом"]
[null,0,"     Қайта өңдеу үшін шетелге жіберілген тауарлар\n     Товары, отправленные за рубеж для переработки","460",{"$f":"0","v":0}]
[null,0,"     Қайта өңдеуден кейін шетелден алынған тауарлар\n     Товары, полученные из-за рубежа после переработки","470",{"$f":"0","v":0}]
[null,0,"     Жөндеу үшін шетелге  жіберілген тауарлар\n     Товары, отправленные за рубеж для ремонта","480",{"$f":"0","v":0}]
[null,0,"     Жөндеуден кейін шетелден алынған тауарлар\n     Товары, полученные из-за рубежа после ремонта","490",{"$f":"0","v":0}]
[null,3,"Шетелде тауарларды қайта сату\nПерепродажа товаров за рубежом "]
[null,0,"     Шетелде қайта сату үшін, Қазақстан аумағына әкелусіз шетелден тауар сатып алу\n     Приобретение товаров за рубежом без их  ввоза на территорию Казахстана, для последующей перепродажи за рубежом ","500",{"$f":"0","v":0}]
[null,0,"     Қазақстан аумағына әкелусіз шетелде бұрынырақ сатып алынған тауарларды шетелде сату\n     Продажа за рубежом ранее приобретенных за рубежом товаров без их ввоза на территорию Казахстана","510",{"$f":"0","v":0}]
[null,3,"Тауарлардың кері экспорты\nРеэкспорт товаров "]
[null,0,"     Бастапқы жағдайының өзгеруінсіз шетелде өндірілген бұрынырақ импортталған тауарлардың экспорты (тауарлардың кері экспорты)\n     Экспорт ранее импортированных товаров иностранного производства без изменения их первоначального состояния (реэкспорт товаров) ","520",{"$f":"0","v":0}]
[null,0,"     Бастапқы жағдайының өзгеруінсіз шетелде өндірілген бұрынырақ импортталған тауарлардың экспорты (тауарлардың кері импорты)\n     Импорт ранее экспортированных товаров казахстанского производства без изменения их первоначального состояния (реимпорт товаров)","521",{"$f":"0","v":0}]
[null,7]

{"sheet":"9","index":12,"n_rows":10,"n_cols":5,"rows_kept":10,"cut":false,"hidden":false,"merged":[[0,2,0,4],[1,2,2,2],[1,3,2,3],[1,4,2,4]]}
["7-бөлім. Бейрезидент қызметкерлерге төленген жалақы, мың АҚШ доллары\nРаздел 7. Заработная плата, выплаченная работникам-нерезидентам, тысяч долларов США",null,"7-бөлім. Бейрезидент қызметкерлерге төленген жалақы, мың АҚШ доллары\nРаздел 7. Заработная плата, выплаченная работникам-нерезидентам, тысяч долларов США"]
[null,0,"Көрсеткіштің атауы\nНаименование показателя","Көрсеткіш коды\nКод показателя","Барлығы\nВсего"]
[null,0]
[null,0,"А","Б",1]
[null,-1,0,0,0]
[null,0,"Бейрезидент қызметкерлерге ақшалай түрде төленген жалақы және басқа да төлемдер\nЗаработная плата и другие выплаты работникам-нерезидентам в денежной форме","530",{"$f":"0","v":0}]
[null,0,"Бейрезидент қызметкерлерге заттай түрде төленген жалақы\nЗаработная плата работникам-нерезидентам в натуральной форме ","540",{"$f":"0","v":0}]
[null,0,"Бейрезиденттердің жалақысынан мемлекет атынан ұсталатын жеке табыс салығы\nИндивидуальный подоходный налог с заработной платы нерезидентов, удержанный от имени государства","550",{"$f":"0","v":0}]
[null,0,"Бейрезидент қызметкерлердің табысынан есептелген әлеуметтік салық\nСоциальный налог, исчисленный с доходов работников-нерезидентов","560",{"$f":"0","v":0}]
[null,7]

{"sheet":"10","index":13,"n_rows":13,"n_cols":5,"rows_kept":13,"cut":false,"hidden":false,"merged":[[0,2,0,4],[1,2,2,2],[1,3,2,3],[1,4,2,4]]}
["8-бөлім. Ағымдағы және күрделі трансферттер, коммерциялық емес ұйымдарға мүшелік жарналар, мың АҚШ доллары\nРаздел 8. Текущие и капитальные трансферты, членские взносы в некоммерческие организации, тысяч долларов США",null,"8-бөлім. Ағымдағы және күрделі трансферттер, коммерциялық емес ұйымдарға мүшелік жарналар, мың АҚШ доллары\nРаздел 8. Текущие и капитальные трансферты, членские взносы в некоммерческие организации, тысяч долларов США"]
[null,0,"Көрсеткіштің атауы\nНаименование показателя","Көрсеткіш коды\nКод показателя","Барлығы\nВсего"]
[null,0]
[null,0,"А","Б",1]
[null,-1,0,0,0]
[null,0,"Бейрезиденттерге төленген салықтар\nНалоги, уплаченные нерезидентам","570",{"$f":"0","v":0}]
[null,0,"Бейрезиденттерден өсімпұл, айыппұл төлемдері және басқа да ағымдағы трансферттер түріндегі түсімдер\nПоступления от нерезидентов в виде пени, штрафных платежей и прочих текущих трансферт","580",{"$f":"0","v":0}]
[null,0,"Бейрезиденттерге өсімпұл, айыппұл төлемдері және басқа да ағымдағы трансферттер түріндегі төлемдер\nПлатежи нерезидентам в виде пени, штрафных платежей и прочих текущих трансферт","590",{"$f":"0","v":0}]
[null,0,"Сіздің ұйымға мүшелік жарналар немесе қатысуға жазылудағы бейрезиденттерден түскен түсімдер (коммерциялық емес ұйымдармен, оның ішінде сауда палаталарымен, салалық қауымдастықтармен толтырылады)\nПоступления от нерезидентов членских взносов или подписка на участие в Вашей организации (заполняется некоммерческими организациями, в том числе торговыми палатами, отраслевыми ассоциациями)","593",{"$f":"0","v":0}]
[null,0,"Бейрезиденттердің сауда палаталарына, салалық қауымдастықтарына кіретін коммерциялық емес ұйымдарға мүшелік жарналар немесе қатысуға жазылудағы бейрезиденттерге төленген төлемдер \nПлатежи нерезидентам членских взносов или подписка на участие  в некоммерческих организациях-нерезидентах, включающих торговые палаты, отраслевые ассоциации","595",{"$f":"0","v":0}]
[null,0,"Бейрезиденттерден алынған күрделі трансферттер\nКапитальные трансферты, полученные от нерезидентов","600",{"$f":"0","v":0}]
[null,0,"Бейрезиденттерге ұсынылған күрделі трансферттер\nКапитальные трансферты, предоставленные нерезидентам","610",{"$f":"0","v":0}]
[null,7]

{"sheet":"11","index":14,"n_rows":0,"n_cols":0,"rows_kept":0,"cut":false,"hidden":true,"merged":[]}

{"sheet":"12","index":15,"n_rows":0,"n_cols":0,"rows_kept":0,"cut":false,"hidden":true,"merged":[]}

{"sheet":"13","index":16,"n_rows":0,"n_cols":0,"rows_kept":0,"cut":false,"hidden":true,"merged":[]}

{"sheet":"14","index":17,"n_rows":0,"n_cols":0,"rows_kept":0,"cut":false,"hidden":true,"merged":[]}

{"sheet":"15","index":18,"n_rows":0,"n_cols":0,"rows_kept":0,"cut":false,"hidden":true,"merged":[]}

{"sheet":"16","index":19,"n_rows":0,"n_cols":0,"rows_kept":0,"cut":false,"hidden":true,"merged":[]}

{"sheet":"17","index":20,"n_rows":0,"n_cols":0,"rows_kept":0,"cut":false,"hidden":true,"merged":[]}

{"sheet":"18","index":21,"n_rows":0,"n_cols":0,"rows_kept":0,"cut":false,"hidden":true,"merged":[]}

{"sheet":"19","index":22,"n_rows":0,"n_cols":0,"rows_kept":0,"cut":false,"hidden":true,"merged":[]}

{"sheet":"20","index":23,"n_rows":0,"n_cols":0,"rows_kept":0,"cut":false,"hidden":true,"merged":[]}

{"sheet":"Подпись","index":24,"n_rows":72,"n_cols":15,"rows_kept":72,"cut":false,"hidden":false,"merged":[[64,2,65,14],[66,2,68,14],[69,2,71,14],[62,2,63,14],[56,7,56,11],[56,13,56,14],[57,7,57,11],[57,13,57,14],[58,7,58,11],[58,13,58,14],[53,7,53,11],[54,7,54,11],[10,12,10,14],[26,12,26,14],[52,13,52,14],[53,13,53,14],[54,13,54,14],[28,6,28,10],[23,8,23,14],[17,3,17,13],[52,7,52,11],[21,8,21,14],[22,8,22,14],[26,3,26,4],[27,3,27,4],[28,3,28,4],[0,4,0,13],[5,2,5,4],[10,3,10,4],[11,3,11,4],[12,3,12,4],[10,6,10,10],[11,6,11,10],[12,6,12,10],[6,2,6,4],[7,2,7,4],[1,3,1,14],[5,8,5,14],[6,8,6,14],[7,8,7,14],[35,3,36,6],[35,10,36,14],[26,6,26,10],[27,6,27,10],[32,3,33,14],[49,3,49,7],[50,3,50,7],[46,6,46,10],[45,6,45,10],[38,4,38,6],[39,4,39,6],[40,4,40,6],[38,8,38,11],[39,8,39,11],[40,8,40,11],[48,9,48,11],[49,9,49,11],[50,9,50,11],[48,3,48,7]]}
[4,null,"Ескертпе:"]
[4,null,"Примечание:",{"$f":"CONCATENATE(p1_comment)","v":""}]
[4]
[4,null,"Басшы (Бас бухгалтер)"]
[4,null,"Руководитель (Главный бухгалтер)"]
[4,null,{"$f":"CONCATENATE(p1_position)","v":""},null,null,null,null,null,{"$f":"CONCATENATE(p1_position_fio)","v":""}]
[4,null,"(лауазымы)",null,null,null,"(қолы)",null,"(тегі, аты, әкесінің аты (бар болса))"]
[4,null,"(должность)",null,null,null,"(подпись)",null,"(фамилия, имя, отчество (при наличии))"]
[4]
[4,null,"Орындаушы",null,null,null,null,null,null,null,null,"телефоны"]
[4,null,"Исполнитель",null,null,null,{"$f":"CONCATENATE(p1_executor)","v":""},null,null,null,null,"телефон",{"$f":"CONCATENATE(p1_executor_phone)","v":""}]
[4,null,null,"(қолы)",null,null,"(тегі, аты, әкесінің аты (бар болса))"]
[4,null,null,"(подпись)",null,null,"(фамилия, имя, отчество (при наличии))"]
[4]
[4,null,{"$f":"IF(p1_report_date=\"\",\"20__ жылғы «____» ___________\",CONCATENATE(YEAR(p1_report_date),\" жылғы «\",DAY(p1_report_date),\"» \",VLOOKUP(MONTH(p1_report_date),p_month,COLUMN(p_month_name)-1,FALSE)))","v":"20__ жылғы «____» ___________"}]
[4,null,{"$f":"IF(p1_report_date=\"\",\"«____» ___________ 20___ года\",CONCATENATE(\"«\",DAY(p1_report_date),\"» \",VLOOKUP(MONTH(p1_report_date),p_month,COLUMN(p_month_name)-2,FALSE),\" \",YEAR(p1_report_date),\" года\"))","v":"«____» ___________ 20___ года"}]
[5,33,"Ескертпе"]
[5,33,"Примечание",{"$f":"CONCATENATE(p1_comment)","v":""}]
[5,33]
[5,null,"Бас бухгалтер (ол болмаған кезеңде – оның орнындағы адам)"]
[5,null,"Главный бухгалтер (в период его отсутствия – лицо, его замещающее)"]
[5,null,null,null,null,null,null,null,{"$f":"CONCATENATE(p1_accountant)","v":""}]
[5,null,null,null,null,null,"(қолы)",null,"(тегі, аты, әкесінің аты (бар болса))"]
[5,null,null,null,null,null,"(подпись)",null,"(фамилия, имя, отчество (при наличии))"]
[5]
[5,null,"Орындаушы",null,null,null,null,null,null,null,null,"телефоны"]
[5,null,"Исполнитель",null,null,null,{"$f":"CONCATENATE(p1_executor)","v":""},null,null,null,null,"телефон",{"$f":"CONCATENATE(p1_executor_phone)","v":""}]
[5,null,null,"(қолы)",null,null,"(тегі, аты, әкесінің аты (бар болса))"]
[5,null,null,"(подпись)",null,null,"(фамилия, имя, отчество (при наличии))"]
[5]
[5,null,{"$f":"IF(p1_report_date=\"\",\"20__ жылғы «____» ___________\",CONCATENATE(YEAR(p1_report_date),\" жылғы «\",DAY(p1_report_date),\"» \",VLOOKUP(MONTH(p1_report_date),p_month,COLUMN(p_month_name)-1,FALSE)))","v":"20__ жылғы «____» ___________"}]
[5,null,{"$f":"IF(p1_report_date=\"\",\"«____» ___________ 20___ года\",CONCATENATE(\"«\",DAY(p1_report_date),\"» \",VLOOKUP(MONTH(p1_report_date),p_month,COLUMN(p_month_name)-2,FALSE),\" \",YEAR(p1_report_date),\" года\"))","v":"«____» ___________ 20___ года"}]
[1,6,"Түсіндірме:",{"$f":"CONCATENATE(p1_comment)","v":""}]
[1,6,"Комментарий: "]
[1]
[1,null,"Атауы",{"$f":"CONCATENATE(p1_enterprise)","v":""},null,null,null,null,"Мекенжайы (респонденттің)",null,{"$f":"CONCATENATE(p1_address)","v":""}]
[1,null,"Наименование",null,null,null,null,null,"Адрес (респондента)"]
[1]
[1,null,"Телефоны (респонденттің)",null,{"$f":"CONCATENATE(p1_phone)","v":""},null,null,null,{"$f":"CONCATENATE(p1_mobile)","v":""}]
[1,null,"Телефон (респондента)",null,"стационарлық",null,null,null,"ұялы"]
[1,null,null,null,"стационарный",null,null,null,"мобильный"]
[1]
[1,null,"Алғашқы статистикалық деректерді таратуға келісеміз*",null,null,null,null,{"$f":"IF(AND(p1_is_show_data<>\"\",p1_is_show_data),\"*\",\"\")","v":""},"Алғашқы статистикалық деректерді таратуға келіспейміз*",null,null,null,null,null,{"$f":"IF(NOT(p1_is_show_data),\"*\",\"\")","v":{"$error":"#VALUE!"}}]
[1,null,"Согласны на распространение первичных статистических данных*",null,null,null,null,null,"Не согласны на распространение первичных статистических данных*"]
[1]
[1,null,"Электрондық пошта мекенжайы (респонденттің)",null,null,null,{"$f":"CONCATENATE(p1_email)","v":""}]
[1,null,"Адрес электронной почты (респондента)"]
[1]
[1,null,"Орындаушы",{"$f":"CONCATENATE(p1_executor)","v":""},null,null,null,null,null,{"$f":"CONCATENATE(p1_executor_phone)","v":""}]
[1,null,"Исполнитель","тегі, аты және әкесінің аты (бар болған жағдайда)",null,null,null,null,null,"қолы, телефоны (орындаушының)"]
[1,null,null,"фамилия, имя и отчество (при его наличии)",null,null,null,null,null,"подпись, телефон (исполнителя)"]
[1]
[1,null,"Бас бухгалтер немесе оның міндетін атқарушы тұлға",null,null,null,null,{"$f":"CONCATENATE(p1_accountant)","v":""}]
[1,null,"Главный бухгалтер или лицо, исполняющее его обязанности",null,null,null,null,"тегі, аты және әкесінің аты (бар болған жағдайда)",null,null,null,null,null,"қолы"]
[1,null,null,null,null,null,null,"фамилия, имя и отчество (при его наличии)",null,null,null,null,null,"подпись"]
[1]
[1,null,"Басшы немесе оның міндетін атқарушы тұлға",null,null,null,null,{"$f":"CONCATENATE(p1_manager)","v":""}]
[1,null,"Руководитель или лицо, исполняющее его обязанности",null,null,null,null,"тегі, аты және әкесінің аты (бар болған жағдайда)",null,null,null,null,null,"қолы"]
[1,null,null,null,null,null,null,"фамилия, имя и отчество (при его наличии)",null,null,null,null,null,"подпись"]
[1]
[1,null,"Ескертпе:"]
[1,null,"Примечание:"]
[1,null,"*Аталған тармақ «Мемлекеттік статистика туралы» Қазақстан Республикасының 2010 жылғы 19 наурыздағы Заңының 8-бабының 5-тармағына сәйкес\nтолтырылады"]
[1]
[1,null,"*Данный пункт заполняется согласно пункту 5 статьи 8 Закона Республики Казахстан от 19 марта 2010 года «О государственной статистике»"]
[1]
[1,null,"Мемлекеттік статистиканың тиісті органдарына анық емес бастапқы статистикалық деректерді ұсыну және бастапқы статистикалық деректерді белгіленген мерзімде ұсынбау «Әкімшілік құқық бұзушылық туралы» Қазақстан Республикасы Кодексінің 497-бабында көзделген әкімшілік құқық бұзушылықтар болып табылады"]
[1]
[1]
[1,null,"Представление недостоверных и непредставление первичных статистических данных в соответствующие органы государственной статистики в установленный срок являются административными правонарушениями, предусмотренными статьей 497 Кодекса Республики Казахстан «Об административных правонарушениях»"]
[1]
[1]

{"sheet":"Логический контроль","index":25,"n_rows":4,"n_cols":3,"rows_kept":4,"cut":false,"hidden":false,"merged":[[0,1,0,2]]}
[1,"Логический контроль"]
["Id","Формуласы\nФормула","Нәтижесі\nРезультат"]
[null,"Проверка заполнения полей"]
[null,"Проверка заполнения значений"]

{"sheet":"Пояснения (каз.)","index":26,"n_rows":8,"n_cols":6,"rows_kept":8,"cut":false,"hidden":true,"merged":[[5,3,5,5],[7,3,7,5]]}
[{"$f":"IF(IFERROR(VLOOKUP(p_report_current_id,B:B,1,FALSE),) = 0,0,1)","v":0}]
[1,99,null,null,null,"Қазақстан Республикасы Ұлттық экономика министрлігі Статистика комитеті төрағасының 2020 жылғы «21» қаңтардағы № 3 бұйрығына 4-қосымша"]
[1,99]
[1,99,null,null,null,"Қазақстан Республикасы Статистика агенттiгi төрағасының мiндетiн атқарушының 2010 жылғы 21 желтоқсандағы № 351 бұйрығына 32-қосымша"]
[1,99]
[1,99,{"$f":"CONCATENATE(D6)","v":"«Резидент еместермен халықаралық операциялар туралы есеп» (индексі 10-ТБ, кезеңділігі тоқсандық) ведомстволық статистикалық байқаудың статистикалық нысанын толтыру жөніндегі нұсқаулық"},"«Резидент еместермен халықаралық операциялар туралы есеп» (индексі 10-ТБ, кезеңділігі тоқсандық) ведомстволық статистикалық байқаудың статистикалық нысанын толтыру жөніндегі нұсқаулық"]
[1,99,{"$f":"CONCATENATE(D7)","v":""}]
[1,99,"1. Осы «Резидент еместермен халықаралық операциялар туралы есеп» (индексі 10-ТБ, кезеңділігі тоқсандық) ведомстволық статистикалық байқаудың статистикалық нысанын толтыру жөніндегі нұсқаулық «Мемлекеттік статистика туралы» Қазақстан Республикасының 2010 жылғы 19 наурыздағы Заңының 12-бабы 8) тармақшасына сәйкес әзірленді және ведомстволық статистикалық байқаудың «Резидент еместермен халықаралық операциялар туралы есеп» (индексі 10-ТБ, кезеңділігі тоқсандық) статистикалық нысанын (бұдан әрі – статистикалық нысан) толтыруды нақтылайды.","1. Осы «Резидент еместермен халықаралық операциялар туралы есеп» (индексі 10-ТБ, кезеңділігі тоқсандық) ведомстволық статистикалық байқаудың статистикалық нысанын толтыру жөніндегі нұсқаулық «Мемлекеттік статистика туралы» Қазақстан Республикасының 2010 жылғы 19 наурыздағы Заңының 12-бабы 8) тармақшасына сәйкес әзірленді және ведомстволық статистикалық байқаудың «Резидент еместермен халықаралық операциялар туралы есеп» (индексі 10-ТБ, кезеңділігі тоқсандық) статистикалық нысанын (бұдан әрі – статистикалық нысан) толтыруды нақтылайды."]

{"sheet":"Пояснения (рус.)","index":27,"n_rows":651,"n_cols":3,"rows_kept":651,"cut":false,"hidden":false,"merged":[]}
[{"$f":"IF(IFERROR(VLOOKUP(p_report_current_id,B:B,1,FALSE),) = 0,0,1)","v":1},99]
[1,11,"Приложение\nк форме отчета о финансовых требованиях \nк нерезидентам и обязательствах\n перед ними"]
[1,11]
[1,11,"Пояснение по заполнению статистической формы ведомственного статистического наблюдения"]
[1,11]
[1,11,"«Отчет о финансовых требованиях к нерезидентам и обязательствах перед ними»\n (индекс 1-ПБ, периодичность квартальная)"]
[1,11]
[1,11,"Глава 1. Общие положения"]
[1,11]
[1,11,"1. Настоящее пояснение определяет единые требования по заполнению статистической формы ведомственного статистического наблюдения «Отчет о финансовых требованиях к нерезидентам и обязательствах перед ними» (индекс 1-ПБ, периодичность квартальная) (далее – статистическая форма). "]
[1,11,"2. Статистическая форма разработана в соответствии с подпунктом 2-1) части первой статьи 13 Закона Республики Казахстан «О государственной статистике»."]
[1,11,"3. Статистическую форму представляют юридические лица, включенные в перечень респондентов. Перечень респондентов на предстоящий год формируется Национальным Банком Республики Казахстан и размещается на официальном интернет-ресурсе Национального Банка Республики Казахстан."]
[1,11,"4. Информация, запрашиваемая по статистической форме, предназначена для формирования платежного баланса, международной инвестиционной позиции и оценки внешнего долга Республики Казахстан и их анализа."]
[1,11,"5. Статистическую форму подписывает руководитель, главный бухгалтер или лица, уполномоченные на подписание отчета, и исполнитель."]
[1,11]
[1,11,"Глава 2. Заполнение статистической формы"]
[1,11]
[1,11,"6. При заполнении статистической формы применяются следующие определения:"]
[1,11,"1) резиденты:"]
[1,11,"физические лица, проживающие в Республике Казахстан более одного года, независимо от гражданства, и граждане Республики Казахстан, временно находящиеся вне его территории менее одного года. Граждане Республики Казахстан, находящиеся за рубежом в целях государственной службы, образования и лечения, являются резидентами независимо от сроков их пребывания на территории других стран;"]
[1,11,"юридические лица, находящиеся на территории Республики Казахстан, за исключением международных организаций, иностранных посольств, консульств и других дипломатических и официальных представительств;"]
[1,11,"организации, созданные без образования юридического лица в соответствии с законодательством Республики Казахстан;"]
[1,11,"казахстанские посольства, консульства и другие дипломатические и официальные представительства, находящиеся за пределами Республики Казахстан;"]
[1,11,"находящиеся на территории Республики Казахстан филиалы и представительства юридических лиц, указанных в абзаце третьем настоящего подпункта и абзаце третьем подпункта 2) настоящего пункта;"]
[1,11,"2) нерезиденты:"]
[1,11,"физические лица, проживающие за границей более одного года, независимо от гражданства, и иностранные граждане, находящиеся на территории Республики Казахстан менее одного года. Граждане иностранных государств, находящиеся в целях государственной службы, образования и лечения, являются нерезидентами независимо от сроков их пребывания на территории республики;"]
[1,11,"юридические лица, находящиеся на территории других государств, за исключением посольств, консульств и других дипломатических и официальных представительств Республики Казахстан;"]
[1,11,"организации, созданные без образования юридического лица в соответствии с законодательством иностранного государства (фонды, трасты, простые товарищества);"]
[1,11,"находящиеся на территории Республики Казахстан международные организации, иностранные посольства, консульства и другие иностранные дипломатические и официальные представительства;"]
[1,11,"находящиеся на территории других государств филиалы и представительства юридических лиц, указанных в абзаце третьем подпункта 1) настоящего пункта и абзаце третьем настоящего подпункта настоящего пункта;"]
[1,11,"3) сестринская организация – организация, которая имеет общего с респондентом прямого инвестора, но ни данная организация, ни респондент не обладают 10% или более инструментов участия в капитале друг друга;"]
[1,11,"4) прямой инвестор – физическое или юридическое лицо, владеющее (или предполагающее владение) не менее 10% голосующих акций (голосов участников) или их эквивалента (вклады и паи для неакционерных организаций) в объекте прямого инвестирования;"]
[1,11,"5) объект прямого инвестирования – организация, в которой не менее 10% голосующих акций (голосов участников) или их эквивалента (вклады и паи для неакционерных организаций), принадлежит прямому инвестору;"]
[1,11,"6) инвестиционные фонды – акционерный или паевой инвестиционный фонд, созданный в соответствии с законодательством страны регистрации. Инвестиционные фонды являются структурой коллективного инвестирования, привлекающие средства посредством публичного выпуска акций или паев;"]
[1,11,"7) торговые (коммерческие) кредиты включают:"]
[1,11,"товары и услуги, предоставленные производителями, поставщиками и подрядчиками в соответствии с кредитными соглашениями;"]
[1,11,"задолженность по расчетам с поставщиками, подрядчиками (по обязательствам) либо с покупателями и заказчиками (по требованиям) на основе контрактов на поставку товаров, выполнение работ и оказание услуг;"]
[1,11,"авансы (предоплата), полученные (по обязательствам) и предоставленные (по требованиям) под поставку товаров, выполнение работ и оказание услуг."]
[1,11,"Из данной категории исключаются обращающиеся коммерческие векселя (то есть векселя, которые могут быть реализованы владельцем до наступления срока их погашения), которые отражаются в долговых ценных бумагах;"]
[1,11,"8) прочие требования (обязательства), не включенные в другие категории, включают:"]
[1,11,"задолженность или авансы по покупке, продаже финансовых активов (ценных бумаг, долей участия), недвижимости, нематериальных активов, которые не включаются в торговые (коммерческие) кредиты и авансы и ссуды;"]
[1,11,"задолженность или авансы по объявленным, но не оплаченным в предыдущих периодах дивидендам;"]
[1,11,"задолженность по начисленным, но не оплаченным налогам, начисленным, но не оплаченным штрафам и пеням за просрочку уплаты налогов;"]
[1,11,"задолженность по начисленным, но не оплаченным штрафам и пеням, налагаемым судами или иными государственными учреждениями;"]
[1,11,"задолженность третьим лицам по начисленным, но не оплаченным комиссионным сборам или сборам, представляющим собой плату за финансовые услуги;"]
[1,11,"задолженность по расчетам с клиентами – для финансовых посредников (брокеров, дилеров, управляющих компаний и другие);"]
[1,11,"задолженность по счетам клиентов и депонентов АО «Центральный депозитарий ценных бумаг», АО «Казахстанская фондовая биржа» и АО «Казпочта»."]
[1,11,"7. Все суммы в отчете отражаются в тысячах долларов Соединенных Штатов Америки (далее – США), в целых числах. Суммы, выраженные в тенге, переводятся в доллары США. Суммы, выраженные в иных иностранных валютах, переводятся сначала в тенге, а затем в доллары США."]
[1,11,"Для конвертации используются курсы обмена валют, применяемые в целях формирования финансовой отчетности. При этом для конвертации операций используются соответствующие курсы на дату совершения операций, для доходов – средневзвешенные курсы за отчетный период, для остатков на начало и конец квартала – курсы на соответствующую дату."]
[1,11,"Финансовые операции и доход, деноминированные в иных валютах, чем доллары США, переводятся в доллары США по курсу на дату совершения операции. Позиции на начало и конец квартала, деноминированные в иных валютах, конвертируются в доллары США по курсу на соответствующую дату."]
[1,11,"8. Все виды доходов отражаются на валовой основе, то есть без вычета налогов."]
[1,11,"9. Классификация финансовых инструментов на краткосрочные (до 1 (одного) года включительно) и долгосрочные (более 1 (одного) года) производится по первоначальному сроку, за исключением револьверных возобновляемых кредитов, которые классифицируются как краткосрочные."]
[1,11,"Просроченная задолженность по финансовому инструменту отражается вместе с финансовым инструментом. Просроченная задолженность по доходу по финансовому инструменту отражается вместе с доходом по финансовому инструменту."]
[1,11,"Штрафы и пени за просроченную задолженность по финансовому инструменту и (или) за просроченную задолженность по доходу по финансовому инструменту отражаются вместе с доходом по финансовому инструменту."]
[1,11,"10. Первичные статистические данные отражаются в разбивке по странам-партнерам. Если количество стран-партнеров превышает имеющееся в форме количество граф, добавляются недостающие графы."]
[1,11,"В части 1.2 раздела 1 сведения отражаются в разбивке по наименованию партнера-нерезидента и указанию страны его регистрации. Наименования нерезидентов пишется буквами латинского алфавита, а по нерезидентам, чье наименование зарегистрировано на русском языке, – буквами русского алфавита."]
[1,11,"Если объемы операций и позиций (остатков) по каждой отдельной стране не превышают одной тысячи долларов США, допускается объединять несколько стран и относить их к стране «Другие страны»."]
[1,11,"Если разбивка сумм по строкам «Переоценка» и «Прочие изменения» в отдельности по каждой стране невозможна, допускается заполнение общей суммой по стране «Другие страны» отдельно по каждой из строк."]
[1,11,"В части 5.1 раздела 5 наличные евро отражаются по стране «Другие страны», наличные по остальным валютам отражаются по стране-эмитенту соответствующей валюты. Например, наличные в российских рублях – по стране Российская Федерация, в долларах США – по Соединенным Штатам Америки и так далее."]
[1,11,"Международные финансовые организации отражаются по стране «Международные организации»."]
[1,11,"11. В отчете не отражаются требования и обязательства зарубежных филиалов респондента к нерезидентам."]
[1,11,"12. Акции и другие ценные бумаги на конец отчетного периода отражаются по рыночной стоимости. Для оценки позиций (остатков) по акциям и другим ценным бумагам используется один из следующих методов в порядке предпочтения по убыванию:"]
[1,11,"по средней рыночной цене (между ценой продажи и ценой покупки на фондовых рынках) на соответствующую дату;"]
[1,11,"по стоимости недавно проведенной операции."]
[1,11,"В случае возникновения затруднений в оценке рыночной стоимости сведения отражаются по балансовой стоимости."]
[1,11,"Операции с акциями и другими ценными бумагами отражаются по фактической цене сделки."]
[1,11,"В части 10.1 раздела 10 по строке 2211036 при наличии информации указывается рыночная стоимость организации, приходящаяся на долю нерезидентов на конец отчетного периода."]
[1,11,"13. По строке «Увеличение в результате операций» по Активам (Обязательствам, Капиталу) отражаются:"]
[1,11,"в случае ценных бумаг, долей участия в капитале (коды строк 1111002, 1211002, 1311002, 1412002, 1414002, 1122002, 1222002, 1322002, 1422102, 1422202, 2422202, 2211002, 2111002, 2311002, 2411002, 2213002, 2113002, 2313002, 2413002) – покупка (продажа), в том числе на первичном и вторичном рынках ценных бумаг, получение (передачу) ценных бумаг в дар, по наследству, обмен иного финансового инструмента на ценные бумаги и (или) доли участия (обмен ценных бумаг и (или) долей участия на иной финансовый инструмент);"]
[1,11,"в случае наличной иностранной валюты, банковских счетов организации в банках-нерезидентах (коды строк 1426102, 1426202) – увеличение наличной иностранной валюты в кассе, поступление средств на банковские счета, включая текущие счета, вклады, депозиты, открытые на имя Вашей организации;"]
[1,11,"в случае торговых (коммерческих) кредитов, авансов и займов (коды строк 1024002, 1124002, 1224002, 1324002, 1424102, 1424202, 1025002, 1125002, 1225002, 1325002, 1425102, 1425202, 2024002, 2124002, 2224002, 2324002, 2424102, 2424202, 2025002, 2125002, 2225002, 2325002, 2425102, 2425202, 2428202) – предоставление (получение) материальных (товарных) и финансовых ценностей и услуг в рассрочку (в кредит), пролонгация из краткосрочной в долгосрочную задолженность, капитализация вознаграждения (отнесение вознаграждения к основной сумме долга), обмен иного финансового инструмента на задолженность;"]
[1,11,"в случае производных финансовых инструментов (коды строк 1431002, 1432002, 2431002, 2432002, 2433002) – выплата премий по опционам, реализованная прибыль по форвардным (фьючерсным) контрактам."]
[1,11,"По строке «Уменьшение в результате операций» по Активам (Обязательствам, Капиталу) отражаются:"]
[1,11,"в случае ценных бумаг, долей участия в капитале (коды строк 1111003, 1211003, 1311003, 1412003, 1414003, 1122003, 1222003, 1322003, 1422103, 1422203, 2422203, 2211003, 2111003, 2311003, 2411003, 2213003, 2113003, 2313003, 2413003) – продажа (покупка) на вторичном рынке, погашение эмитентом, передачу (получение) ценных бумаг в дар, по наследству, обмен ценных бумаг и (или) долей участия на иной финансовый инструмент (обмен иного финансового инструмента на ценные бумаги и (или) доли участия);"]
[1,11,"в случае наличной иностранной валюты, банковских счетов Вашей организации в банках-нерезидентах (коды строк 1426103, 1426203) – уменьшение наличной иностранной валюты в кассе, уменьшение средств на банковских счетах, включая текущие счета, вклады, депозиты, открытых на имя Вашей организации;"]
[1,11,"в случае торговых (коммерческих) кредитов, авансов и займов (коды строк 1024003, 1124003, 1224003, 1324003, 1424103, 1424203, 1025003, 1125003, 1225003, 1325003, 1425103, 1425203, 2024003, 2124003, 2224003, 2324003, 2424103, 2424203, 2025003, 2125003, 2225003, 2325003, 2425103, 2425203, 2428203) – выплаты по основной сумме долга, пролонгация из краткосрочной в долгосрочную задолженность, обмен задолженности на иной финансовый инструмент;"]
[1,11,"в случае производных финансовых инструментов (коды строк 1431003, 1432003, 2431003, 2432003, 2433003) – исполнение условий опционного или форвардного (фьючерсного) контракта (то есть фактическая поставка базового актива по цене исполнения или расчет наличными на основании разности между ценой базового актива, существующей в данный момент на рынке, и ценой исполнения)."]
[1,11,"14. По всем строкам «Переоценка» отражаются изменения за отчетный период стоимости (объема) финансовых активов и обязательств в результате изменения курсов валют, цены финансового инструмента."]
[1,11,"Переоценка стоимости за счет колебаний курсов валют или колебаний рыночных цен отражается на нетто-основе и может составить как положительное, так и отрицательное значение."]
[1,11,"15. По всем строкам «Прочие изменения» отражаются изменения за отчетный период стоимости (объема) финансовых активов и обязательств, обусловленных иными, чем операции или переоценка, причинами."]
[1,11,"К ним относятся изменения в результате экономического возникновения и выбытия активов, изменение в финансовых активах, вызванных изменением резидентной принадлежности институциональных единиц и (или) изменением связности институциональных единиц. Изменение позиции по отдельным финансовым инструментам за счет списания «за баланс» задолженности кредитором в одностороннем порядке, за счет переуступки требований (перевода) долга между резидентами Республики Казахстан, за счет перехода нерезидентов Республики Казахстан из одной категории в другую (вследствие увеличения или уменьшения их доли в уставном капитале), за счет изменения резидентности партнера и прочее."]
[1,11,"Переуступка требований (перевод долга) между нерезидентами Республики Казахстан отражается по строке «Прочие изменения» по странам этих нерезидентов."]
[1,11,"Также в «Прочих изменениях» отражается исправление ранее допущенных ошибок при заполнении отчета (исправление задолженности на конец периода, предшествующего отчетному)."]
[1,11,"«Прочие изменения» отражаются на нетто-основе и имеют положительное или отрицательное значение."]
[1,11,"В комментариях расшифровываются все виды прочих изменений позиции за отчетный квартал."]
[1,11,"16. Совместная деятельность с нерезидентами без образования юридического лица отражается в отчете в соответствии с классификацией финансового инструмента в бухгалтерском учете респондента."]
[1,11,"17. Страховые организации не отражают в отчете информацию о страховых резервах."]
[1,11,"18. Отчет представляется на бумажном носителе либо электронным способом посредством автоматизированной информационной подсистемы «Веб-портал НБ РК» с соблюдением процедур подтверждения электронной цифровой подписью. При представлении одного отчета разными способами датой представления отчета считается ранняя из дат. "]
[1,11,"При представлении отчета на бумажных носителях респондент представляет только те части разделов статистической формы, по которым заполнена информация. При этом в содержании статистической формы указывается наличие заполненных частей разделов."]
[1,11,"Корректировки (исправления, дополнения) в статистическую форму вносятся в течение 6 (шести) месяцев после завершения отчетного периода."]
[1,11]
[1,11,"Глава 3. Арифметико-логический контроль"]
[1,11]
[1,11,"19. Арифметико-логический контроль:"]
[1,11,"1) Раздел 1. «Долевое участие Вашей организации в иностранных компаниях»:"]
[1,11,"строка 1111006 = строка 1111001 + строка 1111002 – строка 1111003 + + строка 1111004 + строка 1111005 для каждой графы;"]
[1,11,"строка 1211006 = строка 1211001 + строка 1211002 – строка 1211003 + + строка 1211004 + строка 1211005 для каждой графы;"]
[1,11,"строка 1311006 = строка 1311001 + строка 1311002 – строка 1311003 + + строка 1311004 + строка 1311005 для каждой графы;"]
[1,11,"строка 1412006 = строка 1412001 + строка 1412002 – строка 1412003 + + строка 1412004 + строка 1412005 для каждой графы;"]
[1,11,"строка 1414006 = строка 1414001 + строка 1414002 – строка 1414003 + + строка 1414004 + строка 1414005 для каждой графы;"]
[1,11,"строка 1111001 = строка 1111006 отчета за предыдущий период;"]
[1,11,"строка 1211001 = строка 1211006 отчета за предыдущий период;"]
[1,11,"строка 1311001 = строка 1311006 отчета за предыдущий период;"]
[1,11,"строка 1412001 = строка 1412006 отчета за предыдущий период;"]
[1,11,"строка 1414001 = строка 1414006 отчета за предыдущий период;"]
[1,11,"2) Раздел 2. «Долговые ценные бумаги, векселя и привилегированные акции нерезидентов в портфеле Вашей организации»:"]
[1,11,"строка 1122006 = строка 1122001 + строка 1122002 – строка 1122003 + + строка 1122004 + строка 1122005 для каждой графы;"]
[1,11,"строка 1222006 = строка 1222001 + строка 1222002 – строка 1222003 + + строка 1222004 + строка 1222005 для каждой графы;"]
[1,11,"строка 1322006 = строка 1322001 + строка 1322002 – строка 1322003 + + строка 1322004 + строка 1322005 для каждой графы;"]
[1,11,"строка 1422106 = строка 1422101 + строка 1422102 – строка 1422103 + + строка 1422104 + строка 1422105 для каждой графы;"]
[1,11,"строка 1422206 = строка 1422201 + строка 1422202 – строка 1422203 + + строка 1422204 + строка 1422205 для каждой графы;"]
[1,11,"строка 1122001 = строка 1122006 отчета за предыдущий период;"]
[1,11,"строка 1122011 = строка 1122016 отчета за предыдущий период;"]
[1,11,"строка 1222001 = строка 1222006 отчета за предыдущий период;"]
[1,11,"строка 1222011 = строка 1222016 отчета за предыдущий период;"]
[1,11,"строка 1322001 = строка 1322006 отчета за предыдущий период;"]
[1,11,"строка 1322011 = строка 1322016 отчета за предыдущий период;"]
[1,11,"строка 1422101 = строка 1422106 отчета за предыдущий период;"]
[1,11,"строка 1422111 = строка 1422116 отчета за предыдущий период;"]
[1,11,"строка 1422201 = строка 1422206 отчета за предыдущий период;"]
[1,11,"строка 1422211 = строка 1422216 отчета за предыдущий период;"]
[1,11,"3) Раздел 3. «Торговые (коммерческие) кредиты и авансы, выданные Вашей организацией нерезидентам»:"]
[1,11,"строка 1024006 = строка 1024001 + строка 1024002 – строка 1024003 + + строка 1024004 + строка 1024005 для каждой графы;"]
[1,11,"строка 1024016 = строка 1024011 + строка 1024012 – строка 1024013 + + строка 1024015 для каждой графы;"]
[1,11,"строка 1124006 = строка 1124001 + строка 1124002 – строка 1124003 + + строка 1124004 + строка 1124005 для каждой графы;"]
[1,11,"строка 1124016 = строка 1124011 + строка 1124012 – строка 1124013 + + строка 1124015 для каждой графы;"]
[1,11,"строка 1224006 = строка 1224001 + строка 1224002 – строка 1224003 + + строка 1224004 + строка 1224005 для каждой графы;"]
[1,11,"строка 1224016 = строка 1224011 + строка 1224012 – строка 1224013 + + строка 1224015 для каждой графы;"]
[1,11,"строка 1324006 = строка 1324001 + строка 1324002 – строка 1324003 + + строка 1324004 + строка 1324005 для каждой графы;"]
[1,11,"строка 1324016 = строка 1324011 + строка 1324012 – строка 1324013 + + строка 1324015 для каждой графы;"]
[1,11,"строка 1424106 = строка 1424101 + строка 1424102 – строка 1424103 + + строка 1424104 + строка 1424105 для каждой графы;"]
[1,11,"строка 1424116 = строка 1424111 + строка 1424112 – строка 1424113 + + строка 1424115 для каждой графы;"]
[1,11,"строка 1424206 = строка 1424201 + строка 1424202 – строка 1424203 + + строка 1424204 + строка 1424205 для каждой графы;"]
[1,11,"строка 1424216 = строка 1424211 + строка 1424212 – строка 1424213 + + строка 1424215 для каждой графы;"]
[1,11,"строка 1024001 = строка 1024006 отчета за предыдущий период;"]
[1,11,"строка 1024011 = строка 1024016 отчета за предыдущий период;"]
[1,11,"строка 1124001 = строка 1124006 отчета за предыдущий период;"]
[1,11,"строка 1124011 = строка 1124016 отчета за предыдущий период;"]
[1,11,"строка 1224001 = строка 1224006 отчета за предыдущий период;"]
[1,11,"строка 1224011 = строка 1224016 отчета за предыдущий период;"]
[1,11,"строка 1324001 = строка 1324006 отчета за предыдущий период;"]
[1,11,"строка 1324011 = строка 1324016 отчета за предыдущий период;"]
[1,11,"строка 1424101 = строка 1424106 отчета за предыдущий период;"]
[1,11,"строка 1424111 = строка 1424116 отчета за предыдущий период;"]
[1,11,"строка 1424201 = строка 1424206 отчета за предыдущий период;"]
[1,11,"строка 1424211 = строка 1424216 отчета за предыдущий период;"]
[1,11,"4) Раздел 4. «Займы (включая финансовый лизинг), выданные Вашей организацией нерезидентам»:"]
[1,11,"строка 1025006 = строка 1025001 + строка 1025002 – строка 1025003 + + строка 1025004 + строка 1025005 для каждой графы;"]
[1,11,"строка 1025016 = строка 1025011 + строка 1025012 – строка 1025013 + + строка 1025015 для каждой графы;"]
[1,11,"строка 1125006 = строка 1125001 + строка 1125002 – строка 1125003 + + строка 1125004 + строка 1125005 для каждой графы;"]
[1,11,"строка 1125016 = строка 1125011 + строка 1125012 – строка 1125013 + + строка 1125015 для каждой графы;"]
[1,11,"строка 1225006 = строка 1225001 + строка 1225002 – строка 1225003 + + строка 1225004 + строка 1225005 для каждой графы;"]
[1,11,"строка 1225016 = строка 1225011 + строка 1225012 – строка 1225013 + + строка 1225015 для каждой графы;"]
[1,11,"строка 1325006 = строка 1325001 + строка 1325002 – строка 1325003 + + строка 1325004 + строка 1325005 для каждой графы;"]
[1,11,"строка 1325016 = строка 1325011 + строка 1325012 – строка 1325013 + + строка 1325015 для каждой графы;"]
[1,11,"строка 1425106 = строка 1425101 + строка 1425102 – строка 1425103 + + строка 1425104 + строка 1425105 для каждой графы;"]
[1,11,"строка 1425116 = строка 1425111 + строка 1425112 – строка 1425113 + + строка 1425115 для каждой графы;"]
[1,11,"строка 1425206 = строка 1425201 + строка 1425202 – строка 1425203 + + строка 1425204 + строка 1425205 для каждой графы;"]
[1,11,"строка 1425216 = строка 1425211 + строка 1425212 – строка 1425213 + + строка 1425215 для каждой графы;"]
[1,11,"строка 1025001 = строка 1025006 отчета за предыдущий период;"]
[1,11,"строка 1025011 = строка 1025016 отчета за предыдущий период;"]
[1,11,"строка 1125001 = строка 1125006 отчета за предыдущий период;"]
[1,11,"строка 1125011 = строка 1125016 отчета за предыдущий период;"]
[1,11,"строка 1225001 = строка 1225006 отчета за предыдущий период;"]
[1,11,"строка 1225011 = строка 1225016 отчета за предыдущий период;"]
[1,11,"строка 1325001 = строка 1325006 отчета за предыдущий период;"]
[1,11,"строка 1325011 = строка 1325016 отчета за предыдущий период;"]
[1,11,"строка 1425101 = строка 1425106 отчета за предыдущий период;"]
[1,11,"строка 1425111 = строка 1425116 отчета за предыдущий период;"]
[1,11,"строка 1425201 = строка 1425206 отчета за предыдущий период;"]
[1,11,"строка 1425211 = строка 1425216 отчета за предыдущий период;"]
[1,11,"5) Раздел 5. «Прочие требования Вашей организации к нерезидентам»:"]
[1,11,"строка 1426106 = строка 1426101 + строка 1426102 – строка 1426103 + + строка 1426104 + строка 1426105 для каждой графы;"]
[1,11,"строка 1426116 = строка 1426111 + строка 1426112 – строка 1426113 + + строка 1426115 для каждой графы;"]
[1,11,"строка 1426206 = строка 1426201 + строка 1426202 – строка 1426203 + + строка 1426204 + строка 1426205 для каждой графы;"]
[1,11,"строка 1426216 = строка 1426211 + строка 1426212 – строка 1426213 + + строка 1426215 для каждой графы;"]
[1,11,"строка 1431006 = строка 1431001 + строка 1431002 – строка 1431003 + + строка 1431004 + строка 1431005 для каждой графы;"]
[1,11,"строка 1432006 = строка 1432001 + строка 1432002 – строка 1432003 + + строка 1432004 + строка 1432005 для каждой графы;"]
[1,11,"строка 1115006 = строка 1115001 + строка 1115002 – строка 1115003 + + строка 1115004 + строка 1115005 для каждой графы;"]
[1,11,"строка 1027006 = строка 1027001 + строка 1027002 – строка 1027003 + + строка 1027004 + строка 1027005 для каждой графы;"]
[1,11,"строка 1027016 = строка 1027011 + строка 1027012 – строка 1027013 + + строка 1027015 для каждой графы;"]
[1,11,"строка 1127006 = строка 1127001 + строка 1127002 – строка 1127003 + + строка 1127004 + строка 1127005 для каждой графы;"]
[1,11,"строка 1127016 = строка 1127011 + строка 1127012 – строка 1127013 + + строка 1127015 для каждой графы;"]
[1,11,"строка 1227006 = строка 1227001 + строка 1227002 – строка 1227003 + + строка 1227004 + строка 1227005 для каждой графы;"]
[1,11,"строка 1227016 = строка 1227011 + строка 1227012 – строка 1227013 + + строка 1227015 для каждой графы;"]
[1,11,"строка 1327006 = строка 1327001 + строка 1327002 – строка 1327003 + + строка 1327004 + строка 1327005 для каждой графы;"]
[1,11,"строка 1327016 = строка 1327011 + строка 1327012 – строка 1327013 + + строка 1327015 для каждой графы;"]
[1,11,"строка 1427106 = строка 1427101 + строка 1427102 – строка 1427103 + + строка 1427104 + строка 1427105 для каждой графы;"]
[1,11,"строка 1427116 = строка 1427111 + строка 1427112 – строка 1427113 + + строка 1427115 для каждой графы;"]
[1,11,"строка 1427206 = строка 1427201 + строка 1427202 – строка 1427203 + + строка 1427204 + строка 1427205 для каждой графы;"]
[1,11,"строка 1427216 = строка 1427211 + строка 1427212 – строка 1427213 + + строка 1427215 для каждой графы;"]
[1,11,"строка 1426101 = строка 1426106 отчета за предыдущий период;"]
[1,11,"строка 1426111 = строка 1426116 отчета за предыдущий период;"]
[1,11,"строка 1426201 = строка 1426206 отчета за предыдущий период;"]
[1,11,"строка 1426211 = строка 1426216 отчета за предыдущий период;"]
[1,11,"строка 1431001 = строка 1431006 отчета за предыдущий период;"]
[1,11,"строка 1432001 = строка 1432006 отчета за предыдущий период;"]
[1,11,"строка 1115001 = строка 1115006 отчета за предыдущий период;"]
[1,11,"строка 1027001 = строка 1027006 отчета за предыдущий период;"]
[1,11,"строка 1027011 = строка 1027016 отчета за предыдущий период;"]
[1,11,"строка 1127001 = строка 1127006 отчета за предыдущий период;"]
[1,11,"строка 1127011 = строка 1127016 отчета за предыдущий период;"]
[1,11,"строка 1227001 = строка 1227006 отчета за предыдущий период;"]
[1,11,"строка 1227011 = строка 1227016 отчета за предыдущий период;"]
[1,11,"строка 1327001 = строка 1327006 отчета за предыдущий период;"]
[1,11,"строка 1327011 = строка 1327016 отчета за предыдущий период;"]
[1,11,"строка 1427101 = строка 1427106 отчета за предыдущий период;"]
[1,11,"строка 1427111 = строка 1427116 отчета за предыдущий период;"]
[1,11,"строка 1427201 = строка 1427206 отчета за предыдущий период;"]
[1,11,"строка 1427211 = строка 1427216 отчета за предыдущий период;"]
[1,11,"6) Раздел 6. «Долговые ценные бумаги, векселя, выпущенные Вашей организацией, находящиеся в портфеле у нерезидентов»:"]
[1,11,"строка 2422206 = строка 2422201 + строка 2422202 – строка 2422203 + + строка 2422204 + строка 2422205 для каждой графы;"]
[1,11,"строка 2422206 = строка 2422201 отчета за предыдущий период;"]
[1,11,"строка 2422216 = строка 2422211 отчета за предыдущий период;"]
[1,11,"7) Раздел 7. «Торговые (коммерческие) кредиты и авансы, полученные Вашей организацией от нерезидентов»:"]
[1,11,"строка 2024006 = строка 2024001 + строка 2024002 – строка 2024003 + + строка 2024004 + строка 2024005 для каждой графы;"]
[1,11,"строка 2024016 = строка 2024011 + строка 2024012 – строка 2024013 + + строка 2024015 для каждой графы;"]
[1,11,"строка 2124006 = строка 2124001 + строка 2124002 – строка 2124003 + + строка 2124004 + строка 2124005 для каждой графы;"]
[1,11,"строка 2124016 = строка 2124011 + строка 2124012 – строка 2124013 + + строка 2124015 для каждой графы;"]
[1,11,"строка 2224006 = строка 2224001 + строка 2224002 – строка 2224003 + + строка 2224004 + строка 2224005 для каждой графы;"]
[1,11,"строка 2224016 = строка 2224011 + строка 2224012 – строка 2224013 + + строка 2224015 для каждой графы;"]
[1,11,"строка 2324006 = строка 2324001 + строка 2324002 – строка 2324003 + + строка 2324004 + строка 2324005 для каждой графы;"]
[1,11,"строка 2324016 = строка 2324011 + строка 2324012 – строка 2324013 + + строка 2324015 для каждой графы;"]
[1,11,"строка 2424106 = строка 2424101 + строка 2424102 – строка 2424103 + + строка 2424104 + строка 2424105 для каждой графы;"]
[1,11,"строка 2424116 = строка 2424111 + строка 2424112 – строка 2424113 + + строка 2424115 для каждой графы;"]
[1,11,"строка 2424206 = строка 2424201 + строка 2424202 – строка 2424203 + + строка 2424204 + строка 2424205 для каждой графы;"]
[1,11,"строка 2424216 = строка 2424211 + строка 2424212 – строка 2424213 + + строка 2424215 для каждой графы;"]
[1,11,"строка 2024001 = строка 2024006 отчета за предыдущий период;"]
[1,11,"строка 2024011 = строка 2024016 отчета за предыдущий период;"]
[1,11,"строка 2124001 = строка 2124006 отчета за предыдущий период;"]
[1,11,"строка 2124011 = строка 2124016 отчета за предыдущий период;"]
[1,11,"строка 2224001 = строка 2224006 отчета за предыдущий период;"]
[1,11,"строка 2224011 = строка 2224016 отчета за предыдущий период;"]
[1,11,"строка 2324001 = строка 2324006 отчета за предыдущий период;"]
[1,11,"строка 2324011 = строка 2324016 отчета за предыдущий период;"]
[1,11,"строка 2424101 = строка 2424106 отчета за предыдущий период;"]
[1,11,"строка 2424111 = строка 2424116 отчета за предыдущий период;"]
[1,11,"строка 2424201 = строка 2424206 отчета за предыдущий период;"]
[1,11,"строка 2424211 = строка 2424216 отчета за предыдущий период;"]
[1,11,"8) Раздел 8. «Займы (включая финансовый лизинг), полученные Вашей организацией от нерезидентов»:"]
[1,11,"строка 2428206 = строка 2428201 + строка 2428202 – строка 2428203 + + строка 2428204 + строка 2428205 для каждой графы;"]
[1,11,"строка 2428216 = строка 2428211 + строка 2428212 – строка 2428213 + + строка 2428215 для каждой графы;"]
[1,11,"строка 2025006 = строка 2025001 + строка 2025002 – строка 2025003 + + строка 2025004 + строка 2025005 для каждой графы;"]
[1,11,"строка 2025016 = строка 2025011 + строка 2025012 – строка 2025013 + + строка 2025015 для каждой графы;"]
[1,11,"строка 2125006 = строка 2125001 + строка 2125002 – строка 2125003 + + строка 2125004 + строка 2125005 для каждой графы;"]
[1,11,"строка 2125016 = строка 2125011 + строка 2125012 – строка 2125013 + + строка 2125015 для каждой графы;"]
[1,11,"строка 2225006 = строка 2225001 + строка 2225002 – строка 2225003 + + строка 2225004 + строка 2225005 для каждой графы;"]
[1,11,"строка 2225016 = строка 2225011 + строка 2225012 – строка 2225013 + + строка 2225015 для каждой графы;"]
[1,11,"строка 2325006 = строка 2325001 + строка 2325002 – строка 2325003 + + строка 2325004 + строка 2325005 для каждой графы;"]
[1,11,"строка 2325016 = строка 2325011 + строка 2325012 – строка 2325013 + + строка 2325015 для каждой графы;"]
[1,11,"строка 2425106 = строка 2425101 + строка 2425102 – строка 2425103 + + строка 2425104 + строка 2425105 для каждой графы;"]
[1,11,"строка 2425116 = строка 2425111 + строка 2425112 – строка 2425113 + + строка 2425115 для каждой графы;"]
[1,11,"строка 2425206 = строка 2425201 + строка 2425202 – строка 2425203 + + строка 2425204 + строка 2425205 для каждой графы;"]
[1,11,"строка 2425216 = строка 2425211 + строка 2425212 – строка 2425213 + + строка 2425215 для каждой графы;"]
[1,11,"строка 2025001 = строка 2025006 отчета за предыдущий период;"]
[1,11,"строка 2025011 = строка 2025016 отчета за предыдущий период;"]
[1,11,"строка 2125001 = строка 2125006 отчета за предыдущий период;"]
[1,11,"строка 2125011 = строка 2125016 отчета за предыдущий период;"]
[1,11,"строка 2225001 = строка 2225006 отчета за предыдущий период;"]
[1,11,"строка 2225011 = строка 2225016 отчета за предыдущий период;"]
[1,11,"строка 2325001 = строка 2325006 отчета за предыдущий период;"]
[1,11,"строка 2325011 = строка 2325016 отчета за предыдущий период;"]
[1,11,"строка 2425101 = строка 2425106 отчета за предыдущий период;"]
[1,11,"строка 2425111 = строка 2425116 отчета за предыдущий период;"]
[1,11,"строка 2425201 = строка 2425206 отчета за предыдущий период;"]
[1,11,"строка 2425211 = строка 2425216 отчета за предыдущий период;"]
[1,11,"строка 2428201 = строка 2428206 отчета за предыдущий период;"]
[1,11,"строка 2428211 = строка 2428216 отчета за предыдущий период;"]
[1,11,"9) Раздел 9. «Прочие обязательства Вашей организации перед нерезидентами»:"]
[1,11,"строка 2433006 = строка 2433001 + строка 2433002 – строка 2433003 + + строка 2433004 + строка 2433005 для каждой графы;"]
[1,11,"строка 2431006 = строка 2431001 + строка 2431002 – строка 2431003 + + строка 2431004 + строка 2431005 для каждой графы;"]
[1,11,"строка 2432006 = строка 2432001 + строка 2432002 – строка 2432003 + + строка 2432004 + строка 2432005 для каждой графы;"]
[1,11,"строка 2027006 = строка 2027001 + строка 2027002 – строка 2027003 + + строка 2027004 + строка 2027005 для каждой графы;"]
[1,11,"строка 2027016 = строка 2027011 + строка 2027012 – строка 2027013 + + строка 2027015 для каждой графы;"]
[1,11,"строка 2127006 = строка 2127001 + строка 2127002 – строка 2127003 + + строка 2127004 + строка 2127005 для каждой графы;"]
[1,11,"строка 2127016 = строка 2127011 + строка 2127012 – строка 2127013 + + строка 2127015 для каждой графы;"]
[1,11,"строка 2227006 = строка 2227001 + строка 2227002 – строка 2227003 + + строка 2227004 + строка 2227005 для каждой графы;"]
[1,11,"строка 2227016 = строка 2227011 + строка 2227012 – строка 2227013 + + строка 2227015 для каждой графы;"]
[1,11,"строка 2327006 = строка 2327001 + строка 2327002 – строка 2327003 + + строка 2327004 + строка 2327005 для каждой графы;"]
[1,11,"строка 2327016 = строка 2327011 + строка 2327012 – строка 2327013 + + строка 2327015 для каждой графы;"]
[1,11,"строка 2427106 = строка 2427101 + строка 2427102 – строка 2427103 + + строка 2427104 + строка 2427105 для каждой графы;"]
[1,11,"строка 2427116 = строка 2427111 + строка 2427112 – строка 2427113 + + строка 2427115 для каждой графы;"]
[1,11,"строка 2427206 = строка 2427201 + строка 2427202 – строка 2427203 + + строка 2427204 + строка 2427205 для каждой графы;"]
[1,11,"строка 2427216 = строка 2427211 + строка 2427212 – строка 2427213 + + строка 2427215 для каждой графы;"]
[1,11,"строка 2431001 = строка 2431006 отчета за предыдущий период;"]
[1,11,"строка 2432001 = строка 2432006 отчета за предыдущий период;"]
[1,11,"строка 2433001 = строка 2433006 отчета за предыдущий период;"]
[1,11,"строка 2027001 = строка 2027006 отчета за предыдущий период;"]
[1,11,"строка 2027011 = строка 2027016 отчета за предыдущий период;"]
[1,11,"строка 2127001 = строка 2127006 отчета за предыдущий период;"]
[1,11,"строка 2127011 = строка 2127016 отчета за предыдущий период;"]
[1,11,"строка 2227001 = строка 2227006 отчета за предыдущий период;"]
[1,11,"строка 2227011 = строка 2227016 отчета за предыдущий период;"]
[1,11,"строка 2327001 = строка 2327006 отчета за предыдущий период;"]
[1,11,"строка 2327011 = строка 2327016 отчета за предыдущий период;"]
[1,11,"строка 2427101 = строка 2427106 отчета за предыдущий период;"]
[1,11,"строка 2427111 = строка 2427116 отчета за предыдущий период;"]
[1,11,"строка 2427201 = строка 2427206 отчета за предыдущий период;"]
[1,11,"строка 2427211 = строка 2427216 отчета за предыдущий период;"]
[1,11,"10) Раздел 10. «Участие нерезидентов в капитале Вашей организации»:"]
[1,11,"строка 2211006 = строка 2211001 + строка 2211002 – строка 2211003 + + строка 2211004 + строка 2211005 для каждой графы;"]
[1,11,"строка 2211016 = строка 2211011 + строка 2211012 – строка 2211013 + + строка 2211014 + строка 2211015 для каждой графы;"]
[1,11,"строка 2211026 = строка 2211021 + строка 2211025 для каждой графы;"]
[1,11,"строка 2111006 = строка 2111001 + строка 2111002 – строка 2111003 + + строка 2111004 + строка 2111005 для каждой графы;"]
[1,11,"строка 2311006 = строка 2311001 + строка 2311002 – строка 2311003 + + строка 2311004 + строка 2311005 для каждой графы;"]
[1,11,"строка 2411006 = строка 2411001 + строка 2411002 – строка 2411003 + + строка 2411004 + строка 2411005 для каждой графы;"]
[1,11,"строка 2213006 = строка 2213001 + строка 2213002 – строка 2213003 + + строка 2213004 + строка 2213005 для каждой графы;"]
[1,11,"строка 2113006 = строка 2113001 + строка 2113002 – строка 2113003 + + строка 2113004 + строка 2113005 для каждой графы;"]
[1,11,"строка 2313006 = строка 2313001 + строка 2313002 – строка 2313003 + + строка 2313004 + строка 2313005 для каждой графы;"]
[1,11,"строка 2413006 = строка 2413001 + строка 2413002 – строка 2413003 + + строка 2413004 + строка 2413005 для каждой графы;"]
[1,11,"строка 2211001 = строка 2211006 отчета за предыдущий период;"]
[1,11,"строка 2211011 = строка 2211016 отчета за предыдущий период;"]
[1,11,"строка 2211021 = строка 2211026 отчета за предыдущий период;"]
[1,11,"строка 2111001 = строка 2111006 отчета за предыдущий период;"]
[1,11,"строка 2311001 = строка 2311006 отчета за предыдущий период;"]
[1,11,"строка 2411001 = строка 2411006 отчета за предыдущий период;"]
[1,11,"строка 2213001 = строка 2213006 отчета за предыдущий период;"]
[1,11,"строка 2113001 = строка 2113006 отчета за предыдущий период;"]
[1,11,"строка 2313001 = строка 2313006 отчета за предыдущий период;"]
[1,11,"строка 2413001 = строка 2413006 отчета за предыдущий период."]
[1,6,"Приложение "]
[1,6,"к форме отчета о международных операциях,\nвнешних активах и обязательствах\n сектора государственного управления"]
[1,6]
[1,6,"Пояснение по заполнению статистической формы ведомственного статистического наблюдения"]
[1,6]
[1,6,"«Отчет о международных операциях, внешних активах и обязательствах сектора государственного управления»\n(индекс 7-ПБ, периодичность квартальная)"]
[1,6]
[1,6,"Глава 1. Общие положения"]
[1,6]
[1,6,"1. Настоящее пояснение определяет единые требования по заполнению статистической формы ведомственного статистического наблюдения «Отчет о международных операциях, внешних активах и обязательствах сектора государственного управления» (индекс 7-ПБ, периодичность квартальная) (далее – статистическая форма)."]
[1,6,"2. Статистическая форма разработана в соответствии с подпунктом 2-1) части первой статьи 13 Закона Республики Казахстан «О государственной статистике»."]
[1,6,"3. Статистическая форма представляется ежеквартально органами государственного управления Республики Казахстан."]
[1,6,"4. Информация, запрашиваемая в данной статистической форме, предназначена для составления платежного баланса Республики Казахстан."]
[1,6,"5. Статистическую форму подписывает руководитель, главный бухгалтер или лица, уполномоченные на подписание отчета, и исполнитель."]
[1,6]
[1,6,"Глава 2. Заполнение статистической формы"]
[1,6]
[1,6,"6. При заполнении статистической формы применяются следующие определения:"]
[1,6,"1) резиденты:"]
[1,6,"физические лица, проживающие в Республике Казахстан более одного года, независимо от гражданства, и граждане Республики Казахстан, временно находящиеся вне его территории менее одного года. Граждане Республики Казахстан, находящиеся за рубежом в целях государственной службы, образования и лечения, являются резидентами независимо от сроков их пребывания на территории других стран;"]
[1,6,"юридические лица, находящиеся на территории Республики Казахстан, за исключением международных организаций, иностранных посольств, консульств и других дипломатических и официальных представительств;"]
[1,6,"организации, созданные без образования юридического лица в соответствии с законодательством Республики Казахстан;"]
[1,6,"казахстанские посольства, консульства и другие дипломатические и официальные представительства, находящиеся за пределами Республики Казахстан;"]
[1,6,"находящиеся на территории Республики Казахстан филиалы и представительства юридических лиц, указанных в абзаце третьем настоящего подпункта и абзаце третьем подпункта 2) настоящего пункта;"]
[1,6,"2) нерезиденты:"]
[1,6,"физические лица, проживающие за границей более одного года, независимо от гражданства, и иностранные граждане, находящиеся на территории Республики Казахстан менее одного года. Граждане иностранных государств, находящиеся в целях государственной службы, образования и лечения, являются нерезидентами независимо от сроков их пребывания на территории республики. Граждане иностранных государств, привлеченные на работу в Казахстане вахтовым методом, являются нерезидентами независимо от сроков их пребывания на территории республики;"]
[1,6,"юридические лица, находящиеся на территории других государств, за исключением посольств, консульств и других дипломатических и официальных представительств Республики Казахстан;"]
[1,6,"находящиеся на территории Республики Казахстан международные организации, иностранные посольства, консульства и другие иностранные дипломатические и официальные представительства;"]
[1,6,"находящиеся на территории других государств филиалы и представительства юридических лиц, указанных в абзаце третьем подпункта 1) настоящего пункта и абзаце третьем настоящего подпункта;"]
[1,6,"3) переоценка - изменение за отчетный период стоимости (объема) финансового инструмента в результате изменения курсов валют, цены финансового инструмента;"]
[1,6,"4) прочие изменения – изменения за отчетный период стоимости (объема) финансового инструмента в одностороннем порядке (списание задолженности кредитором, изменение резидентства партнера и так далее), а также исправление ранее допущенных ошибок при заполнении отчета."]
[1,6,"Переоценка и прочие изменения могут составить в отчетном периоде как положительное, так и отрицательное значения. При невозможности классифицировать переоценку и прочие изменения по международным организациям (Раздел 2 часть А), предприятиям-нерезидентам (Раздел 2 часть Б), странам-партнерам (Раздел 2 части В и Г), допускается отражение переоценки и прочих изменений только в сводном виде в графе 1."]
[1,6,"7. Все суммы отражаются в тысячах долларов Соединенных Штатов Америки (далее – США), в целых числах. Суммы в тенге и в иных иностранных валютах переводятся в доллары США. Для конвертации используются рыночные курсы обмена валют, применяемые в целях формирования финансовой отчетности в соответствии с законодательством Республики Казахстан. Для конвертации операций используются соответствующие курсы на дату совершения операций. Для конвертации запасов (остатков) на конец отчетного периода используются соответствующие курсы на конец отчетного периода."]
[1,6,"8. Первичные статистические данные отражаются в разбивке по всем странам-партнерам (раздел 1, части В и Г раздела 2), международным организациям (часть А раздела 2), предприятиям-нерезидентам (часть Б раздела 2). Причем в части Б раздела 2 по строке В отражается наименование нерезидента, а по строке Г – страна, в которой он зарегистрирован. Если количество стран-партнеров, международных организаций или предприятий-нерезидентов превышает имеющееся в форме количество граф, добавляются недостающие графы."]
[1,6,"По стране указывается двухбуквенный код страны согласно национальному классификатору Республики Казахстан НК РК 06 ISО 3166-1-2016 «Коды для представления названий стран и единиц их административно-территориальных подразделений. Часть 1. Коды стран»."]
[1,6,"В разделе 1 операции с международными организациями отражаются в графе «Международные организации»."]
[1,6,"9. В разделе 1 стоимость услуг отражается на момент ее начисления (на дату фактического предоставления), а не по времени фактической оплаты."]
[1,6,"Аренда природных ресурсов (строки 60, 90) включает предоставление во временное пользование природных ресурсов, таких как земля, леса, заповедники, водоемы, а также право на добычу полезных ископаемых и ловлю рыбы."]
[1,6,"Строительные услуги (строка 110) охватывают все товары и услуги, которые являются неотделимой частью строительных контрактов, включающих подготовку строительного участка, строительство объектов, монтаж сборных конструкций и оборудования. Включают бурение и постройку водных скважин, и другие строительные услуги, такие как аренда строительного или демонтажного оборудования с оператором, управление строительным проектом, строительный ремонт."]
[1,6,"Консультационные услуги в области управления (строки 120, 143) охватывают общие управленческие консультации, финансовый менеджмент, кадровый менеджмент, производственный менеджмент и другие управленческие консультации; консультации, руководство и оперативная помощь в вопросах бизнес политики и стратегии; услуги по связям с общественностью. Исключается руководство строительным проектом (строительные услуги)."]
[1,6,"Юридические услуги (строки 121, 144) включают юридические советы и консультации; предоставление услуг в юридических, судебных и законодательных процессах; оказание оперативной помощи фирмам; подготовка юридической документации; услуги арбитража."]
[1,6,"Финансовые услуги (строка 122) включают комиссионное вознаграждение посредников по финансовым сделкам (за исключением услуг страховых компаний и пенсионных фондов), в том числе: комиссию по кредитам, комиссию профучастников рынка ценных бумаг. Включают также другие вспомогательные финансовые услуги (финансовые консультации, управление финансовыми активами, услуги кредитного рейтинга). Вознаграждение по депозитам, кредитам, ссудам и займам в финансовые услуги не включаются."]
[1,6,"Телекоммуникационные услуги (строка 125) охватывают передачу звука, изображения или другой информации с помощью телефона, телетайпа, телеграфа, радиовещания, спутниковой связи, электронной почты, факса, а также включают деловые сетевые услуги, телеконференции, сопутствующие услуги, интернет и доступ к нему. Телекоммуникационные услуги не включают стоимость передаваемой информации, услуги по установке телефонной сети (строительные услуги), компьютерные услуги, а также доступ и использование информации базы данных."]
[1,6,"Информационные услуги (строки 127, 145) включают предоставление новостей, фотографий и статей средствам массовой информации; создание, хранение и распространение баз данных; прямую индивидуальную подписку на периодические издания с доставкой по почте и иными способами; услуги библиотек и архивов."]
[1,6,"Компьютерные услуги (строка 130) включают: продажу (приобретение) заказного и незаказного (массового производства) программного обеспечения, доставляемого электронными каналами связи (электронной почтой) и связанных с этим лицензий; установку технических средств и программного обеспечения; консалтинг в области компьютерной техники и программного обеспечения; ремонт и техническое обслуживание компьютеров и периферийных устройств, обработку данных и их размещение на сервере. Заказное и незаказное программное обеспечение, доставляемое на материальных носителях (дисках и других съемных носителях или как часть компьютерного оборудования) включается в товары."]
[1,6,"Услуги по ремонту и техническому обслуживанию, не отнесенные к другим категориям (строка 131) включают капитальный и текущий ремонт и техническое обслуживание морских и воздушных судов и других транспортных средств, а также других товаров."]
[1,6,"Услуги по обслуживанию транспортных средств (строка 135) включают буксировку, лоцманскую проводку, стоянку, уборку и очистку транспортных средств, навигационную поддержку, авиадиспетчерские и прочие портовые и аналогичные сборы, погрузочно-разгрузочные работы, а также товары, доставляемые на транспортное средство (топливо, продовольствие, бортовые запасы, балласт и крепежные материалы)."]
[1,6,"Трансферты на инвестиционные цели (строки 160, 190) включают гранты (в денежной и натуральной форме) на приобретение основных фондов и преимущественно связаны с конкретными инвестиционными проектами (например, крупными строительными проектами)."]
[1,6,"Компенсационные выплаты в связи с нанесением ущерба капитальным активам и другими повреждениями (строки 170, 200) включают платежи в счет компенсации ущерба, нанесенного разливами нефти, сильными взрывами и так далее."]
[1,6,"10. Чистая прибыль (убыток) нерезидента, приходящаяся на долю участия организации по коду строки 340 части Б раздела 2, рассчитывается следующим образом: чистая прибыль (убыток) иностранного юридического лица за отчетный период после уплаты налогов умножается на долю участия организации в капитале этого юридического лица, отраженную по коду строки 270 части Б раздела 2."]
[1,6,"Если такой подход применяется к иностранному инвестиционному фонду, организованному не в форме юридического лица, то осуществляется аналогичный расчет чистой прибыли (убытка) иностранного инвестиционного фонда, приходящейся на долю участия организации респондента в этом инвестиционном фонде."]
[1,6,"11. Для отражения наличных евро по строкам 560-600 части В раздела 2 в графах «Наименование стран-партнеров» указываются «Другие страны»."]
[1,6,"12. Исключение из части Г раздела 2 официальных внешних займов и еврооблигаций Правительства Республики Казахстан произведено в связи с наличием статистической формы ведомственного статистического наблюдения «Отчет о внешних государственных, гарантированных государством займах и займах, привлеченных под поручительство Республики Казахстан» (индекс 14-ПБ)."]
[1,6,"13. Статистическая форма представляется на бумажном носителе либо электронным способом посредством автоматизированной информационной подсистемы «Веб-портал НБ РК» с соблюдением процедур подтверждения электронной цифровой подписью. При представлении статистической формы разными способами датой представления считается ранняя из дат."]
[1,6,"При представлении статистической формы на бумажных носителях допускается представление только тех разделов (частей) статистической формы, по которым заполнена информация. При этом в содержании статистической формы указывается наличие заполненных разделов (частей)."]
[1,6,"Корректировки (исправления, дополнения) в статистическую форму вносятся в течение 6 (шести) месяцев после завершения отчетного периода."]
[1,6]
[1,6,"Глава 3. Арифметико-логический контроль"]
[1,6]
[1,6,"14. Арифметико-логический контроль:"]
[1,6,"1) Раздел 1. Услуги и трансферты, полученные от нерезидентов (предоставленные нерезидентам):"]
[1,6,"графа 1 = сумме граф 2 + …+ n для каждой строки;"]
[1,6,"часть Б. строка 110 = 111 + 117 для каждой графы;"]
[1,6,"2) Раздел 2. Финансовые требования к нерезидентам и обязательства перед ними:"]
[1,6,"графа 1 = сумме граф 2 +…..+ n для каждой строки;"]
[1,6,"строки 230, 300, 390, 450, 510, 560, 620, 690, 750, 810 отчетного периода = строкам 270, 350, 440, 500, 550, 600, 670, 740, 800, 860 предыдущего периода;"]
[1,6,"часть А. строка 270 = 230 + 240 – 245 + 250 + 260 для каждой графы;"]
[1,6,"часть Б. строка 350 = 300 + 310 – 320 + 330 + 340 для каждой графы;"]
[1,6,"часть В. строка 440 = 390 + 400 – 410 + 420 + 430 для каждой графы;"]
[1,6,"часть В. строка 500= 450 + 460 – 470 + 480 + 490 для каждой графы;"]
[1,6,"часть В. строка 550 = 510 + 520 – 530 + 540 для каждой графы;"]
[1,6,"часть В. строка 600 = 560 + 570 – 580 + 590 для каждой графы;"]
[1,6,"часть В. строка 670 = 620 + 630 – 640 + 650 + 660 для каждой графы;"]
[1,6,"часть В. строка 740 = 690 + 700 – 710 + 720 + 730 для каждой графы;"]
[1,6,"часть Г. строка 800 = 750 + 760 – 770 + 780 + 790 для каждой графы;"]
[1,6,"часть Г. строка 860 = 810 + 820 – 830 + 840 + 850 для каждой графы."]
[1,7,"Приложение \nк форме отчета о международных\n операциях с нерезидентами"]
[1,7]
[1,7,"Пояснение по заполнению статистической формы ведомственного статистического наблюдения"]
[1,7]
[1,7,"«Отчет о международных операциях с нерезидентами»\n(индекс 10-ПБ, периодичность квартальная)"]
[1,7]
[1,7,"Глава 1. Общие положения"]
[1,7]
[1,7,"1. Настоящее пояснение определяет единые требования по заполнению статистической формы ведомственного статистического наблюдения «Отчет о международных операциях с нерезидентами» (индекс 10-ПБ, периодичность квартальная) (далее – статистическая форма)."]
[1,7,"2. Статистическая форма разработана в соответствии с подпунктом 2-1) части первой статьи 13 Закона Республики Казахстан «О государственной статистике»."]
[1,7,"3. Статистическую форму представляют ежеквартально юридические лица, включенные в перечень респондентов. Перечень респондентов на предстоящий год формируется Национальным Банком Республики Казахстан и размещается на официальном интернет-ресурсе Национального Банка Республики Казахстан."]
[1,7,"4. Информация, запрашиваемая в данной статистической форме, предназначена для составления платежного баланса Республики Казахстан."]
[1,7,"5. Статистическую форму подписывает руководитель, главный бухгалтер или лица, уполномоченные на подписание отчета, и исполнитель."]
[1,7]
[1,7,"Глава 2. Заполнение статистической формы"]
[1,7]
[1,7,"6. При заполнении статистической формы применяются следующие определения:"]
[1,7,"1) резиденты:"]
[1,7,"физические лица, проживающие в Республике Казахстан более одного года, независимо от гражданства, и граждане Республики Казахстан, временно находящиеся вне его территории менее одного года. Граждане Республики Казахстан, находящиеся за рубежом в целях государственной службы, образования и лечения, являются резидентами независимо от сроков их пребывания на территории других стран;"]
[1,7,"юридические лица, находящиеся на территории Республики Казахстан, за исключением международных организаций, иностранных посольств, консульств и других дипломатических и официальных представительств;"]
[1,7,"организации, созданные без образования юридического лица в соответствии с законодательством Республики Казахстан;"]
[1,7,"казахстанские посольства, консульства и другие дипломатические и официальные представительства, находящиеся за пределами Республики Казахстан;"]
[1,7,"находящиеся на территории Республики Казахстан филиалы и представительства юридических лиц, указанных в абзаце третьем настоящего подпункта и абзаце третьем подпункта 2) настоящего пункта;"]
[1,7,"2) нерезиденты:"]
[1,7,"физические лица, проживающие за границей более одного года, независимо от гражданства, и иностранные граждане, находящиеся на территории Республики Казахстан менее одного года. Граждане иностранных государств, находящиеся в целях государственной службы, образования и лечения, являются нерезидентами независимо от сроков их пребывания на территории республики. Граждане иностранных государств, привлеченные на работу в Казахстане вахтовым методом, являются нерезидентами независимо от сроков их пребывания на территории республики;"]
[1,7,"юридические лица, находящиеся на территории других государств, за исключением посольств, консульств и других дипломатических и официальных представительств Республики Казахстан;"]
[1,7,"находящиеся на территории Республики Казахстан международные организации, иностранные посольства, консульства и другие иностранные дипломатические и официальные представительства;"]
[1,7,"находящиеся на территории других государств филиалы и представительства юридических лиц, указанных в абзаце третьем подпункта 1) настоящего пункта и абзаце третьем настоящего подпункта."]
[1,7,"7. Стоимость операций отражается на момент ее начисления (на дату фактического осуществления операций), а не по времени фактической оплаты. Датой фактического оказания услуг (работ) считается дата подписания акта приемки выполненных услуг (работ). В случае, если договором не предусмотрено составление актов приемки выполненных услуг (работ), датой предоставления услуг считается дата выставления счета-фактуры (инвойса)."]
[1,7,"8. Все операции отражаются в тысячах долларов Соединенных Штатов Америки (далее – США). Операции в иных иностранных валютах переводятся сначала в тенге, а затем в доллары США. Для конвертации используются рыночные курсы обмена валют, применяемые в целях формирования финансовой отчетности в соответствии с законодательством Республики Казахстан. При этом для конвертации операций используются соответствующие курсы на дату совершения операций. Суммы, выраженные в тенге, переводятся также в доллары США на дату совершения операций."]
[1,7,"9. Все операции отражаются в разбивке по странам-партнерам, начиная с графы 2 статистической формы и далее. Если количество стран-партнеров превышает имеющееся в статистической форме количество граф, добавляются недостающие графы на дополнительных листах."]
[1,7,"По стране указывается двухбуквенный код страны согласно национальному классификатору Республики Казахстан НК РК 06 ISО 3166-1-2016 «Коды для представления названий стран и единиц их административно-территориальных подразделений. Часть 1. Коды стран»."]
[1,7,"Операции с международными организациями отражаются в графе «Международные организации»."]
[1,7,"10. Описание отдельных показателей статистической формы:"]
[1,7,"строительные услуги (строки 10, 18, 19, 110) охватывают все товары и услуги, которые являются неотделимой частью строительных контрактов, включающих подготовку строительного участка, строительство объектов, монтаж сборных конструкций и оборудования. Включают бурение и постройку водных скважин, и другие строительные услуги, такие как аренда строительного или демонтажного оборудования с оператором, управление строительным проектом, строительный ремонт;"]
[1,7,"финансовые услуги (строки 20, 120) включают комиссионное вознаграждение посредников по финансовым сделкам (за исключением услуг страховых компаний и пенсионных фондов), в том числе: комиссию по кредитам, комиссию профучастников рынка ценных бумаг. Включают также другие вспомогательные финансовые услуги (финансовые консультации, управление финансовыми активами, услуги кредитного рейтинга). Вознаграждение по депозитам, кредитам, ссудам и займам в финансовые услуги не включаются;"]
[1,7,"телекоммуникационные услуги (строки 21, 121) охватывают передачу звука, изображения или другой информации с помощью телефона, телетайпа, телеграфа, радиовещания, спутниковой связи, электронной почты, факса, а также включают деловые сетевые услуги, телеконференции, сопутствующие услуги, интернет и доступ к нему. Телекоммуникационные услуги не включают стоимость передаваемой информации, услуги по установке телефонной сети (строительные услуги), компьютерные услуги, а также доступ и использование информации базы данных;"]
[1,7,"страховые услуги (строки 130, 131, 132, 133, 134, 135) охватывают обеспечение различными видами страховых услуг страховыми компаниями, а также дополнительные услуги по страхованию, такие как комиссионные страховых агентов, консультации по страхованию и пенсионному обеспечению;"]
[1,7,"компьютерные услуги (строки 30, 140) включают: продажу (приобретение) заказного и незаказного (массового производства) программного обеспечения и связанных с этим лицензий; установку технических средств и программного обеспечения; консалтинг в области компьютерной техники и программного обеспечения; ремонт и техническое обслуживание компьютеров и периферийных устройств, обработку данных и их размещение на сервере; покупку и продажу оригиналов и прав собственности на системное и прикладное программное обеспечение. В компьютерные услуги не включаются: плата за лицензии на воспроизводство и (или) распространение программного обеспечения (использование интеллектуальной собственности), не разработанные для конкретного пользователя учебные компьютерные курсы (услуги частным лицам в сфере культуры и отдыха);"]
[1,7,"информационные услуги (строки 40, 150) включают предоставление новостей, фотографий и статей средствам массовой информации; создание, хранение и распространение баз данных; прямую индивидуальную подписку на периодические издания с доставкой по почте и иными способами; услуги библиотек и архивов;"]
[1,7,"почтовые услуги и услуги курьерской связи (строки 45, 155) включают сбор, транспортировку и доставку писем, периодических печатных изданий, посылок и бандеролей;"]
[1,7,"услуги по переработке товаров (строки 50, 160) включают обработку, сборку материальных ресурсов. К данным услугам относятся: переработка сырой нефти, природного газа, металлических руд и концентратов; пошив одежды, сборка электроники и другие виды сборки, за исключением сборки готовых строительных конструкций (строительные услуги);"]
[1,7,"услуги по ремонту и техническому обслуживанию (строки 60; 170) включают капитальный и текущий ремонт и техническое обслуживание морских и воздушных судов и других транспортных средств, а также других товаров, за исключением строительного ремонта, ремонта компьютеров, ремонта нефтяных и газовых скважин, а также чистки и уборки транспортных средств (прочие транспортные услуги);"]
[1,7,"плата за использование интеллектуальной собственности (строки 70, 180) включает плату за пользование правами собственности (такими как патенты, авторские права, торговые марки, технологические процессы, дизайн и так далее), а также плату за лицензии на воспроизводство и (или) распространение произведенных оригиналов и прототипов (таких как книги и рукописи, компьютерное программное обеспечение, кинематографические работы, звукозаписи и так далее);"]
[1,7,"научно-исследовательские работы и опытно-конструкторские разработки (далее – НИОКР) (строки 81, 191) охватывают фундаментальные и прикладные исследования в области естественных и гуманитарных наук, опытные разработки новых продуктов и технологий, разработку операционных систем, представляющих собой технические нововведения, а также покупку и продажу результатов НИОКР (таких как патенты, авторские права, технологические процессы);"]
[1,7,"юридические услуги (строки 82, 192) включают юридические советы и консультации; предоставление услуг в юридических, судебных и законодательных процессах; оказание оперативной помощи фирмам; подготовка юридической документации; услуги арбитража;"]
[1,7,"бухгалтерские, аудиторские услуги (строки 83, 193) охватывают консультационные услуги по бухгалтерскому учету, счетоводству, аудиту и налогообложению, составление финансовой отчетности;"]
[1,7,"услуги по консультации бизнеса и управления (строки 84, 194) охватывают общие управленческие консультации, финансовый менеджмент, кадровый менеджмент, производственный менеджмент и другие управленческие консультации; консультации, руководство и оперативную помощь в вопросах бизнес политики и стратегии; услуги по связям с общественностью. Исключается руководство строительным проектом (строительные услуги);"]
[1,7,"услуги в области рекламы и изучения конъюнктуры рынка (строки 85, 195) включают проектирование, создание и маркетинг рекламы посредством рекламных агентств; размещение рекламы в средствах массовой информации, включая покупку и продажу рекламного времени; организацию выставок и торговых ярмарок; рекламирование товаров за рубежом; маркетинговые исследования; проведение опросов общественного мнения по различным проблемам;"]
[1,7,"архитектурные, инженерные и прочие технические услуги (строки 86, 196) включают разработку архитектурных и строительных проектов; геологическую разведку и изыскания, картографию; метеорологические услуги; проверку и сертификацию качества продукции, технические испытания и анализы, технический контроль; инженерные консультации и консультации по окружающей среде. Горнодобывающая инженерия отражается в услугах, связанных с добычей полезных ископаемых;"]
[1,7,"переработка отходов и очистка окружающей среды (строки 87, 197) включает переработку радиоактивных и других отходов; услуги, связанные с очисткой и реставрацией окружающей среды; санитарные услуги;"]
[1,7,"услуги в области сельского хозяйства (строки 88, 198) включают услуги по выращиванию сельскохозяйственных культур (защита растений от болезней и вредителей, повышение урожайности); лесоводству и рыболовству;"]
[1,7,"операционный лизинг (аренда) оборудования без персонала (строки 89, 199) охватывает аренду оборудования без персонала, аренду транспортных средств без экипажа, аренду недвижимости, включая аренду подвижных буровых платформ и плавучих судов для добычи, хранения и выгрузки. Исключаются финансовый лизинг, аренда телекоммуникационных линий или мощностей (телекоммуникационные услуги), аренда транспортных средств с экипажем (грузовые или пассажирские перевозки);"]
[1,7,"связанные с торговлей услуги (строки 90, 200) включают комиссионное вознаграждение по операциям с товарами и услугами, подлежащее выплате трейдерам, брокерам биржевых товаров, дилерам, аукционистам. Исключаются брокерские услуги по финансовым инструментам (финансовые услуги) и комиссионное вознаграждение агентов, связанное с грузовыми и пассажирскими перевозками (прочие транспортные услуги);"]
[1,7,"прочие деловые услуги (строки 91, 201) включают услуги по распределению электроэнергии, воды, газа и так далее; подбор кадров, охрану, устный и письменный перевод, фотографические услуги, уборку помещений, организацию питания, риэлтерские услуги, издательские услуги, ветеринарные услуги и другие деловые услуги, которые не включены в вышеперечисленные услуги;"]
[1,7,"услуги в области добычи полезных ископаемых (строки 92, 202) включают услуги, связанные с добычей нефти, газа и других полезных ископаемых, включая буровые работы (бурение, постройка буровых вышек, ремонт, демонтаж и цементирование нефтяных и газовых скважин; горнодобывающая инженерия);"]
[1,7,"услуги частным лицам и услуги в сфере культуры и отдыха (строки 100; 210) охватывают услуги, связанные с производством фильмов, радио и телепрограмм и записью музыкальных произведений; оплату труда актеров, режиссеров и так далее в связи с гастролями, созданием театральных постановок, музыкальных, спортивных и цирковых программ; плату за аренду видео- и звукозаписей, за право пользования (демонстрации) видео- и звукозаписями, за доступ к телеканалам; платежи и поступления от проката; покупку и продажу оригиналов и массового производства рукописей, видео- и звукозаписей; услуги, связанные с работой музеев, библиотек, архивов; услуги по организации спортивных мероприятий; услуги преподавателей и медицинских работников за пределами своей страны, включая услуги, предоставляемые дистанционно;"]
[1,7,"услуги пассажирского транспорта (строки 231, 236, 261) включают услуги транспортных организаций по перевозке пассажиров с учетом стоимости провоза избыточного багажа (сверх установленной нормы провоза) и другого принадлежащего пассажиру имущества; аренду транспортных средств с экипажем для перевозки пассажиров;"]
[1,7,"услуги грузового транспорта (строки 350, 370, 373, 376) включают услуги транспортных организаций по перевозке грузов;"]
[1,7,"вспомогательные транспортные услуги (строки 241, 251, 265) включают погрузочно-разгрузочные работы, хранение и складирование, упаковку, вспомогательное обслуживание транспортных средств, комиссионное вознаграждение агентов, связанное с грузовыми и пассажирскими перевозками; услуги по экспедированию грузов;"]
[1,7,"операции с нематериальными активами (строки 380, 390) включают продажу и приобретение маркетинговых активов, таких как названия брендов, заголовки периодических изданий, торговые марки, логотипы и имена доменов; плату за трансферт за переход спортсмена из одного клуба в другой;"]
[1,7,"аренда природных ресурсов (строки 400, 410) включает плату за предоставление во временное пользование природных ресурсов, таких как земля, леса, заповедники, водоемы; за предоставление права на добычу полезных ископаемых и ловлю рыбы; за право пролета над территорией;"]
[1,7,"заработная плата работников-нерезидентов (строки 530, 540) включает оплату труда в денежной и натуральной форме иностранных работников, нанятых на работу на срок менее года, и иностранных работников, привлеченных на работу вахтовым методом. Заработная плата в натуральной форме состоит из выплат в форме товаров и услуг, таких как питание, жилье, транспортные средства, бесплатный проезд, перевозка на работу и с работы, услуги спортивных центров и домов отдыха, опционы на акции;"]
[1,7,"прочие текущие трансферты (строки 580, 590) включают выплаты компенсаций за нанесенные травмы или ущерб имуществу, которые не являются выплатами страховых возмещений, а также дарения и пожертвования, не связанные с финансированием накопления основного капитала;"]
[1,7,"капитальные трансферты (строки 600, 610) включают компенсационные выплаты за нанесение масштабного ущерба капитальным активам (например, в связи с разливом нефти, сильными взрывами, побочными эффектами от фармацевтической продукции и так далее), а также крупные подарки и пожертвования на цели финансирования накопления основного капитала, например, дарения университетам на покрытие расходов по строительству новых учебных помещений."]
[1,7,"11. Услуги здравоохранения, оказанные нерезидентам (строки 221, 222) заполняется акционерным обществом «Фонд социального медицинского страхования» в целом по Казахстану."]
[1,7,"Если услуги здравоохранения получены от нерезидентов через Корпоративный Фонд University Medical Center, то строки 216, 217 заполняются Корпоративным Фондом University Medical Center, в противном случае - строки 216, 217 заполняется респондентом самостоятельно."]
[1,7,"12. В комментариях к отчету приводятся:"]
[1,7,"1) краткое описание прочих видов услуг, требующих расшифровки (строки 109, 219, 271, 275, 330, 373, 376);"]
[1,7,"2) информация, которую респондент считает необходимым отразить."]
[1,7,"13. Статистическая форма представляется на бумажном носителе либо электронным способом посредством автоматизированной информационной подсистемы «Веб-портал НБ РК» с соблюдением процедур подтверждения электронной цифровой подписью. При представлении статистической формы разными способами датой представления считается ранняя из дат."]
[1,7,"При представлении статистической формы на бумажных носителях допускается представление только тех разделов (частей) статистической формы, по которым заполнена информация. При этом в содержании статистической формы указывается наличие заполненных разделов (частей)."]
[1,7,"Корректировки (исправления, дополнения) в статистическую форму вносятся в течение 6 (шести) месяцев после завершения отчетного периода."]
[1,7]
[1,7,"Глава 3. Арифметико-логический контроль"]
[1,7]
[1,7,"14. Арифметико-логический контроль:"]
[1,7,"1) Раздел 1, часть А. «Услуги, оказанные нерезидентам»:"]
[1,7,"строка 10 = сумме строк 11 + 12 + 13 + 14 + 15 + 16 + 17 для каждой графы;"]
[1,7,"строка 21 = сумме строк 22 + 23 + 24 + 25 + 26 + 27 + 28 для каждой графы;"]
[1,7,"строка 30 = сумме строк 31 + 32 + 33 для каждой графы;"]
[1,7,"строка 40 = сумме строк 41+ 42 для каждой графы;"]
[1,7,"строка 60 = сумме строк 61 + 62 + 63 + 64 для каждой графы;"]
[1,7,"строка 70 = сумме строк 71 + 72 + 73 + 74 + 75 для каждой графы;"]
[1,7,"строка 80 = сумме строк 81 + 82 + 83 + 84 + 85 + 86 + 87 + 88 + 89 + 90 + 91 + 92 для каждой графы;"]
[1,7,"строка 100 = сумме строк 101 +102 +103 +104 +105 + 108 для каждой графы;"]
[1,7,"2) Раздел 1, часть Б. «Услуги, полученные от нерезидентов»:"]
[1,7,"строка 110 = сумме строк 111 + 112 для каждой графы;"]
[1,7,"строка 121 = сумме строк 122 + 123 + 124 + 125 + 126 + 127 для каждой графы;"]
[1,7,"строка 140 = сумме строк 141 + 142 + 143 для каждой графы;"]
[1,7,"строка 150 = сумме строк 151 + 152 для каждой графы;"]
[1,7,"строка 170 = сумме строк 171 + 172 + 173 + 174 для каждой графы;"]
[1,7,"строка 180 = сумме строк 181 + 182 + 183 + 184 + 185 для каждой графы;"]
[1,7,"строка 190 = сумме строк 191 + 192 + 193 + 194 + 195 + 196 + 197 + 198 + 199 + 200 + 201 + 202 для каждой графы;"]
[1,7,"строка 210 = сумме строк 211 + 212 + 213 + 214 + 215 + 216 + 217 + 218 для каждой графы;"]
[1,7,"3) Раздел 1, часть В. «Услуги здравоохранения, предоставленные нерезидентам (заполняется акционерным обществом «Фонд социального медицинского страхования» в целом по Казахстану):"]
[1,7,"строка 221 = сумме строк 221/11 +221/15 + 221/19 + 221/23 + 221/27 + 221/31 + 221/35 + 221/39 + 221/43 + 221/47 + 221/55 + 221/59 + 221/61 + 221/63 + 221/71 + 221/71 + 221/75 + 221/79 для каждой графы;"]
[1,7,"строка 222 = сумме строк 222/11 +222/15 + 222/19 + 222/23 + 222/27 + 222/31 + 222/35 + 222/39 + 222/43 + 222/47 + 222/55 + 222/59 + 222/61 + 222/63 + 222/71 + 222/71 + 222/75 + 222/79 для каждой графы;"]
[1,7,"4) Раздел 2. «Услуги пассажирского транспорта и вспомогательные транспортные услуги»:"]
[1,7,"строка 231 = сумме строк 232 + 233 + 234 + 235 для каждой графы;"]
[1,7,"строка 236 = сумме строк 237 + 238 + 239 для каждой графы;"]
[1,7,"строка 241 = сумме строк 242 + 243 + 244 + 245 для каждой графы;"]
[1,7,"строка 251 = сумме строк 252 + 253 + 254 + 257 + 258 для каждой графы;"]
[1,7,"строка 254 = сумме строк 255 + 256 для каждой графы;"]
[1,7,"строка 261 = сумме строк 262 + 263 + 264 для каждой графы;"]
[1,7,"строка 265 = сумме строк 266 + 267 + 268 для каждой графы;"]
[1,7,"5) Раздел 3. «Товары и услуги, оказанные находящимся в Казахстане международным организациям, иностранным посольствам, консульствам и другим иностранным дипломатическим и официальным представительствам»:"]
[1,7,"строка 320 = сумме строк 321 + 322 для каждой графы;"]
[1,7,"6) Раздел 4. «Услуги грузового транспорта (без учета страхования грузов)»:"]
[1,7,"строка 350 = сумме строк 351 + 352 для каждой графы;"]
[1,7,"строка 370 = сумме строк 371 + 372 для каждой графы;"]
[1,7,"7) Для всех частей (разделов):"]
[1,7,"графа 1 = сумме граф 2 + 3 +…+ n для всех строк."]
[1,8,"Приложение "]
[1,8,"к форме отчета о страховании (перестраховании)"]
[1,8," нерезидентов и перестраховании рисков"]
[1,8," у нерезидентов по отрасли"]
[1,8," «общее страхование»"]
[1,8,"  "]
[1,8,"Пояснение по заполнению статистической формы ведомственного статистического наблюдения"]
[1,8]
[1,8,"«Отчет о страховании (перестраховании) нерезидентов и перестраховании рисков у нерезидентов по отрасли «общее страхование»"]
[1,8," (индекс 11-ПБ-ОС, периодичность квартальная)"]
[1,8]
[1,8,"Глава 1. Общие положения "]
[1,8]
[1,8,"1. Настоящее пояснение определяет единый требования по заполнению статистической формы ведомственного статистического наблюдения «Отчет о страховании (перестраховании) нерезидентов и перестраховании рисков у нерезидентов по отрасли «общее страхование» (индекс 11-ПБ-OC, периодичность квартальная) (далее – статистическая форма)."]
[1,8,"2. Статистическая форма разработана в соответствии с подпунктом 2-1) части первой статьи 13 Закона Республики Казахстан «О государственной статистике»."]
[1,8,"3. Статистическая форма представляется ежеквартально страховыми организациями, филиалами страховых (перестраховочных) организаций – нерезидентов осуществляющими свою деятельность на основании лицензии на право осуществления страховой (перестраховочной) деятельности по отрасли «общее страхование». "]
[1,8,"4. Информация, запрашиваемая в статистической форме, предназначена для составления статистики внешнего сектора Республики Казахстан."]
[1,8,"5. Статистическую форму подписывает руководитель, главный бухгалтер или лица, уполномоченные на подписание отчета, и исполнитель. "]
[1,8]
[1,8,"Глава 2. Заполнение статистической формы"]
[1,8]
[1,8,"6. При заполнении статистической формы применяются следующие определения:"]
[1,8,"1) резиденты:"]
[1,8,"физические лица, проживающие в Республике Казахстан более одного года, независимо от гражданства, и граждане Республики Казахстан, временно находящиеся вне его территории менее одного года. Граждане Республики Казахстан, находящиеся за рубежом в целях государственной службы, образования и лечения, являются резидентами независимо от сроков их пребывания на территории других стран;"]
[1,8,"юридические лица, находящиеся на территории Республики Казахстан, за исключением международных организаций, иностранных посольств, консульств и других дипломатических и официальных представительств;"]
[1,8,"казахстанские посольства, консульства и другие дипломатические и официальные представительства, находящиеся за пределами Республики Казахстан;"]
[1,8,"находящиеся на территории Республики Казахстан филиалы и представительства юридических лиц, указанных в абзаце третьем настоящего подпункта и абзаце третьем подпункта 2) настоящего пункта;"]
[1,8,"2) нерезиденты:"]
[1,8,"физические лица, проживающие за границей более одного года, независимо от гражданства, и иностранные граждане, находящиеся на территории Республики Казахстан менее одного года. Граждане иностранных государств, находящиеся в целях государственной службы, образования и лечения, являются нерезидентами независимо от сроков их пребывания на территории республики;"]
[1,8,"юридические лица, находящиеся на территории других государств, за исключением посольств, консульств и других дипломатических и официальных представительств Республики Казахстан;"]
[1,8,"находящиеся на территории Республики Казахстан международные организации, иностранные посольства, консульства и другие иностранные дипломатические и официальные представительства;"]
[1,8,"находящиеся на территории других государств филиалы и представительства юридических лиц, указанных в абзаце третьем подпункта 1) настоящего пункта и абзаце третьем настоящего подпункта."]
[1,8,"7.  В статистической форме отражается информация, относящаяся к операциям платежного баланса в области страховой (перестраховочной) деятельности, а также остатки по резервам страховых (перестраховочных) организаций для международной инвестиционной позиции и внешнего долга страны:"]
[1,8,"1) по прямому страхованию нерезидентов – о деятельности и связанных с ней отношениях, возникающих в связи с принятием страховых рисков по договору страхования (раздел 1);"]
[1,8,"2) по перестрахованию нерезидентов (входящее перестрахование) – о деятельности и связанных с ней отношениях, возникающих в связи с принятием части страховых рисков в соответствии с заключенным договором перестрахования (раздел 2);"]
[1,8,"3) по перестрахованию нерезидентами (исходящее перестрахование) – о деятельности и связанных с ней отношениях, возникающих в связи с передачей части страховых рисков в перестрахование в соответствии с заключенным договором перестрахования (раздел 3)."]
[1,8,"8. Все операции за отчетный период, перечисленные в частях 1.1, 2.1, 3.1, 4,1 статистической формы (коды строк 11100, 11200, 11210, 11300, 12100, 12200, 12210, 12300, 12400, 12440, 12450, 13100, 13200, 13400, 13440, 13450, 14400), отражаются в соответствии с методом начисления."]
[1,8,"Крупные страховые выплаты (коды строк 11210, 12210) включают выплаты по отдельному заключенному договору страхования (перестрахования) превышающие 25 процентов от суммы активов страховой (перестраховочной) организации, за вычетом активов, являющихся долей перестраховщика в страховых резервах."]
[1,8,"В доходах от инвестирования (коды строк 11300, 12300) отражаются доходы, начисленные к получению в отчетном периоде от инвестирования в финансовые активы страховых резервов по договорам входящего страхования (перестрахования) с нерезидентами по соответствующим странам."]
[1,8,"9. В разделе 4 указывается комиссия, выплаченная страховому брокеру-нерезиденту или страховому агенту-нерезиденту за полученные услуги. К таким услугам относятся посредническая деятельность по страхованию (перестрахованию), консультационная деятельность, услуги по стоимостной оценке и урегулированию убытков, административные услуги по обеспечению спасательных работ, услуги по регулированию и мониторингу в отношении страховых выплат, прочие вспомогательные услуги, связанные со страховой деятельностью."]
[1,8,"10. Все суммы отражаются в тысячах долларов Соединенных Штатов Америки (далее – США) с точностью до одного знака после запятой."]
[1,8,"Суммы, выраженные в тенге, переводятся в доллары США. Суммы, выраженные в иных иностранных валютах, переводятся сначала в тенге, а затем в доллары США."]
[1,8,"Для конвертации используются рыночные курсы обмена валют, применяемые в целях формирования финансовой отчетности. При этом для конвертации операций используются соответствующие курсы на дату совершения операций, для доходов и комиссионных - средневзвешенные курсы за отчетный период, для остатков на начало и конец квартала - курсы на соответствующую дату."]
[1,8,"11. Все операции отражаются в разбивке по странам партнеров (страхователей, перестрахователей, перестраховщиков, брокеров, агентов). Наименования стран указываются в графах с 2 по 10 разделов 1- 4. Если количество стран партнеров респондента превышает имеющееся в разделах формы количество граф, добавляются недостающие графы."]
[1,8,"12. Остатки по страховым резервам на начало отчетного периода равны их остаткам на конец предыдущего периода и заполняются в следующей разбивке:"]
[1,8,"1) по страхованию объектов прямого инвестирования – объектов, в отношении которых респондент является прямым инвестором;"]
[1,8,"2) по страхованию прямых инвесторов – лиц, владеющих (напрямую или косвенно) десятью и более процентами голосующих акций. Прямыми инвесторами являются физические лица (домашние хозяйства), юридические лица, международные организации, а также иные субъекты без образования юридического лица;"]
[1,8,"3) по страхованию сестринских компаний – организаций, которые имеют общего с респондентом прямого инвестора, но ни данная организация, ни респондент не обладают 10 процентами или более инструментов участия в капитале друг друга."]
[1,8,"13. Статистическая форма представляется электронным способом посредством автоматизированной информационной подсистемы «Веб-портал НБ РК» с соблюдением процедур подтверждения электронной цифровой подписью."]
[1,8,"Корректировки (исправления, дополнения) в статистическую форму вносятся в течение 6 (шести) месяцев после завершения отчетного периода."]
[1,8]
[1,8,"Глава 3. Арифметико-логический контроль"]
[1,8]
[1,8,"14. Арифметико-логический контроль:"]
[1,8,"строка 11520 = строка 11530 статистической формы за предыдущий период для каждой графы;"]
[1,8,"строка 11521 = строка 11531 статистической формы за предыдущий период для каждой графы;"]
[1,8,"строка 11522 = строка 11532 статистической формы за предыдущий период для каждой графы;"]
[1,8,"строка 11523 = строка 11533 статистической формы за предыдущий период для каждой графы;"]
[1,8,"строка 11524 = строка 11534 статистической формы за предыдущий период для каждой графы;"]
[1,8,"строка 11620 = строка 11630 статистической формы за предыдущий период для каждой графы;"]
[1,8,"строка 11621 = строка 11631 статистической формы за предыдущий период для каждой графы;"]
[1,8,"строка 11622 = строка 11632 статистической формы за предыдущий период для каждой графы;"]
[1,8,"строка 11623 = строка 11633 статистической формы за предыдущий период для каждой графы;"]
[1,8,"строка 11624 = строка 11634 статистической формы за предыдущий период для каждой графы;"]
[1,8,"строка 12520 = строка 12530 статистической формы за предыдущий период для каждой графы;"]
[1,8,"строка 12521 = строка 12531 статистической формы за предыдущий период для каждой графы;"]
[1,8,"строка 12522 = строка 12532 статистической формы за предыдущий период для каждой графы;"]
[1,8,"строка 12523 = строка 12533 статистической формы за предыдущий период для каждой графы;"]
[1,8,"строка 12524 = строка 12534 статистической формы за предыдущий период для каждой графы;"]
[1,8,"строка 12620 = строка 12630 статистической формы за предыдущий период для каждой графы;"]
[1,8,"строка 12621 = строка 12631 статистической формы за предыдущий период для каждой графы;"]
[1,8,"строка 12622 = строка 12632 статистической формы за предыдущий период для каждой графы;"]
[1,8,"строка 12623 = строка 12633 статистической формы за предыдущий период для каждой графы;"]
[1,8,"строка 12624 = строка 12634 статистической формы за предыдущий период для каждой графы;"]
[1,8,"строка 12400 = строка 12440 + строка 12450 для каждой графы;"]
[1,8,"строка 13400 = строка 13440 + строка 13450 для каждой графы;"]
[1,8,"строка 11520 = строка 11521 + строка 11522 + строка 11523 + + строка 11524 для каждой графы;"]
[1,8,"строка 11530 = строка 11531 + строка 11532 + строка 11533 + + строка 11534 для каждой графы;"]
[1,8,"строка 11620 = строка 11621 + строка 11622 + строка 11623 + + строка 11624 для каждой графы;"]
[1,8,"строка 11630 = строка 11631 + строка 11632 + строка 11633 + + строка 11634 для каждой графы;"]
[1,8,"строка 12520 = строка 12521 + строка 12522 + строка 12523 + + строка 12524 для каждой графы;"]
[1,8,"строка 12530 = строка 12531 + строка 12532 + строка 12533 + + строка 12534 для каждой графы;"]
[1,8,"строка 12620 = строка 12621 + строка 12622 + строка 12623 + + строка 12624 для каждой графы;"]
[1,8,"строка 12630 = строка 12631 + строка 12632 + строка 12633 + + строка 12634 для каждой графы. "]
[1,8.5,"Приложение "]
[1,8.5,"к форме отчета о страховании (перестраховании)"]
[1,8.5,"нерезидентов и перестраховании рисков"]
[1,8.5," у нерезидентов по отрасли"]
[1,8.5," «страхование жизни"]
[1,8.5,"  "]
[1,8.5,"Пояснение по заполнению статистической формы ведомственного статистического наблюдения"]
[1,8.5]
[1,8.5,"«Отчет о страховании (перестраховании) нерезидентов и перестраховании рисков у нерезидентов по отрасли «страхование жизни»"]
[1,8.5," (индекс 11-ПБ-СЖ, периодичность квартальная)"]
[1,8.5]
[1,8.5,"Глава 1. Общие положения"]
[1,8.5," "]
[1,8.5,"1. Настоящее пояснение определяет единые требования по заполнению статистической формы ведомственного статистического наблюдения «Отчет о страховании (перестраховании) нерезидентов и перестраховании рисков у нерезидентов по отрасли «страхование жизни» (индекс 11-ПБ-CЖ, периодичность квартальная) (далее – статистическая форма)."]
[1,8.5,"2. Статистическая форма разработана в соответствии с подпунктом 2-1) части первой статьи 13 Закона Республики Казахстан «О государственной статистике»."]
[1,8.5,"3. Статистическая форма представляется ежеквартально страховыми организациями, филиалами страховых (перестраховочных) организаций – нерезидентов осуществляющие свою деятельность на основании лицензии на осуществление деятельности по отрасли «страхование жизни»."]
[1,8.5,"4. Информация, запрашиваемая в статистической форме, предназначена для составления статистики внешнего сектора Республики Казахстан."]
[1,8.5,"5. Статистическую форму подписывает руководитель, главный бухгалтер или лица, уполномоченные на подписание отчета, и исполнитель."]
[1,8.5]
[1,8.5,"Глава 2. Заполнение статистической формы"]
[1,8.5]
[1,8.5,"6. При заполнении статистической формы применяются следующие определения:"]
[1,8.5,"1) резиденты:"]
[1,8.5,"физические лица, проживающие в Республике Казахстан более одного года, независимо от гражданства, и граждане Республики Казахстан, временно находящиеся вне его территории менее одного года. Граждане Республики Казахстан, находящиеся за рубежом в целях государственной службы, образования и лечения, являются резидентами независимо от сроков их пребывания на территории других стран;"]
[1,8.5,"юридические лица, находящиеся на территории Республики Казахстан, за исключением международных организаций, иностранных посольств, консульств и других дипломатических и официальных представительств;"]
[1,8.5,"казахстанские посольства, консульства и другие дипломатические и официальные представительства, находящиеся за пределами Республики Казахстан;"]
[1,8.5,"находящиеся на территории Республики Казахстан филиалы и представительства юридических лиц, указанных в абзаце третьем настоящего подпункта и абзаце третьем подпункта 2) настоящего пункта;"]
[1,8.5,"2) нерезиденты:"]
[1,8.5,"физические лица, проживающие за границей более одного года, независимо от гражданства, и иностранные граждане, находящиеся на территории Республики Казахстан менее одного года. Граждане иностранных государств, находящиеся в целях государственной службы, образования и лечения, являются нерезидентами независимо от сроков их пребывания на территории республики;"]
[1,8.5,"юридические лица, находящиеся на территории других государств, за исключением посольств, консульств и других дипломатических и официальных представительств Республики Казахстан;"]
[1,8.5,"находящиеся на территории Республики Казахстан международные организации, иностранные посольства, консульства и другие иностранные дипломатические и официальные представительства;"]
[1,8.5,"находящиеся на территории других государств филиалы и представительства юридических лиц, указанных в абзаце третьем подпункта 1) настоящего пункта и абзаце третьем настоящего подпункта."]
[1,8.5,"7. В статистической форме отражается информация, относящаяся к операциям платежного баланса в области страховой (перестраховочной) деятельности, а также остатки по резервам страховых (перестраховочных) организаций для международной инвестиционной позиции и внешнего долга страны:"]
[1,8.5,"1) по прямому страхованию нерезидентов – о деятельности и связанных с ней отношениях, возникающих в связи с принятием страховых рисков по договору страхования (раздел 1);"]
[1,8.5,"2) по перестрахованию нерезидентов (входящее перестрахование) – о деятельности и связанных с ней отношениях, возникающих в связи с принятием части страховых рисков в соответствии с заключенным договором перестрахования (раздел 2);"]
[1,8.5,"3) по перестрахованию нерезидентами (исходящее перестрахование) – о деятельности и связанных с ней отношениях, возникающих в связи с передачей части страховых рисков в перестрахование в соответствии с заключенным договором перестрахования (раздел 3)."]
[1,8.5,"8. Все операции за отчетный период, перечисленные в частях 1.1, 2.1, 3.1, 4.1 статистической формы (коды строк 21100, 21200, 21210, 21305, 21306, 22100, 22200, 22210, 22400, 22440, 22450, 23100, 23200, 23400, 23440, 23450, 24400), отражаются в соответствии с методом начисления."]
[1,8.5,"Крупные страховые выплаты (коды строк 21210, 22210) включают выплаты по отдельному заключенному договору страхования (перестрахования) превышающие 25 процентов от суммы активов страховой (перестраховочной) организации, за вычетом активов, являющихся долей перестраховщика в страховых резервах."]
[1,8.5,"9. В разделе 4 указывается комиссия, выплаченная страховому брокеру-нерезиденту или страховому агенту-нерезиденту за полученные услуги. К таким услугам относятся посредническая деятельность по страхованию (перестрахованию), консультационная деятельность, услуги по стоимостной оценке и урегулированию убытков, административные услуги по обеспечению спасательных работ, услуги по регулированию и мониторингу в отношении страховых выплат, прочие вспомогательные услуги, связанные со страховой деятельностью."]
[1,8.5,"10. Все суммы отражаются в тысячах долларов Соединенных Штатов Америки (далее – США) с точностью до одного знака после запятой."]
[1,8.5,"Суммы, выраженные в тенге, переводятся в доллары США. Суммы, выраженные в иных иностранных валютах, переводятся сначала в тенге, а затем в доллары США."]
[1,8.5,"Для конвертации используются рыночные курсы обмена валют, применяемые в целях формирования финансовой отчетности. При этом для конвертации операций используются соответствующие курсы на дату совершения операций, для доходов и комиссионных – средневзвешенные курсы за отчетный период, для остатков на начало и конец квартала – курсы на соответствующую дату."]
[1,8.5,"11. Все операции отражаются в разбивке по странам партнеров (страхователей, перестрахователей, перестраховщиков, брокеров, агентов). Наименования стран указываются в графах с 2 по 10 разделов 1, 2, 3 и4 статистической формы. Если количество стран партнеров респондента превышает имеющееся в разделах статистической формы количество граф, добавляются недостающие графы."]
[1,8.5,"12. Остатки по страховым резервам на начало отчетного периода равны их остаткам на конец предыдущего периода."]
[1,8.5,"13. Статистическая форма представляется электронным способом посредством автоматизированной информационной подсистемы «Веб-портал НБ РК» с соблюдением процедур подтверждения электронной цифровой подписью."]
[1,8.5,"Корректировки (исправления, дополнения) в статистическую форму вносятся в течение 6 (шести) месяцев после завершения отчетного периода."]
[1,8.5]
[1,8.5,"Глава 3. Арифметико-логический контроль"]
[1,8.5]
[1,8.5,"14. Арифметико-логический контроль:"]
[1,8.5,"строка 21520 = строка 21530 статистической формы за предыдущий период для каждой графы;"]
[1,8.5,"строка 21620 = строка 21630 статистической формы за предыдущий период для каждой графы;"]
[1,8.5,"строка 21720 = строка 21730 статистической формы за предыдущий период для каждой графы;"]
[1,8.5,"строка 22520 = строка 22530 статистической формы за предыдущий период для каждой графы;"]
[1,8.5,"строка 22620 = строка 22630 статистической формы за предыдущий период для каждой графы;"]
[1,8.5,"строка 22720 = строка 22730 статистической формы за предыдущий период для каждой графы;"]
[1,8.5,"строка 22400 = строка 22440 + строка 22450 для каждой графы;"]
[1,8.5,"строка 23400 = строка 23440 + строка 23450 для каждой графы."]

{"sheet":"Валюты","index":28,"n_rows":3,"n_cols":9,"rows_kept":3,"cut":false,"hidden":true,"merged":[[0,4,0,8]]}
[{"$f":"VLOOKUP(\"p_currency_name\",p_guide_show,2,FALSE)","v":0},null,null,"2\n1","Валюталар\nВалюты"]
["select c.id_currency, h.name, h.name_kz, h.code_3n from s_currency c join s_currency_his h on c.id_currency = h.id_currency where h.is_last = 1 and (h.date_end is null or h.date_end >= to_date('20190101', 'yyyymmdd')) and h.code_3n not in ('947', '948') order by h.name;","Перенос текста","Код слева","Код справа","№","Наименование на русском языке","Қазақ тіліндегі атауы","Атауы\nНаименование","Үш цифрлы код\nТрех цифровой код"]
[162,1,null,null,1,"ДОЛЛАР США","АҚШ ДОЛЛАРЫ",{"$f":"CONCATENATE(IF(C3<>\"\",CONCATENATE(C3,\" \"),\"\"),IF(p_language_current_id=1,F3,IF(p_language_current_id=2,G3,IF(F3=G3,F3,CONCATENATE(G3,IF(B3=0,\" / \",CHAR(10)),F3)))),IF(D3<>\"\",CONCATENATE(\" \",D3),\"\"))","v":"АҚШ ДОЛЛАРЫ\nДОЛЛАР США"},"840"]

{"sheet":"Страны","index":29,"n_rows":265,"n_cols":11,"rows_kept":265,"cut":false,"hidden":false,"merged":[[0,4,0,10]]}
[{"$f":"VLOOKUP(\"p_country_name\",p_guide_show,2,FALSE)","v":1},null,null,"2\n1","Елдер\nСтраны"]
[null,"Перенос текста","Код слева","Код справа","№","Наименование на русском языке","Қазақ тіліндегі атауы","Атауы\nНаименование","ДЕЖЖ коды\nКод ОКСМ","ТМД белгісі\nПризнак СНГ","Белгісі\nПризнак"]
[243,0,null,null,1,"др.страны не СНГ","ТМД емес басқа елдер",{"$f":"CONCATENATE(IF(C3<>\"\",CONCATENATE(C3,\" \"),\"\"),IF(p_language_current_id=1,F3,IF(p_language_current_id=2,G3,IF(F3=G3,F3,CONCATENATE(G3,IF(B3=0,\" / \",CHAR(10)),F3)))),IF(D3<>\"\",CONCATENATE(\" \",D3),\"\"))","v":"ТМД емес басқа елдер / др.страны не СНГ"}," ",0,1]
[10,0,null,null,2,"АВСТРАЛИЯ","АВСТРАЛИЯ","АВСТРАЛИЯ","036",0,1]
[11,0,null,null,3,"АВСТРИЯ","АВСТРИЯ","АВСТРИЯ","040",0,1]
[8,0,null,null,4,"АЗЕРБАЙДЖАН","ӘЗЕРБАЙЖАН","ӘЗЕРБАЙЖАН / АЗЕРБАЙДЖАН","031",1,1]
[2,0,null,null,5,"АЛБАНИЯ","АЛБАНИЯ","АЛБАНИЯ","008",0,1]
[3,0,null,null,6,"АЛЖИР","АЛЖИР","АЛЖИР","012",0,1]
[184,0,null,null,7,"АНГИЛЬЯ (БРИТ.)","АНГИЛЬЯ","АНГИЛЬЯ / АНГИЛЬЯ (БРИТ.)","660",0,1]
[6,0,null,null,8,"АНГОЛА","АНГОЛА","АНГОЛА","024",0,1]
[5,0,null,null,9,"АНДОРРА","АНДОРРА","АНДОРРА","020",0,1]
[332,0,null,null,10,"Антарктида","Антарктида","Антарктида","010",0,1]
[7,0,null,null,11,"АНТИГУА И БАРБУДА","АНТИГУА ЖӘНЕ БАРБУДА","АНТИГУА ЖӘНЕ БАРБУДА / АНТИГУА И БАРБУДА","028",0,1]
[9,0,null,null,12,"АРГЕНТИНА","АРГЕНТИНА","АРГЕНТИНА","032",0,1]
[15,0,null,null,13,"АРМЕНИЯ","АРМЕНИЯ","АРМЕНИЯ","051",1,1]
[150,0,null,null,14,"АРУБА ОСТРОВ (НИДЕРЛАНДЫ)","АРУБА","АРУБА / АРУБА ОСТРОВ (НИДЕРЛАНДЫ)","533",0,1]
[109,0,null,null,15,"АТТОЛ ДЖОНСТОН (США)","АТТОЛ ДЖОНСТОН (США)","АТТОЛ ДЖОНСТОН (США)","396",0,1]
[1,0,null,null,16,"АФГАНИСТАН","АУҒАНСТАН","АУҒАНСТАН / АФГАНИСТАН","004",0,1]
[12,0,null,null,17,"Багамы","Багам","Багам / Багамы","044",0,1]
[14,0,null,null,18,"БАНГЛАДЕШ","БАНГЛАДЕШ","БАНГЛАДЕШ","050",0,1]
[16,0,null,null,19,"БАРБАДОС","БАРБАДОС","БАРБАДОС","052",0,1]
[13,0,null,null,20,"БАХРЕЙН","БАХРЕЙН","БАХРЕЙН","048",0,1]
[33,0,null,null,21,"БЕЛАРУСЬ","БЕЛАРУСЬ","БЕЛАРУСЬ","112",1,1]
[25,0,null,null,22,"БЕЛИЗ","БЕЛИЗ","БЕЛИЗ","084",0,1]
[17,0,null,null,23,"БЕЛЬГИЯ","БЕЛЬГИЯ","БЕЛЬГИЯ","056",0,1]
[57,0,null,null,24,"БЕНИН","БЕНИН","БЕНИН","204",0,1]
[18,0,null,null,25,"Бермуды","Бермуд","Бермуд / Бермуды","060",0,1]
[30,0,null,null,26,"БОЛГАРИЯ","БОЛГАРИЯ","БОЛГАРИЯ","100",0,1]
[20,0,null,null,27,"БОЛИВИЯ","БОЛИВИЯ","БОЛИВИЯ","068",0,1]
[300,0,null,null,28,"Бонэйр, Синт-Эстатиус и Саба","Бонэйр, Синт-Эстатиус и Саба","Бонэйр, Синт-Эстатиус и Саба","535",0,1]
[21,0,null,null,29,"БОСНИЯ И ГЕРЦЕГОВИНА","БОСНИЯ ЖӘНЕ ГЕРЦЕГОВИНА","БОСНИЯ ЖӘНЕ ГЕРЦЕГОВИНА / БОСНИЯ И ГЕРЦЕГОВИНА","070",0,1]
[22,0,null,null,30,"БОТСВАНА","БОТСВАНА","БОТСВАНА","072",0,1]
[24,0,null,null,31,"БРАЗИЛИЯ","БРАЗИЛИЯ","БРАЗИЛИЯ","076",0,1]
[26,0,null,null,32,"БРИТАНСКАЯ ТЕРРИТОРИЯ В ИНДИЙСКОМ ОКЕАНЕ","БРИТАНСКАЯ ТЕРРИТОРИЯ В ИНДИЙСКОМ ОКЕАНЕ","БРИТАНСКАЯ ТЕРРИТОРИЯ В ИНДИЙСКОМ ОКЕАНЕ","086",0,1]
[29,0,null,null,33,"Бруней-Даруссалам","Бруней-Даруссалам","Бруней-Даруссалам","096",0,1]
[232,0,null,null,34,"БУРКИНА-ФАСО","БУРКИНА-ФАСО","БУРКИНА-ФАСО","854",0,1]
[32,0,null,null,35,"БУРУНДИ","БУРУНДИ","БУРУНДИ","108",0,1]
[19,0,null,null,36,"БУТАН","БУТАН","БУТАН","064",0,1]
[152,0,null,null,37,"ВАНУАТУ","ВАНУАТУ","ВАНУАТУ","548",0,1]
[97,0,null,null,38,"ВЕНГРИЯ","ВЕНГРИЯ","ВЕНГРИЯ","348",0,1]
[235,0,null,null,39,"ВЕНЕСУЭЛА","ВЕНЕСУЭЛА","ВЕНЕСУЭЛА","862",0,1]
[28,0,null,null,40,"Виргинские острова  (Брит.)","Виргин аралдары (Брит.)","Виргин аралдары (Брит.) / Виргинские острова  (Брит.)","092",0,1]
[231,0,null,null,41,"Виргинские острова, США","Виргин аралдары,  АҚШ","Виргин аралдары,  АҚШ / Виргинские острова, США","850",0,1]
[4,0,null,null,42,"ВОСТОЧНОЕ САМОА (США)","АМЕРИКАН САМОАСЫ","АМЕРИКАН САМОАСЫ / ВОСТОЧНОЕ САМОА (США)","016",0,1]
[196,0,null,null,43,"ВЬЕТНАМ","ВЬЕТНАМ","ВЬЕТНАМ","704",0,1]
[76,0,null,null,44,"ГАБОН","ГАБОН","ГАБОН","266",0,1]
[91,0,null,null,45,"ГАЙАНА","ГАЙАНА","ГАЙАНА","328",0,1]
[92,0,null,null,46,"ГАИТИ","ГАИТИ","ГАИТИ","332",0,1]
[78,0,null,null,47,"ГАМБИЯ","ГАМБИЯ","ГАМБИЯ","270",0,1]
[81,0,null,null,48,"Гана - Республика Гана","Гана - Гана Республикасы","Гана - Гана Республикасы / Гана - Республика Гана","288",0,1]
[87,0,null,null,49,"ГВАДЕЛУПА","ГВАДЕЛУПА","ГВАДЕЛУПА","312",0,1]
[89,0,null,null,50,"ГВАТЕМАЛА","ГВАТЕМАЛА","ГВАТЕМАЛА","320",0,1]
[72,0,null,null,51,"ГВИАНА","ФРАНЦУЗ ГВИАНАСЫ","ФРАНЦУЗ ГВИАНАСЫ / ГВИАНА","254",0,1]
[90,0,null,null,52,"ГВИНЕЯ","ГВИНЕЯ","ГВИНЕЯ","324",0,1]
[174,0,null,null,53,"ГВИНЕЯ-БИСАУ","ГВИНЕЯ-БИСАУ","ГВИНЕЯ-БИСАУ","624",0,1]
[80,0,null,null,54,"ГЕРМАНИЯ","ГЕРМАНИЯ","ГЕРМАНИЯ","276",0,1]
[82,0,null,null,55,"ГИБРАЛТАР (БРИТ.)","ГИБРАЛТАР","ГИБРАЛТАР / ГИБРАЛТАР (БРИТ.)","292",0,1]
[95,0,null,null,56,"ГОНДУРАС","ГОНДУРАС","ГОНДУРАС","340",0,1]
[96,0,null,null,57,"ГОНКОНГ (СЯНГАН)","ГОНКОНГ","ГОНКОНГ / ГОНКОНГ (СЯНГАН)","344",0,1]
[86,0,null,null,58,"ГРЕНАДА","ГРЕНАДА","ГРЕНАДА","308",0,1]
[85,0,null,null,59,"ГРЕНЛАНДИЯ (ДАНИЯ)","ГРЕНЛАНДИЯ","ГРЕНЛАНДИЯ / ГРЕНЛАНДИЯ (ДАНИЯ)","304",0,1]
[84,0,null,null,60,"ГРЕЦИЯ","ГРЕЦИЯ","ГРЕЦИЯ","300",0,1]
[77,0,null,null,61,"ГРУЗИЯ","ГРУЗИЯ","ГРУЗИЯ","268",0,1]
[88,0,null,null,62,"ГУАМ (США)","ГУАМ","ГУАМ / ГУАМ (США)","316",0,1]
[58,0,null,null,63,"ДАНИЯ","ДАНИЯ","ДАНИЯ","208",0,1]
[75,0,null,null,64,"ДЖИБУТИ","ДЖИБУТИ","ДЖИБУТИ","262",0,1]
[59,0,null,null,65,"ДОМИНИКА","ДОМИНИКА",{"$f":"CONCATENATE(IF(C67<>\"\",CONCATENATE(C67,\" \"),\"\"),IF(p_language_current_id=1,F67,IF(p_language_current_id=2,G67,IF(F67=G67,F67,CONCATENATE(G67,IF(B67=0,\" / \",CHAR(10)),F67)))),IF(D67<>\"\",CONCATENATE(\" \",D67),\"\"))","v":"ДОМИНИКА"},"212",0,1]
[60,0,null,null,66,"ДОМИНИКАНСКАЯ РЕСПУБЛИКА","ДОМИНИКАН РЕСПУБЛИКАСЫ","ДОМИНИКАН РЕСПУБЛИКАСЫ / ДОМИНИКАНСКАЯ РЕСПУБЛИКА","214",0,1]
[225,0,null,null,67,"Египет  - Арабская Республика Египет","Египет  -  Египет Араб Республикасы","Египет  -  Египет Араб Республикасы / Египет  - Арабская Республика Египет","818",0,1]
[241,0,null,null,68,"ЗАМБИЯ","ЗАМБИЯ","ЗАМБИЯ","894",0,1]
[202,0,null,null,69,"ЗАПАДНАЯ САХАРА","ЗАПАДНАЯ САХАРА","ЗАПАДНАЯ САХАРА","732",0,1]
[238,0,null,null,70,"ЗАПАДНОЕ САМОА","САМОА","САМОА / ЗАПАДНОЕ САМОА","882",0,1]
[200,0,null,null,71,"ЗИМБАБВЕ","ЗИМБАБВЕ","ЗИМБАБВЕ","716",0,1]
[239,0,null,null,72,"ЙЕМЕН","ЙЕМЕН","ЙЕМЕН","887",0,1]
[104,0,null,null,73,"ИЗРАИЛЬ","ИЗРАИЛЬ","ИЗРАИЛЬ","376",0,1]
[99,0,null,null,74,"ИНДИЯ","ИНДИЯ","ИНДИЯ","356",0,1]
[100,0,null,null,75,"ИНДОНЕЗИЯ","ИНДОНЕЗИЯ","ИНДОНЕЗИЯ","360",0,1]
[111,0,null,null,76,"ИОРДАНИЯ","ИОРДАНИЯ","ИОРДАНИЯ","400",0,1]
[102,0,null,null,77,"ИРАК","ИРАК","ИРАК","368",0,1]
[101,0,null,null,78,"ИРАН","ИРАН, ИСЛАМ РЕСПУБЛИКАСЫ","ИРАН, ИСЛАМ РЕСПУБЛИКАСЫ / ИРАН","364",0,1]
[103,0,null,null,79,"ИРЛАНДИЯ","ИРЛАНДИЯ","ИРЛАНДИЯ","372",0,1]
[98,0,null,null,80,"ИСЛАНДИЯ","ИСЛАНДИЯ","ИСЛАНДИЯ","352",0,1]
[201,0,null,null,81,"ИСПАНИЯ","ИСПАНИЯ","ИСПАНИЯ","724",0,1]
[105,0,null,null,82,"ИТАЛИЯ","ИТАЛИЯ","ИТАЛИЯ","380",0,1]
[37,0,null,null,83,"КАБО-ВЕРДЕ","КАБО-ВЕРДЕ","КАБО-ВЕРДЕ","132",0,1]
[110,0,null,null,84,"КАЗАХСТАН","КАЗАХСТАН","КАЗАХСТАН","398",1,1]
[34,0,null,null,85,"КАМБОДЖА","КАМБОДЖА","КАМБОДЖА","116",0,1]
[35,0,null,null,86,"КАМЕРУН","КАМЕРУН","КАМЕРУН","120",0,1]
[36,0,null,null,87,"КАНАДА","КАНАДА","КАНАДА","124",0,1]
[177,0,null,null,88,"КАТАР","КАТАР","КАТАР","634",0,1]
[112,0,null,null,89,"КЕНИЯ","КЕНИЯ","КЕНИЯ","404",0,1]
[55,0,null,null,90,"КИПР","КИПР","КИПР","196",0,1]
[83,0,null,null,91,"КИРИБАТИ","КИРИБАТИ","КИРИБАТИ","296",0,1]
[43,0,null,null,92,"КИТАЙ","ҚЫТАЙ","ҚЫТАЙ / КИТАЙ","156",0,1]
[46,0,null,null,93,"Кокосовые (килинг) острова","Кокосовые (килинг) острова","Кокосовые (килинг) острова","166",0,1]
[47,0,null,null,94,"КОЛУМБИЯ","КОЛУМБИЯ","КОЛУМБИЯ","170",0,1]
[48,0,null,null,95,"Коморы","Комор","Комор / Коморы","174",0,1]
[49,0,null,null,96,"КОНГО","КОНГО","КОНГО","178",0,1]
[50,0,null,null,97,"КОНГО,ДЕМОКРАТИЧЕСКАЯ РЕСПУБЛИКА (бывш. ЗАИР)","Конго, Демократиялық республика","Конго, Демократиялық республика / КОНГО,ДЕМОКРАТИЧЕСКАЯ РЕСПУБЛИКА (бывш. ЗАИР)","180",0,1]
[113,0,null,null,98,"Корея, Народно-Демократическая  республика","Корея, Халықтық-Демократиялық республика","Корея, Халықтық-Демократиялық республика / Корея, Народно-Демократическая  республика","408",0,1]
[324,0,null,null,99,"Косово","Косово","Косово","373",0,1]
[52,0,null,null,100,"КОСТА-РИКА","КОСТА-РИКА","КОСТА-РИКА","188",0,1]
[106,0,null,null,101,"КОТ-Д ИВУАР","КОТ-Д ИВУАР","КОТ-Д ИВУАР","384",0,1]
[54,0,null,null,102,"КУБА","КУБА","КУБА","192",0,1]
[115,0,null,null,103,"КУВЕЙТ","КУВЕЙТ","КУВЕЙТ","414",0,1]
[116,0,null,null,104,"КЫРГЫЗСТАН","КЫРГЫЗСТАН","КЫРГЫЗСТАН","417",1,1]
[301,0,null,null,105,"Кюрасао","Кюрасао","Кюрасао","531",0,1]
[117,0,null,null,106,"Лаосская народно-демократическая  республика","Лаос халықтық-демократиялық  республикасы","Лаос халықтық-демократиялық  республикасы / Лаосская народно-демократическая  республика","418",0,1]
[120,0,null,null,107,"ЛАТВИЯ","ЛАТВИЯ","ЛАТВИЯ","428",0,1]
[119,0,null,null,108,"ЛЕСОТО","ЛЕСОТО","ЛЕСОТО","426",0,1]
[121,0,null,null,109,"ЛИБЕРИЯ","ЛИБЕРИЯ","ЛИБЕРИЯ","430",0,1]
[118,0,null,null,110,"ЛИВАН","ЛИВАН","ЛИВАН","422",0,1]
[122,0,null,null,111,"Ливийская Арабская Джамахирия","Ливия Араб Джамахириясы","Ливия Араб Джамахириясы / Ливийская Арабская Джамахирия","434",0,1]
[124,0,null,null,112,"ЛИТВА","ЛИТВА","ЛИТВА","440",0,1]
[123,0,null,null,113,"ЛИХТЕНШТЕЙН","ЛИХТЕНШТЕЙН","ЛИХТЕНШТЕЙН","438",0,1]
[125,0,null,null,114,"ЛЮКСЕМБУРГ","ЛЮКСЕМБУРГ","ЛЮКСЕМБУРГ","442",0,1]
[310,0,null,null,115,"м/о Азиатский банк инфраструктурных инвестиций","м/о Азиатский банк инфраструктурных инвестиций","м/о Азиатский банк инфраструктурных инвестиций","MO1",0,1]
[311,0,null,null,116,"м/о Антикризисный фонд ЕврАзЭС","м/о Антикризисный фонд ЕврАзЭС","м/о Антикризисный фонд ЕврАзЭС","MO2",0,1]
[306,0,null,null,117,"м/о Евразийский Банк Развития","м/о Евразийский Банк Развития","м/о Евразийский Банк Развития"," ",0,1]
[315,0,null,null,118,"м/о Международная Ассоцияация Развития","м/о Международная Ассоцияация Развития","м/о Международная Ассоцияация Развития","MO3",0,1]
[135,0,null,null,119,"МАВРИКИЙ","МАВРИКИЙ","МАВРИКИЙ","480",0,1]
[134,0,null,null,120,"МАВРИТАНИЯ","МАВРИТАНИЯ","МАВРИТАНИЯ","478",0,1]
[127,0,null,null,121,"МАДАГАСКАР","МАДАГАСКАР","МАДАГАСКАР","450",0,1]
[293,0,null,null,122,"МАЙОТТА","МАЙОТТА","МАЙОТТА","175",0,1]
[126,0,null,null,123,"Макао - Специальный административный регион в Китае","Макао - Қытайдағы арнайы әкімшілік аймақ","Макао - Қытайдағы арнайы әкімшілік аймақ / Макао - Специальный административный регион в Китае","446",0,1]
[224,0,null,null,124,"МАКЕДОНИЯ","МАКЕДОНИЯ, БҰРЫНҒЫ ЮГОСЛАВИЯ РЕСПУБЛИКАСЫ","МАКЕДОНИЯ, БҰРЫНҒЫ ЮГОСЛАВИЯ РЕСПУБЛИКАСЫ / МАКЕДОНИЯ","807",0,1]
[128,0,null,null,125,"МАЛАВИ","МАЛАВИ","МАЛАВИ","454",0,1]
[129,0,null,null,126,"МАЛАЙЗИЯ","МАЛАЙЗИЯ","МАЛАЙЗИЯ","458",0,1]
[131,0,null,null,127,"МАЛИ","МАЛИ","МАЛИ","466",0,1]
[161,0,null,null,128,"Малые тихоокеанские отдаленные о-ва Соединенных Штатов","Малые тихоокеанские отдаленные о-ва Соединенных Штатов","Малые тихоокеанские отдаленные о-ва Соединенных Штатов","581",0,1]
[130,0,null,null,129,"МАЛЬДИВЫ","МАЛЬДИВЫ",{"$f":"CONCATENATE(IF(C131<>\"\",CONCATENATE(C131,\" \"),\"\"),IF(p_language_current_id=1,F131,IF(p_language_current_id=2,G131,IF(F131=G131,F131,CONCATENATE(G131,IF(B131=0,\" / \",CHAR(10)),F131)))),IF(D131<>\"\",CONCATENATE(\" \",D131),\"\"))","v":"МАЛЬДИВЫ"},"462",0,1]
[132,0,null,null,130,"МАЛЬТА","МАЛЬТА","МАЛЬТА","470",0,1]
[142,0,null,null,131,"МАРОККО","МАРОККО","МАРОККО","504",0,1]
[133,0,null,null,132,"МАРТИНИКА","МАРТИНИКА","МАРТИНИКА","474",0,1]
[163,0,null,null,133,"Маршалловы острова","Маршал аралдары","Маршал аралдары / Маршалловы острова","584",0,1]
[242,0,null,null,134,"МЕЖДУНАРОДНЫЕ ОРГАНИЗАЦИИ","ХАЛЫҚАРАЛЫҚ ҰЙЫМДАР","ХАЛЫҚАРАЛЫҚ ҰЙЫМДАР / МЕЖДУНАРОДНЫЕ ОРГАНИЗАЦИИ","999",0,1]
[136,0,null,null,135,"МЕКСИКА","МЕКСИКА","МЕКСИКА","484",0,1]
[162,0,null,null,136,"Микронезия, Федеративные штаты","Микронезия, Федерациялық штаттар","Микронезия, Федерациялық штаттар / Микронезия, Федеративные штаты","583",0,1]
[143,0,null,null,137,"МОЗАМБИК","МОЗАМБИК","МОЗАМБИК","508",0,1]
[138,0,null,null,138,"МОНАКО","МОНАКО","МОНАКО","492",0,1]
[139,0,null,null,139,"МОНГОЛИЯ","МОНГОЛИЯ","МОНГОЛИЯ","496",0,1]
[141,0,null,null,140,"МОНТСЕРРАТ (БРИТ.)","МОНТСЕРРАТ","МОНТСЕРРАТ / МОНТСЕРРАТ (БРИТ.)","500",0,1]
[31,0,null,null,141,"МЬЯНМА","МЬЯНМА","МЬЯНМА","104",0,1]
[145,0,null,null,142,"НАМИБИЯ","НАМИБИЯ","НАМИБИЯ","516",0,1]
[146,0,null,null,143,"НАУРУ","НАУРУ","НАУРУ","520",0,1]
[147,0,null,null,144,"НЕПАЛ","НЕПАЛ","НЕПАЛ","524",0,1]
[155,0,null,null,145,"НИГЕР","НИГЕР","НИГЕР","562",0,1]
[156,0,null,null,146,"НИГЕРИЯ","НИГЕРИЯ","НИГЕРИЯ","566",0,1]
[148,0,null,null,147,"НИДЕРЛАНДЫ","НИДЕРЛАНД","НИДЕРЛАНД / НИДЕРЛАНДЫ","528",0,1]
[154,0,null,null,148,"НИКАРАГУА","НИКАРАГУА","НИКАРАГУА","558",0,1]
[157,0,null,null,149,"НИУЭ (Н.ЗЕЛАНДИЯ)","НИУЭ","НИУЭ / НИУЭ (Н.ЗЕЛАНДИЯ)","570",0,1]
[153,0,null,null,150,"НОВАЯ ЗЕЛАНДИЯ","ЖАҢА ЗЕЛАНДИЯ","ЖАҢА ЗЕЛАНДИЯ / НОВАЯ ЗЕЛАНДИЯ","554",0,1]
[151,0,null,null,151,"НОВАЯ КАЛЕДОНИЯ (ФРАНЦИЯ)","ЖАҢА КАЛЕДОНИЯ","ЖАҢА КАЛЕДОНИЯ / НОВАЯ КАЛЕДОНИЯ (ФРАНЦИЯ)","540",0,1]
[159,0,null,null,152,"НОРВЕГИЯ","НОРВЕГИЯ","НОРВЕГИЯ","578",0,1]
[227,0,null,null,153,"НОРМАНДСКИЕ ОСТРОВА","НОРМАНДСКИЕ ОСТРОВА","НОРМАНДСКИЕ ОСТРОВА","830",0,1]
[216,0,null,null,154,"ОБЪЕДИНЕННЫЕ АРАБСКИЕ ЭМИРАТЫ","БІРІККЕН АРАБ ӘМІРЛІКТЕРІ","БІРІККЕН АРАБ ӘМІРЛІКТЕРІ / ОБЪЕДИНЕННЫЕ АРАБСКИЕ ЭМИРАТЫ","784",0,1]
[289,0,null,null,155,"О-в Гернси","Гернси аралы","Гернси аралы / О-в Гернси","831",0,1]
[244,0,null,null,156,"О-в Джерси","Джерси аралы","Джерси аралы / О-в Джерси","832",0,1]
[144,0,null,null,157,"ОМАН","ОМАН","ОМАН","512",0,1]
[23,0,null,null,158,"Остров Буве","Буве аралы","Буве аралы / Остров Буве","074",0,1]
[228,0,null,null,159,"Остров Мэн","Мэн аралы","Мэн аралы / Остров Мэн","833",0,1]
[158,0,null,null,160,"Остров Норфолк","Норфолк аралы","Норфолк аралы / Остров Норфолк","574",0,1]
[45,0,null,null,161,"Остров Рождества","Остров Рождества","Остров Рождества","162",0,1]
[283,0,null,null,162,"ОСТРОВ СВЯТОЙ ЕЛЕНЫ","ӘУЛИЕ ЕЛЕНА","ӘУЛИЕ ЕЛЕНА / ОСТРОВ СВЯТОЙ ЕЛЕНЫ","654",0,1]
[93,0,null,null,163,"Остров Херд и острова Макдональд","Остров Херд и острова Макдональд","Остров Херд и острова Макдональд","334",0,1]
[38,0,null,null,164,"Острова Кайман","Кайман аралдары","Кайман аралдары / Острова Кайман","136",0,1]
[51,0,null,null,165,"Острова Кука","Кук аралдары","Кук аралдары / Острова Кука","184",0,1]
[137,0,null,null,166,"ОСТРОВА МИДУЭЙ","ОСТРОВА МИДУЭЙ","ОСТРОВА МИДУЭЙ","",0,1]
[220,0,null,null,167,"Острова Теркс и Кайкос","Теркс пен Кайкос аралдары","Теркс пен Кайкос аралдары / Острова Теркс и Кайкос","796",0,1]
[165,0,null,null,168,"ПАКИСТАН","ПӘКСТАН","ПӘКСТАН / ПАКИСТАН","586",0,1]
[164,0,null,null,169,"ПАЛАУ (США)","ПАЛАУ","ПАЛАУ / ПАЛАУ (США)","585",0,1]
[294,0,null,null,170,"ПАЛЕСТИНСКАЯ ТЕРРИТОРИЯ, ОККУПИРОВАННАЯ","ПАЛЕСТИНА АУМАҒЫ, БАСЫП АЛЫНҒАН","ПАЛЕСТИНА АУМАҒЫ, БАСЫП АЛЫНҒАН / ПАЛЕСТИНСКАЯ ТЕРРИТОРИЯ, ОККУПИРОВАННАЯ","275",0,1]
[166,0,null,null,171,"ПАНАМА","ПАНАМА","ПАНАМА","591",0,1]
[94,0,null,null,172,"Папский престол (Государство-город Ватикан)","Папа престолы (Мемлекет-Ватикан қаласы)","Папа престолы (Мемлекет-Ватикан қаласы) / Папский престол (Государство-город Ватикан)","336",0,1]
[167,0,null,null,173,"ПАПУА-НОВАЯ ГВИНЕЯ","ПАПУА-ЖАҢА ГВИНЕЯ","ПАПУА-ЖАҢА ГВИНЕЯ / ПАПУА-НОВАЯ ГВИНЕЯ","598",0,1]
[168,0,null,null,174,"ПАРАГВАЙ","ПАРАГВАЙ","ПАРАГВАЙ","600",0,1]
[169,0,null,null,175,"ПЕРУ","ПЕРУ","ПЕРУ","604",0,1]
[171,0,null,null,176,"ПИТКЭРН (БРИТ.)","ПИТКЭРН","ПИТКЭРН / ПИТКЭРН (БРИТ.)","612",0,1]
[172,0,null,null,177,"ПОЛЬША","ПОЛЬША","ПОЛЬША","616",0,1]
[173,0,null,null,178,"ПОРТУГАЛИЯ","ПОРТУГАЛИЯ","ПОРТУГАЛИЯ","620",0,1]
[176,0,null,null,179,"ПУЭРТО-РИКО","ПУЭРТО-РИКО","ПУЭРТО-РИКО","630",0,1]
[326,0,null,null,180,"Республика Абхазия","Республика Абхазия","Республика Абхазия","895",0,1]
[114,0,null,null,181,"РЕСПУБЛИКА КОРЕЯ (ЮЖНАЯ)","КОРЕЯ, РЕСПУБЛИКА","КОРЕЯ, РЕСПУБЛИКА / РЕСПУБЛИКА КОРЕЯ (ЮЖНАЯ)","410",0,1]
[140,0,null,null,182,"РЕСПУБЛИКА МОЛДОВА","МОЛДОВА РЕСПУБЛИКАСЫ","МОЛДОВА РЕСПУБЛИКАСЫ / РЕСПУБЛИКА МОЛДОВА","498",1,1]
[178,0,null,null,183,"РЕЮНЬОН","РЕЮНЬОН","РЕЮНЬОН","638",0,1]
[180,0,null,null,184,"РОССИЙСКАЯ ФЕДЕРАЦИЯ","РЕСЕЙ ФЕДЕРАЦИЯСЫ","РЕСЕЙ ФЕДЕРАЦИЯСЫ / РОССИЙСКАЯ ФЕДЕРАЦИЯ","643",1,1]
[181,0,null,null,185,"РУАНДА","РУАНДА","РУАНДА","646",0,1]
[179,0,null,null,186,"РУМЫНИЯ","РУМЫНИЯ","РУМЫНИЯ","642",0,1]
[62,0,null,null,187,"САЛЬВАДОР","ЭЛЬ-САЛЬВАДОР","ЭЛЬ-САЛЬВАДОР / САЛЬВАДОР","222",0,1]
[188,0,null,null,188,"САН-МАРИНО","САН-МАРИНО","САН-МАРИНО","674",0,1]
[189,0,null,null,189,"САН-ТОМЕ И ПРИНСИПИ","САН-ТОМЕ ЖӘНЕ ПРИНСИПИ","САН-ТОМЕ ЖӘНЕ ПРИНСИПИ / САН-ТОМЕ И ПРИНСИПИ","678",0,1]
[190,0,null,null,190,"САУДОВСКАЯ АРАВИЯ","САУД АРАВИЯСЫ","САУД АРАВИЯСЫ / САУДОВСКАЯ АРАВИЯ","682",0,1]
[206,0,null,null,191,"СВАЗИЛЕНД","СВАЗИЛЕНД","СВАЗИЛЕНД","748",0,1]
[160,0,null,null,192,"СЕВЕРНЫЕ МАРИАНСКИЕ ОСТРОВА (США)","СОЛТҮСТІК МАРИАНА АРАЛДАРЫ","СОЛТҮСТІК МАРИАНА АРАЛДАРЫ / СЕВЕРНЫЕ МАРИАНСКИЕ ОСТРОВА (США)","580",0,1]
[192,0,null,null,193,"Сейшелы","Сейшель",{"$f":"CONCATENATE(IF(C195<>\"\",CONCATENATE(C195,\" \"),\"\"),IF(p_language_current_id=1,F195,IF(p_language_current_id=2,G195,IF(F195=G195,F195,CONCATENATE(G195,IF(B195=0,\" / \",CHAR(10)),F195)))),IF(D195<>\"\",CONCATENATE(\" \",D195),\"\"))","v":"Сейшель / Сейшелы"},"690",0,1]
[284,0,null,null,194,"СЕКТОР ГАЗА (бывш. ПАЛЕСТИНСКИЕ ТЕРРИТОРИИ)","СЕКТОР ГАЗА (бывш. ПАЛЕСТИНСКИЕ ТЕРРИТОРИИ)","СЕКТОР ГАЗА (бывш. ПАЛЕСТИНСКИЕ ТЕРРИТОРИИ)","274",0,1]
[330,0,null,null,195,"Сен-Бартелеми","Сен-Бартелеми","Сен-Бартелеми","652",0,1]
[191,0,null,null,196,"СЕНЕГАЛ","СЕНЕГАЛ","СЕНЕГАЛ","686",0,1]
[329,0,null,null,197,"Сен-Мартен (французская часть)","Сен-Мартен (франция бөлегі)","Сен-Мартен (франция бөлегі) / Сен-Мартен (французская часть)","663",0,1]
[187,0,null,null,198,"СЕНТ-ВИНСЕНТ И ГРЕНАДИНЫ","СЕНТ-ВИНСЕНТ ЖӘНЕ ГРЕНАДИНДЕР","СЕНТ-ВИНСЕНТ ЖӘНЕ ГРЕНАДИНДЕР / СЕНТ-ВИНСЕНТ И ГРЕНАДИНЫ","670",0,1]
[183,0,null,null,199,"СЕНТ-КИТС И НЕВИС","СЕНТ-КИТС ЖӘНЕ НЕВИС","СЕНТ-КИТС ЖӘНЕ НЕВИС / СЕНТ-КИТС И НЕВИС","659",0,1]
[185,0,null,null,200,"СЕНТ-ЛЮСИЯ","СЕНТ-ЛЮСИЯ","СЕНТ-ЛЮСИЯ","662",0,1]
[186,0,null,null,201,"Сент-Пьер и  Микелон","Сент-Пьер және  Микелон","Сент-Пьер және  Микелон / Сент-Пьер и  Микелон","666",0,1]
[296,0,null,null,202,"Сербия","Сербия","Сербия","688",0,1]
[240,0,null,null,203,"Сербия и Черногория","Сербия и Черногория","Сербия и Черногория","891",0,1]
[194,0,null,null,204,"Сингапур","Сингапур","Сингапур","702",0,1]
[302,0,null,null,205,"Синт-Мартен (нидерландская часть)","Синт-Мартен (нидерланд болігі)","Синт-Мартен (нидерланд болігі) / Синт-Мартен (нидерландская часть)","534",0,1]
[209,0,null,null,206,"СИРИЯ","СИРИЯ АРАБ РЕСПУБЛИКАСЫ","СИРИЯ АРАБ РЕСПУБЛИКАСЫ / СИРИЯ","760",0,1]
[195,0,null,null,207,"СЛОВАКИЯ","СЛОВАКИЯ","СЛОВАКИЯ","703",0,1]
[197,0,null,null,208,"СЛОВЕНИЯ","СЛОВЕНИЯ","СЛОВЕНИЯ","705",0,1]
[226,0,null,null,209,"Соединенное Королевство","Ќўрама Королдігі","Ќўрама Королдігі / Соединенное Королевство","826",0,1]
[230,0,null,null,210,"Соединенные Штаты","Құрама Штаттар","Құрама Штаттар / Соединенные Штаты","840",0,1]
[27,0,null,null,211,"СОЛОМОНОВЫ ОСТРОВА","СОЛОМОН АРАЛДАРЫ","СОЛОМОН АРАЛДАРЫ / СОЛОМОНОВЫ ОСТРОВА","090",0,1]
[198,0,null,null,212,"СОМАЛИ","СОМАЛИ","СОМАЛИ","706",0,1]
[203,0,null,null,213,"Судан","Судан","Судан","729",0,1]
[204,0,null,null,214,"СУРИНАМ","СУРИНАМ","СУРИНАМ","740",0,1]
[193,0,null,null,215,"СЬЕРРА-ЛЕОНЕ","СЬЕРРА-ЛЕОНЕ","СЬЕРРА-ЛЕОНЕ","694",0,1]
[210,0,null,null,216,"ТАДЖИКИСТАН","ТӘЖІКСТАН","ТӘЖІКСТАН / ТАДЖИКИСТАН","762",1,1]
[44,0,null,null,217,"Тайвань, провинция Китая","Тайвань","Тайвань / Тайвань, провинция Китая","158",0,1]
[211,0,null,null,218,"ТАИЛАНД","ТАИЛАНД","ТАИЛАНД","764",0,1]
[229,0,null,null,219,"Танзания, объединенная республика","Танзания, құрама республикасы","Танзания, құрама республикасы / Танзания, объединенная республика","834",0,1]
[331,0,null,null,220,"Тимор-Лешти","Тимор-Лешти","Тимор-Лешти","626",0,1]
[212,0,null,null,221,"ТОГО","ТОГО","ТОГО","768",0,1]
[213,0,null,null,222,"ТОКЕЛАУ (ЮНИОН) (НОВАЯ ЗЕЛАНДИЯ)","ТОКЕЛАУ","ТОКЕЛАУ / ТОКЕЛАУ (ЮНИОН) (НОВАЯ ЗЕЛАНДИЯ)","772",0,1]
[214,0,null,null,223,"ТОНГА","ТОНГА","ТОНГА","776",0,1]
[215,0,null,null,224,"ТРИНИДАД И ТОБАГО","ТРИНИДАД ЖӘНЕ ТОБАГО","ТРИНИДАД ЖӘНЕ ТОБАГО / ТРИНИДАД И ТОБАГО","780",0,1]
[221,0,null,null,225,"ТУВАЛУ","ТУВАЛУ","ТУВАЛУ","798",0,1]
[217,0,null,null,226,"ТУНИС","ТУНИС","ТУНИС","788",0,1]
[219,0,null,null,227,"ТУРКМЕНИСТАН","ТҮРКМЕНСТАН","ТҮРКМЕНСТАН / ТУРКМЕНИСТАН","795",1,1]
[218,0,null,null,228,"ТУРЦИЯ","ТҮРКИЯ","ТҮРКИЯ / ТУРЦИЯ","792",0,1]
[222,0,null,null,229,"УГАНДА","УГАНДА","УГАНДА","800",0,1]
[234,0,null,null,230,"УЗБЕКИСТАН","ӨЗБЕКСТАН","ӨЗБЕКСТАН / УЗБЕКИСТАН","860",1,1]
[223,0,null,null,231,"УКРАИНА","УКРАИНА","УКРАИНА","804",1,1]
[237,0,null,null,232,"Уоллис и Футуна","Уоллис пен Футуна","Уоллис пен Футуна / Уоллис и Футуна","876",0,1]
[233,0,null,null,233,"УРУГВАЙ","УРУГВАЙ","УРУГВАЙ","858",0,1]
[236,0,null,null,234,"УЭЙК","УЭЙК","УЭЙК","872",0,1]
[67,0,null,null,235,"ФАРЕРСКИЕ ОСТРОВА (ДАНИЯ)","ФАРЕР АРАЛДАРЫ","ФАРЕР АРАЛДАРЫ / ФАРЕРСКИЕ ОСТРОВА (ДАНИЯ)","234",0,1]
[69,0,null,null,236,"ФИДЖИ","ФИДЖИ","ФИДЖИ","242",0,1]
[170,0,null,null,237,"ФИЛИППИНЫ","ФИЛИППИН","ФИЛИППИН / ФИЛИППИНЫ","608",0,1]
[70,0,null,null,238,"ФИНЛЯНДИЯ","ФИНЛЯНДИЯ","ФИНЛЯНДИЯ","246",0,1]
[68,0,null,null,239,"ФОЛКЛЕНДСКИЕ (Мальвинские) ОСТРОВА (Брит.)","Фолкленд (Мальвин) аралдары","Фолкленд (Мальвин) аралдары / ФОЛКЛЕНДСКИЕ (Мальвинские) ОСТРОВА (Брит.)","238",0,1]
[71,0,null,null,240,"ФРАНЦИЯ","ФРАНЦИЯ","ФРАНЦИЯ","250",0,1]
[73,0,null,null,241,"ФРАНЦУЗСКАЯ ПОЛИНЕЗИЯ","ФРАНЦУЗ ПОЛИНЕЗИЯСЫ","ФРАНЦУЗ ПОЛИНЕЗИЯСЫ / ФРАНЦУЗСКАЯ ПОЛИНЕЗИЯ","258",0,1]
[74,0,null,null,242,"ФРАНЦУЗСКИЕ ЮЖНЫЕ ТЕРРИТОРИИ","ФРАНЦУЗСКИЕ ЮЖНЫЕ ТЕРРИТОРИИ","ФРАНЦУЗСКИЕ ЮЖНЫЕ ТЕРРИТОРИИ","260",0,1]
[53,0,null,null,243,"ХОРВАТИЯ","ХОРВАТИЯ","ХОРВАТИЯ","191",0,1]
[39,0,null,null,244,"Центрально-африканская республика","Орталық Африка республикасы","Орталық Африка республикасы / Центрально-африканская республика","140",0,1]
[41,0,null,null,245,"ЧАД","ЧАД","ЧАД","148",0,1]
[297,0,null,null,246,"Черногория","Черногория","Черногория","499",0,1]
[56,0,null,null,247,"ЧЕХИЯ","ЧЕХ РЕСПУБЛИКАСЫ","ЧЕХ РЕСПУБЛИКАСЫ / ЧЕХИЯ","203",0,1]
[42,0,null,null,248,"ЧИЛИ","ЧИЛИ","ЧИЛИ","152",0,1]
[208,0,null,null,249,"ШВЕЙЦАРИЯ","ШВЕЙЦАРИЯ","ШВЕЙЦАРИЯ","756",0,1]
[207,0,null,null,250,"ШВЕЦИЯ","ШВЕЦИЯ","ШВЕЦИЯ","752",0,1]
[205,0,null,null,251,"Шпицберген и Ян Майен","Шпицберген мен Ян Майен","Шпицберген мен Ян Майен / Шпицберген и Ян Майен","744",0,1]
[40,0,null,null,252,"ШРИ-ЛАНКА","ШРИ-ЛАНКА","ШРИ-ЛАНКА","144",0,1]
[61,0,null,null,253,"ЭКВАДОР","ЭКВАДОР","ЭКВАДОР","218",0,1]
[63,0,null,null,254,"Экваториальная Гвинея","Экваториалдыќ Гвинея","Экваториалдыќ Гвинея / Экваториальная Гвинея","226",0,1]
[292,0,null,null,255,"ЭЛАНДСКИЕ ОСТРОВА","АЛАНД АРАЛДАРЫ","АЛАНД АРАЛДАРЫ / ЭЛАНДСКИЕ ОСТРОВА","248",0,1]
[65,0,null,null,256,"ЭРИТРЕЯ","ЭРИТРЕЯ","ЭРИТРЕЯ","232",0,1]
[66,0,null,null,257,"ЭСТОНИЯ","ЭСТОНИЯ",{"$f":"CONCATENATE(IF(C259<>\"\",CONCATENATE(C259,\" \"),\"\"),IF(p_language_current_id=1,F259,IF(p_language_current_id=2,G259,IF(F259=G259,F259,CONCATENATE(G259,IF(B259=0,\" / \",CHAR(10)),F259)))),IF(D259<>\"\",CONCATENATE(\" \",D259),\"\"))","v":"ЭСТОНИЯ"},"233",0,1]
[64,0,null,null,258,"ЭФИОПИЯ","ЭФИОПИЯ","ЭФИОПИЯ","231",0,1]
[199,0,null,null,259,"Южная Африка","Оңтүстік Африка","Оңтүстік Африка / Южная Африка","710",0,1]
[295,0,null,null,260,"ЮЖНАЯ ДЖОРДЖИЯ И ЮЖНЫЕ САНДВИЧЕВЫ ОСТРОВА","ЮЖНАЯ ДЖОРДЖИЯ И ЮЖНЫЕ САНДВИЧЕВЫ ОСТРОВА","ЮЖНАЯ ДЖОРДЖИЯ И ЮЖНЫЕ САНДВИЧЕВЫ ОСТРОВА","239",0,1]
[327,0,null,null,261,"Южный Судан","Оңтүстік Судан","Оңтүстік Судан / Южный Судан","728",0,1]
[107,0,null,null,262,"ЯМАЙКА","ЯМАЙКА","ЯМАЙКА","388",0,1]
[108,0,null,null,263,"ЯПОНИЯ","ЖАПОНИЯ","ЖАПОНИЯ / ЯПОНИЯ","392",0,1]

{"sheet":"Классификация услуг","index":30,"n_rows":2,"n_cols":6,"rows_kept":2,"cut":false,"hidden":true,"merged":[[0,2,0,5]]}
[{"$f":"VLOOKUP(\"p_servicetype_name\",p_guide_show,2,FALSE)","v":0},"2\n1","Қызметтің сыныптамасы\nКлассификация услуг"]
[null,null,"№","Виды услуг","Қызметтің түрі","Қызмет түрінің коды\nКод вида услуг"]

{"sheet":"Вид исполнения обязательства","index":31,"n_rows":3,"n_cols":8,"rows_kept":3,"cut":false,"hidden":true,"merged":[[0,4,0,7]]}
[{"$f":"VLOOKUP(\"p_receiptsrepaytype_name\",p_guide_show,2,FALSE)","v":0},null,null,"2\n1","Міндеттемелерді орындау түрі\nВид исполнения обязательства"]
[null,"Перенос текста","Код слева","Код справа","№","Наименование на русском языке","Қазақ тіліндегі атауы","Атауы\nНаименование"]
[104,1,null,null,{"$f":"IFERROR(VALUE(E2),0)+1","v":1},"возникновение требования","талаптардың туындауы",{"$f":"CONCATENATE(IF(C3<>\"\",CONCATENATE(C3,\" \"),\"\"),IF(p_language_current_id=1,F3,IF(p_language_current_id=2,G3,IF(F3=G3,F3,CONCATENATE(G3,IF(B3=0,\" / \",CHAR(10)),F3)))),IF(D3<>\"\",CONCATENATE(\" \",D3),\"\"))","v":"талаптардың туындауы\nвозникновение требования"}]

{"sheet":"Инструкция","index":32,"n_rows":59,"n_cols":6,"rows_kept":59,"cut":false,"hidden":false,"merged":[[58,0,58,15],[46,0,46,15],[43,0,43,15],[45,0,45,15],[41,0,41,15],[48,0,48,15],[50,0,50,15],[53,0,53,15],[55,0,55,15],[36,0,36,15],[40,0,40,15],[0,0,0,14],[2,0,2,15],[4,0,4,15],[6,0,6,15],[8,0,8,15],[14,0,14,15]]}
["Инструкция по работе с шаблоном"]
[]
["Внимание! Для корректной работы шаблона не следует отключать макросы."]
[]
["I. Предварительные настройки"]
[]
["Если при открытии шаблона выдалось предупреждение системы безопасности: «Отключить макросы», «Не отключать макросы» следует выбрать опцию \"Не отключать макросы\""]
[]
["Если при открытии файла, содержащего макросы, появляется желтая панель сообщений со значком щита Предупреждение системы безопасности, следует нажать на кнопку \"Включить содержимое\" (рис.1)"]
[]
[]
[]
[null,null,null,null,null,"Рис.1"]
[]
["1. Для начала работы с шаблоном найдите вкладку \"Надстройки\" в пункте меню (рис.2). Проверьте открываются ли ниспадающие списки на листе \"Основные данные\" (рис.3)"]
[]
[]
[]
[]
[]
[]
[]
[]
[]
[]
[null,null,null,null,null,"Рис.2"]
[]
[]
[]
[]
[]
[]
[]
[]
[null,null,null,null,null,"Рис.3"]
[]
["В случае отсутствия вкладки \"Надстройки\" (или есть вкладка, но отсутствует пункт меню Вклады в ней) и/или ниспадающих списков, следует включить макросы.\nПункт меню Файл -> Параметры -> категория Центр управления безопасностью -> кнопочка Параметры центра управления безопасностью -> категория Параметры макросов -> выбрать опцию Включить все макросы -> нажать кнопку Ок. Сохранить, закрыть и открыть шаблон заново. Вкладка «Надстройки» должна появиться"]
[]
[]
[]
["II. Заполнение отчета (шаблона)"]
["1. Начните заполнение с листа \"Основные данные\":\n     -укажите желаемый язык (Русский, Қазақ тілі) до начала заполнения отчета. Если данные отчета были заполнены, при смене языка они обнуляться\n     -заполните требуемые поля"]
["2. После заполнения данных на листе \"Основные данные\" перейдите к заполнению листа \"Отчет\""]
["3. Заполните графы \"Всего\", \"в том числе в виде денег\""]
["4. Информация заполняется в тысячах единиц валюты валютного договора"]
["III. Отправка отчета в Национальный Банк"]
["Сохраните отчет на компьютере и отправьте его по Порталу в Национальный Банк Республики Казахстан (https://nbportal.nationalbank.kz/)"]
[]
["Часто задаваемые вопросы"]
["Вопрос: \"У нас в шаблоне запрашивается пароль, чтобы снять защиту. Как ее снять? Что делать?\""]
["Ответ: Никаких паролей вводить не нужно. Скорее всего заполнение шаблона некорректно. Нельзя добавлять вручную графы, считать формулы рядом с графами, т.к. шаблон защищен, если предусмотрен автоматический выбор из ниспадающего списка нельзя вручную вводить значения в это поле."]
[]
["Вопрос: \"Я заполнял(-а) шаблон, но все исчезло, не сохранилось, шаблон найти не могу\""]
["Ответ: Прежде чем начать заполнение отчета, сохраните его у себя на компьютере (Файл-Сохранить как (присвойте файлу имя)."]
[]
["Вопрос: \"Требуется ли необходимость дублирования отчета на бумажном носителе, если отчет представлен посредством Портала?\""]
["Ответ: Нет, не требуется"]
[]
["Для распечатки настоящей инструкции выполните следующие действия (нажмите пункт меню Файл-Печать) или нажмите кнопку                  "]

{"sheet":"Настройки","index":33,"n_rows":570,"n_cols":55,"rows_kept":570,"cut":false,"hidden":true,"merged":[[261,0,261,23],[275,0,275,11],[226,0,226,6],[482,0,482,11],[568,0,568,5],[501,0,501,2],[510,0,510,2],[518,0,518,2],[565,0,565,2],[11,0,11,6],[257,0,257,6],[0,0,0,2],[6,0,6,6],[16,0,16,6],[241,0,241,7]]}
["Справочник языков"]
["ID","Код","Наименование","Разделы с ключами","ID Текущего языка",null,1,2,3,4]
[1,null,"Русский язык",1,{"$f":"IF(VLOOKUP(A3,p_language,3)=p1_language,A3,IF(VLOOKUP(A4,p_language,3)=p1_language,A4,A5))","v":0},null,2023,2024,2025,2026,2027,2028,2029,2030,2031,2032,2033,2034,2035,2036,2037,2038,2039,2040,2041,2042,2043,2044,2045,2046,2047,2048,2049]
[2,null,"Қазақ тілі","Для формулы проверки РС","ID Текущего отчета",null,"√"]
[0,null,null,{"$f":"VLOOKUP(p_report_current_id,p_report,COLUMN(p_report_rc_mask))","v":0},7,null,{"$f":"1=1","v":true},"invobj",{"$f":"IF(ISNA(VLOOKUP(H5,p_caption,p_caption_name,FALSE)),\"Еще не заведена\",VLOOKUP(H5,p_caption,COLUMN(p_caption_name),FALSE))","v":"Объект инвестирования"}]
[]
["Справочник логический"]
["ID","Код слева","Наименование на русском языке","Наименование на казахском языке","Наименование","Перенос текста или вставка символов \" / \"","Код справа"]
[1,null,"Да","Иә",{"$f":"CONCATENATE(IF(B9<>\"\",CONCATENATE(B9,\" \"),\"\"),IF(p_language_current_id=1,C9,IF(p_language_current_id=2,D9,IF(C9=D9,C9,CONCATENATE(D9,IF(F9=0,\" / \",CHAR(10)),C9)))),IF(G9<>\"\",CONCATENATE(\" \",G9),\"\"))","v":"Иә / Да (1)"},0,"(1)"]
[0,null,"Нет","Жоқ",{"$f":"CONCATENATE(IF(B10<>\"\",CONCATENATE(B10,\" \"),\"\"),IF(p_language_current_id=1,C10,IF(p_language_current_id=2,D10,IF(C10=D10,C10,CONCATENATE(D10,IF(F10=0,\" / \",CHAR(10)),C10)))),IF(G10<>\"\",CONCATENATE(\" \",G10),\"\"))","v":"Жоқ / Нет (0)"},0,"(0)"]
[]
["Типы резидентов"]
["ID","Код слева","Наименование на русском языке","Наименование на казахском языке","Наименование","Перенос текста или вставка символов \" / \"","Код справа"]
[0,null,"Физическое лицо","Жеке Тұлға",{"$f":"CONCATENATE(IF(B14<>\"\",CONCATENATE(B14,\" \"),\"\"),IF(p_language_current_id=1,C14,IF(p_language_current_id=2,D14,IF(C14=D14,C14,CONCATENATE(D14,IF(F14=0,\" / \",CHAR(10)),C14)))),IF(G14<>\"\",CONCATENATE(\" \",G14),\"\"))","v":"Жеке Тұлға / Физическое лицо"},0]
[1,null,"Предприятие","Кәсіпорын",{"$f":"CONCATENATE(IF(B15<>\"\",CONCATENATE(B15,\" \"),\"\"),IF(p_language_current_id=1,C15,IF(p_language_current_id=2,D15,IF(C15=D15,C15,CONCATENATE(D15,IF(F15=0,\" / \",CHAR(10)),C15)))),IF(G15<>\"\",CONCATENATE(\" \",G15),\"\"))","v":"Кәсіпорын / Предприятие"},0]
[]
["Справочник переводов"]
["ID","Код слева","Наименование на русском языке","Наименование на казахском языке","Наименование","Перенос текста","Код справа","Лист","Наименование в объектах","Отчет","Стиль"]
["C1",null,{"$f":"VLOOKUP(p_report_current_id,p_report,COLUMN(p_report_name_2)-2,FALSE)","v":"Отчет о международных операциях с нерезидентами"},{"$f":"VLOOKUP(p_report_current_id,p_report,COLUMN(p_report_name_2)-1,FALSE)","v":"Бейрезиденттермен  халықаралық операциялар туралы есеп"},{"$f":"CONCATENATE(IF(B19<>\"\",CONCATENATE(B19,\" \"),\"\"),IF(p_language_current_id=1,C19,IF(p_language_current_id=2,D19,IF(C19=D19,C19,CONCATENATE(D19,IF(F19=0,\" / \",CHAR(10)),C19)))),IF(G19<>\"\",CONCATENATE(\" \",G19),\"\"))","v":"Бейрезиденттермен  халықаралық операциялар туралы есеп\nОтчет о международных операциях с нерезидентами"},1,null,1,{"$f":"IF(p_language_current_id=2,CONCATENATE(D19),CONCATENATE(C19))","v":"Отчет о международных операциях с нерезидентами"}]
["B1",null,{"$f":"VLOOKUP(p_report_current_id,p_report,COLUMN(p_report_name_2)-1,FALSE)","v":"Бейрезиденттермен  халықаралық операциялар туралы есеп"},{"$f":"VLOOKUP(p_report_current_id,p_report,COLUMN(p_report_name_2)-1,FALSE)","v":"Бейрезиденттермен  халықаралық операциялар туралы есеп"},{"$f":"CONCATENATE(IF(B20<>\"\",CONCATENATE(B20,\" \"),\"\"),IF(p_language_current_id=1,C20,IF(p_language_current_id=2,D20,IF(C20=D20,C20,CONCATENATE(D20,IF(F20=0,\" / \",CHAR(10)),C20)))),IF(G20<>\"\",CONCATENATE(\" \",G20),\"\"))","v":"Бейрезиденттермен  халықаралық операциялар туралы есеп"},1,null,1,{"$f":"IF(p_language_current_id=2,CONCATENATE(D20),CONCATENATE(C20))","v":"Бейрезиденттермен  халықаралық операциялар туралы есеп"}]
["B2",null,{"$f":"VLOOKUP(p_report_current_id,p_report,COLUMN(p_report_name_2)-2,FALSE)","v":"Отчет о международных операциях с нерезидентами"},{"$f":"VLOOKUP(p_report_current_id,p_report,COLUMN(p_report_name_2)-2,FALSE)","v":"Отчет о международных операциях с нерезидентами"},"Отчет о международных операциях с нерезидентами",1,null,1,"Отчет о международных операциях с нерезидентами"]
["C4",null,"Основные данные","Негізгі мәліметтер","Негізгі мәліметтер\nОсновные данные",1,null,1,"Основные данные"]
["C7",null,"Код отчета","Есептің коды","Есептің коды / Код отчета",0,null,1,"Код отчета"]
["C8",null,"Язык заполнения","Тілі","Тілі / Язык заполнения *",0,"*",1,"Язык заполнения"]
["C9",null,"Тип резидента","Резидент типі",{"$f":"CONCATENATE(IF(B25<>\"\",CONCATENATE(B25,\" \"),\"\"),IF(p_language_current_id=1,C25,IF(p_language_current_id=2,D25,IF(C25=D25,C25,CONCATENATE(D25,IF(F25=0,\" / \",CHAR(10)),C25)))),IF(G25<>\"\",CONCATENATE(\" \",G25),\"\"))","v":"Резидент типі / Тип резидента"},0,null,1,{"$f":"IF(p_language_current_id=2,CONCATENATE(D25),CONCATENATE(C25))","v":"Тип резидента"}]
["C10",null,{"$f":"IF(VLOOKUP(p_report_current_id,p_report,COLUMN(p_report_type),FALSE)=4,IF(VLOOKUP(p_report_current_id,p_report,COLUMN(p_report_type)+1,FALSE)=2,VLOOKUP(\"enterprise_name\",p_caption,3,FALSE),VLOOKUP(\"resident_name\",p_caption,3,FALSE)),VLOOKUP(\"enterprise\",p_caption,3,FALSE))","v":"Предприятие"},{"$f":"IF(VLOOKUP(p_report_current_id,p_report,COLUMN(p_report_type),FALSE)=4,IF(VLOOKUP(p_report_current_id,p_report,COLUMN(p_report_type)+1,FALSE)=2,VLOOKUP(\"enterprise_name\",p_caption,4,FALSE),VLOOKUP(\"resident_name\",p_caption,4,FALSE)),VLOOKUP(\"enterprise\",p_caption,4,FALSE))","v":"Кәсіпорын"},"Кәсіпорын / Предприятие",0,null,1,"Предприятие"]
["C11",null,{"$f":"IF(VLOOKUP(p_report_current_id,p_report,COLUMN(p_report_type),FALSE)=4,IF(VLOOKUP(p_report_current_id,p_report,COLUMN(p_report_type)+1,FALSE)=2,VLOOKUP(\"bin\",p_caption,3,FALSE),VLOOKUP(\"agent_bin\",p_caption,3,FALSE)),VLOOKUP(\"bin\",p_caption,3,FALSE))","v":"БИН"},{"$f":"IF(VLOOKUP(p_report_current_id,p_report,COLUMN(p_report_type),FALSE)=4,IF(VLOOKUP(p_report_current_id,p_report,COLUMN(p_report_type)+1,FALSE)=2,VLOOKUP(\"bin\",p_caption,4,FALSE),VLOOKUP(\"agent_bin\",p_caption,4,FALSE)),VLOOKUP(\"bin\",p_caption,4,FALSE))","v":"БСН"},"БСН / БИН",0,null,1,"БИН"]
["C12",null,"Наименование иностранного банка","Шетелдік банктің атауы",{"$f":"CONCATENATE(IF(B28<>\"\",CONCATENATE(B28,\" \"),\"\"),IF(p_language_current_id=1,C28,IF(p_language_current_id=2,D28,IF(C28=D28,C28,CONCATENATE(D28,IF(F28=0,\" / \",CHAR(10)),C28)))),IF(G28<>\"\",CONCATENATE(\" \",G28),\"\"))","v":"Шетелдік банктің атауы / Наименование иностранного банка"},0,null,1,{"$f":"IF(p_language_current_id=2,CONCATENATE(D28),CONCATENATE(C28))","v":"Наименование иностранного банка"}]
["C13",null,"Страна иностранного банка","Шетел банкінің елі",{"$f":"CONCATENATE(IF(B29<>\"\",CONCATENATE(B29,\" \"),\"\"),IF(p_language_current_id=1,C29,IF(p_language_current_id=2,D29,IF(C29=D29,C29,CONCATENATE(D29,IF(F29=0,\" / \",CHAR(10)),C29)))),IF(G29<>\"\",CONCATENATE(\" \",G29),\"\"))","v":"Шетел банкінің елі / Страна иностранного банка"},0,null,1,{"$f":"IF(p_language_current_id=2,CONCATENATE(D29),CONCATENATE(C29))","v":"Страна иностранного банка"}]
["C14",null,"Учетный номер","Есептік нөмірі","Есептік нөмірі / Учетный номер",0,null,1,"Учетный номер"]
["C15",null,"Период","Кезең","Кезең / Период",0,null,1,"Период"]
["D15",null,"Квартал","Тоқсан","Тоқсан\nКвартал",1,null,1,"Квартал"]
["F15",null,"Год","Жыл","Жыл / Год",0,null,1,"Год"]
["C16",null,"Дата предоставления отчета","Есепті беру күні","Есепті беру күні / Дата предоставления отчета",0,null,1,"Дата предоставления отчета"]
["C17",null,{"$f":"IF(VLOOKUP(p_report_current_id,p_report,COLUMN(p_report_type),FALSE)=4,IF(VLOOKUP(p_report_current_id,p_report,COLUMN(p_report_type)+1,FALSE)=2,VLOOKUP(\"pr_32_currency\",p_caption,3,FALSE),VLOOKUP(\"pr_currency\",p_caption,3,FALSE)),VLOOKUP(\"pb_currency\",p_caption,3,FALSE))","v":"Валюта"},{"$f":"IF(VLOOKUP(p_report_current_id,p_report,COLUMN(p_report_type),FALSE)=4,IF(VLOOKUP(p_report_current_id,p_report,COLUMN(p_report_type)+1,FALSE)=2,VLOOKUP(\"pr_32_currency\",p_caption,4,FALSE),VLOOKUP(\"pr_currency\",p_caption,4,FALSE)),VLOOKUP(\"pb_currency\",p_caption,4,FALSE))","v":"Валюта"},"Валюта",0,null,1,"Валюта"]
["C18",null,{"$f":"IF(VLOOKUP(p_report_current_id,p_report,COLUMN(p_report_type))=4,VLOOKUP(\"position\",p_caption,3,FALSE),VLOOKUP(\"manager\",p_caption,3,FALSE))","v":"Ф.И.О. Руководителя или лица, исполняющего его обязанности"},{"$f":"IF(VLOOKUP(p_report_current_id,p_report,COLUMN(p_report_type),FALSE)=4,VLOOKUP(\"position\",p_caption,4,FALSE),VLOOKUP(\"manager\",p_caption,4,FALSE))","v":"Басшының аты-жөні немесе оның міндетін атқарушы тұлға"},"Басшының аты-жөні немесе оның міндетін атқарушы тұлға\nФ.И.О. Руководителя или лица, исполняющего его обязанности",1,null,1,"Ф.И.О. Руководителя или лица, исполняющего его обязанности"]
["C19",null,{"$f":"IF(VLOOKUP(p_report_current_id,p_report,COLUMN(p_report_type),FALSE)=4,VLOOKUP(\"position_fio\",p_caption,3,FALSE),VLOOKUP(\"accountant\",p_caption,3,FALSE))","v":"Ф.И.О. Главного бухгалтера или лица, исполняющего его обязанности"},{"$f":"IF(VLOOKUP(p_report_current_id,p_report,COLUMN(p_report_type),FALSE)=4,VLOOKUP(\"position_fio\",p_caption,4,FALSE),VLOOKUP(\"accountant\",p_caption,4,FALSE))","v":"Бас бухгалтердің аты-жөні немесе оның міндетін атқарушы тұлға"},"Бас бухгалтердің аты-жөні немесе оның міндетін атқарушы тұлға\nФ.И.О. Главного бухгалтера или лица, исполняющего его обязанности",1,null,1,"Ф.И.О. Главного бухгалтера или лица, исполняющего его обязанности"]
["C20",null,"Ф.И.О. Исполнителя","Орындаушының аты-жөні","Орындаушының аты-жөні / Ф.И.О. Исполнителя",0,null,1,"Ф.И.О. Исполнителя"]
["C21",null,"Телефон исполнителя","Орындаушының телефоны","Орындаушының телефоны / Телефон исполнителя",0,null,1,"Телефон исполнителя"]
["C22",null,"Согласны на распространение первичных статистических данных","Алғашқы статистикалық деректерді таратуға келісеміз","Алғашқы статистикалық деректерді таратуға келісеміз\nСогласны на распространение первичных статистических данных **",1,"**",1,"Согласны на распространение первичных статистических данных"]
["C23",null,"Комментарий","Түсініктемелер","Түсініктемелер\nКомментарий",1,null,1,"Комментарий"]
["C24",null,"Дата отчета","Есептің күні",{"$f":"CONCATENATE(IF(B42<>\"\",CONCATENATE(B42,\" \"),\"\"),IF(p_language_current_id=1,C42,IF(p_language_current_id=2,D42,IF(C42=D42,C42,CONCATENATE(D42,IF(F42=0,\" / \",CHAR(10)),C42)))),IF(G42<>\"\",CONCATENATE(\" \",G42),\"\"))","v":"Есептің күні / Дата отчета"},0,null,1,{"$f":"IF(p_language_current_id=2,CONCATENATE(D42),CONCATENATE(C42))","v":"Дата отчета"}]
["C25",null,"Адрес","Мекен-жайы","Мекен-жайы / Адрес",0,null,1,"Адрес"]
["C26",null,"Стационарный телефон (респондента)","Стационарлық телефоны (респонденттің)",{"$f":"CONCATENATE(IF(B44<>\"\",CONCATENATE(B44,\" \"),\"\"),IF(p_language_current_id=1,C44,IF(p_language_current_id=2,D44,IF(C44=D44,C44,CONCATENATE(D44,IF(F44=0,\" / \",CHAR(10)),C44)))),IF(G44<>\"\",CONCATENATE(\" \",G44),\"\"))","v":"Стационарлық телефоны (респонденттің)\nСтационарный телефон (респондента)"},1,null,1,{"$f":"IF(p_language_current_id=2,CONCATENATE(D44),CONCATENATE(C44))","v":"Стационарный телефон (респондента)"}]
["C27",null,"Мобильный телефон (респондента)","Ұялы телефоны (респонденттің)",{"$f":"CONCATENATE(IF(B45<>\"\",CONCATENATE(B45,\" \"),\"\"),IF(p_language_current_id=1,C45,IF(p_language_current_id=2,D45,IF(C45=D45,C45,CONCATENATE(D45,IF(F45=0,\" / \",CHAR(10)),C45)))),IF(G45<>\"\",CONCATENATE(\" \",G45),\"\"))","v":"Ұялы телефоны (респонденттің)\nМобильный телефон (респондента)"},1,null,1,{"$f":"IF(p_language_current_id=2,CONCATENATE(D45),CONCATENATE(C45))","v":"Мобильный телефон (респондента)"}]
["C28",null,"Адрес электронной почты (респондента)","Электрондық пошта мекенжайы (респонденттің)",{"$f":"CONCATENATE(IF(B46<>\"\",CONCATENATE(B46,\" \"),\"\"),IF(p_language_current_id=1,C46,IF(p_language_current_id=2,D46,IF(C46=D46,C46,CONCATENATE(D46,IF(F46=0,\" / \",CHAR(10)),C46)))),IF(G46<>\"\",CONCATENATE(\" \",G46),\"\"))","v":"Электрондық пошта мекенжайы (респонденттің)\nАдрес электронной почты (респондента)"},1,null,1,{"$f":"IF(p_language_current_id=2,CONCATENATE(D46),CONCATENATE(C46))","v":"Адрес электронной почты (респондента)"},"e-mail респондента"]
["C29",null,"Заполняется Национальным Банком Республики Казахстан","Қазақстан Республикасы Ұлттық Банкі толтырады","Қазақстан Республикасы Ұлттық Банкі толтырады\nЗаполняется Национальным Банком Республики Казахстан",1,null,1,"Заполняется Национальным Банком Республики Казахстан"]
["C30",null,"Дата предоставления отчета","Есепті беру күні",{"$f":"CONCATENATE(IF(B48<>\"\",CONCATENATE(B48,\" \"),\"\"),IF(p_language_current_id=1,C48,IF(p_language_current_id=2,D48,IF(C48=D48,C48,CONCATENATE(D48,IF(F48=0,\" / \",CHAR(10)),C48)))),IF(G48<>\"\",CONCATENATE(\" \",G48),\"\"))","v":"Есепті беру күні / Дата предоставления отчета"},0,null,1,{"$f":"IF(p_language_current_id=2,CONCATENATE(D48),CONCATENATE(C48))","v":"Дата предоставления отчета"}]
["C31",null,"Разделы","Бөлімдер",{"$f":"CONCATENATE(IF(B49<>\"\",CONCATENATE(B49,\" \"),\"\"),IF(p_language_current_id=1,C49,IF(p_language_current_id=2,D49,IF(C49=D49,C49,CONCATENATE(D49,IF(F49=0,\" / \",CHAR(10)),C49)))),IF(G49<>\"\",CONCATENATE(\" \",G49),\"\"))","v":"Бөлімдер\nРазделы"},1,null,1,{"$f":"IF(p_language_current_id=2,CONCATENATE(D49),CONCATENATE(C49))","v":"Разделы"}]
["C34","*","При смене языка данные отчета обнулятся. Выберите язык до начала заполнения отчета","Тілді өзгерткен кезде есептің мәліметтері нөлге аударылады. Есепті толтыра бастамай тілді таңдаңыз.",{"$f":"CONCATENATE(IF(B50<>\"\",CONCATENATE(B50,\" \"),\"\"),IF(p_language_current_id=1,C50,IF(p_language_current_id=2,D50,IF(C50=D50,C50,CONCATENATE(D50,IF(F50=0,\" / \",CHAR(10)),C50)))),IF(G50<>\"\",CONCATENATE(\" \",G50),\"\"))","v":"* Тілді өзгерткен кезде есептің мәліметтері нөлге аударылады. Есепті толтыра бастамай тілді таңдаңыз.\nПри смене языка данные отчета обнулятся. Выберите язык до начала заполнения отчета"},1,null,1,{"$f":"IF(p_language_current_id=2,CONCATENATE(D50),CONCATENATE(C50))","v":"При смене языка данные отчета обнулятся. Выберите язык до начала заполнения отчета"}]
["C36",{"$f":"IF(OR(VLOOKUP(p_report_current_id,p_report,COLUMN(p_report_type),FALSE)=4,VLOOKUP(p_report_current_id,p_report,COLUMN(p_report_type),FALSE)=5),\"\",\"**\")","v":"**"},{"$f":"IF(OR(VLOOKUP(p_report_current_id,p_report,COLUMN(p_report_type),FALSE)=4,VLOOKUP(p_report_current_id,p_report,COLUMN(p_report_type),FALSE)=5),\"\",\"Данный пункт заполняется согласно пункту 5 статьи 8 Закона Республики Казахстан от 19 марта 2010 года «О государственной статистике»\")","v":"Данный пункт заполняется согласно пункту 5 статьи 8 Закона Республики Казахстан от 19 марта 2010 года «О государственной статистике»"},{"$f":"IF(OR(VLOOKUP(p_report_current_id,p_report,COLUMN(p_report_type),FALSE)=4,VLOOKUP(p_report_current_id,p_report,COLUMN(p_report_type),FALSE)=5),\"\",\"Аталған тармақ «Мемлекеттік статистика туралы» Қазақстан Республикасының 2010 жылғы 19 наурыздағы Заңының 8-бабының 5-тармағына сәйкес толтырылады\")","v":"Аталған тармақ «Мемлекеттік статистика туралы» Қазақстан Республикасының 2010 жылғы 19 наурыздағы Заңының 8-бабының 5-тармағына сәйкес толтырылады"},{"$f":"CONCATENATE(IF(B51<>\"\",CONCATENATE(B51,\" \"),\"\"),IF(p_language_current_id=1,C51,IF(p_language_current_id=2,D51,IF(C51=D51,C51,CONCATENATE(D51,IF(F51=0,\" / \",CHAR(10)),C51)))),IF(G51<>\"\",CONCATENATE(\" \",G51),\"\"))","v":"** Аталған тармақ «Мемлекеттік статистика туралы» Қазақстан Республикасының 2010 жылғы 19 наурыздағы Заңының 8-бабының 5-тармағына сәйкес толтырылады\nДанный пункт заполняется согласно пункту 5 статьи 8 Закона Республики Казахстан от 19 марта 2010 года «О государственной статистике»"},1,null,1,{"$f":"IF(p_language_current_id=2,CONCATENATE(D51),CONCATENATE(C51))","v":"Данный пункт заполняется согласно пункту 5 статьи 8 Закона Республики Казахстан от 19 марта 2010 года «О государственной статистике»"}]
["C38",null,"Представление недостоверных и непредставление первичных статистических данных в соответствующие органы государственной статистики в установленный срок являются административными правонарушениями, предусмотренными статьей 497 Кодекса Республики Казахстан «Об административных правонарушениях»","Мемлекеттік статистиканың тиісті органдарына анық емес бастапқы статистикалық деректерді ұсыну және бастапқы статистикалық деректерді белгіленген мерзімде ұсынбау «Әкімшілік құқық бұзушылық туралы» Қазақстан Республикасы Кодексінің 497-бабында көзделген әкімшілік құқық бұзушылықтар болып табылады",{"$f":"CONCATENATE(IF(B52<>\"\",CONCATENATE(B52,\" \"),\"\"),IF(p_language_current_id=1,C52,IF(p_language_current_id=2,D52,IF(C52=D52,C52,CONCATENATE(D52,IF(F52=0,\" / \",CHAR(10)),C52)))),IF(G52<>\"\",CONCATENATE(\" \",G52),\"\"))","v":"Мемлекеттік статистиканың тиісті органдарына анық емес бастапқы статистикалық деректерді ұсыну және бастапқы статистикалық деректерді белгіленген мерзімде ұсынбау «Әкімшілік құқық бұзушылық туралы» Қазақстан Республикасы Кодексінің 497-бабында көзделген әкімшілік құқық бұзушылықтар болып табылады\nПредставление недостоверных и непредставление первичных статистических данных в соответствующие органы государственной статистики в установленный срок являются административными правонарушениями, предусмотренными статьей 497 Кодекса Республики Казахстан «Об административных правонарушениях»"},1,null,1,{"$f":"IF(p_language_current_id=2,CONCATENATE(D52),CONCATENATE(C52))","v":"Представление недостоверных и непредставление первичных статистических данных в соответствующие органы государственной статистики в установленный срок являются административными правонарушениями, предусмотренными статьей 497 Кодекса Республики Казахстан «Об административных правонарушениях»"}]
["p3_title",null,"Содержание","Мазмұны",{"$f":"CONCATENATE(IF(B53<>\"\",CONCATENATE(B53,\" \"),\"\"),IF(p_language_current_id=1,C53,IF(p_language_current_id=2,D53,IF(C53=D53,C53,CONCATENATE(D53,IF(F53=0,\" / \",CHAR(10)),C53)))),IF(G53<>\"\",CONCATENATE(\" \",G53),\"\"))","v":"Мазмұны\nСодержание"},1,null,null,{"$f":"IF(p_language_current_id=2,CONCATENATE(D53),CONCATENATE(C53))","v":"Содержание"}]
["p3_col_check",null,"Укажите (галочкой) заполненные части","Толтырылған бөліктерді көрсетіңіз (қанат белгісімен)","Толтырылған бөліктерді көрсетіңіз (қанат белгісімен)\nУкажите (галочкой) заполненные части",1,null,null,"Укажите (галочкой) заполненные части"]
["p4_g1",null,"Форма","Нысан","Нысан\nФорма",1,null,null,"Форма"]
["p4_d3",null,"Резидент","Резидент","Резидент",1,null,null,"Резидент"]
["p4_e4",null,{"$f":"IF(VLOOKUP(p_report_current_id,p_report,COLUMN(p_report_type),FALSE)=4,IF(VLOOKUP(p_report_current_id,p_report,COLUMN(p_report_type)+1,FALSE)=2,VLOOKUP(\"p4_e42\",p_caption,3,FALSE),VLOOKUP(\"p4_e41\",p_caption,3,FALSE)),\"\")","v":""},{"$f":"IF(VLOOKUP(p_report_current_id,p_report,COLUMN(p_report_type),FALSE)=4,IF(VLOOKUP(p_report_current_id,p_report,COLUMN(p_report_type)+1,FALSE)=2,VLOOKUP(\"p4_e42\",p_caption,4,FALSE),VLOOKUP(\"p4_e41\",p_caption,4,FALSE)),\"\")","v":""},"",1,null,null,""]
["p4_d5",null,{"$f":"IF(VLOOKUP(p_report_current_id,p_report,COLUMN(p_report_type),FALSE)=4,IF(VLOOKUP(p_report_current_id,p_report,COLUMN(p_report_type)+1,FALSE)=2,VLOOKUP(\"p4_d52\",p_caption,3,FALSE),VLOOKUP(\"p4_d51\",p_caption,3,FALSE)),\"\")","v":""},{"$f":"IF(VLOOKUP(p_report_current_id,p_report,COLUMN(p_report_type),FALSE)=4,IF(VLOOKUP(p_report_current_id,p_report,COLUMN(p_report_type)+1,FALSE)=2,VLOOKUP(\"p4_d52\",p_caption,4,FALSE),VLOOKUP(\"p4_d51\",p_caption,4,FALSE)),\"\")","v":""},"",1,null,null,""]
["p4_d6",null,"Учетный номер Национального Банка Республики Казахстан","Қазақстан Республикасы Ұлттық Банкінің есептік нөмірі","Қазақстан Республикасы Ұлттық Банкінің есептік нөмірі\nУчетный номер Национального Банка Республики Казахстан",1,null,null,"Учетный номер Национального Банка Республики Казахстан"]
["p4_d8",null,{"$f":"IF(VLOOKUP(p_report_current_id,p_report,COLUMN(p_report_type),FALSE)=4,IF(VLOOKUP(p_report_current_id,p_report,COLUMN(p_report_type)+1,FALSE)=2,VLOOKUP(\"pr_32_currency\",p_caption,3,FALSE),VLOOKUP(\"pr_currency\",p_caption,3,FALSE)),VLOOKUP(\"pb_currency\",p_caption,3,FALSE))","v":"Валюта"},{"$f":"IF(VLOOKUP(p_report_current_id,p_report,COLUMN(p_report_type),FALSE)=4,IF(VLOOKUP(p_report_current_id,p_report,COLUMN(p_report_type)+1,FALSE)=2,VLOOKUP(\"pr_32_currency\",p_caption,4,FALSE),VLOOKUP(\"pr_currency\",p_caption,4,FALSE)),VLOOKUP(\"pb_currency\",p_caption,4,FALSE))","v":"Валюта"},"Валюта",1,null,null,"Валюта"]
["p4_d7",null,"Наименование иностранного банка, страна","Шетелдік банктің атауы, елі","Шетелдік банктің атауы, елі\nНаименование иностранного банка, страна",1,null,null,"Наименование иностранного банка, страна"]
["p4_e41",null,"(фамилия, имя, отчество (при наличии) физического лица, наименование юридического лица)","(жеке тұлғаның тегі, аты, әкесінің аты (бар болса), заңды тұлғаның атауы)","(жеке тұлғаның тегі, аты, әкесінің аты (бар болса), заңды тұлғаның атауы)\n(фамилия, имя, отчество (при наличии) физического лица, наименование юридического лица)",1,null,null,"(фамилия, имя, отчество (при наличии) физического лица, наименование юридического лица)"]
["p4_e42",null,"(наименование юридического лица)","(заңды тұлғаның атауы)","(заңды тұлғаның атауы)\n(наименование юридического лица)",1,null,null,"(наименование юридического лица)"]
["p4_d51",null,"Индивидуальный идентификационный номер, бизнес-идентификационный номер","Жеке сәйкестендіру нөмірі, бизнес сәйкестендіру нөмірі","Жеке сәйкестендіру нөмірі, бизнес сәйкестендіру нөмірі\nИндивидуальный идентификационный номер, бизнес-идентификационный номер",1,null,null,"Индивидуальный идентификационный номер, бизнес-идентификационный номер"]
["p4_d52",null,"Бизнес-идентификационный номер","Бизнес сәйкестендіру нөмірі","Бизнес сәйкестендіру нөмірі\nБизнес-идентификационный номер",1,null,null,"Бизнес-идентификационный номер"]
["indicator_name_1",null,"Виды услуг","Қызмет түрлері","Қызмет түрлері / Виды услуг",0,null,null,"Виды услуг"]
["indicator_name_2",null," "," "," ",1,null,null," "]
["cols_num",null,"№","№","№",1,null,null,"№"]
["pb_str_1",null,"Код показателя из формы 1-ПБ, указанный в части 5.1","5.1-бөлігінде көрсетілген 1-ТБ нысанынан көрсеткіштің коды","5.1-бөлігінде көрсетілген 1-ТБ нысанынан көрсеткіштің коды\nКод показателя из формы 1-ПБ, указанный в части 5.1",1,null,null,"Код показателя из формы 1-ПБ, указанный в части 5.1"]
["pb_value_1",null,"Задолженность, указанная в части 5.1","5.1-бөлігінде көрсетілген берешек","5.1-бөлігінде көрсетілген берешек\nЗадолженность, указанная в части 5.1",1,null,null,"Задолженность, указанная в части 5.1"]
["pb_str_2",null,"Код показателя из формы 1-ПБ, указанный в части 6.1","6.1-бөлігінде көрсетілген 1-ТБ нысанынан көрсеткіштің коды","6.1-бөлігінде көрсетілген 1-ТБ нысанынан көрсеткіштің коды\nКод показателя из формы 1-ПБ, указанный в части 6.1",1,null,null,"Код показателя из формы 1-ПБ, указанный в части 6.1"]
["pb_value_2",null,"Задолженность, указанная в части 6.1","6.1-бөлігінде көрсетілген берешек","6.1-бөлігінде көрсетілген берешек\nЗадолженность, указанная в части 6.1",1,null,null,"Задолженность, указанная в части 6.1"]
["indicator_name",null,"Наименование показателя","Көрсеткіштің атауы","Көрсеткіштің атауы\nНаименование показателя",1,null,null,"Наименование показателя"]
["indicator_code",null,{"$f":"IF(p_report_current_id=8,C76,C75)","v":"Код показателя"},{"$f":"IF(p_report_current_id=8,D76,D75)","v":"Көрсеткіш коды"},"Көрсеткіш коды\nКод показателя",1,null,null,"Код показателя"]
["indicator_code_1",null,"Код показателя","Көрсеткіш коды",{"$f":"CONCATENATE(IF(B75<>\"\",CONCATENATE(B75,\" \"),\"\"),IF(p_language_current_id=1,C75,IF(p_language_current_id=2,D75,IF(C75=D75,C75,CONCATENATE(D75,IF(F75=0,\" / \",CHAR(10)),C75)))),IF(G75<>\"\",CONCATENATE(\" \",G75),\"\"))","v":"Көрсеткіш коды\nКод показателя"},1,null,null,{"$f":"IF(p_language_current_id=2,CONCATENATE(D75),CONCATENATE(C75))","v":"Код показателя"}]
["indicator_code_2",null,"Код строки","Жол коды","Жол коды\nКод строки",1,null,null,"Код строки"]
["indicator_num",null,"№","№","№",1,null,null,"№"]
["indicator_style",null,"Код стиля","Код стиля","Код стиля",1,null,null,"Код стиля"]
["indicator_short",null,"Короткий код строки","Короткий код строки",{"$f":"CONCATENATE(IF(B79<>\"\",CONCATENATE(B79,\" \"),\"\"),IF(p_language_current_id=1,C79,IF(p_language_current_id=2,D79,IF(C79=D79,C79,CONCATENATE(D79,IF(F79=0,\" / \",CHAR(10)),C79)))),IF(G79<>\"\",CONCATENATE(\" \",G79),\"\"))","v":"Короткий код строки"},1,null,null,{"$f":"IF(p_language_current_id=2,CONCATENATE(D79),CONCATENATE(C79))","v":"Короткий код строки"}]
["indicator_col_code",null,192,192,"192",1,null,null,"192"]
["indicator_col_name",null,"Наименование графы","Баған атауы","Баған атауы\nНаименование графы",1,null,null,"Наименование графы"]
["c_1","*","Ф.И.О. – Фамилия, имя, отчество (при наличии)","Т.А.Ә. – Тегі, аты, әкесінің аты (бар болған жағдайында)","* Т.А.Ә. – Тегі, аты, әкесінің аты (бар болған жағдайында)\nФ.И.О. – Фамилия, имя, отчество (при наличии)",1,null,null,"Ф.И.О. – Фамилия, имя, отчество (при наличии)"]
["c_2","**","БИН(бизнес идентификационный номер)/ ИИН (индивидуальный идентификационный номер)/ ИНР (идентификационный номер регистрации) – идентификационные номера, присваиваемые в соответствии с законодательством Казахстана/иностранного государства","БСН (бизнес-сәйкестендіру номері)/ ЖСН (жеке сәйкестендіру номері)/ ТСН (тіркеу сәйкестендіру номері) – Қазақстанның/шет елдің заңнамасына сәйкес берілген сәйкестендіру номерлері","** БСН (бизнес-сәйкестендіру номері)/ ЖСН (жеке сәйкестендіру номері)/ ТСН (тіркеу сәйкестендіру номері) – Қазақстанның/шет елдің заңнамасына сәйкес берілген сәйкестендіру номерлері\nБИН(бизнес идентификационный номер)/ ИИН (индивидуальный идентификационный номер)/ ИНР (идентификационный номер регистрации) – идентификационные номера, присваиваемые в соответствии с законодательством Казахстана/иностранного государства",1,null,null,"БИН(бизнес идентификационный номер)/ ИИН (индивидуальный идентификационный номер)/ ИНР (идентификационный номер регистрации) – идентификационные номера, присваиваемые в соответствии с законодательством Казахстана/иностранного государства"]
["c_3","*","Долл. США – в тысячах долларов Соединенных штатов Америки","АҚШ долл. – мың Америка құрама штаттарының долларында","* АҚШ долл. – мың Америка құрама штаттарының долларында\nДолл. США – в тысячах долларов Соединенных штатов Америки",1,null,null,"Долл. США – в тысячах долларов Соединенных штатов Америки"]
["c_0",null,1,2,"2\n1",1,null,null,"1"]
["c_0x2",null,"1\n1","2\n2","2\n2\n1\n1",1,null,null,"1\n1"]
["currency_0",null,"тенге","теңге","теңге / тенге",0,null,null,"тенге"]
["currency_1",null,"в тыс. долл. США","мың АҚШ долл.",{"$f":"CONCATENATE(IF(B88<>\"\",CONCATENATE(B88,\" \"),\"\"),IF(p_language_current_id=1,C88,IF(p_language_current_id=2,D88,IF(C88=D88,C88,CONCATENATE(D88,IF(F88=0,\" / \",CHAR(10)),C88)))),IF(G88<>\"\",CONCATENATE(\" \",G88),\"\"))","v":"мың АҚШ долл.\nв тыс. долл. США *"},1,"*",null,{"$f":"IF(p_language_current_id=2,CONCATENATE(D88),CONCATENATE(C88))","v":"в тыс. долл. США"}]
["currency_2",null,"в тысячах долларов Соединенных штатов Америки","мың Америка құрама штаттарының долларында","мың Америка құрама штаттарының долларында\nв тысячах долларов Соединенных штатов Америки",1,null,null,"в тысячах долларов Соединенных штатов Америки"]
["currency_3",null,"тысяч единиц валюты счета","шот валютасының мың бірлігі","шот валютасының мың бірлігі\nтысяч единиц валюты счета",1,null,null,"тысяч единиц валюты счета"]
["currency_7",null,"тысяч единиц валюты валютного договора","валюталық шарт валютасының мың бірлігі","валюталық шарт валютасының мың бірлігі\nтысяч единиц валюты валютного договора",1,null,null,"тысяч единиц валюты валютного договора"]
["currency_4",null,"тысяч долларов Соединенных Штатов Америки (далее – США)","мың Америка Құрама Штаттарының (бұдан әрі – АҚШ) доллары","мың Америка Құрама Штаттарының (бұдан әрі – АҚШ) доллары\nтысяч долларов Соединенных Штатов Америки (далее – США)",1,null,null,"тысяч долларов Соединенных Штатов Америки (далее – США)"]
["currency_5",null,"тысяч долларов США","мың АҚШ доллары","мың АҚШ доллары\nтысяч долларов США",1,null,null,"тысяч долларов США"]
["currency_6",null,"тысяч долларов Соединенных Штатов Америки","мың Америка Құрама Штаттарының доллары","мың Америка Құрама Штаттарының доллары\nтысяч долларов Соединенных Штатов Америки",1,null,null,"тысяч долларов Соединенных Штатов Америки"]
["currency_8",null,"в тысячах долларов Соединенных Штатов Америки (далее – США)","Америка Құрама Штаттарының (бұдан әрі – АҚШ) мың долларымен","Америка Құрама Штаттарының (бұдан әрі – АҚШ) мың долларымен\nв тысячах долларов Соединенных Штатов Америки (далее – США)",1,null,null,"в тысячах долларов Соединенных Штатов Америки (далее – США)"]
["currency_9",null,"в тысячах долларов США","мың АҚШ долларымен","мың АҚШ долларымен\nв тысячах долларов США",1,null,null,"в тысячах долларов США"]
["currency_10",null,"в тысячах единиц валюты счета","шот валютасының мың бірлігімен",{"$f":"CONCATENATE(IF(B97<>\"\",CONCATENATE(B97,\" \"),\"\"),IF(p_language_current_id=1,C97,IF(p_language_current_id=2,D97,IF(C97=D97,C97,CONCATENATE(D97,IF(F97=0,\" / \",CHAR(10)),C97)))),IF(G97<>\"\",CONCATENATE(\" \",G97),\"\"))","v":"шот валютасының мың бірлігімен\nв тысячах единиц валюты счета"},1,null,null,{"$f":"IF(p_language_current_id=2,CONCATENATE(D97),CONCATENATE(C97))","v":"в тысячах единиц валюты счета"}]
["cols_code",null,"Код графы","Бағана коды","Бағана коды\nКод графы",1,null,null,"Код графы"]
["cols_short",null,"Короткий код графы","Короткий код графы","Короткий код графы",1,null,null,"Короткий код графы"]
["cols_name",null,"Наименование графы","Баған атауы","Баған атауы\nНаименование графы",1,null,null,"Наименование графы"]
["cols_style",null,"Код стиля","Код стиля","Код стиля",1,null,null,"Код стиля"]
["col_name_1",null,"в том числе","оның ішінде","оның ішінде\nв том числе :",1,":",null,"в том числе"]
["col_name_2",null,"Всего","Барлығы","Барлығы\nВсего",1,null,null,"Всего"]
["col_name_3",null,"По видам валют","Валюта түрлері бойынша","Валюта түрлері бойынша / По видам валют",0,null,null,"По видам валют"]
["bank_name",null,"Наименование иностранного банка","Шетелдік банктің атауы",{"$f":"CONCATENATE(IF(B105<>\"\",CONCATENATE(B105,\" \"),\"\"),IF(p_language_current_id=1,C105,IF(p_language_current_id=2,D105,IF(C105=D105,C105,CONCATENATE(D105,IF(F105=0,\" / \",CHAR(10)),C105)))),IF(G105<>\"\",CONCATENATE(\" \",G105),\"\"))","v":"Шетелдік банктің атауы\nНаименование иностранного банка"},1,null,null,{"$f":"IF(p_language_current_id=2,CONCATENATE(D105),CONCATENATE(C105))","v":"Наименование иностранного банка"}]
["country_name",null,{"$f":"C108","v":"Наименование страны"},{"$f":"D108","v":"Елдің атауы"},{"$f":"CONCATENATE(IF(B106<>\"\",CONCATENATE(B106,\" \"),\"\"),IF(p_language_current_id=1,C106,IF(p_language_current_id=2,D106,IF(C106=D106,C106,CONCATENATE(D106,IF(F106=0,\" / \",CHAR(10)),C106)))),IF(G106<>\"\",CONCATENATE(\" \",G106),\"\"))","v":"Елдің атауы\nНаименование страны"},1,null,null,{"$f":"IF(p_language_current_id=2,CONCATENATE(D106),CONCATENATE(C106))","v":"Наименование страны"}]
["country_name_1",null,"Страна регистрации","Тіркелген елі",{"$f":"CONCATENATE(IF(B107<>\"\",CONCATENATE(B107,\" \"),\"\"),IF(p_language_current_id=1,C107,IF(p_language_current_id=2,D107,IF(C107=D107,C107,CONCATENATE(D107,IF(F107=0,\" / \",CHAR(10)),C107)))),IF(G107<>\"\",CONCATENATE(\" \",G107),\"\"))","v":"Тіркелген елі\nСтрана регистрации"},1,null,null,{"$f":"IF(p_language_current_id=2,CONCATENATE(D107),CONCATENATE(C107))","v":"Страна регистрации"}]
["country_name_2",null,"Наименование страны","Елдің атауы",{"$f":"CONCATENATE(IF(B108<>\"\",CONCATENATE(B108,\" \"),\"\"),IF(p_language_current_id=1,C108,IF(p_language_current_id=2,D108,IF(C108=D108,C108,CONCATENATE(D108,IF(F108=0,\" / \",CHAR(10)),C108)))),IF(G108<>\"\",CONCATENATE(\" \",G108),\"\"))","v":"Елдің атауы\nНаименование страны"},1,null,null,{"$f":"IF(p_language_current_id=2,CONCATENATE(D108),CONCATENATE(C108))","v":"Наименование страны"}]
["err_caption",null,"Ошибка ввода данных","Мәліметтерді енгізу қатесі","Мәліметтерді енгізу қатесі / Ошибка ввода данных",0,null,null,"Ошибка ввода данных"]
["warning_caption",null,"Предупреждение","Ескертпе","Ескертпе / Предупреждение",0,null,null,"Предупреждение"]
["pb_01_code",null,"Код показателя из формы 1-ПБ","1-ТБ нысанынан көрсеткіштің коды","1-ТБ нысанынан көрсеткіштің коды / Код показателя из формы 1-ПБ",0,null,null,"Код показателя из формы 1-ПБ"]
["pb_01_value",null,"Задолженность на _ (в тыс. долл. США)","_ жағдайы бойынша берешек (мың АҚШ долл.)","_ жағдайы бойынша берешек (мың АҚШ долл.) / Задолженность на _ (в тыс. долл. США) * **",0,"* **",null,"Задолженность на _ (в тыс. долл. США)"]
["enterprise",null,"Предприятие","Кәсіпорын","Кәсіпорын / Предприятие",0,null,null,"Предприятие"]
["enterprise_name",null,"Наименование юридического лица","Заңды тұлғаның атауы","Заңды тұлғаның атауы / Наименование юридического лица",0,null,null,"Наименование юридического лица"]
["resident_name",null,"Фамилия, имя, отчество (при наличии) физического лица, наименование юридического лица","Жеке тұлғаның тегі, аты, әкесінің аты (бар болса), заңды тұлғаның атауы","Жеке тұлғаның тегі, аты, әкесінің аты (бар болса), заңды тұлғаның атауы / Фамилия, имя, отчество (при наличии) физического лица, наименование юридического лица",0,null,null,"Фамилия, имя, отчество (при наличии) физического лица, наименование юридического лица"]
["agent_name",null,"Наименование предприятия/ФИО физического лица","Кәсіпорынның атауы/жеке тұлғаның Т.А.Ә.","Кәсіпорынның атауы/жеке тұлғаның Т.А.Ә. / Наименование предприятия/ФИО физического лица",0,null,null,"Наименование предприятия/ФИО физического лица"]
["enterprise_name_1",null,"наименование филиала (представительства) иностранной нефинансовой организации, осуществляющего деятельность в Республике Казахстан более одного года (далее – филиал (представительство)","Қазақстан Республикасында қызметін бір жылдан астам жүзеге асыратын шетелдік қаржылық емес ұйым филиалының (өкілдігінің) (бұдан әрі – филиал (өкілдік) атауы","Қазақстан Республикасында қызметін бір жылдан астам жүзеге асыратын шетелдік қаржылық емес ұйым филиалының (өкілдігінің) (бұдан әрі – филиал (өкілдік) атауы / наименование филиала (представительства) иностранной нефинансовой организации, осуществляющего деятельность в Республике Казахстан более одного года (далее – филиал (представительство)",0,null,null,"наименование филиала (представительства) иностранной нефинансовой организации, осуществляющего деятельность в Республике Казахстан более одного года (далее – филиал (представительство)"]
["bin",null,"БИН","БСН","БСН / БИН",0,null,null,"БИН"]
["agent_bin",null,"ИИН/БИН","ЖСН/БСН","ЖСН/БСН / ИИН/БИН",0,null,null,"ИИН/БИН"]
["bin_1",null,"Бизнес-идентификационный номер (далее – БИН)","Бизнес-сәйкестендіру нөмірі (бұдан әрі – БСН)","Бизнес-сәйкестендіру нөмірі (бұдан әрі – БСН)\nБизнес-идентификационный номер (далее – БИН)",1,null,null,"Бизнес-идентификационный номер (далее – БИН)"]
["is_enterprise",null,"Юридическое лицо","Юридическое лицо","Юридическое лицо",0,null,null,"Юридическое лицо"]
["select",null,"Выберите из списка","Выберите из списка","Выберите из списка",0,null,null,"Выберите из списка"]
["manager",null,"Ф.И.О. Руководителя или лица, исполняющего его обязанности","Басшының аты-жөні немесе оның міндетін атқарушы тұлға","Басшының аты-жөні немесе оның міндетін атқарушы тұлға / Ф.И.О. Руководителя или лица, исполняющего его обязанности",0,null,null,"Ф.И.О. Руководителя или лица, исполняющего его обязанности"]
["position",null,"Должность","Лауазымы","Лауазымы / Должность",0,null,null,"Должность"]
["accountant",null,"Ф.И.О. Главного бухгалтера или лица, исполняющего его обязанности","Бас бухгалтердің аты-жөні немесе оның міндетін атқарушы тұлға",{"$f":"CONCATENATE(IF(B125<>\"\",CONCATENATE(B125,\" \"),\"\"),IF(p_language_current_id=1,C125,IF(p_language_current_id=2,D125,IF(C125=D125,C125,CONCATENATE(D125,IF(F125=0,\" / \",CHAR(10)),C125)))),IF(G125<>\"\",CONCATENATE(\" \",G125),\"\"))","v":"Бас бухгалтердің аты-жөні немесе оның міндетін атқарушы тұлға / Ф.И.О. Главного бухгалтера или лица, исполняющего его обязанности"},0,null,null,{"$f":"IF(p_language_current_id=2,CONCATENATE(D125),CONCATENATE(C125))","v":"Ф.И.О. Главного бухгалтера или лица, исполняющего его обязанности"}]
["position_fio",null,"Ф.И.О. руководителя (главного бухгалтера)","Басшының (бас бухгалтердің) Т.А.Ә.","Басшының (бас бухгалтердің) Т.А.Ә. / Ф.И.О. руководителя (главного бухгалтера)",0,null,null,"Ф.И.О. руководителя (главного бухгалтера)"]
["pr_32_currency",null,"Валюта счета","Шот валютасы","Шот валютасы / Валюта счета",0,null,null,"Валюта счета"]
["pr_currency",null,"Валюта договора","Шарттың валютасы","Шарттың валютасы / Валюта договора",0,null,null,"Валюта договора"]
["pb_currency",null,"Валюта","Валюта","Валюта",0,null,null,"Валюта"]
["ok",null,"Ок","Ок","Ок",0,null,null,"Ок"]
["cancel",null,"Отмена","Болдырмау","Болдырмау / Отмена",0,null,null,"Отмена"]
["add",null,"Добавить","Қосу","Қосу / Добавить",0,null,null,"Добавить"]
["del",null,"Удалить","Алып тастау","Алып тастау / Удалить",0,null,null,"Удалить"]
["edit",null,"Изменить","Өзгерту","Өзгерту / Изменить",0,null,null,"Изменить"]
["clear",null,"Очистить","Тазалау","Тазалау / Очистить",0,null,null,"Очистить"]
["sort",null,"Сортировать","Сұрыптау","Сұрыптау / Сортировать",0,null,null,"Сортировать"]
["find",null,"Найти","Табу","Табу / Найти",0,null,null,"Найти"]
["search",null,"Поиск","Іздеу","Іздеу / Поиск",0,null,null,"Поиск"]
["err_field",null,"Значение поля \"{0}\" имеет недопустимое значение.","\"{0}\" жолының мәні жарамайды.","\"{0}\" жолының мәні жарамайды. / Значение поля \"{0}\" имеет недопустимое значение.",0,null,null,"Значение поля \"{0}\" имеет недопустимое значение."]
["err_double",null,"Значение поля \"{0}\" дублируется.","начение поля \"{0}\" дублируется.","начение поля \"{0}\" дублируется. / Значение поля \"{0}\" дублируется.",0,null,null,"Значение поля \"{0}\" дублируется."]
["err_list",null,"Значение поля {0} не найдено в списке.","{0} жолының мәні тізімде табылмады.","{0} жолының мәні тізімде табылмады. / Значение поля {0} не найдено в списке.",0,null,null,"Значение поля {0} не найдено в списке."]
["err_quarter",null,"Значение поля \"Квартал\" может иметь только следующие значения: \"1\", \"2\", \"3\", \"4\".","\"Тоқсан\" жолы тек келесі мәндерді қабылдай алады: \"1\", \"2\", \"3\", \"4\".","\"Тоқсан\" жолы тек келесі мәндерді қабылдай алады: \"1\", \"2\", \"3\", \"4\". / Значение поля \"Квартал\" может иметь только следующие значения: \"1\", \"2\", \"3\", \"4\".",0,null,null,"Значение поля \"Квартал\" может иметь только следующие значения: \"1\", \"2\", \"3\", \"4\"."]
["err_year",null,"Значение поля \"Год\" должно лежать в диапазоне от {0} до {1}","\"Жылы\" жолының мәні {0} бастап {1} дейінгі диапазонда болу керек.","\"Жылы\" жолының мәні {0} бастап {1} дейінгі диапазонда болу керек. / Значение поля \"Год\" должно лежать в диапазоне от {0} до {1}",0,null,null,"Значение поля \"Год\" должно лежать в диапазоне от {0} до {1}"]
["err_date",null,"Значение поля {0} должно лежать в диапазоне от {1} до {2}.","{0} жолының мәні {1} бастап {3} дейінгі диапазонда болу керек.","{0} жолының мәні {1} бастап {3} дейінгі диапазонда болу керек. / Значение поля {0} должно лежать в диапазоне от {1} до {2}.",0,null,null,"Значение поля {0} должно лежать в диапазоне от {1} до {2}."]
["err_message",null,"Значение поля имеет недопустимое значение.","Жолдың мәні жарамайды.","Жолдың мәні жарамайды. / Значение поля имеет недопустимое значение.",0,null,null,"Значение поля имеет недопустимое значение."]
["err_extra",null,"Один или более листов с дополнительными данными не скрыт. Хотите ли Вы скрыть их?","Қосымша мәліметтері бар бір және одан астам парақ жасырылмаған. Оларды жасырғыңыз келеді ме?","Қосымша мәліметтері бар бір және одан астам парақ жасырылмаған. Оларды жасырғыңыз келеді ме? / Один или более листов с дополнительными данными не скрыт. Хотите ли Вы скрыть их?",0,null,null,"Один или более листов с дополнительными данными не скрыт. Хотите ли Вы скрыть их?"]
["err_protect",null,"Книга или один или более листов с  не защищен. Хотите ли Вы защитить их?","Бір және одан астам парақ қорғалмаған. Оларды қорғағыңыз келеді ме?","Бір және одан астам парақ қорғалмаған. Оларды қорғағыңыз келеді ме? / Книга или один или более листов с  не защищен. Хотите ли Вы защитить их?",0,null,null,"Книга или один или более листов с  не защищен. Хотите ли Вы защитить их?"]
["err_part",null,"Значение поля \"Раздел\" имеет недопустимое значение.","\"Бөлім\" жолының мәні жарамайды.","\"Бөлім\" жолының мәні жарамайды. / Значение поля \"Раздел\" имеет недопустимое значение.",0,null,null,"Значение поля \"Раздел\" имеет недопустимое значение."]
["err_n2",null,"Тип данных вводимой Вами информации должен иметь числовой тип. Максимальное количество знаков после разделителя дробной части - 2.","Сіз енгізетін ақпараттың мәліметтерінің типі сандық болуға тиіс. Бөлшек бөлігінің бөлгішінен кейінгі белгілердің максималды саны - 2.","Сіз енгізетін ақпараттың мәліметтерінің типі сандық болуға тиіс. Бөлшек бөлігінің бөлгішінен кейінгі белгілердің максималды саны - 2. / Тип данных вводимой Вами информации должен иметь числовой тип. Максимальное количество знаков после разделителя дробной части - 2.",0,null,null,"Тип данных вводимой Вами информации должен иметь числовой тип. Максимальное количество знаков после разделителя дробной части - 2."]
["err_n",null,"Тип данных вводимой Вами информации должен иметь числовой тип.","Сіз енгізетін ақпараттың мәліметтерінің типі сандық болуға тиіс.","Сіз енгізетін ақпараттың мәліметтерінің типі сандық болуға тиіс. / Тип данных вводимой Вами информации должен иметь числовой тип.",0,null,null,"Тип данных вводимой Вами информации должен иметь числовой тип."]
["err_p2",null,"Тип данных вводимой Вами информации должен иметь числовой тип. Максимальное количество знаков после разделителя дробной части - 2. Значение должнобыть больше 0.","Тип данных вводимой Вами информации должен иметь числовой тип. Максимальное количество знаков после разделителя дробной части - 2. Значение должнобыть больше 0.","Тип данных вводимой Вами информации должен иметь числовой тип. Максимальное количество знаков после разделителя дробной части - 2. Значение должнобыть больше 0.",0,null,null,"Тип данных вводимой Вами информации должен иметь числовой тип. Максимальное количество знаков после разделителя дробной части - 2. Значение должнобыть больше 0."]
["err_p",null,"Тип данных вводимой Вами информации должен иметь числовой тип. Значение должнобыть больше 0.","Тип данных вводимой Вами информации должен иметь числовой тип. Значение должнобыть больше 0.","Тип данных вводимой Вами информации должен иметь числовой тип. Значение должнобыть больше 0.",0,null,null,"Тип данных вводимой Вами информации должен иметь числовой тип. Значение должнобыть больше 0."]
["err_find",null,"Не заданы параметры поиска","Тип данных вводимой Вами информации должен иметь числовой тип. Значение должнобыть больше 0.","Тип данных вводимой Вами информации должен иметь числовой тип. Значение должнобыть больше 0. / Не заданы параметры поиска",0,null,null,"Не заданы параметры поиска"]
["err_detail",null,"Не выбрано ни одной расшифровки","Не выбрано ни одной расшифровки","Не выбрано ни одной расшифровки",0,null,null,"Не выбрано ни одной расшифровки"]
["part",null,"Раздел","Бөлім","Бөлім / Раздел",0,null,null,"Раздел"]
["str",null,"Показатель","Показатель","Показатель",0,null,null,"Показатель"]
["count",null,"Количество строк","Количество строк","Количество строк",0,null,null,"Количество строк"]
["total",null,"Всего","Барлығы","Барлығы\nВсего",1,null,null,"Всего"]
["password",null,"Пароль","Паролі",{"$f":"CONCATENATE(IF(B159<>\"\",CONCATENATE(B159,\" \"),\"\"),IF(p_language_current_id=1,C159,IF(p_language_current_id=2,D159,IF(C159=D159,C159,CONCATENATE(D159,IF(F159=0,\" / \",CHAR(10)),C159)))),IF(G159<>\"\",CONCATENATE(\" \",G159),\"\"))","v":"Паролі / Пароль"},0,null,null,{"$f":"CONCATENATE(A159,\"|\",C159,\"|\",D159)","v":"password|Пароль|Паролі"}]
["err_password",null,"Неверный пароль","Паролі дұрыс емес","Паролі дұрыс емес\nНеверный пароль",1,null,null,"err_password|Неверный пароль|Паролі дұрыс емес"]
["Data entry in account",null,"Ввод данных в отчет","Ввод данных в отчет","Ввод данных в отчет",0,null,null,"Data entry in account|Ввод данных в отчет|Ввод данных в отчет"]
["Data edit on sheet",null,"Изменение данных на листах","Изменение данных на листах","Изменение данных на листах",0,null,null,"Data edit on sheet|Изменение данных на листах|Изменение данных на листах"]
["Data edit on sheet with deposit",null,"Вклады","Салымдар","Салымдар / Вклады",0,null,null,"Data edit on sheet with deposit|Вклады|Салымдар"]
["Add deposit",null,"Добавить вклад","Добавить вклад","Добавить вклад",0,null,null,"Add deposit|Добавить вклад|Добавить вклад"]
["Delete deposit",null,"Удалить вклад","Удалить вклад","Удалить вклад",0,null,null,"Delete deposit|Удалить вклад|Удалить вклад"]
["Data edit on sheet with agent",null,"Инвесторы","Инвесторлар","Инвесторлар / Инвесторы",0,null,null,"Data edit on sheet with agent|Инвесторы|Инвесторлар"]
["Add agent",null,"Добавить инвестора","Добавить инвестора","Добавить инвестора",0,null,null,"Add agent|Добавить инвестора|Добавить инвестора"]
["Delete agent",null,"Удалить инвестора","Удалить инвестора","Удалить инвестора",0,null,null,"Delete agent|Удалить инвестора|Удалить инвестора"]
["Edit agent",null,"Изменить инвестора","Изменить инвестора","Изменить инвестора",0,null,null,"Edit agent|Изменить инвестора|Изменить инвестора"]
["Sort agent",null,"Сортировать инвесторов","Сортировать инвесторов","Сортировать инвесторов",0,null,null,"Sort agent|Сортировать инвесторов|Сортировать инвесторов"]
["Data edit on sheet with str",null,"Строки","Строки","Строки",0,null,null,"Data edit on sheet with str|Строки|Строки"]
["Add str",null,"Добавить строку","Добавить строку","Добавить строку",0,null,null,"Add str|Добавить строку|Добавить строку"]
["Delete str",null,"Удалить строку","Удалить строку","Удалить строку",0,null,null,"Delete str|Удалить строку|Удалить строку"]
["Data edit on sheet with str pr",null,"Отправители","Жөнелтуші","Жөнелтуші / Отправители",0,null,null,"Data edit on sheet with str pr|Отправители|Жөнелтуші"]
["Add str pr",null,"Добавить отправителя","Добавить отправителя","Добавить отправителя",0,null,null,"Add str pr|Добавить отправителя|Добавить отправителя"]
["Delete str pr",null,"Удалить отправителя","Удалить отправителя","Удалить отправителя",0,null,null,"Delete str pr|Удалить отправителя|Удалить отправителя"]
["Str opb",null,"Строки для разделов 2 листа","Строки для разделов 2 листа","Строки для разделов 2 листа",0,null,null,"Str opb|Строки для разделов 2 листа|Строки для разделов 2 листа"]
["Add opb",null,"Добавить строку","Жолды қосу","Жолды қосу / Добавить строку",0,null,null,{"$f":"IF(p_language_current_id=2,CONCATENATE(D178),CONCATENATE(C178))","v":"Добавить строку"}]
["Delete opb",null,"Удалить строку","Жолды алып тастау","Жолды алып тастау / Удалить строку",0,null,null,"Удалить строку"]
["Str pr",null,"Отправители","Жөнелтуші","Жөнелтуші / Отправители",0,null,null,"Отправители"]
["Add pr",null,"Добавить отправителя","Добавить отправителя","Добавить отправителя",0,null,null,"Добавить отправителя"]
["Delete pr",null,"Удалить отправителя","Удалить отправителя","Удалить отправителя",0,null,null,"Удалить отправителя"]
["Data edit on sheet with pb 01",null,"Показатели 1-ПБ для разделов 5 и 6 листа","Показатели 1-ПБ для разделов 5 и 6 листа","Показатели 1-ПБ для разделов 5 и 6 листа",0,null,null,"Показатели 1-ПБ для разделов 5 и 6 листа"]
["Add Pb 01",null,"Добавить показатель 1-ПБ","Добавить показатель 1-ПБ","Добавить показатель 1-ПБ",0,null,null,"Добавить показатель 1-ПБ"]
["Delete Pb 01",null,"Удалить показатель 1-ПБ","Удалить показатель 1-ПБ","Удалить показатель 1-ПБ",0,null,null,"Удалить показатель 1-ПБ"]
["Data edit on sheet with bank",null,"Банки","Банки","Банки",0,null,null,"Банки"]
["Add bank",null,"Добавить банк","Добавить банк","Добавить банк",0,null,null,"Добавить банк"]
["Delete bank",null,"Удалить банк","Удалить банк","Удалить банк",0,null,null,"Удалить банк"]
["Edit bank",null,"Изменить банк","Изменить банк","Изменить банк",0,null,null,"Изменить банк"]
["Sort bank",null,"Сортировать банки","Сортировать банки","Сортировать банки",0,null,null,"Сортировать банки"]
["Old bank",null,"Банк для изменения","Банк для изменения",{"$f":"CONCATENATE(IF(B191<>\"\",CONCATENATE(B191,\" \"),\"\"),IF(p_language_current_id=1,C191,IF(p_language_current_id=2,D191,IF(C191=D191,C191,CONCATENATE(D191,IF(F191=0,\" / \",CHAR(10)),C191)))),IF(G191<>\"\",CONCATENATE(\" \",G191),\"\"))","v":"Банк для изменения"},0,null,null,{"$f":"IF(p_language_current_id=2,CONCATENATE(D191),CONCATENATE(C191))","v":"Банк для изменения"}]
["Data edit on sheet with country",null,"Страны","Страны",{"$f":"CONCATENATE(IF(B192<>\"\",CONCATENATE(B192,\" \"),\"\"),IF(p_language_current_id=1,C192,IF(p_language_current_id=2,D192,IF(C192=D192,C192,CONCATENATE(D192,IF(F192=0,\" / \",CHAR(10)),C192)))),IF(G192<>\"\",CONCATENATE(\" \",G192),\"\"))","v":"Страны"},0,null,null,"Страны"]
["Add country",null,"Добавить страну","Добавить страну","Добавить страну",0,null,null,"Добавить страну"]
["Delete country",null,"Удалить страну","Удалить страну","Удалить страну",0,null,null,"Удалить страну"]
["Edit country",null,"Изменить страну","Изменить страну","Изменить страну",0,null,null,"Изменить страну"]
["Sort country",null,"Сортировать страны","Сортировать страны","Сортировать страны",0,null,null,"Сортировать страны"]
["Old country",null,"Страна для изменения","Страна для изменения","Страна для изменения",0,null,null,"Страна для изменения"]
["New country",null,"Новая страна","Новая страна","Новая страна",0,null,null,"Новая страна"]
["Data edit on sheet with invobj",null,"Страны и объекты инвестирования","Страны и объекты инвестирования",{"$f":"CONCATENATE(IF(B199<>\"\",CONCATENATE(B199,\" \"),\"\"),IF(p_language_current_id=1,C199,IF(p_language_current_id=2,D199,IF(C199=D199,C199,CONCATENATE(D199,IF(F199=0,\" / \",CHAR(10)),C199)))),IF(G199<>\"\",CONCATENATE(\" \",G199),\"\"))","v":"Страны и объекты инвестирования"},0,null,null,{"$f":"IF(p_language_current_id=2,CONCATENATE(D199),CONCATENATE(C199))","v":"Страны и объекты инвестирования"}]
["Add invobj",null,"Добавить страну и объект инвестирования","Добавить страну и объект инвестирования","Добавить страну и объект инвестирования",0,null,null,"Добавить страну и объект инвестирования"]
["Delete invobj",null,"Удалить страну и объект инвестирования","Удалить страну и объект инвестирования","Удалить страну и объект инвестирования",0,null,null,"Удалить страну и объект инвестирования"]
["Edit invobj",null,"Изменить страну и объект инвестирования","Изменить страну и объект инвестирования","Изменить страну и объект инвестирования",0,null,null,"Изменить страну и объект инвестирования"]
["Sort invobj",null,"Сортировать объекты инвестирования и страны","Сортировать объекты инвестирования и страны","Сортировать объекты инвестирования и страны",0,null,null,"Сортировать объекты инвестирования и страны"]
["invobj",null,"Объект инвестирования","Объект инвестирования","Объект инвестирования",0,null,null,"Объект инвестирования"]
["old invobj",null,"Объект инвестирования для изменения","Объект инвестирования для изменения",{"$f":"CONCATENATE(IF(B205<>\"\",CONCATENATE(B205,\" \"),\"\"),IF(p_language_current_id=1,C205,IF(p_language_current_id=2,D205,IF(C205=D205,C205,CONCATENATE(D205,IF(F205=0,\" / \",CHAR(10)),C205)))),IF(G205<>\"\",CONCATENATE(\" \",G205),\"\"))","v":"Объект инвестирования для изменения"},0,null,null,{"$f":"IF(p_language_current_id=2,CONCATENATE(D205),CONCATENATE(C205))","v":"Объект инвестирования для изменения"}]
["Detail",null,"Расшифровки","Расшифровки","Расшифровки",0,null,null,"Расшифровки"]
["Add detail list",null,"Список расшифровок для добавления","Список расшифровок для добавления","Список расшифровок для добавления",0,null,null,"Список расшифровок для добавления"]
["Add detail",null,"Добавить расшифровки","Добавить расшифровки","Добавить расшифровки",0,null,null,"Добавить расшифровки"]
["Delete detail",null,"Удалить расшифровки","Удалить расшифровки","Удалить расшифровки",0,null,null,"Удалить расшифровки"]
["Delete detail list",null,"Список расшифровок для удаления","Список расшифровок для удаления","Список расшифровок для удаления",0,null,null,"Список расшифровок для удаления"]
["By code",null,"По коду","По коду","По коду",0,null,null,"По коду"]
["By name",null,"По наименованию","По наименованию","По наименованию",0,null,null,"По наименованию"]
["Use case",null,"С учетом регистра","С учетом регистра","С учетом регистра",0,null,null,"С учетом регистра"]
["Find detail",null,"Поиск расшифровок","Поиск расшифровок","Поиск расшифровок",0,null,null,"Поиск расшифровок"]
["logic_check",null,"Логический контроль","Логический контроль",{"$f":"CONCATENATE(IF(B215<>\"\",CONCATENATE(B215,\" \"),\"\"),IF(p_language_current_id=1,C215,IF(p_language_current_id=2,D215,IF(C215=D215,C215,CONCATENATE(D215,IF(F215=0,\" / \",CHAR(10)),C215)))),IF(G215<>\"\",CONCATENATE(\" \",G215),\"\"))","v":"Логический контроль"},1,null,null,{"$f":"CONCATENATE(A215,\"|\",C215,\"|\",D215)","v":"logic_check|Логический контроль|Логический контроль"}]
["logic_check_formula",null,"Формула","Формуласы",{"$f":"CONCATENATE(IF(B216<>\"\",CONCATENATE(B216,\" \"),\"\"),IF(p_language_current_id=1,C216,IF(p_language_current_id=2,D216,IF(C216=D216,C216,CONCATENATE(D216,IF(F216=0,\" / \",CHAR(10)),C216)))),IF(G216<>\"\",CONCATENATE(\" \",G216),\"\"))","v":"Формуласы\nФормула"},1,null,null,"logic_check_formula|Формула|Формуласы"]
["logic_check_result",null,"Результат","Нәтижесі",{"$f":"CONCATENATE(IF(B217<>\"\",CONCATENATE(B217,\" \"),\"\"),IF(p_language_current_id=1,C217,IF(p_language_current_id=2,D217,IF(C217=D217,C217,CONCATENATE(D217,IF(F217=0,\" / \",CHAR(10)),C217)))),IF(G217<>\"\",CONCATENATE(\" \",G217),\"\"))","v":"Нәтижесі\nРезультат"},1,null,null,"logic_check_result|Результат|Нәтижесі"]
["logic_check_fields",null,"Проверка заполнения полей","Проверка заполнения полей",{"$f":"CONCATENATE(IF(B218<>\"\",CONCATENATE(B218,\" \"),\"\"),IF(p_language_current_id=1,C218,IF(p_language_current_id=2,D218,IF(C218=D218,C218,CONCATENATE(D218,IF(F218=0,\" / \",CHAR(10)),C218)))),IF(G218<>\"\",CONCATENATE(\" \",G218),\"\"))","v":"Проверка заполнения полей"},1,null,null,"logic_check_fields|Проверка заполнения полей|Проверка заполнения полей"]
["logic_check_values",null,"Проверка заполнения значений","Проверка заполнения значений",{"$f":"CONCATENATE(IF(B219<>\"\",CONCATENATE(B219,\" \"),\"\"),IF(p_language_current_id=1,C219,IF(p_language_current_id=2,D219,IF(C219=D219,C219,CONCATENATE(D219,IF(F219=0,\" / \",CHAR(10)),C219)))),IF(G219<>\"\",CONCATENATE(\" \",G219),\"\"))","v":"Проверка заполнения значений"},1,null,null,"logic_check_values|Проверка заполнения значений|Проверка заполнения значений"]
["Additional sheets",null,"Дополнительные листы","Дополнительные листы","Дополнительные листы",0,null,null,{"$f":"CONCATENATE(A220,\"|\",C220,\"|\",D220)","v":"Additional sheets|Дополнительные листы|Дополнительные листы"}]
["Additional sheets hint",null,"Действия доступные для дополнительных листов","Действия доступные для дополнительных листов","Действия доступные для дополнительных листов",1,null,null,{"$f":"CONCATENATE(A221,\"|\",C221,\"|\",D221)","v":"Additional sheets hint|Действия доступные для дополнительных листов|Действия доступные для дополнительных листов"}]
["Additional sheets show",null,"Показать листы с дополнительными данными","Показать листы с дополнительными данными","Показать листы с дополнительными данными",0,null,null,{"$f":"CONCATENATE(A222,\"|\",C222,\"|\",D222)","v":"Additional sheets show|Показать листы с дополнительными данными|Показать листы с дополнительными данными"}]
["Additional sheets hide",null,"Скрыть листы с дополнительными данными","Скрыть листы с дополнительными данными","Скрыть листы с дополнительными данными",0,null,null,{"$f":"CONCATENATE(A223,\"|\",C223,\"|\",D223)","v":"Additional sheets hide|Скрыть листы с дополнительными данными|Скрыть листы с дополнительными данными"}]
["Additional sheets show/hide hint",null,"Скрытие/показ всех листов с дополнительными данными","Скрытие/показ всех листов с дополнительными данными","Скрытие/показ всех листов с дополнительными данными",1,null,null,{"$f":"CONCATENATE(A224,\"|\",C224,\"|\",D224)","v":"Additional sheets show/hide hint|Скрытие/показ всех листов с дополнительными данными|Скрытие/показ всех листов с дополнительными данными"}]
[null,null,null,null,{"$f":"CONCATENATE(IF(B225<>\"\",CONCATENATE(B225,\" \"),\"\"),IF(p_language_current_id=1,C225,IF(p_language_current_id=2,D225,IF(C225=D225,C225,CONCATENATE(D225,IF(F225=0,\" / \",CHAR(10)),C225)))),IF(G225<>\"\",CONCATENATE(\" \",G225),\"\"))","v":""},1,null,null,{"$f":"IF(p_language_current_id=2,CONCATENATE(D225),CONCATENATE(C225))","v":""}]
[]
["Справочник месяцов"]
["ID","Код слева","Наименование на русском языке","Наименование на казахском языке","Наименование","Перенос текста","Код справа"]
[1,null,"Январь","Қаңтар",{"$f":"CONCATENATE(IF(B229<>\"\",CONCATENATE(B229,\" \"),\"\"),IF(p_language_current_id=1,C229,IF(p_language_current_id=2,D229,IF(C229=D229,C229,CONCATENATE(D229,IF(F229=0,\" / \",CHAR(10)),C229)))),IF(G229<>\"\",CONCATENATE(\" \",G229),\"\"))","v":"Қаңтар\nЯнварь"},1]
[2,null,"Февраль","Ақпан","Ақпан\nФевраль",1]
[3,null,"Март","Наурыз","Наурыз\nМарт",1]
[4,null,"Апрель","Сәуір","Сәуір\nАпрель",1]
[5,null,"Май","Май","Май",1]
[6,null,"Июнь","Маусым","Маусым\nИюнь",1]
[7,null,"Июль","Шілде","Шілде\nИюль",1]
[8,null,"Август","Тамыз","Тамыз\nАвгуст",1]
[9,null,"Сентябрь","Қыркүйек","Қыркүйек\nСентябрь",1]
[10,null,"Октябрь","Қазан","Қазан\nОктябрь",1]
[11,null,"Ноябрь","Қараша","Қараша\nНоябрь",1]
[12,null,"Декабрь","Желтоқсан","Желтоқсан\nДекабрь",1]
[]
["Справочник типов разделов"]
["ID","Код слева","Наименование на русском языке","Наименование на казахском языке","Наименование","Перенос текста","Код справа","Код","Подтип"]
[1,null,"С разбивкой по графам","Бағандар бойынша бөле отырып",{"$f":"CONCATENATE(IF(B244<>\"\",CONCATENATE(B244,\" \"),\"\"),IF(p_language_current_id=1,C244,IF(p_language_current_id=2,D244,IF(C244=D244,C244,CONCATENATE(D244,IF(F244=0,\" / \",CHAR(10)),C244)))),IF(G244<>\"\",CONCATENATE(\" \",G244),\"\"))","v":"Бағандар бойынша бөле отырып\nС разбивкой по графам"},1,null,"NotCountry"]
[2,null,"С разбивкой по странам","Елдер бойынша бөле отырып","Елдер бойынша бөле отырып\nС разбивкой по странам",1,null,"ByCountry","1 - Всего; 2 - Всего и СНГ; 3 - Графа;"]
[3,null,"С разбивкой по странам и объектам инвестирования","Инвестициялау объектісі және елдер бойынша бөле отырып","Инвестициялау объектісі және елдер бойынша бөле отырып\nС разбивкой по странам и объектам инвестирования",1,null,"InvObj"]
[4,null,"С разбивкой по предприятиям","Кәсіпорындар бойынша бөле отырып","Кәсіпорындар бойынша бөле отырып\nС разбивкой по предприятиям",1,null,"Enterprise"]
[5,null,"Без показателей","Без показателей","Без показателей",1,null,"Empty"]
[6,null,"С разбивкой по вкладам","С разбивкой по вкладам","С разбивкой по вкладам",1,null,"Deposit"]
[7,null,"Специальный","Специальный","Специальный",1]
[8,null,"С разбивкой по инвесторам","С разбивкой по инвесторам","С разбивкой по инвесторам",1,null,"Investor"]
[9,null,"С разбивкой по периодам","С разбивкой по периодам","С разбивкой по периодам",1]
[10,null,"С разбивкой по агентам","С разбивкой по агентам","С разбивкой по агентам",1,null,"Agent","1 - резидент; 2 - нерезидент."]
[11,null,"С разбивкой по столбцам","С разбивкой по столбцам","С разбивкой по столбцам",1,null,"ByStrAsCol"]
[12,null,"С разбивкой по показателям","С разбивкой по показателям",{"$f":"CONCATENATE(IF(B255<>\"\",CONCATENATE(B255,\" \"),\"\"),IF(p_language_current_id=1,C255,IF(p_language_current_id=2,D255,IF(C255=D255,C255,CONCATENATE(D255,IF(F255=0,\" / \",CHAR(10)),C255)))),IF(G255<>\"\",CONCATENATE(\" \",G255),\"\"))","v":"С разбивкой по показателям"},1,null,"ByPbStr"]
[13,null,"С разбивкой по странам, банкам и графам","С разбивкой по странам, банкам и графам",{"$f":"CONCATENATE(IF(B256<>\"\",CONCATENATE(B256,\" \"),\"\"),IF(p_language_current_id=1,C256,IF(p_language_current_id=2,D256,IF(C256=D256,C256,CONCATENATE(D256,IF(F256=0,\" / \",CHAR(10)),C256)))),IF(G256<>\"\",CONCATENATE(\" \",G256),\"\"))","v":"С разбивкой по странам, банкам и графам"},1,null,"ByBank"]
[]
["Справочник отчетов"]
["ID","Код слева","Наименование на русском языке","Наименование на казахском языке","Наименование","Перенос текста или вставка символов \" / \"","Код справа","Код","Индекс","RC mask","Тип раздела","Подтип раздела","Первая видимая ячейка >2","№ приложения","содержиние","Код слева","Наименование на русском языке","Наименование на казахском языке","Наименование","Перенос текста","Код справа","Код слева","Наименование на русском языке","Наименование на казахском языке","Наименование","Перенос текста","Код справа","Тип периода","Тип резидента","Валюта"]
[7,null,"Отчет о международных операциях с нерезидентами","Бейрезиденттермен  халықаралық операциялар туралы есеп",{"$f":"CONCATENATE(IF(B260<>\"\",CONCATENATE(B260,\" \"),\"\"),IF(p_language_current_id=1,C260,IF(p_language_current_id=2,D260,IF(C260=D260,C260,CONCATENATE(D260,IF(F260=0,\" / \",CHAR(10)),C260)))),IF(G260<>\"\",CONCATENATE(\" \",G260),\"\"))","v":"Бейрезиденттермен  халықаралық операциялар туралы есеп\nОтчет о международных операциях с нерезидентами"},1,null,"pb_10_2020",{"$f":"S260","v":"10-ТБ\n10-ПБ"},null,1,1,3,15,1,null,"10-ПБ","10-ТБ",{"$f":"CONCATENATE(IF(P260<>\"\",CONCATENATE(P260,\" \"),\"\"),IF(p_language_current_id=1,Q260,IF(p_language_current_id=2,R260,IF(Q260=R260,Q260,CONCATENATE(R260,IF(T260=0,\" / \",CHAR(10)),Q260)))),IF(U260<>\"\",CONCATENATE(\" \",U260),\"\"))","v":"10-ТБ\n10-ПБ"},1,null,null,"Отчет о международных операциях с нерезидентами","Бейрезиденттермен  халықаралық операциялар туралы есеп",{"$f":"CONCATENATE(IF(V260<>\"\",CONCATENATE(V260,\" \"),\"\"),IF(p_language_current_id=1,W260,IF(p_language_current_id=2,X260,IF(W260=X260,W260,CONCATENATE(X260,IF(Z260=0,\" / \",CHAR(10)),W260)))),IF(AA260<>\"\",CONCATENATE(\" \",AA260),\"\"))","v":"Бейрезиденттермен  халықаралық операциялар туралы есеп\nОтчет о международных операциях с нерезидентами"},1,null,2,"Предприятие",{"$f":"VLOOKUP(162,p_currency,COLUMN(p_currency_name),FALSE)","v":"АҚШ ДОЛЛАРЫ\nДОЛЛАР США"}]
[]
["Справочник разделов"]
["ID","Код слева","Наименование на русском языке","Наименование на казахском языке","Наименование","Перенос текста","Код справа","Код","Раздел","Тип раздела","Подтип раздела","Галочка содержания","Уровень содержания","Лист","Код слева","Наименование на русском языке","Наименование на казахском языке","Наименование","Перенос текста","Код справа","Код слева","Наименование на русском языке","Наименование на казахском языке","Наименование","Перенос текста","Код справа","Примечание","Валюта раздела (ID из справочника переводов)","1 графа раздела","2 графа раздела","3 графа раздела","4 графа раздела","5 графа раздела","6 графа раздела","Показывать заголовки","1 название столбца","2 название столбца","3 название столбца","4 название столбца","Отчет","Ширина Num","Ширина Code","Ширина Name","Ширина Col 1","Ширина Col 2","Ширина Col 3","Ширина Col 4","Ширина Col 5","Ширина Col 6","Ширина Col 7","Ширина Col 8","Ширина Col 9","Ширина Col 10","Ширина Col 11","Ширина Col 12"]
[1061,null,"Раздел 1. Операции по оказанию услуг (не включаемые в разделы 2-5), тысяч долларов Соединенных Штатов Америки (далее – США)","1-бөлім. Қызмет көрсету бойынша операциялар (2-5 бөлімдеріне қосылмайтындары), Америка Құрама Штаттарының (бұдан әрі – АҚШ) мың доллары",{"$f":"CONCATENATE(IF(B264<>\"\",CONCATENATE(B264,\" \"),\"\"),IF(p_language_current_id=1,C264,IF(p_language_current_id=2,D264,IF(C264=D264,C264,CONCATENATE(D264,IF(F264=0,\" / \",CHAR(10)),C264)))),IF(G264<>\"\",CONCATENATE(\" \",G264),\"\"))","v":"1-бөлім. Қызмет көрсету бойынша операциялар (2-5 бөлімдеріне қосылмайтындары), Америка Құрама Штаттарының (бұдан әрі – АҚШ) мың доллары\nРаздел 1. Операции по оказанию услуг (не включаемые в разделы 2-5), тысяч долларов Соединенных Штатов Америки (далее – США)"},1,null,"1",0,5,1,1,1,5,null,"Раздел 1.","1-бөлім.",{"$f":"CONCATENATE(IF(O264<>\"\",CONCATENATE(O264,\" \"),\"\"),IF(p_language_current_id=1,P264,IF(p_language_current_id=2,Q264,IF(P264=Q264,P264,CONCATENATE(Q264,IF(S264=0,\" / \",CHAR(10)),P264)))),IF(T264<>\"\",CONCATENATE(\" \",T264),\"\"))","v":"1-бөлім.\nРаздел 1."},1,null,null,"Операции по оказанию услуг (не включаемые в разделы 2-5), тысяч долларов Соединенных Штатов Америки (далее – США)","Қызмет көрсету бойынша операциялар (2-5 бөлімдеріне қосылмайтындары), Америка Құрама Штаттарының (бұдан әрі – АҚШ) мың доллары",{"$f":"CONCATENATE(IF(U264<>\"\",CONCATENATE(U264,\" \"),\"\"),IF(p_language_current_id=1,V264,IF(p_language_current_id=2,W264,IF(V264=W264,V264,CONCATENATE(W264,IF(Y264=0,\" / \",CHAR(10)),V264)))),IF(Z264<>\"\",CONCATENATE(\" \",Z264),\"\"))","v":"Қызмет көрсету бойынша операциялар (2-5 бөлімдеріне қосылмайтындары), Америка Құрама Штаттарының (бұдан әрі – АҚШ) мың доллары\nОперации по оказанию услуг (не включаемые в разделы 2-5), тысяч долларов Соединенных Штатов Америки (далее – США)"},1,null,null,"","indicator_style","indicator_name","indicator_code",null,null,null,null,"","","","",7,8.5,16,72.5,12.5]
[1058,null,"Часть А. Услуги, оказанные нерезидентам","А-бөлік. Бейрезиденттерге көрсетілген қызметтер","А-бөлік. Бейрезиденттерге көрсетілген қызметтер\nЧасть А. Услуги, оказанные нерезидентам",1,null,"А",1061,2,1,1,2,5,null,"Часть А.","А-бөлік.","А-бөлік.\nЧасть А.",1,null,null,"Услуги, оказанные нерезидентам","Бейрезиденттерге көрсетілген қызметтер","Бейрезиденттерге көрсетілген қызметтер\nУслуги, оказанные нерезидентам",1,null,null,"","indicator_style","indicator_name","indicator_code",null,null,null,null,"","","","",7,8.5,16,72.5,12.5]
[1059,null,"Часть Б. Услуги, полученные от нерезидентов","Б-бөлік. Бейрезиденттерден алынған қызметтер","Б-бөлік. Бейрезиденттерден алынған қызметтер\nЧасть Б. Услуги, полученные от нерезидентов",1,null,"Б",1061,2,1,1,2,6,null,"Часть Б.","Б-бөлік.","Б-бөлік.\nЧасть Б.",1,null,null,"Услуги, полученные от нерезидентов","Бейрезиденттерден алынған қызметтер","Бейрезиденттерден алынған қызметтер\nУслуги, полученные от нерезидентов",1,null,null,"","indicator_style","indicator_name","indicator_code",null,null,null,null,"","","","",7,8.5,16,72.5,12.5]
[1060,null,"Часть В. Услуги здравоохранения, оказанные нерезидентам (заполняется акционерным обществом  «Фонд социального медицинского страхования»  в целом по  Казахстану)","В-бөлік. Бейрезиденттерге көрсетілген денсаулық сақтау қызметтері (тұтастай алғанда Қазақстан бойынша «Әлеуметтік медициналық сақтандыру қоры» акционерлік қоғамы толтырады)","В-бөлік. Бейрезиденттерге көрсетілген денсаулық сақтау қызметтері (тұтастай алғанда Қазақстан бойынша «Әлеуметтік медициналық сақтандыру қоры» акционерлік қоғамы толтырады)\nЧасть В. Услуги здравоохранения, оказанные нерезидентам (заполняется акционерным обществом  «Фонд социального медицинского страхования»  в целом по  Казахстану)",1,null,"В",1061,2,1,1,2,7,null,"Часть В.","В-бөлік.","В-бөлік.\nЧасть В.",1,null,null,"Услуги здравоохранения, оказанные нерезидентам (заполняется акционерным обществом  «Фонд социального медицинского страхования»  в целом по  Казахстану)","Бейрезиденттерге көрсетілген денсаулық сақтау қызметтері (тұтастай алғанда Қазақстан бойынша «Әлеуметтік медициналық сақтандыру қоры» акционерлік қоғамы толтырады)","Бейрезиденттерге көрсетілген денсаулық сақтау қызметтері (тұтастай алғанда Қазақстан бойынша «Әлеуметтік медициналық сақтандыру қоры» акционерлік қоғамы толтырады)\nУслуги здравоохранения, оказанные нерезидентам (заполняется акционерным обществом  «Фонд социального медицинского страхования»  в целом по  Казахстану)",1,null,null,"","indicator_style","indicator_name","indicator_code",null,null,null,null,"","","","",7,8.5,16,72.5,12.5]
[1062,null,"Раздел 2. Услуги пассажирского транспорта и вспомогательные транспортные услуги, тысяч долларов США","2-бөлім. Жолаушылар көлігі қызметтері және қосалқы көлік қызметтері, мың АҚШ доллары","2-бөлім. Жолаушылар көлігі қызметтері және қосалқы көлік қызметтері, мың АҚШ доллары\nРаздел 2. Услуги пассажирского транспорта и вспомогательные транспортные услуги, тысяч долларов США",1,null,"2",0,2,1,1,1,8,null,"Раздел 2.","2-бөлім.","2-бөлім.\nРаздел 2.",1,null,null,"Услуги пассажирского транспорта и вспомогательные транспортные услуги, тысяч долларов США","Жолаушылар көлігі қызметтері және қосалқы көлік қызметтері, мың АҚШ доллары","Жолаушылар көлігі қызметтері және қосалқы көлік қызметтері, мың АҚШ доллары\nУслуги пассажирского транспорта и вспомогательные транспортные услуги, тысяч долларов США",1,null,null,"","indicator_style","indicator_name","indicator_code",null,null,null,null,"","","","",7,8.5,16,72.5,12.5]
[19,null,"Раздел 3. Товары и услуги, оказанные находящимся в Казахстане международным организациям, иностранным посольствам, консульствам и другим иностранным дипломатическим и официальным представительствам, тысяч долларов США","3-бөлім. Қазақстанда орналасқан халықаралық ұйымдарға, шетел елшіліктеріне, консулдықтарына және басқа да шетел дипломатиялық және ресми өкілдіктерге ұсынған тауарлары мен қызметтері, мың АҚШ доллары","3-бөлім. Қазақстанда орналасқан халықаралық ұйымдарға, шетел елшіліктеріне, консулдықтарына және басқа да шетел дипломатиялық және ресми өкілдіктерге ұсынған тауарлары мен қызметтері, мың АҚШ доллары\nРаздел 3. Товары и услуги, оказанные находящимся в Казахстане международным организациям, иностранным посольствам, консульствам и другим иностранным дипломатическим и официальным представительствам, тысяч долларов США",1,null,"3",0,2,1,1,1,9,null,"Раздел 3.","3-бөлім.","3-бөлім.\nРаздел 3.",1,null,null,"Товары и услуги, оказанные находящимся в Казахстане международным организациям, иностранным посольствам, консульствам и другим иностранным дипломатическим и официальным представительствам, тысяч долларов США","Қазақстанда орналасқан халықаралық ұйымдарға, шетел елшіліктеріне, консулдықтарына және басқа да шетел дипломатиялық және ресми өкілдіктерге ұсынған тауарлары мен қызметтері, мың АҚШ доллары","Қазақстанда орналасқан халықаралық ұйымдарға, шетел елшіліктеріне, консулдықтарына және басқа да шетел дипломатиялық және ресми өкілдіктерге ұсынған тауарлары мен қызметтері, мың АҚШ доллары\nТовары и услуги, оказанные находящимся в Казахстане международным организациям, иностранным посольствам, консульствам и другим иностранным дипломатическим и официальным представительствам, тысяч долларов США",1,null,null,"","indicator_style","indicator_name","indicator_code",null,null,null,null,"","","","",7,8.5,16,72.5,12.5]
[161,null,"Раздел 4. Услуги грузового транспорта (без учета страхования грузов), тысяч долларов США","4-бөлім. Жүк көлігінің қызметтері (жүкті сақтандыруды есептемегенде), мың АҚШ доллары","4-бөлім. Жүк көлігінің қызметтері (жүкті сақтандыруды есептемегенде), мың АҚШ доллары\nРаздел 4. Услуги грузового транспорта (без учета страхования грузов), тысяч долларов США",1,null,"4",0,1,1,1,1,10,null,"Раздел 4.","4-бөлім.","4-бөлім.\nРаздел 4.",1,null,null,"Услуги грузового транспорта (без учета страхования грузов), тысяч долларов США","Жүк көлігінің қызметтері (жүкті сақтандыруды есептемегенде), мың АҚШ доллары","Жүк көлігінің қызметтері (жүкті сақтандыруды есептемегенде), мың АҚШ доллары\nУслуги грузового транспорта (без учета страхования грузов), тысяч долларов США",1,null,null,"","indicator_style","indicator_name","indicator_code",null,null,null,null,"cols_name","cols_code","","",7,8.5,16,72.5,12.5]
[18,null,"Раздел 5. Операции с нематериальными активами и арендой природных ресурсов, тысяч долларов США","5-бөлім. Материалдық емес активтермен және табиғи ресурстарды жалдаумен операциялар, мың АҚШ доллары","5-бөлім. Материалдық емес активтермен және табиғи ресурстарды жалдаумен операциялар, мың АҚШ доллары\nРаздел 5. Операции с нематериальными активами и арендой природных ресурсов, тысяч долларов США",1,null,"5",0,2,1,1,1,11,null,"Раздел 5.","5-бөлім.","5-бөлім.\nРаздел 5.",1,null,null,"Операции с нематериальными активами и арендой природных ресурсов, тысяч долларов США","Материалдық емес активтермен және табиғи ресурстарды жалдаумен операциялар, мың АҚШ доллары","Материалдық емес активтермен және табиғи ресурстарды жалдаумен операциялар, мың АҚШ доллары\nОперации с нематериальными активами и арендой природных ресурсов, тысяч долларов США",1,null,null,"","indicator_style","indicator_name","indicator_code",null,null,null,null,"","","","",7,8.5,16,72.5,12.5]
[160,null,"Раздел 6. Товары для переработки, ремонта и перепродажи, реэкспорт и реимпорт товаров, тысяч долларов США","6-бөлім. Қайта өңдеуге, жөндеуге және қайта сатуға арналған тауарлар, тауарлардың реэкспорты және реимпорты, мың АҚШ доллары","6-бөлім. Қайта өңдеуге, жөндеуге және қайта сатуға арналған тауарлар, тауарлардың реэкспорты және реимпорты, мың АҚШ доллары\nРаздел 6. Товары для переработки, ремонта и перепродажи, реэкспорт и реимпорт товаров, тысяч долларов США",1,null,"6",0,2,1,1,1,12,null,"Раздел 6.","6-бөлім.","6-бөлім.\nРаздел 6.",1,null,null,"Товары для переработки, ремонта и перепродажи, реэкспорт и реимпорт товаров, тысяч долларов США","Қайта өңдеуге, жөндеуге және қайта сатуға арналған тауарлар, тауарлардың реэкспорты және реимпорты, мың АҚШ доллары","Қайта өңдеуге, жөндеуге және қайта сатуға арналған тауарлар, тауарлардың реэкспорты және реимпорты, мың АҚШ доллары\nТовары для переработки, ремонта и перепродажи, реэкспорт и реимпорт товаров, тысяч долларов США",1,null,null,"","indicator_style","indicator_name","indicator_code",null,null,null,null,"","","","",7,8.5,16,72.5,12.5]
[16,null,"Раздел 7. Заработная плата, выплаченная работникам-нерезидентам, тысяч долларов США","7-бөлім. Бейрезидент қызметкерлерге төленген жалақы, мың АҚШ доллары","7-бөлім. Бейрезидент қызметкерлерге төленген жалақы, мың АҚШ доллары\nРаздел 7. Заработная плата, выплаченная работникам-нерезидентам, тысяч долларов США",1,null,"7",0,2,1,1,1,13,null,"Раздел 7.","7-бөлім.","7-бөлім.\nРаздел 7.",1,null,null,"Заработная плата, выплаченная работникам-нерезидентам, тысяч долларов США","Бейрезидент қызметкерлерге төленген жалақы, мың АҚШ доллары","Бейрезидент қызметкерлерге төленген жалақы, мың АҚШ доллары\nЗаработная плата, выплаченная работникам-нерезидентам, тысяч долларов США",1,null,null,"","indicator_style","indicator_name","indicator_code",null,null,null,null,"","","","",7,8.5,16,72.5,12.5]
[17,null,"Раздел 8. Текущие и капитальные трансферты, членские взносы в некоммерческие организации, тысяч долларов США","8-бөлім. Ағымдағы және күрделі трансферттер, коммерциялық емес ұйымдарға мүшелік жарналар, мың АҚШ доллары","8-бөлім. Ағымдағы және күрделі трансферттер, коммерциялық емес ұйымдарға мүшелік жарналар, мың АҚШ доллары\nРаздел 8. Текущие и капитальные трансферты, членские взносы в некоммерческие организации, тысяч долларов США",1,null,"8",0,2,1,1,1,14,null,"Раздел 8.","8-бөлім.","8-бөлім.\nРаздел 8.",1,null,null,"Текущие и капитальные трансферты, членские взносы в некоммерческие организации, тысяч долларов США","Ағымдағы және күрделі трансферттер, коммерциялық емес ұйымдарға мүшелік жарналар, мың АҚШ доллары","Ағымдағы және күрделі трансферттер, коммерциялық емес ұйымдарға мүшелік жарналар, мың АҚШ доллары\nТекущие и капитальные трансферты, членские взносы в некоммерческие организации, тысяч долларов США",1,null,null,"","indicator_style","indicator_name","indicator_code",null,null,null,null,"","","","",7,8.5,16,72.5,12.5]
[]
["Справочник строк"]
["ID","Код слева","Наименование на русском языке","Наименование на казахском языке","Наименование","Перенос текста","Код справа","Код","Раздел","Ширина","Стиль данных","Тип данных","Примечание","Расшифровки","Родитель","Справочник","Свойство","Содержание","Допускает -"]
[87,null,"Строительные услуги (включая ремонт и техническое обслуживание в связи со строительством), в том числе:","Құрылыс қызметі (құрылыс жұмыстарына байланысты жөндеу және техникалық қызмет көрсетуді қосқанда), оның ішінде:",{"$f":"CONCATENATE(IF(B278<>\"\",CONCATENATE(B278,\" \"),\"\"),IF(p_language_current_id=1,C278,IF(p_language_current_id=2,D278,IF(C278=D278,C278,CONCATENATE(D278,IF(F278=0,\" / \",CHAR(10)),C278)))),IF(G278<>\"\",CONCATENATE(\" \",G278),\"\"))","v":"Құрылыс қызметі (құрылыс жұмыстарына байланысты жөндеу және техникалық қызмет көрсетуді қосқанда), оның ішінде:\nСтроительные услуги (включая ремонт и техническое обслуживание в связи со строительством), в том числе:"},1,null,"",1058,null,3,1,null,null,0,0,null,null,1]
[4458,null,"строительство за границей (стоимость строительства на валовой основе заполняется подрядчиком, выполняющим строительный проект через находящееся на строительной площадке строительное управление, не регистрируемое как иностранное лицо или отделение в стране, в которой ведется строительная деятельность), в том числе:","шетелдегі құрылыс (құрылыстың жалпы негіздегі құны құрылыс қызметі жүзеге асырылатын елдегі шетелдік кәсіпорын немесе филиал ретінде тіркелмеген құрылыс алаңында орналасқан құрылысты басқару құрылыстың жобасын жүзеге асыратын мердігер құрылыс ұйымымен толтырылады), оның ішінде:","шетелдегі құрылыс (құрылыстың жалпы негіздегі құны құрылыс қызметі жүзеге асырылатын елдегі шетелдік кәсіпорын немесе филиал ретінде тіркелмеген құрылыс алаңында орналасқан құрылысты басқару құрылыстың жобасын жүзеге асыратын мердігер құрылыс ұйымымен толтырылады), оның ішінде:\nстроительство за границей (стоимость строительства на валовой основе заполняется подрядчиком, выполняющим строительный проект через находящееся на строительной площадке строительное управление, не регистрируемое как иностранное лицо или отделение в стране, в которой ведется строительная деятельность), в том числе:",1,null,"10",1058,null,1,1,null,null,0,0,null,null,1]
[4459,null,"     стоимость строительных работ, труда, вложенных в производственный процесс Вашей организацией","     сіздің ұйым өндірістік процесске жұмсаған құрылыс жұмыстарының, еңбектің құны","     сіздің ұйым өндірістік процесске жұмсаған құрылыс жұмыстарының, еңбектің құны\n     стоимость строительных работ, труда, вложенных в производственный процесс Вашей организацией",1,null,"11",1058,null,0,1,null,null,0,0,null,null,1]
[4460,null,"     товары, вывезенные Вашей организацией в страну, в которой ведется строительная деятельность","     құрылыс қызметі жүргізіліп жатқан елге Сіздің ұйым шығарған тауалар","     құрылыс қызметі жүргізіліп жатқан елге Сіздің ұйым шығарған тауалар\n     товары, вывезенные Вашей организацией в страну, в которой ведется строительная деятельность",1,null,"12",1058,null,0,1,null,null,0,0,null,null,1]
[4461,null,"     строительные работы, выполненные нерезидентами в стране, в которой ведется строительная деятельность","    құрылыс қызметі жүргізіліп жатқан елде бейрезиденттермен орындалған құрылыс жұмыстары","    құрылыс қызметі жүргізіліп жатқан елде бейрезиденттермен орындалған құрылыс жұмыстары\n     строительные работы, выполненные нерезидентами в стране, в которой ведется строительная деятельность",1,null,"13",1058,null,0,1,null,null,0,0,null,null,1]
[4462,null,"     товары, приобретенные Вашей организацией в стране, в которой ведется строительная деятельность","     құрылыс қызметі жүргізіліп жатқан елде  Сіздің ұйым алған тауарлар","     құрылыс қызметі жүргізіліп жатқан елде  Сіздің ұйым алған тауарлар\n     товары, приобретенные Вашей организацией в стране, в которой ведется строительная деятельность",1,null,"14",1058,null,0,1,null,null,0,0,null,null,1]
[4463,null,"     товары, приобретенные Вашей организацией в третьих странах","     үшінші елдерде Сіздің ұйым алған тауалар","     үшінші елдерде Сіздің ұйым алған тауалар\n     товары, приобретенные Вашей организацией в третьих странах",1,null,"15",1058,null,0,1,null,null,0,0,null,null,1]
[4464,null,"     оплата труда наемных работников-нерезидентов (за исключением сотрудников Вашей организации)","     бейрезидент-жалдамалы қызметкерлердің еңбекақысы (Сіздің ұйым қызметкерлерін қоспағанда)","     бейрезидент-жалдамалы қызметкерлердің еңбекақысы (Сіздің ұйым қызметкерлерін қоспағанда)\n     оплата труда наемных работников-нерезидентов (за исключением сотрудников Вашей организации)",1,null,"16",1058,null,0,1,null,null,0,0,null,null,1]
[4465,null,"     начисление  Вашей организацией валовой прибыли и приравненных к ней доходов","     сіздің ұйым жалпы кіріс және оған теңестірілген табыстарды есептеуі ","     сіздің ұйым жалпы кіріс және оған теңестірілген табыстарды есептеуі \n     начисление  Вашей организацией валовой прибыли и приравненных к ней доходов",1,null,"17",1058,null,0,1,null,null,0,0,null,null,1]
[4466,null,"строительство за границей (заполняется субподрядчиком, выполняющим строительные работы для подрядчика-нерезидента)","шетелдегі құрылыс (бейрезидент - мердігерге арналған құрылыс жұмыстарын орындаушы қосалқы-мердігермен толтырылады)","шетелдегі құрылыс (бейрезидент - мердігерге арналған құрылыс жұмыстарын орындаушы қосалқы-мердігермен толтырылады)\nстроительство за границей (заполняется субподрядчиком, выполняющим строительные работы для подрядчика-нерезидента)",1,null,"18",1058,null,0,1,null,null,0,0,null,null,1]
[4467,null,"строительство в Казахстане (включая товары, проданные Вашей организацией строительным предприятиям-нерезидентам)","Қазақстандағы құрылыс (сіздің ұйымыңыз бейрезидент құрылыс компанияларына сатқан тауарларды қоса алғанда)","Қазақстандағы құрылыс (сіздің ұйымыңыз бейрезидент құрылыс компанияларына сатқан тауарларды қоса алғанда)\nстроительство в Казахстане (включая товары, проданные Вашей организацией строительным предприятиям-нерезидентам)",1,null,"19",1058,null,0,1,null,null,0,0,null,null,1]
[88,null,"Финансовые услуги","Қаржы қызметтері","Қаржы қызметтері\nФинансовые услуги",1,null,"20",1058,null,0,1,null,null,0,0,null,null,1]
[4468,null,"Телекоммунакационные услуги (без учета стоимости передаваемой информации), в том числе:","Телекоммуникациялық қызметтер (берілетін ақпарат құнын есептемегенде), оның ішінде:","Телекоммуникациялық қызметтер (берілетін ақпарат құнын есептемегенде), оның ішінде:\nТелекоммунакационные услуги (без учета стоимости передаваемой информации), в том числе:",1,null,"21",1058,null,1,1,null,null,0,0,null,null,1]
[4469,null,"     услуги телефонной, мобильной связи из-за рубежа с Казахстаном","     шетелден Қазақстанмен телефондық, ұялы байланыс","     шетелден Қазақстанмен телефондық, ұялы байланыс\n     услуги телефонной, мобильной связи из-за рубежа с Казахстаном",1,null,"22",1058,null,0,1,null,null,0,0,null,null,1]
[4470,null,"     услуги телефонной, мобильной связи для нерезидентов, находящихся на территории Казахстана","     Қазақстан аумағындағы бейрезиденттер үшін телефондық, ұялы байланыс қызметтері","     Қазақстан аумағындағы бейрезиденттер үшін телефондық, ұялы байланыс қызметтері\n     услуги телефонной, мобильной связи для нерезидентов, находящихся на территории Казахстана",1,null,"23",1058,null,0,1,null,null,0,0,null,null,1]
[4471,null,"     использование спутников, находящихся в собственности Казахстана","     Қазақстанның меншігіндегі жерсеріктерді пайдалану","     Қазақстанның меншігіндегі жерсеріктерді пайдалану\n     использование спутников, находящихся в собственности Казахстана",1,null,"24",1058,null,0,1,null,null,0,0,null,null,1]
[4472,null,"     интернет магистралды кабелі қызметтері және интернетке қолжетімділікті қоса алғанда желіге қолжетімділік қызметтері","     услуги магистрального кабеля интернета и услуги доступа к сети, включая предоставление доступа к интернету","     услуги магистрального кабеля интернета и услуги доступа к сети, включая предоставление доступа к интернету\n     интернет магистралды кабелі қызметтері және интернетке қолжетімділікті қоса алғанда желіге қолжетімділік қызметтері",1,null,"25",1058,null,0,1,null,null,0,0,null,null,1]
[4473,null,"     услуги деловых сетей, организация телеконференций, услуги служб поддержки","     іскерлік желілер қызметтері, телеконференциялар ұйымдастыру, қолдау қызметтерінің жұмыстары","     іскерлік желілер қызметтері, телеконференциялар ұйымдастыру, қолдау қызметтерінің жұмыстары\n     услуги деловых сетей, организация телеконференций, услуги служб поддержки",1,null,"26",1058,null,0,1,null,null,0,0,null,null,1]
[4474,null,"     услуги телекса, телеграфа, телефакса, радио, передача по телевизионным кабелям","     телекс, телеграф, телефакс, радио, телевизиялық кабель арқылы тасымалдау қызметтері","     телекс, телеграф, телефакс, радио, телевизиялық кабель арқылы тасымалдау қызметтері\n     услуги телекса, телеграфа, телефакса, радио, передача по телевизионным кабелям",1,null,"27",1058,null,0,1,null,null,0,0,null,null,1]
[4475,null,"     прочие телекоммуникационные услуги","     өзге телекоммуникациялық қызметтер","     өзге телекоммуникациялық қызметтер\n     прочие телекоммуникационные услуги",1,null,"28",1058,null,0,1,null,null,0,0,null,null,1]
[1771,null,"Компьютерные услуги (включая ремонт и техническое обслуживание компьютеров), в том числе:","Компьютерлік қызметтер (компьютерлерді жөндеу және техникалық қызмет көрсетуді қосқанда), оның ішінде:","Компьютерлік қызметтер (компьютерлерді жөндеу және техникалық қызмет көрсетуді қосқанда), оның ішінде:\nКомпьютерные услуги (включая ремонт и техническое обслуживание компьютеров), в том числе:",1,null,"30",1058,null,1,1,null,null,0,0,null,null,1]
[4476,null,"     компьютерное программное обеспечение","     компьютерлік бағдарламалық қамтамасыз ету","     компьютерлік бағдарламалық қамтамасыз ету\n     компьютерное программное обеспечение",1,null,"31",1058,null,0,1,null,null,0,0,null,null,1]
[4477,null,"     запасные части и материалы, предоставляемые ремонтирующей стороной","     жөндеуші тарап ұсынатын қосалқы бөлшектер мен материалдар ","     жөндеуші тарап ұсынатын қосалқы бөлшектер мен материалдар \n     запасные части и материалы, предоставляемые ремонтирующей стороной",1,null,"32",1058,null,0,1,null,null,0,0,null,null,1]
[4478,null,"     прочие компьютерные услуги","     өзге компьютерлік қызметтер","     өзге компьютерлік қызметтер\n     прочие компьютерные услуги",1,null,"33",1058,null,0,1,null,null,0,0,null,null,1]
[1772,null,"Информационные услуги, в том числе:","Ақпараттық қызметтер, оның ішінде:","Ақпараттық қызметтер, оның ішінде:\nИнформационные услуги, в том числе:",1,null,"40",1058,null,1,1,null,null,0,0,null,null,1]
[4479,null,"     услуги информационных агентств","     ақпараттық агенттіктердің қызметтері","     ақпараттық агенттіктердің қызметтері\n     услуги информационных агентств",1,null,"41",1058,null,0,1,null,null,0,0,null,null,1]
[4480,null,"     прочие информационные услуги","     өзге ақпараттық қызметтер","     өзге ақпараттық қызметтер\n     прочие информационные услуги",1,null,"42",1058,null,0,1,null,null,0,0,null,null,1]
[4481,null,"Почтовые услуги и услуги курьерской связи (сбор, транспортировка и доставка в Казахстане  присланных из-за рубежа писем, периодических и печатных изданий, посылок и бандеролей)","Пошталық қызметтер және курьерлік байланыс қызметтері (Қазақстанда шетелден жіберілген хаттарды, мерзімдік және баспасөз басылымдарын, жіберілімдер және бандерольдарды  жинау, тасымалдау және жеткізу)","Пошталық қызметтер және курьерлік байланыс қызметтері (Қазақстанда шетелден жіберілген хаттарды, мерзімдік және баспасөз басылымдарын, жіберілімдер және бандерольдарды  жинау, тасымалдау және жеткізу)\nПочтовые услуги и услуги курьерской связи (сбор, транспортировка и доставка в Казахстане  присланных из-за рубежа писем, периодических и печатных изданий, посылок и бандеролей)",1,null,"45",1058,null,0,1,null,null,0,0,null,null,1]
[97,null,"Услуги по переработке товаров","Тауарларды қайта өңдеу бойынша қызметтер","Тауарларды қайта өңдеу бойынша қызметтер\nУслуги по переработке товаров",1,null,"50",1058,null,0,1,null,null,0,0,null,null,1]
[94,null,"Услуги по ремонту и техническому обслуживанию, не отнесенные к другим категориям, в том числе:","Басқа санатқа жатпайтын жөндеу және техникалық қызметтер,  оның ішінде:","Басқа санатқа жатпайтын жөндеу және техникалық қызметтер,  оның ішінде:\nУслуги по ремонту и техническому обслуживанию, не отнесенные к другим категориям, в том числе:",1,null,"60",1058,null,1,1,null,null,0,0,null,null,1]
[4482,null,"     ремонт железнодорожных путей и конструкций и сооружений в морских портах и аэропортах за границей, включая запасные части и материалы для ремонта","     шетелде темір жолдарды, теңіз порттарында және әуежайларда конструкцияларды және құрылымдарды, қосалқы бөлшектер мен жөндеуге арналған материалдарды қоса алғанда жөндеу","     шетелде темір жолдарды, теңіз порттарында және әуежайларда конструкцияларды және құрылымдарды, қосалқы бөлшектер мен жөндеуге арналған материалдарды қоса алғанда жөндеу\n     ремонт железнодорожных путей и конструкций и сооружений в морских портах и аэропортах за границей, включая запасные части и материалы для ремонта",1,null,"61",1058,null,0,1,null,null,0,0,null,null,1]
[4483,null,"     ремонт железнодорожных путей и конструкций и сооружений в морских портах и аэропортах в Казахстане, включая запасные части и материалы для ремонта","     Қазақстанда темір жолдарды, теңіз порттарында және әуежайларда конструкцияларды және құрылымдарды, оның ішінде қосалқы бөлшектер мен жөндеуге арналған материалдарды қоса алғанда жөндеу","     Қазақстанда темір жолдарды, теңіз порттарында және әуежайларда конструкцияларды және құрылымдарды, оның ішінде қосалқы бөлшектер мен жөндеуге арналған материалдарды қоса алғанда жөндеу\n     ремонт железнодорожных путей и конструкций и сооружений в морских портах и аэропортах в Казахстане, включая запасные части и материалы для ремонта",1,null,"62",1058,null,0,1,null,null,0,0,null,null,1]
[4484,null,"     работы по прочему ремонту и техническому обслуживанию","     басқа да жөндеу және техникалық қызмет көрсету бойынша жұмыстар","     басқа да жөндеу және техникалық қызмет көрсету бойынша жұмыстар\n     работы по прочему ремонту и техническому обслуживанию",1,null,"63",1058,null,0,1,null,null,0,0,null,null,1]
[4485,null,"     запасные части и материалы, предоставляемые ремонтирующей стороной при прочем ремонте и техническом обслуживании","     басқа да жөндеу және техникалық қызмет көрсету үшін жөндеуші жақпен ұсынылған қосалқы бөлшектер мен материалдар ","     басқа да жөндеу және техникалық қызмет көрсету үшін жөндеуші жақпен ұсынылған қосалқы бөлшектер мен материалдар \n     запасные части и материалы, предоставляемые ремонтирующей стороной при прочем ремонте и техническом обслуживании",1,null,"64",1058,null,0,1,null,null,0,0,null,null,1]
[92,null,"Плата за использование интеллектуальной собственности, в том числе:","Зияткерлік меншікті пайдалану үшін төлем, оның ішінде:","Зияткерлік меншікті пайдалану үшін төлем, оның ішінде:\nПлата за использование интеллектуальной собственности, в том числе:",1,null,"70",1058,null,1,1,null,null,0,0,null,null,1]
[4486,null,"     сборы за франшизы и товарные знаки","     франшиза және тауарлық белгілер үшін алымдар","     франшиза және тауарлық белгілер үшін алымдар\n     сборы за франшизы и товарные знаки",1,null,"71",1058,null,0,1,null,null,0,0,null,null,1]
[4487,null,"     лицензии за использование результатов научных исследований и разработок","     ғылыми зерттеулер мен зерттемелердің нәтижелерін пайдалану үшін лицензиялар","     ғылыми зерттеулер мен зерттемелердің нәтижелерін пайдалану үшін лицензиялар\n     лицензии за использование результатов научных исследований и разработок",1,null,"72",1058,null,0,1,null,null,0,0,null,null,1]
[4488,null,"     лицензии на воспроизведение и (или) распространения программного обеспечения","     бағдарламалық қамтамасыз етуді қайта жаңғыртуға және (немесе) таратуға лицензиялар","     бағдарламалық қамтамасыз етуді қайта жаңғыртуға және (немесе) таратуға лицензиялар\n     лицензии на воспроизведение и (или) распространения программного обеспечения",1,null,"73",1058,null,0,1,null,null,0,0,null,null,1]
[4489,null,"     лицензии на воспроизведение и (или) распространения аудиовизуальных (кинофильмов, радио- и телевизионных программ, музыкальных произведений) и связанных с ними продуктов","     аудиовизуалды (кинофильмдер, радио- және телевизиялық бағдарламалар, музыкалық шығармалар) және онымен байланысты өнімдерді қайта жаңғыртуға және (немесе) таратуға лицензиялар","     аудиовизуалды (кинофильмдер, радио- және телевизиялық бағдарламалар, музыкалық шығармалар) және онымен байланысты өнімдерді қайта жаңғыртуға және (немесе) таратуға лицензиялар\n     лицензии на воспроизведение и (или) распространения аудиовизуальных (кинофильмов, радио- и телевизионных программ, музыкальных произведений) и связанных с ними продуктов",1,null,"74",1058,null,0,1,null,null,0,0,null,null,1]
[4490,null,"     прочие сборы за использование интеллектуальной собственности","     зияткерлік меншікті пайдалану үшін өзге алымдар","     зияткерлік меншікті пайдалану үшін өзге алымдар\n     прочие сборы за использование интеллектуальной собственности",1,null,"75",1058,null,0,1,null,null,0,0,null,null,1]
[2041,null,"Разные деловые услуги, в том числе:","Әр түрлі іскерлік қызметтер, оның ішінде:","Әр түрлі іскерлік қызметтер, оның ішінде:\nРазные деловые услуги, в том числе:",1,null,"80",1058,null,1,1,null,null,0,0,null,null,1]
[2028,null,"     научно-исследовательские и опытно-конструкторские разработки, включая права собственности, возникающие в их результате","     ғылыми-зерттеу және тәжірибелік-конструкторлық әзірлемелер, және олардың нәтижесінде пайда болатын меншіктік құқықтар","     ғылыми-зерттеу және тәжірибелік-конструкторлық әзірлемелер, және олардың нәтижесінде пайда болатын меншіктік құқықтар\n     научно-исследовательские и опытно-конструкторские разработки, включая права собственности, возникающие в их результате",1,null,"81",1058,null,0,1,null,null,0,0,null,null,1]
[2029,null,"     юридические ","     заңгерлік","     заңгерлік\n     юридические ",1,null,"82",1058,null,0,1,null,null,0,0,null,null,1]
[2030,null,"     бухгалтерские, аудиторские ","     бухгалтерлік, аудиторлық ","     бухгалтерлік, аудиторлық \n     бухгалтерские, аудиторские ",1,null,"83",1058,null,0,1,null,null,0,0,null,null,1]
[2031,null,"     услуги по консультации бизнеса и управления","     бизнес және басқару бойынша консультациялық қызметтер ","     бизнес және басқару бойынша консультациялық қызметтер \n     услуги по консультации бизнеса и управления",1,null,"84",1058,null,0,1,null,null,0,0,null,null,1]
[2032,null,"     услуги в области рекламы и изучения конъюнктуры рынка, по организации конференций, торговых ярмарок и выставок","     конференцияларды, сауда жәрмеңкелерін және көрмелерін ұйымдастыру бойынша жарнама және нарық коньюнктурасын зерделеу саласындағы қызметтер","     конференцияларды, сауда жәрмеңкелерін және көрмелерін ұйымдастыру бойынша жарнама және нарық коньюнктурасын зерделеу саласындағы қызметтер\n     услуги в области рекламы и изучения конъюнктуры рынка, по организации конференций, торговых ярмарок и выставок",1,null,"85",1058,null,0,1,null,null,0,0,null,null,1]
[2033,null,"     архитектурные, инженерные и  прочие технические услуги","     сәулет, инженерлік және басқа да техникалық қызметтер","     сәулет, инженерлік және басқа да техникалық қызметтер\n     архитектурные, инженерные и  прочие технические услуги",1,null,"86",1058,null,0,1,null,null,0,0,null,null,1]
[2034,null,"     переработка отходов и очистка окружающей среды","     қалдықтарды қайта өңдеу және қоршаған ортаны тазарту","     қалдықтарды қайта өңдеу және қоршаған ортаны тазарту\n     переработка отходов и очистка окружающей среды",1,null,"87",1058,null,0,1,null,null,0,0,null,null,1]
[2035,null,"     услуги в области сельского хозяйства ","     ауыл шаруашылығы саласындағы қызметтер ","     ауыл шаруашылығы саласындағы қызметтер \n     услуги в области сельского хозяйства ",1,null,"88",1058,null,0,1,null,null,0,0,null,null,1]
[93,null,"     операционный лизинг (аренда) оборудования без персонала (включая аренду транспортных средств для перевозки пассажиров, грузов)","     жабдықтардың қызметкерсіз операциялық лизингі (жалдау) (жолаушыларды, жүктерді тасымалдау үшін көлік құралдарын жалдауды қоса алғанда) ","     жабдықтардың қызметкерсіз операциялық лизингі (жалдау) (жолаушыларды, жүктерді тасымалдау үшін көлік құралдарын жалдауды қоса алғанда) \n     операционный лизинг (аренда) оборудования без персонала (включая аренду транспортных средств для перевозки пассажиров, грузов)",1,null,"89",1058,null,0,1,null,null,0,0,null,null,1]
[2036,null,"     связанные с торговлей услуги трейдеров, брокеров биржевых товаров, дилеров, аукционистов и комиссионеров (кроме услуг по финансовым инструментам)","     трейдерлердің, биржалық тауарлар брокерлерінің, дилерлердің, аукционшылардың және делдалдардың саудамен байланысты қызметтері (қаржылық құралдар бойынша қызметтерді қоспағанда)","     трейдерлердің, биржалық тауарлар брокерлерінің, дилерлердің, аукционшылардың және делдалдардың саудамен байланысты қызметтері (қаржылық құралдар бойынша қызметтерді қоспағанда)\n     связанные с торговлей услуги трейдеров, брокеров биржевых товаров, дилеров, аукционистов и комиссионеров (кроме услуг по финансовым инструментам)",1,null,"90",1058,null,0,1,null,null,0,0,null,null,1]
[4491,null,"     услуги распределительных сетей, трудоустройства и прочие деловые услуги","     үлестіру желілерінің, жұмысқа орналастыру және басқа да іскерлік қызметтер","     үлестіру желілерінің, жұмысқа орналастыру және басқа да іскерлік қызметтер\n     услуги распределительных сетей, трудоустройства и прочие деловые услуги",1,null,"91",1058,null,0,1,null,null,0,0,null,null,1]
[4492,null,"     услуги в области добычи полезных ископаемых","     пайдалы қазбаларды өндіру саласындағы қызметтер","     пайдалы қазбаларды өндіру саласындағы қызметтер\n     услуги в области добычи полезных ископаемых",1,null,"92",1058,null,0,1,null,null,0,0,null,null,1]
[4493,null,"Услуги частным лицам и услуги в сфере культуры и отдыха, в том числе:","Жеке тұлғаларға қызмет көрсету және мәдениет пен демалыс саласындағы қызмет көрсету, оның ішінде:","Жеке тұлғаларға қызмет көрсету және мәдениет пен демалыс саласындағы қызмет көрсету, оның ішінде:\nУслуги частным лицам и услуги в сфере культуры и отдыха, в том числе:",1,null,"100",1058,null,1,1,null,null,0,0,null,null,1]
[4494,null,"     производство аудиовизуальных продуктов (художественных фильмов, радио- и телевизионных программ, музыкальных произведений), включая оплату актерам, режиссерам и другим работникам, не являющимся сотрудниками Вашей организации, аренда аудиовизуальных продуктов, услуги кабельного и спутникового телевидения","     актерлердің, режиссерлердің және Сіздің ұйымыңыздың қызметкерлері болып табылмайтын басқа қызметкерлердің еңбекақысын қосқандағы аудиовизуалды өнімдерді (көркем фильмдер, радио- және телевизиялық бағдарламалар, музыкалық шығармалар) жасау, аудиовизуалды өнімдерді жалға алу, кабельді және жерсеріктік теледидар қызметтері","     актерлердің, режиссерлердің және Сіздің ұйымыңыздың қызметкерлері болып табылмайтын басқа қызметкерлердің еңбекақысын қосқандағы аудиовизуалды өнімдерді (көркем фильмдер, радио- және телевизиялық бағдарламалар, музыкалық шығармалар) жасау, аудиовизуалды өнімдерді жалға алу, кабельді және жерсеріктік теледидар қызметтері\n     производство аудиовизуальных продуктов (художественных фильмов, радио- и телевизионных программ, музыкальных произведений), включая оплату актерам, режиссерам и другим работникам, не являющимся сотрудниками Вашей организации, аренда аудиовизуальных продуктов, услуги кабельного и спутникового телевидения",1,null,"101",1058,null,0,1,null,null,0,0,null,null,1]
[4495,null,"     организация и реклама культурных и спортивных мероприятий, включая оплату артистам и другим работникам, не являющимся сотрудниками Вашей организации","     әртістердің және Сіздің ұйымыңыздың қызметкерлері болып табылмайтын басқа қызметкерлердің еңбекақысын қосқандағы мәдени және спорттық іс-шараларын жарнамалау және ұйымдастыру","     әртістердің және Сіздің ұйымыңыздың қызметкерлері болып табылмайтын басқа қызметкерлердің еңбекақысын қосқандағы мәдени және спорттық іс-шараларын жарнамалау және ұйымдастыру\n     организация и реклама культурных и спортивных мероприятий, включая оплату артистам и другим работникам, не являющимся сотрудниками Вашей организации",1,null,"102",1058,null,0,1,null,null,0,0,null,null,1]
[4496,null,"     покупка, продажа книг, прав собственности на оригиналы литературных и прочих произведений искусства, на оригиналы видеозаписей и звукозаписей радио- и телевизионных программ, кинофильмов","     кітаптарды, әдеби және өзге өнер туындыларының түпнұсқаларына, радио- және телевизиялық бағдарламалар, кинофильмдер бейнежазбаларының және дыбысжазбаларының түпнұсқаларына меншіктік құқықтарды сатып алу, сату","     кітаптарды, әдеби және өзге өнер туындыларының түпнұсқаларына, радио- және телевизиялық бағдарламалар, кинофильмдер бейнежазбаларының және дыбысжазбаларының түпнұсқаларына меншіктік құқықтарды сатып алу, сату\n     покупка, продажа книг, прав собственности на оригиналы литературных и прочих произведений искусства, на оригиналы видеозаписей и звукозаписей радио- и телевизионных программ, кинофильмов",1,null,"103",1058,null,0,1,null,null,0,0,null,null,1]
[4497,null,"     обучение нерезидентов, находящихся на территории Казахстана","     Қазақстан аумағында бейрезиденттерді оқыту","     Қазақстан аумағында бейрезиденттерді оқыту\n     обучение нерезидентов, находящихся на территории Казахстана",1,null,"104",1058,null,0,1,null,null,0,0,null,null,1]
[4498,null,"     обучение нерезидентов, находящихся за рубежом (дистанционно, выезд казахстанских преподавателей)","     шетелдегі бейрезиденттерді оқыту (қашықтан, қазақстандық оқытушылардың шығуы)","     шетелдегі бейрезиденттерді оқыту (қашықтан, қазақстандық оқытушылардың шығуы)\n     обучение нерезидентов, находящихся за рубежом (дистанционно, выезд казахстанских преподавателей)",1,null,"105",1058,null,0,1,null,null,0,0,null,null,1]
[4499,null,"     услуги, относящиеся к музеям и прочим видам деятельности в области культуры, спорта, азартных игр и отдыха, включая платежи и призы, в том числе спортсменам-резидентам, и прочие услуги частным лицам","     төлемдер мен сыйлықтарды, оның ішінде спортшы-резиденттерге берілетіндерін есептегенде мұражайларға және мәдениет, спорт, құмар ойындар мен демалыс саласындағы өзге қызмет түрлеріне жататын қызметтер және жеке тұлғаларға басқа қызметтер","     төлемдер мен сыйлықтарды, оның ішінде спортшы-резиденттерге берілетіндерін есептегенде мұражайларға және мәдениет, спорт, құмар ойындар мен демалыс саласындағы өзге қызмет түрлеріне жататын қызметтер және жеке тұлғаларға басқа қызметтер\n     услуги, относящиеся к музеям и прочим видам деятельности в области культуры, спорта, азартных игр и отдыха, включая платежи и призы, в том числе спортсменам-резидентам, и прочие услуги частным лицам",1,null,"106",1058,null,0,1,null,null,0,0,null,null,1]
[4500,null,"Прочие услуги, оказанные Вашей организацией нерезидентам (расшифровать)","Сіздің ұйыммен бейрезиденттерге көрсетілген басқа қызметтер (толық көрсетіңіз)","Сіздің ұйыммен бейрезиденттерге көрсетілген басқа қызметтер (толық көрсетіңіз)\nПрочие услуги, оказанные Вашей организацией нерезидентам (расшифровать)",1,null,"109",1058,null,5,1,null,15,0,0,null,null,1]
[101,null,"Строительные услуги (включая ремонт и техническое обслуживание в связи со строительством) при строительстве в Казахстане, в том числе:","Қазақстандағы құрылыста (құрылыспен байланысты жөндеу және техникалық қызмет көрсетуді қосқанда) құрылыс қызметтері, оның ішінде:","Қазақстандағы құрылыста (құрылыспен байланысты жөндеу және техникалық қызмет көрсетуді қосқанда) құрылыс қызметтері, оның ішінде:\nСтроительные услуги (включая ремонт и техническое обслуживание в связи со строительством) при строительстве в Казахстане, в том числе:",1,null,"110",1059,null,1,1,null,null,0,0,null,null,1]
[4501,null,"     строительные работы, выполненные строительными предприятиями-нерезидентами для Вашей организации","     сіздің ұйым үшін Бейрезидент-құрылыс кәсіпорындарымен орындалған құрылыс жұмыстары ","     сіздің ұйым үшін Бейрезидент-құрылыс кәсіпорындарымен орындалған құрылыс жұмыстары \n     строительные работы, выполненные строительными предприятиями-нерезидентами для Вашей организации",1,null,"111",1059,null,0,1,null,null,0,0,null,null,1]
[4502,null,"     товары, проданные Вашей организации строительными предприятиями-нерезидентами","     сіздің ұйымға бейрезидент-құрылыс кәсіпорындарымен сатылған тауарлар","     сіздің ұйымға бейрезидент-құрылыс кәсіпорындарымен сатылған тауарлар\n     товары, проданные Вашей организации строительными предприятиями-нерезидентами",1,null,"112",1059,null,0,1,null,null,0,0,null,null,1]
[4503,null,"Строительные услуги (включая товары, проданные Вашей организации строительными предприятиями-нерезидентами) при строительстве за границей","Шетелдегі құрылыста (сіздің ұйымыңызға бейрезидент құрылыс компаниялары сатқан тауарларды қоса алғанда) құрылыс қызметтері",{"$f":"CONCATENATE(IF(B342<>\"\",CONCATENATE(B342,\" \"),\"\"),IF(p_language_current_id=1,C342,IF(p_language_current_id=2,D342,IF(C342=D342,C342,CONCATENATE(D342,IF(F342=0,\" / \",CHAR(10)),C342)))),IF(G342<>\"\",CONCATENATE(\" \",G342),\"\"))","v":"Шетелдегі құрылыста (сіздің ұйымыңызға бейрезидент құрылыс компаниялары сатқан тауарларды қоса алғанда) құрылыс қызметтері\nСтроительные услуги (включая товары, проданные Вашей организации строительными предприятиями-нерезидентами) при строительстве за границей"},1,null,"115",1059,null,0,1,null,null,0,0,null,null,1]
[102,null,"Финансовые услуги","Қаржылық  қызметтері","Қаржылық  қызметтері\nФинансовые услуги",1,null,"120",1059,null,0,1,null,null,0,0,null,null,1]
[4504,null,"Телекоммунакационные услуги (без учета стоимости передаваемой информации), в том числе:","Телекоммуникациялық қызметтер (берілетін ақпарат құнын есептемегенде), оның ішінде:","Телекоммуникациялық қызметтер (берілетін ақпарат құнын есептемегенде), оның ішінде:\nТелекоммунакационные услуги (без учета стоимости передаваемой информации), в том числе:",1,null,"121",1059,null,1,1,null,null,0,0,null,null,1]
[4505,null,"     услуги телефонной, мобильной связи из Казахстана с другими странами","     Қазақстаннан басқа елдермен телефондық, ұялы байланыс","     Қазақстаннан басқа елдермен телефондық, ұялы байланыс\n     услуги телефонной, мобильной связи из Казахстана с другими странами",1,null,"122",1059,null,0,1,null,null,0,0,null,null,1]
[4506,null,"     использование спутников, находящихся в собственности нерезидентов","     резидент еместердің меншігіндегі жерсеріктерді пайдалану","     резидент еместердің меншігіндегі жерсеріктерді пайдалану\n     использование спутников, находящихся в собственности нерезидентов",1,null,"123",1059,null,0,1,null,null,0,0,null,null,1]
[4507,null,"     услуги магистрального кабеля интернета и услуги доступа к сети, включая предоставление доступа к интернету","     интернет магистралды кабелі қызметтері және интернетке кіру құқығын беруді қоса алғанда желіге кіргізу қызметтері","     интернет магистралды кабелі қызметтері және интернетке кіру құқығын беруді қоса алғанда желіге кіргізу қызметтері\n     услуги магистрального кабеля интернета и услуги доступа к сети, включая предоставление доступа к интернету",1,null,"124",1059,null,0,1,null,null,0,0,null,null,1]
[4508,null,"     услуги деловых сетей, организация телеконференций, услуги служб поддержки","     іскерлік желілер қызметтері, телеконференциялар ұйымдастыру, қолдау қызметтерінің жұмыстары","     іскерлік желілер қызметтері, телеконференциялар ұйымдастыру, қолдау қызметтерінің жұмыстары\n     услуги деловых сетей, организация телеконференций, услуги служб поддержки",1,null,"125",1059,null,0,1,null,null,0,0,null,null,1]
[4509,null,"     услуги телекса, телеграфа, телефакса, радио, передача по телевизионным кабелям","     телекс, телеграф, телефакс, радио, телевизиялық кабель арқылы тасымалдау қызметтері","     телекс, телеграф, телефакс, радио, телевизиялық кабель арқылы тасымалдау қызметтері\n     услуги телекса, телеграфа, телефакса, радио, передача по телевизионным кабелям",1,null,"126",1059,null,0,1,null,null,0,0,null,null,1]
[4510,null,"     прочие телекоммуникационные услуги","     өзге телекоммуникациялық қызметтер","     өзге телекоммуникациялық қызметтер\n     прочие телекоммуникационные услуги",1,null,"127",1059,null,0,1,null,null,0,0,null,null,1]
[2038,null,"Страховые услуги, в том числе:","Сақтандыру қызметі, оның ішінде:","Сақтандыру қызметі, оның ішінде:\nСтраховые услуги, в том числе:",1,null,"",1059,null,3,1,null,null,0,0,null,null,1]
[4511,null,"     выплаченные страховые премии по договорам страхования с нерезидентами экспортных товаров Казахстана","     Қазақстанның бейрезиденттерімен экспорттық тауарларды сақтандыру шарттары бойынша төленген сақтандыру сыйлықақылары","     Қазақстанның бейрезиденттерімен экспорттық тауарларды сақтандыру шарттары бойынша төленген сақтандыру сыйлықақылары\n     выплаченные страховые премии по договорам страхования с нерезидентами экспортных товаров Казахстана",1,null,"130",1059,null,0,1,null,null,0,0,null,null,1]
[4512,null,"     выплаченные страховые премии по договорам страхования с нерезидентами импортных товаров Казахстана","     Қазақстанның бейрезиденттерімен импорттық тауарларды сақтандыру шарттары бойынша төленген сақтандыру сыйлықақылары","     Қазақстанның бейрезиденттерімен импорттық тауарларды сақтандыру шарттары бойынша төленген сақтандыру сыйлықақылары\n     выплаченные страховые премии по договорам страхования с нерезидентами импортных товаров Казахстана",1,null,"131",1059,null,0,1,null,null,0,0,null,null,1]
[2039,null,"     выплаченные страховые премии по прочим договорам страхования с нерезидентами","     бейрезиденттермен өзге сақтандыру шарттары бойынша төленген сақтандыру сыйлықақылары","     бейрезиденттермен өзге сақтандыру шарттары бойынша төленген сақтандыру сыйлықақылары\n     выплаченные страховые премии по прочим договорам страхования с нерезидентами",1,null,"132",1059,null,0,1,null,null,0,0,null,null,1]
[4513,null,"     страховые выплаты, полученные по договорам страхования с нерезидентами экспортных товаров Казахстана","     Қазақстанның бейрезиденттерімен экспорттық тауарларды сақтандыру шарттары бойынша алынған сақтандыру төлемдері","     Қазақстанның бейрезиденттерімен экспорттық тауарларды сақтандыру шарттары бойынша алынған сақтандыру төлемдері\n     страховые выплаты, полученные по договорам страхования с нерезидентами экспортных товаров Казахстана",1,null,"133",1059,null,0,1,null,null,0,0,null,null,1]
[4514,null,"     страховые выплаты, полученные по договорам страхования с нерезидентами импортных товаров Казахстана","     Қазақстанның бейрезиденттерімен импорттық тауарларды сақтандыру шарттары бойынша алынған сақтандыру төлемдері","     Қазақстанның бейрезиденттерімен импорттық тауарларды сақтандыру шарттары бойынша алынған сақтандыру төлемдері\n     страховые выплаты, полученные по договорам страхования с нерезидентами импортных товаров Казахстана",1,null,"134",1059,null,0,1,null,null,0,0,null,null,1]
[2040,null,"     страховые выплаты, полученные по прочим договорам страхования с нерезидентами","     бейрезиденттермен өзге сақтандыру шарттары бойынша алынған сақтандыру төлемдері","     бейрезиденттермен өзге сақтандыру шарттары бойынша алынған сақтандыру төлемдері\n     страховые выплаты, полученные по прочим договорам страхования с нерезидентами",1,null,"135",1059,null,0,1,null,null,0,0,null,null,1]
[1773,null,"Компьютерные услуги (включая ремонт и техническое обслуживание компьютеров), в том числе:","Компьютерлік қызметтер (компьютерлерді жөндеу және техникалық қызмет көрсетуді қосқанда), оның ішінде:","Компьютерлік қызметтер (компьютерлерді жөндеу және техникалық қызмет көрсетуді қосқанда), оның ішінде:\nКомпьютерные услуги (включая ремонт и техническое обслуживание компьютеров), в том числе:",1,null,"140",1059,null,1,1,null,null,0,0,null,null,1]
[4515,null,"     компьютерное программное обеспечение","     компьютерлік бағдарламалық қамтамасыз ету","     компьютерлік бағдарламалық қамтамасыз ету\n     компьютерное программное обеспечение",1,null,"141",1059,null,0,1,null,null,0,0,null,null,1]
[4516,null,"     запасные части и материалы, предоставляемые ремонтирующей стороной","     жөндеуші тарап ұсынатын қосалқы бөлшектер мен материалдар ","     жөндеуші тарап ұсынатын қосалқы бөлшектер мен материалдар \n     запасные части и материалы, предоставляемые ремонтирующей стороной",1,null,"142",1059,null,0,1,null,null,0,0,null,null,1]
[4517,null,"     прочие компьютерные услуги","     өзге компьютерлік қызметтер","     өзге компьютерлік қызметтер\n     прочие компьютерные услуги",1,null,"143",1059,null,0,1,null,null,0,0,null,null,1]
[1774,null,"Информационные услуги","Ақпараттық қызметтер","Ақпараттық қызметтер\nИнформационные услуги",1,null,"150",1059,null,1,1,null,null,0,0,null,null,1]
[4518,null,"     услуги информационных агентств","     ақпараттық агенттіктердің қызметтері","     ақпараттық агенттіктердің қызметтері\n     услуги информационных агентств",1,null,"151",1059,null,0,1,null,null,0,0,null,null,1]
[4519,null,"     прочие информационные услуги","     өзге ақпараттық қызметтер","     өзге ақпараттық қызметтер\n     прочие информационные услуги",1,null,"152",1059,null,0,1,null,null,0,0,null,null,1]
[4520,null,"Почтовые услуги и услуги курьерской связи (сбор, транспортировка и доставка в других странах отправленных из Казахстана писем, периодических и печатных изданий, посылок и бандеролей)","Пошталық қызметтер және курьерлік байланыс қызметтері (Қазақстаннан жіберілген хаттарды, мерзімдік және баспасөз басылымдарын, жіберілімдер және бандерольдарды басқа елдерде жинау, тасымалдау және жеткізу)","Пошталық қызметтер және курьерлік байланыс қызметтері (Қазақстаннан жіберілген хаттарды, мерзімдік және баспасөз басылымдарын, жіберілімдер және бандерольдарды басқа елдерде жинау, тасымалдау және жеткізу)\nПочтовые услуги и услуги курьерской связи (сбор, транспортировка и доставка в других странах отправленных из Казахстана писем, периодических и печатных изданий, посылок и бандеролей)",1,null,"155",1059,null,0,1,null,null,0,0,null,null,1]
[110,null,"Услуги по переработке товаров","Тауарларды қайта өңдеу бойынша қызметтер","Тауарларды қайта өңдеу бойынша қызметтер\nУслуги по переработке товаров",1,null,"160",1059,null,0,1,null,null,0,0,null,null,1]
[108,null,"Услуги по ремонту и техническому обслуживанию, не отнесенные к другим категориям, в том числе:","Басқа санатқа жатпайтын жөндеу және техникалық қызметтер бойынша қызметтер, оның ішінде:","Басқа санатқа жатпайтын жөндеу және техникалық қызметтер бойынша қызметтер, оның ішінде:\nУслуги по ремонту и техническому обслуживанию, не отнесенные к другим категориям, в том числе:",1,null,"170",1059,null,1,1,null,null,0,0,null,null,1]
[4521,null,"     ремонт железнодорожных путей и конструкций и сооружений в морских портах и аэропортах за границей, включая запасные части и материалы для ремонта","     шетелде темір жолдарды, теңіз порттарында және әуежайларда конструкцияларды және құрылымдарды, оның ішінде қосалқы бөлшектер мен жөндеуге арналған материалдарды қоса алғанда жөндеу","     шетелде темір жолдарды, теңіз порттарында және әуежайларда конструкцияларды және құрылымдарды, оның ішінде қосалқы бөлшектер мен жөндеуге арналған материалдарды қоса алғанда жөндеу\n     ремонт железнодорожных путей и конструкций и сооружений в морских портах и аэропортах за границей, включая запасные части и материалы для ремонта",1,null,"171",1059,null,0,1,null,null,0,0,null,null,1]
[4522,null,"     ремонт железнодорожных путей и конструкций и сооружений в морских портах и аэропортах в Казахстане, включая запасные части и материалы для ремонта","     Қазақстанда темір жолдарды, теңіз порттарында және әуежайларда конструкцияларды және құрылымдарды, оның ішінде қосалқы бөлшектер мен жөндеуге арналған материалдарды жөндеу","     Қазақстанда темір жолдарды, теңіз порттарында және әуежайларда конструкцияларды және құрылымдарды, оның ішінде қосалқы бөлшектер мен жөндеуге арналған материалдарды жөндеу\n     ремонт железнодорожных путей и конструкций и сооружений в морских портах и аэропортах в Казахстане, включая запасные части и материалы для ремонта",1,null,"172",1059,null,0,1,null,null,0,0,null,null,1]
[4523,null,"     работы по прочему ремонту и техническому обслуживанию","     басқа да жөндеу және техникалық қызмет көрсету бойынша жұмыстар","     басқа да жөндеу және техникалық қызмет көрсету бойынша жұмыстар\n     работы по прочему ремонту и техническому обслуживанию",1,null,"173",1059,null,0,1,null,null,0,0,null,null,1]
[4524,null,"     запасные части и материалы, предоставляемые ремонтирующей стороной при прочем ремонте и техническом обслуживании","     басқа да жөндеу және техникалық қызмет көрсету үшін жөндеуші жақпен ұсынылған қосалқы бөлшектер мен материалдар ","     басқа да жөндеу және техникалық қызмет көрсету үшін жөндеуші жақпен ұсынылған қосалқы бөлшектер мен материалдар \n     запасные части и материалы, предоставляемые ремонтирующей стороной при прочем ремонте и техническом обслуживании",1,null,"174",1059,null,0,1,null,null,0,0,null,null,1]
[106,null,"Плата за использование интеллектуальной собственности ","Зияткерлік меншікті пайдалануға төлем","Зияткерлік меншікті пайдалануға төлем\nПлата за использование интеллектуальной собственности ",1,null,"180",1059,null,1,1,null,null,0,0,null,null,1]
[4525,null,"     сборы за франшизы и товарные знаки","     франшиза және тауарлық белгілер үшін алымдар","     франшиза және тауарлық белгілер үшін алымдар\n     сборы за франшизы и товарные знаки",1,null,"181",1059,null,0,1,null,null,0,0,null,null,1]
[4526,null,"     лицензии за использование результатов научных исследований и разработок","     ғылыми зерттеулер мен зерттемелердің нәтижелерін пайдалану үшін лицензиялар","     ғылыми зерттеулер мен зерттемелердің нәтижелерін пайдалану үшін лицензиялар\n     лицензии за использование результатов научных исследований и разработок",1,null,"182",1059,null,0,1,null,null,0,0,null,null,1]
[4527,null,"     лицензии на воспроизведение и (или) распространения программного обеспечения","     бағдарламалық қамтамасыз етуді қайта жаңғыртуға және (немесе) таратуға лицензиялар","     бағдарламалық қамтамасыз етуді қайта жаңғыртуға және (немесе) таратуға лицензиялар\n     лицензии на воспроизведение и (или) распространения программного обеспечения",1,null,"183",1059,null,0,1,null,null,0,0,null,null,1]
[4528,null,"     лицензии на воспроизведение и (или) распространения аудиовизуальных и связанных с ними продуктов","     аудиовизуалды және онымен байланысты өнімдерді қайта жаңғыртуға және (немесе) таратуға лицензиялар","     аудиовизуалды және онымен байланысты өнімдерді қайта жаңғыртуға және (немесе) таратуға лицензиялар\n     лицензии на воспроизведение и (или) распространения аудиовизуальных и связанных с ними продуктов",1,null,"184",1059,null,0,1,null,null,0,0,null,null,1]
[4529,null,"     прочие сборы за использование интеллектуальной собственности","     зияткерлік меншікті пайдалану үшін өзге алымдар","     зияткерлік меншікті пайдалану үшін өзге алымдар\n     прочие сборы за использование интеллектуальной собственности",1,null,"185",1059,null,0,1,null,null,0,0,null,null,1]
[2042,null,"Разные деловые услуги, в том числе:","Әртүрлі іскерлік қызметтер, оның ішінде:","Әртүрлі іскерлік қызметтер, оның ішінде:\nРазные деловые услуги, в том числе:",1,null,"190",1059,null,1,1,null,null,0,0,null,null,1]
[2043,null,"     научно-исследовательские и опытно-конструкторские разработки, включая права собственности, возникающие в их результате","     ғылыми-зерттеу және тәжірибелік-конструкторлық әзірлемелер, және олардың нәтижесінде пайда болатын меншіктік құқықтар","     ғылыми-зерттеу және тәжірибелік-конструкторлық әзірлемелер, және олардың нәтижесінде пайда болатын меншіктік құқықтар\n     научно-исследовательские и опытно-конструкторские разработки, включая права собственности, возникающие в их результате",1,null,"191",1059,null,0,1,null,null,0,0,null,null,1]
[2044,null,"     юридические","     заңгерлік","     заңгерлік\n     юридические",1,null,"192",1059,null,0,1,null,null,0,0,null,null,1]
[2045,null,"     бухгалтерские, аудиторские ","     бухгалтерлік, аудиторлық","     бухгалтерлік, аудиторлық\n     бухгалтерские, аудиторские ",1,null,"193",1059,null,0,1,null,null,0,0,null,null,1]
[2046,null,"     услуги по консультации бизнеса и управления","     бизнес және басқару бойынша консультациялық қызметтер","     бизнес және басқару бойынша консультациялық қызметтер\n     услуги по консультации бизнеса и управления",1,null,"194",1059,null,0,1,null,null,0,0,null,null,1]
[2047,null,"     услуги в области рекламы и изучения конъюнктуры рынка, по организации конференций, торговых ярмарок и выставок","     конференцияларды, сауда жәрмеңкелерін және көрмелерін ұйымдастыру бойынша жарнама және нарық коньюнктурасын зерделеу саласындағы қызметтер","     конференцияларды, сауда жәрмеңкелерін және көрмелерін ұйымдастыру бойынша жарнама және нарық коньюнктурасын зерделеу саласындағы қызметтер\n     услуги в области рекламы и изучения конъюнктуры рынка, по организации конференций, торговых ярмарок и выставок",1,null,"195",1059,null,0,1,null,null,0,0,null,null,1]
[2048,null,"     архитектурные, инженерные и  прочие технические услуги","     сәулет, инженерлік және басқа да техникалық қызметтер","     сәулет, инженерлік және басқа да техникалық қызметтер\n     архитектурные, инженерные и  прочие технические услуги",1,null,"196",1059,null,0,1,null,null,0,0,null,null,1]
[2049,null,"     переработка отходов и очистка окружающей среды","     қалдықтарды қайта өңдеу және қоршаған ортаны тазарту","     қалдықтарды қайта өңдеу және қоршаған ортаны тазарту\n     переработка отходов и очистка окружающей среды",1,null,"197",1059,null,0,1,null,null,0,0,null,null,1]
[2050,null,"     услуги в области сельского хозяйства","     ауыл шаруашылығы саласындағы қызметтер","     ауыл шаруашылығы саласындағы қызметтер\n     услуги в области сельского хозяйства",1,null,"198",1059,null,0,1,null,null,0,0,null,null,1]
[107,null,"     операционный лизинг (аренда) оборудования без персонала (включая аренду транспортных средств для перевозки пассажиров, грузов)","     жабдықтардың қызметкерсіз операциялық лизингі (жалдау) (жолаушыларды, жүктерді тасымалдау үшін көлік құралдарын жалға беруді қоса алғанда) ","     жабдықтардың қызметкерсіз операциялық лизингі (жалдау) (жолаушыларды, жүктерді тасымалдау үшін көлік құралдарын жалға беруді қоса алғанда) \n     операционный лизинг (аренда) оборудования без персонала (включая аренду транспортных средств для перевозки пассажиров, грузов)",1,null,"199",1059,null,0,1,null,null,0,0,null,null,1]
[2051,null,"     связанные с торговлей услуги трейдеров, брокеров биржевых товаров, дилеров, аукционистов и комиссионеров (кроме услуг по финансовым инструментам)","     трейдерлердің, биржалық тауарлар брокерлерінің, дилерлердің, аукционшылардың және делдалдардың саудамен байланысты қызметтері (қаржылық құралдар бойынша қызметтерді қоспағанда)","     трейдерлердің, биржалық тауарлар брокерлерінің, дилерлердің, аукционшылардың және делдалдардың саудамен байланысты қызметтері (қаржылық құралдар бойынша қызметтерді қоспағанда)\n     связанные с торговлей услуги трейдеров, брокеров биржевых товаров, дилеров, аукционистов и комиссионеров (кроме услуг по финансовым инструментам)",1,null,"200",1059,null,0,1,null,null,0,0,null,null,1]
[4530,null,"     услуги распределительных сетей, трудоустройства и прочие деловые услуги","     үлестіру желілерінің, жұмысқа орналастыру және басқа да іскерлік қызметтер","     үлестіру желілерінің, жұмысқа орналастыру және басқа да іскерлік қызметтер\n     услуги распределительных сетей, трудоустройства и прочие деловые услуги",1,null,"201",1059,null,0,1,null,null,0,0,null,null,1]
[4531,null,"     услуги в области добычи полезных ископаемых","     пайдалы қазбаларды өндіру саласындағы қызметтер","     пайдалы қазбаларды өндіру саласындағы қызметтер\n     услуги в области добычи полезных ископаемых",1,null,"202",1059,null,0,1,null,null,0,0,null,null,1]
[4532,null,"Услуги частным лицам и услуги в сфере культуры и отдыха, в том числе:","Жеке тұлғаларға қызмет көрсету және мәдениет пен демалыс саласындағы қызметтер, оның ішінде:","Жеке тұлғаларға қызмет көрсету және мәдениет пен демалыс саласындағы қызметтер, оның ішінде:\nУслуги частным лицам и услуги в сфере культуры и отдыха, в том числе:",1,null,"210",1059,null,1,1,null,null,0,0,null,null,1]
[4533,null,"     производство аудиовизуальных продуктов (художественных фильмов, радио- и телевизионных программ, музыкальных произведений), включая оплату актерам, режиссерам и другим работникам, не являющимся сотрудниками Вашей организации, аренда аудиовизуальных продуктов, услуги кабельного и спутникового телевидения","     актерлердің, режиссерлердің және Сіздің ұйымыңыздың қызметкерлері болып табылмайтын басқа қызметкерлердің еңбекақысын қосқандағы аудиовизуалды өнімдерді (көркем фильмдер, радио- және телевизиялық бағдарламалар, музыкалық шығармалар) жасау, аудиовизуалды өнімдерді жалға алу, кабельді және жерсеріктік теледидар қызметтері","     актерлердің, режиссерлердің және Сіздің ұйымыңыздың қызметкерлері болып табылмайтын басқа қызметкерлердің еңбекақысын қосқандағы аудиовизуалды өнімдерді (көркем фильмдер, радио- және телевизиялық бағдарламалар, музыкалық шығармалар) жасау, аудиовизуалды өнімдерді жалға алу, кабельді және жерсеріктік теледидар қызметтері\n     производство аудиовизуальных продуктов (художественных фильмов, радио- и телевизионных программ, музыкальных произведений), включая оплату актерам, режиссерам и другим работникам, не являющимся сотрудниками Вашей организации, аренда аудиовизуальных продуктов, услуги кабельного и спутникового телевидения",1,null,"211",1059,null,0,1,null,null,0,0,null,null,1]
[4534,null,"     организация и реклама культурных и спортивных мероприятий, включая оплату артистам и другим работникам, не являющимся сотрудниками Вашей организации","     әртістердің және Сіздің ұйымыңыздың қызметкерлері болып табылмайтын басқа қызметкерлердің еңбекақысын қосқандағы мәдени және спорттық іс-шараларын жарнамалау және  ұйымдастыру","     әртістердің және Сіздің ұйымыңыздың қызметкерлері болып табылмайтын басқа қызметкерлердің еңбекақысын қосқандағы мәдени және спорттық іс-шараларын жарнамалау және  ұйымдастыру\n     организация и реклама культурных и спортивных мероприятий, включая оплату артистам и другим работникам, не являющимся сотрудниками Вашей организации",1,null,"212",1059,null,0,1,null,null,0,0,null,null,1]
[4535,null,"     покупка, продажа книг, прав собственности на оригиналы литературных и прочих произведений искусства, на оригиналы видеозаписей и звукозаписей радио- и телевезионных программ, кинофильмов","     кітаптарды, әдеби және өзге өнер туындыларының түпнұсқаларына, радио- және телевизиялық бағдарламалар, кинофильмдер бейнежазбаларының және дыбысжазбаларының түпнұсқаларына меншіктік құқықтарды сатып алу, сату","     кітаптарды, әдеби және өзге өнер туындыларының түпнұсқаларына, радио- және телевизиялық бағдарламалар, кинофильмдер бейнежазбаларының және дыбысжазбаларының түпнұсқаларына меншіктік құқықтарды сатып алу, сату\n     покупка, продажа книг, прав собственности на оригиналы литературных и прочих произведений искусства, на оригиналы видеозаписей и звукозаписей радио- и телевезионных программ, кинофильмов",1,null,"213",1059,null,0,1,null,null,0,0,null,null,1]
[4536,null,"     обучение резидентов, находящихся за рубежом","     шетелдегі резиденттерді оқыту","     шетелдегі резиденттерді оқыту\n     обучение резидентов, находящихся за рубежом",1,null,"214",1059,null,0,1,null,null,0,0,null,null,1]
[4537,null,"     обучение резидентов, находящихся на территории Казахстана (дистанционно, приезд иностранных преподавателей)","     Қазақстан аумағындағы резиденттерді оқыту (қашықтан, шетелдік оқытушылардың келуі)","     Қазақстан аумағындағы резиденттерді оқыту (қашықтан, шетелдік оқытушылардың келуі)\n     обучение резидентов, находящихся на территории Казахстана (дистанционно, приезд иностранных преподавателей)",1,null,"215",1059,null,0,1,null,null,0,0,null,null,1]
[4538,null,"     услуги здравоохранения, предоставленные резидентам, находящимся за рубежом","     шетелдегі резиденттерге көрсетілген денсаулық сақтау қызметтері","     шетелдегі резиденттерге көрсетілген денсаулық сақтау қызметтері\n     услуги здравоохранения, предоставленные резидентам, находящимся за рубежом",1,null,"216",1059,null,0,1,null,null,0,0,null,null,1]
[4539,null,"     услуги здравоохранения, предоставленные резидентам, находящимся на территории Казахстана (дистанционно, приезд иностранных медицинских работников)","     Қазақстан аумағындағы резиденттерге көрсетілген денсаулық сақтау қызметтері (қашықтан, шетелдік медициналық қызметкерлердің келуі)","     Қазақстан аумағындағы резиденттерге көрсетілген денсаулық сақтау қызметтері (қашықтан, шетелдік медициналық қызметкерлердің келуі)\n     услуги здравоохранения, предоставленные резидентам, находящимся на территории Казахстана (дистанционно, приезд иностранных медицинских работников)",1,null,"217",1059,null,0,1,null,null,0,0,null,null,1]
[4540,null,"     услуги, относящиеся к музеям и прочим видам деятельности в области культуры, спорта, азартных игр и отдыха, включая платежи и призы, в том числе спортсменам-нерезидентам, и прочие услуги частным лицам","     төлемдер мен сыйлықтарды, оның ішінде спортшыларға берілетіндерін есептегенде мұражайларға және мәдениет, спорт, құмар ойындар мен демалыс саласындағы өзге қызмет түрлеріне жататын басқа қызметтер","     төлемдер мен сыйлықтарды, оның ішінде спортшыларға берілетіндерін есептегенде мұражайларға және мәдениет, спорт, құмар ойындар мен демалыс саласындағы өзге қызмет түрлеріне жататын басқа қызметтер\n     услуги, относящиеся к музеям и прочим видам деятельности в области культуры, спорта, азартных игр и отдыха, включая платежи и призы, в том числе спортсменам-нерезидентам, и прочие услуги частным лицам",1,null,"218",1059,null,0,1,null,null,0,0,null,null,1]
[4541,null,"Прочие услуги, полученные Вашей организацией от нерезидентов (расшифровать)","Сіздің ұйыммен бейрезиденттерден алынған басқа қызметтер (толық көрсетіңіз)","Сіздің ұйыммен бейрезиденттерден алынған басқа қызметтер (толық көрсетіңіз)\nПрочие услуги, полученные Вашей организацией от нерезидентов (расшифровать)",1,null,"219",1059,null,5,1,null,15,0,0,null,null,1]
[4542,null,"Услуги здравоохранения, оказанные нерезидентам, находящимся на территории Казахстана, в том числе по регионам Казахстана:","Қазақстан аумағындағы бейрезиденттерге көрсетілген денсаулық сақтау қызметтері, оның ішінде Қазақстан аймақтары бойынша:","Қазақстан аумағындағы бейрезиденттерге көрсетілген денсаулық сақтау қызметтері, оның ішінде Қазақстан аймақтары бойынша:\nУслуги здравоохранения, оказанные нерезидентам, находящимся на территории Казахстана, в том числе по регионам Казахстана:",1,null,"221",1060,null,5,1,null,19,0,0,null,null,1]
[4543,null,"Услуги здравоохранения, оказанные нерезидентам, находящимся за рубежом (дистанционно, выезд казахстанских медицинских работников), в том числе по регионам Казахстана:","Шетелдегі бейрезиденттерге көрсетілген денсаулық сақтау қызметтері (қашықтан, қазақстандық медициналық жұмысшылардың шығуы), оның ішінде Қазақстан аймақтары бойынша:","Шетелдегі бейрезиденттерге көрсетілген денсаулық сақтау қызметтері (қашықтан, қазақстандық медициналық жұмысшылардың шығуы), оның ішінде Қазақстан аймақтары бойынша:\nУслуги здравоохранения, оказанные нерезидентам, находящимся за рубежом (дистанционно, выезд казахстанских медицинских работников), в том числе по регионам Казахстана:",1,null,"222",1060,null,5,1,null,19,0,0,null,null,1]
[4544,null,"Стоимость билетов на рейсы транспортных предприятий-нерезидентов, купленных Вашей организацией у нерезидентов и (или) на интернет-ресурсе транспортных предприятий-нерезидентов (минус стоимость возвращенных билетов), в том числе по видам транспорта:","Сіздің ұйымыңыздың бейрезидент көлік кәсіпорындарының сапарына бейрезиденттерден және (немесе) бейрезидент көлік кәсіпорындардың интернет-ресурсында сатып алған билет құны (қайтарылған билеттер құнын шегерумен), оның ішінде көлік түрлері бойынша:","Сіздің ұйымыңыздың бейрезидент көлік кәсіпорындарының сапарына бейрезиденттерден және (немесе) бейрезидент көлік кәсіпорындардың интернет-ресурсында сатып алған билет құны (қайтарылған билеттер құнын шегерумен), оның ішінде көлік түрлері бойынша:\nСтоимость билетов на рейсы транспортных предприятий-нерезидентов, купленных Вашей организацией у нерезидентов и (или) на интернет-ресурсе транспортных предприятий-нерезидентов (минус стоимость возвращенных билетов), в том числе по видам транспорта:",1,null,"231",1062,null,1,1,null,null,0,0,null,null,1]
[4545,null,"     морской","     теңіз","     теңіз\n     морской",1,null,"232",1062,null,0,1,null,null,0,0,null,null,1]
[4546,null,"     воздушный","     әуе","     әуе\n     воздушный",1,null,"233",1062,null,0,1,null,null,0,0,null,null,1]
[4547,null,"     железнодорожный","     теміржол",{"$f":"CONCATENATE(IF(B406<>\"\",CONCATENATE(B406,\" \"),\"\"),IF(p_language_current_id=1,C406,IF(p_language_current_id=2,D406,IF(C406=D406,C406,CONCATENATE(D406,IF(F406=0,\" / \",CHAR(10)),C406)))),IF(G406<>\"\",CONCATENATE(\" \",G406),\"\"))","v":"     теміржол\n     железнодорожный"},1,null,"234",1062,null,0,1,null,null,0,0,null,null,1]
[4548,null,"     автомобильный","     автокөлік","     автокөлік\n     автомобильный",1,null,"235",1062,null,0,1,null,null,0,0,null,null,1]
[4549,null,"Аренда Вашей организацией у нерезидентов транспортных средств с экипажем для перевозки пассажиров, в том числе по видам транспорта:","Сіздің ұйым бейрезиденттерден жолаушылар тасымалы үшін көлік құралдарын экипажымен жалға алуы, оның ішінде көлік түрлері бойынша:","Сіздің ұйым бейрезиденттерден жолаушылар тасымалы үшін көлік құралдарын экипажымен жалға алуы, оның ішінде көлік түрлері бойынша:\nАренда Вашей организацией у нерезидентов транспортных средств с экипажем для перевозки пассажиров, в том числе по видам транспорта:",1,null,"236",1062,null,1,1,null,null,0,0,null,null,1]
[4550,null,"     морской","     теңіз","     теңіз\n     морской",1,null,"237",1062,null,0,1,null,null,0,0,null,null,1]
[4551,null,"     воздушный","     әуе","     әуе\n     воздушный",1,null,"238",1062,null,0,1,null,null,0,0,null,null,1]
[4552,null,"     автомобильный","     автокөлік","     автокөлік\n     автомобильный",1,null,"239",1062,null,0,1,null,null,0,0,null,null,1]
[4553,null,"Комиссионное вознаграждение агентам-нерезидентам за продажу билетов, за аренду транспортных средств у нерезидентов, в том числе по видам транспорта:","Резидент агенттерге билеттер сатылымы үшін, көлік құралдарын жалға бергені үшін комиссиялық сыйақы, оның ішінде көлік түрлері бойынша:","Резидент агенттерге билеттер сатылымы үшін, көлік құралдарын жалға бергені үшін комиссиялық сыйақы, оның ішінде көлік түрлері бойынша:\nКомиссионное вознаграждение агентам-нерезидентам за продажу билетов, за аренду транспортных средств у нерезидентов, в том числе по видам транспорта:",1,null,"241",1062,null,1,1,null,null,0,0,null,null,1]
[4554,null,"     морской","     теңіз","     теңіз\n     морской",1,null,"242",1062,null,0,1,null,null,0,0,null,null,1]
[4555,null,"     воздушный","     әуе","     әуе\n     воздушный",1,null,"243",1062,null,0,1,null,null,0,0,null,null,1]
[4556,null,"     железнодорожный","     теміржол","     теміржол\n     железнодорожный",1,null,"244",1062,null,0,1,null,null,0,0,null,null,1]
[4557,null,"     автомобильный","     автокөлік","     автокөлік\n     автомобильный",1,null,"245",1062,null,0,1,null,null,0,0,null,null,1]
[4558,null,"Услуги по обслуживанию нерезидентами судов, самолетов, автотранспортных средств Вашей организации, в том числе:","Сіздің ұйымыңыздың кемелеріне, ұшақтарына, автокөліктік құралдарына бейрезиденттердің қызмет көрсетуі, оның ішінде:","Сіздің ұйымыңыздың кемелеріне, ұшақтарына, автокөліктік құралдарына бейрезиденттердің қызмет көрсетуі, оның ішінде:\nУслуги по обслуживанию нерезидентами судов, самолетов, автотранспортных средств Вашей организации, в том числе:",1,null,"251",1062,null,1,1,null,null,0,0,null,null,1]
[4559,null,"     буксировка, лоцманская проводка, стоянка, навигационная поддержка, авиадиспетчерские и прочие портовые и аналогичные сборы","     көліктік құралдарды сүйрету, лоцмандық алып өту, тұрақ, навигациялық қолдау, әуе реттеуші, өзге де порттық және ұқсас алымдар ","     көліктік құралдарды сүйрету, лоцмандық алып өту, тұрақ, навигациялық қолдау, әуе реттеуші, өзге де порттық және ұқсас алымдар \n     буксировка, лоцманская проводка, стоянка, навигационная поддержка, авиадиспетчерские и прочие портовые и аналогичные сборы",1,null,"252",1062,null,0,1,null,null,0,0,null,null,1]
[4560,null,"     уборка и очистка транспортных средств, погрузочно-разгрузочные работы, хранение и  складирование, упаковка и переупаковка в портах","     порттарда көлік құралдарын жинау және тазалау, тиеу-түсіру жұмыстары, сақтау және қоймада сақтау, орау және қайта орау","     порттарда көлік құралдарын жинау және тазалау, тиеу-түсіру жұмыстары, сақтау және қоймада сақтау, орау және қайта орау\n     уборка и очистка транспортных средств, погрузочно-разгрузочные работы, хранение и  складирование, упаковка и переупаковка в портах",1,null,"253",1062,null,0,1,null,null,0,0,null,null,1]
[4561,null,"     услуги по ремонту и техническому обслуживанию, в том числе:","     жөндеу және техникалық қызмет көрсету, оның ішінде:","     жөндеу және техникалық қызмет көрсету, оның ішінде:\n     услуги по ремонту и техническому обслуживанию, в том числе:",1,null,"254",1062,null,1,1,null,null,0,0,null,null,1]
[4562,null,"          работы по ремонту и техническому обслуживанию","          жөндеу және техникалық қызмет көрсету бойынша жұмыстар","          жөндеу және техникалық қызмет көрсету бойынша жұмыстар\n          работы по ремонту и техническому обслуживанию",1,null,"255",1062,null,0,1,null,null,0,0,null,null,1]
[4563,null,"          запасные части и материалы, предоставляемые ремонтирующей стороной","          жөндеуші тарап ұсынатын қосалқы бөлшектер мен материалдар ","          жөндеуші тарап ұсынатын қосалқы бөлшектер мен материалдар \n          запасные части и материалы, предоставляемые ремонтирующей стороной",1,null,"256",1062,null,0,1,null,null,0,0,null,null,1]
[4564,null,"     товары, доставляемые на транспортное средство (топливо, продовольствие, бортовые запасы, балласт и крепежные материалы)","     көлік құралына жеткізілетін тауарлар (отын, тамақ, борттық материалдар, балласт және бекітпе материалдары)","     көлік құралына жеткізілетін тауарлар (отын, тамақ, борттық материалдар, балласт және бекітпе материалдары)\n     товары, доставляемые на транспортное средство (топливо, продовольствие, бортовые запасы, балласт и крепежные материалы)",1,null,"257",1062,null,0,1,null,null,0,0,null,null,1]
[4565,null,"     прочие услуги по обслуживанию транспортных средств","     көлік құралдарына қызмет көрсету бойынша өзге қызметтер","     көлік құралдарына қызмет көрсету бойынша өзге қызметтер\n     прочие услуги по обслуживанию транспортных средств",1,null,"258",1062,null,0,1,null,null,0,0,null,null,1]
[4566,null,"Аренда нерезидентами судов, самолетов, автотранспортных средств Вашей организации с экипажем для перевозки пассажиров, в том числе по видам транспорта:","Бейрезиденттердің Сіздің ұйымыңыздың кемелер, ұшақтар, көлік құралдарын жолаушыларды тасымалдау үшін экипажымен жалға алуы, соның ішінде көлік түрлері бойынша:","Бейрезиденттердің Сіздің ұйымыңыздың кемелер, ұшақтар, көлік құралдарын жолаушыларды тасымалдау үшін экипажымен жалға алуы, соның ішінде көлік түрлері бойынша:\nАренда нерезидентами судов, самолетов, автотранспортных средств Вашей организации с экипажем для перевозки пассажиров, в том числе по видам транспорта:",1,null,"261",1062,null,1,1,null,null,0,0,null,null,1]
[4567,null,"     морской","     теңіз","     теңіз\n     морской",1,null,"262",1062,null,0,1,null,null,0,0,null,null,1]
[4568,null,"     воздушный","     әуе","     әуе\n     воздушный",1,null,"263",1062,null,0,1,null,null,0,0,null,null,1]
[4569,null,"     автомобильный","     автокөлік","     автокөлік\n     автомобильный",1,null,"264",1062,null,0,1,null,null,0,0,null,null,1]
[4570,null,"Комиссионное вознаграждение агентам-нерезидентам за аренду нерезидентами транспортных средств Вашей организации, в том числе по видам транспорта:","Бейрезидент-агенттерге Сіздің ұйымыңыздың көлік құралдарын жалға алу үшін комиссиялық сыйақы, оның ішінде көлік түрлері бойынша:","Бейрезидент-агенттерге Сіздің ұйымыңыздың көлік құралдарын жалға алу үшін комиссиялық сыйақы, оның ішінде көлік түрлері бойынша:\nКомиссионное вознаграждение агентам-нерезидентам за аренду нерезидентами транспортных средств Вашей организации, в том числе по видам транспорта:",1,null,"265",1062,null,1,1,null,null,0,0,null,null,1]
[4571,null,"     морской","     теңіз","     теңіз\n     морской",1,null,"266",1062,null,0,1,null,null,0,0,null,null,1]
[4572,null,"     воздушный","     әуе","     әуе\n     воздушный",1,null,"267",1062,null,0,1,null,null,0,0,null,null,1]
[4573,null,"     автомобильный","     автокөлік","     автокөлік\n     автомобильный",1,null,"268",1062,null,0,1,null,null,0,0,null,null,1]
[4574,null,"Прочие услуги, оказанные нерезидентам (расшифровать)","Бейрезиденттерге көрсетілген өзге де қызметтер (толық көрсетіңіз)","Бейрезиденттерге көрсетілген өзге де қызметтер (толық көрсетіңіз)\nПрочие услуги, оказанные нерезидентам (расшифровать)",1,null,"271",1062,null,5,1,null,15,0,0,null,null,1]
[4575,null,"Прочие услуги, полученные от нерезидентов (расшифровать)","Бейрезиденттерден алынған өзге де қызметтер (толық көрсетіңіз)","Бейрезиденттерден алынған өзге де қызметтер (толық көрсетіңіз)\nПрочие услуги, полученные от нерезидентов (расшифровать)",1,null,"275",1062,null,5,1,null,15,0,0,null,null,1]
[125,null,"Снабжение электро и теплоэнергией, водой, газом","Электр және жылу энергиясымен, сумен, газбен қамтамасыз ету","Электр және жылу энергиясымен, сумен, газбен қамтамасыз ету\nСнабжение электро и теплоэнергией, водой, газом",1,null,"280",19,null,0,1,null,null,0,0,null,null,1]
[2061,null,"Продажа объектов недвижимости","Жылжымайтын мүлік объектілерін сату","Жылжымайтын мүлік объектілерін сату\nПродажа объектов недвижимости",1,null,"290",19,null,0,1,null,null,0,0,null,null,1]
[131,null,"Аренда недвижимости","Жылжымайтын мүлік жалдау","Жылжымайтын мүлік жалдау\nАренда недвижимости",1,null,"300",19,null,0,1,null,null,0,0,null,null,1]
[2062,null,"Строительные услуги","Құрылыс қызметін көрсету","Құрылыс қызметін көрсету\nСтроительные услуги",1,null,"310",19,null,0,1,null,null,0,0,null,null,1]
[2063,null,"Услуги по ремонту и техническому обслуживанию, в том числе:","Жөндеу және техникалық қызмет көрсету, оның ішінде:","Жөндеу және техникалық қызмет көрсету, оның ішінде:\nУслуги по ремонту и техническому обслуживанию, в том числе:",1,null,"320",19,null,1,1,null,null,0,0,null,null,1]
[4576,null,"     работы по ремонту и техническому обслуживанию","     жөндеу және техникалық қызмет көрсету жұмыстары","     жөндеу және техникалық қызмет көрсету жұмыстары\n     работы по ремонту и техническому обслуживанию",1,null,"321",19,null,0,1,null,null,0,0,null,null,1]
[4577,null,"     запасные части и материалы, предоставляемые ремонтирующей стороной","     жөндеуші  тарап ұсынатын қосалқы бөлшектер мен материалдар","     жөндеуші  тарап ұсынатын қосалқы бөлшектер мен материалдар\n     запасные части и материалы, предоставляемые ремонтирующей стороной",1,null,"322",19,null,0,1,null,null,0,0,null,null,1]
[4578,null,"Прочие товары и услуги (расшифровать)","Басқа да тауарлар мен қызмет көрсетулер (толық көрсетіңіз)","Басқа да тауарлар мен қызмет көрсетулер (толық көрсетіңіз)\nПрочие товары и услуги (расшифровать)",1,null,"330",19,null,5,1,null,15,0,0,null,null,1]
[2065,null,"Расходы Вашей организации на транспортировку экспортных товаров Казахстана","Сіздің ұйымыңыздың Қазақстанның экспорттық тауарларын тасымалдау шығыстары","Сіздің ұйымыңыздың Қазақстанның экспорттық тауарларын тасымалдау шығыстары\nРасходы Вашей организации на транспортировку экспортных товаров Казахстана",1,null,"350",161,null,1,1,null,null,0,0,null,null,1]
[2071,null,"   резидентами","   резиденттердің","   резиденттердің\n   резидентами",1,null,"351",161,null,0,1,null,null,0,0,null,null,1]
[2077,null,"   нерезидентами","   бейрезиденттердің","   бейрезиденттердің\n   нерезидентами",1,null,"352",161,null,0,1,null,null,0,0,null,null,1]
[2084,null,"Расходы Вашей организации на транспортировку импортных товаров Казахстана","Сіздің ұйымыңыздың Қазақстанның импорттық тауарларын тасымалдау шығыстары","Сіздің ұйымыңыздың Қазақстанның импорттық тауарларын тасымалдау шығыстары\nРасходы Вашей организации на транспортировку импортных товаров Казахстана",1,null,"370",161,null,1,1,null,null,0,0,null,null,1]
[2090,null,"   резидентами ","   резиденттердің","   резиденттердің\n   резидентами ",1,null,"371",161,null,0,1,null,null,0,0,null,null,1]
[2091,null,"   нерезидентами","   бейрезиденттердің","   бейрезиденттердің\n   нерезидентами",1,null,"372",161,null,0,1,null,null,0,0,null,null,1]
[4579,null,"Прочие услуги, оказанные нерезидентам (расшифровать)","Бейрезиденттерге көрсетілген өзге де қызметтер (толық көрсетіңіз)","Бейрезиденттерге көрсетілген өзге де қызметтер (толық көрсетіңіз)\nПрочие услуги, оказанные нерезидентам (расшифровать)",1,null,"373",161,null,1,1,null,15,0,0,null,null,1]
[4580,null,"Прочие услуги,  полученные от нерезидентов (расшифровать)","Бейрезиденттерден алынған өзге де қызметтер (толық көрсетіңіз)","Бейрезиденттерден алынған өзге де қызметтер (толық көрсетіңіз)\nПрочие услуги,  полученные от нерезидентов (расшифровать)",1,null,"376",161,null,1,1,null,15,0,0,null,null,1]
[123,null,"Поступления от продажи нерезидентам нематериальных активов","Бейрезидент материалдық емес активтерді сатудан түскен түсімдер","Бейрезидент материалдық емес активтерді сатудан түскен түсімдер\nПоступления от продажи нерезидентам нематериальных активов",1,null,"380",18,null,0,1,null,null,0,0,null,null,1]
[124,null,"Платежи нерезидентам за приобретенные нематериальные активы","Бейрезиденттерге сатып алынған материалдық емес активтер үшін төлемдер","Бейрезиденттерге сатып алынған материалдық емес активтер үшін төлемдер\nПлатежи нерезидентам за приобретенные нематериальные активы",1,null,"390",18,null,0,1,null,null,0,0,null,null,1]
[2102,null,"Поступления от предоставления в аренду (пользование) нерезидентам природных ресурсов","Бейрезиденттерге табиғи ресурстарды жалға беруден (пайдаланудан) түскен түсімдер","Бейрезиденттерге табиғи ресурстарды жалға беруден (пайдаланудан) түскен түсімдер\nПоступления от предоставления в аренду (пользование) нерезидентам природных ресурсов",1,null,"400",18,null,0,1,null,null,0,0,null,null,1]
[2103,null,"Платежи нерезидентам за аренду (использование) природных ресурсов","Бейрезиденттерге табиғи ресурстарды жалдау үшін (пайдалану) төлемдер","Бейрезиденттерге табиғи ресурстарды жалдау үшін (пайдалану) төлемдер\nПлатежи нерезидентам за аренду (использование) природных ресурсов",1,null,"410",18,null,0,1,null,null,0,0,null,null,1]
[2104,null,"Товары для переработки и ремонта в Казахстане","Қазақстанда қайта өңдеуге және жөндеуге арналған тауарлар","Қазақстанда қайта өңдеуге және жөндеуге арналған тауарлар\nТовары для переработки и ремонта в Казахстане",1,null,"",160,null,3,1,null,null,0,0,null,null,1]
[2105,null,"     Товары, полученные из-за рубежа для переработки ","     Қайта өңдеу үшін шетелден алынған тауарлар","     Қайта өңдеу үшін шетелден алынған тауарлар\n     Товары, полученные из-за рубежа для переработки ",1,null,"420",160,null,0,1,null,null,0,0,null,null,1]
[2106,null,"     Товары, отправленные за рубеж после переработки","     Қайта өңдеуден кейін шетелге жіберілген тауарлар","     Қайта өңдеуден кейін шетелге жіберілген тауарлар\n     Товары, отправленные за рубеж после переработки",1,null,"430",160,null,0,1,null,null,0,0,null,null,1]
[2107,null,"     Товары, полученные из-за рубежа для ремонта ","     Жөндеу үшін шетелден  алынған тауарлар","     Жөндеу үшін шетелден  алынған тауарлар\n     Товары, полученные из-за рубежа для ремонта ",1,null,"440",160,null,0,1,null,null,0,0,null,null,1]
[2108,null,"     Товары, отправленные за рубеж после ремонта","     Жөндеуден кейін шетелге жіберілген  тауарлар","     Жөндеуден кейін шетелге жіберілген  тауарлар\n     Товары, отправленные за рубеж после ремонта",1,null,"450",160,null,0,1,null,null,0,0,null,null,1]
[2109,null,"Товары для переработки и ремонта за рубежом","Шетелде қайта өңдеуге және жөндеуге арналған тауарлар","Шетелде қайта өңдеуге және жөндеуге арналған тауарлар\nТовары для переработки и ремонта за рубежом",1,null,"",160,null,3,1,null,null,0,0,null,null,1]
[2110,null,"     Товары, отправленные за рубеж для переработки","     Қайта өңдеу үшін шетелге жіберілген тауарлар","     Қайта өңдеу үшін шетелге жіберілген тауарлар\n     Товары, отправленные за рубеж для переработки",1,null,"460",160,null,0,1,null,null,0,0,null,null,1]
[2111,null,"     Товары, полученные из-за рубежа после переработки","     Қайта өңдеуден кейін шетелден алынған тауарлар","     Қайта өңдеуден кейін шетелден алынған тауарлар\n     Товары, полученные из-за рубежа после переработки",1,null,"470",160,null,0,1,null,null,0,0,null,null,1]
[2112,null,"     Товары, отправленные за рубеж для ремонта","     Жөндеу үшін шетелге  жіберілген тауарлар","     Жөндеу үшін шетелге  жіберілген тауарлар\n     Товары, отправленные за рубеж для ремонта",1,null,"480",160,null,0,1,null,null,0,0,null,null,1]
[2113,null,"     Товары, полученные из-за рубежа после ремонта","     Жөндеуден кейін шетелден алынған тауарлар","     Жөндеуден кейін шетелден алынған тауарлар\n     Товары, полученные из-за рубежа после ремонта",1,null,"490",160,null,0,1,null,null,0,0,null,null,1]
[2114,null,"Перепродажа товаров за рубежом ","Шетелде тауарларды қайта сату","Шетелде тауарларды қайта сату\nПерепродажа товаров за рубежом ",1,null,"",160,null,3,1,null,null,0,0,null,null,1]
[2115,null,"     Приобретение товаров за рубежом без их  ввоза на территорию Казахстана, для последующей перепродажи за рубежом ","     Шетелде қайта сату үшін, Қазақстан аумағына әкелусіз шетелден тауар сатып алу","     Шетелде қайта сату үшін, Қазақстан аумағына әкелусіз шетелден тауар сатып алу\n     Приобретение товаров за рубежом без их  ввоза на территорию Казахстана, для последующей перепродажи за рубежом ",1,null,"500",160,null,0,1,null,null,0,0,null,null,1]
[2116,null,"     Продажа за рубежом ранее приобретенных за рубежом товаров без их ввоза на территорию Казахстана","     Қазақстан аумағына әкелусіз шетелде бұрынырақ сатып алынған тауарларды шетелде сату","     Қазақстан аумағына әкелусіз шетелде бұрынырақ сатып алынған тауарларды шетелде сату\n     Продажа за рубежом ранее приобретенных за рубежом товаров без их ввоза на территорию Казахстана",1,null,"510",160,null,0,1,null,null,0,0,null,null,1]
[2117,null,"Реэкспорт товаров ","Тауарлардың кері экспорты","Тауарлардың кері экспорты\nРеэкспорт товаров ",1,null,"",160,null,3,1,null,null,0,0,null,null,1]
[2118,null,"     Экспорт ранее импортированных товаров иностранного производства без изменения их первоначального состояния (реэкспорт товаров) ","     Бастапқы жағдайының өзгеруінсіз шетелде өндірілген бұрынырақ импортталған тауарлардың экспорты (тауарлардың кері экспорты)","     Бастапқы жағдайының өзгеруінсіз шетелде өндірілген бұрынырақ импортталған тауарлардың экспорты (тауарлардың кері экспорты)\n     Экспорт ранее импортированных товаров иностранного производства без изменения их первоначального состояния (реэкспорт товаров) ",1,null,"520",160,null,0,1,null,null,0,0,null,null,1]
[4581,null,"     Импорт ранее экспортированных товаров казахстанского производства без изменения их первоначального состояния (реимпорт товаров)","     Бастапқы жағдайының өзгеруінсіз шетелде өндірілген бұрынырақ импортталған тауарлардың экспорты (тауарлардың кері импорты)",{"$f":"CONCATENATE(IF(B470<>\"\",CONCATENATE(B470,\" \"),\"\"),IF(p_language_current_id=1,C470,IF(p_language_current_id=2,D470,IF(C470=D470,C470,CONCATENATE(D470,IF(F470=0,\" / \",CHAR(10)),C470)))),IF(G470<>\"\",CONCATENATE(\" \",G470),\"\"))","v":"     Бастапқы жағдайының өзгеруінсіз шетелде өндірілген бұрынырақ импортталған тауарлардың экспорты (тауарлардың кері импорты)\n     Импорт ранее экспортированных товаров казахстанского производства без изменения их первоначального состояния (реимпорт товаров)"},1,null,"521",160,null,0,1,null,null,0,0,null,null,1]
[2119,null,"Заработная плата и другие выплаты работникам-нерезидентам в денежной форме","Бейрезидент қызметкерлерге ақшалай түрде төленген жалақы және басқа да төлемдер","Бейрезидент қызметкерлерге ақшалай түрде төленген жалақы және басқа да төлемдер\nЗаработная плата и другие выплаты работникам-нерезидентам в денежной форме",1,null,"530",16,null,0,1,null,null,0,0,null,null,1]
[2120,null,"Заработная плата работникам-нерезидентам в натуральной форме ","Бейрезидент қызметкерлерге заттай түрде төленген жалақы","Бейрезидент қызметкерлерге заттай түрде төленген жалақы\nЗаработная плата работникам-нерезидентам в натуральной форме ",1,null,"540",16,null,0,1,null,null,0,0,null,null,1]
[2121,null,"Индивидуальный подоходный налог с заработной платы нерезидентов, удержанный от имени государства","Бейрезиденттердің жалақысынан мемлекет атынан ұсталатын жеке табыс салығы","Бейрезиденттердің жалақысынан мемлекет атынан ұсталатын жеке табыс салығы\nИндивидуальный подоходный налог с заработной платы нерезидентов, удержанный от имени государства",1,null,"550",16,null,0,1,null,null,0,0,null,null,1]
[2122,null,"Социальный налог, исчисленный с доходов работников-нерезидентов","Бейрезидент қызметкерлердің табысынан есептелген әлеуметтік салық","Бейрезидент қызметкерлердің табысынан есептелген әлеуметтік салық\nСоциальный налог, исчисленный с доходов работников-нерезидентов",1,null,"560",16,null,0,1,null,null,0,0,null,null,1]
[117,null,"Налоги, уплаченные нерезидентам","Бейрезиденттерге төленген салықтар","Бейрезиденттерге төленген салықтар\nНалоги, уплаченные нерезидентам",1,null,"570",17,null,0,1,null,null,0,0,null,null,1]
[118,null,"Поступления от нерезидентов в виде пени, штрафных платежей и прочих текущих трансферт","Бейрезиденттерден өсімпұл, айыппұл төлемдері және басқа да ағымдағы трансферттер түріндегі түсімдер","Бейрезиденттерден өсімпұл, айыппұл төлемдері және басқа да ағымдағы трансферттер түріндегі түсімдер\nПоступления от нерезидентов в виде пени, штрафных платежей и прочих текущих трансферт",1,null,"580",17,null,0,1,null,null,0,0,null,null,1]
[119,null,"Платежи нерезидентам в виде пени, штрафных платежей и прочих текущих трансферт","Бейрезиденттерге өсімпұл, айыппұл төлемдері және басқа да ағымдағы трансферттер түріндегі төлемдер","Бейрезиденттерге өсімпұл, айыппұл төлемдері және басқа да ағымдағы трансферттер түріндегі төлемдер\nПлатежи нерезидентам в виде пени, штрафных платежей и прочих текущих трансферт",1,null,"590",17,null,0,1,null,null,0,0,null,null,1]
[4582,null,"Поступления от нерезидентов членских взносов или подписка на участие в Вашей организации (заполняется некоммерческими организациями, в том числе торговыми палатами, отраслевыми ассоциациями)","Сіздің ұйымға мүшелік жарналар немесе қатысуға жазылудағы бейрезиденттерден түскен түсімдер (коммерциялық емес ұйымдармен, оның ішінде сауда палаталарымен, салалық қауымдастықтармен толтырылады)","Сіздің ұйымға мүшелік жарналар немесе қатысуға жазылудағы бейрезиденттерден түскен түсімдер (коммерциялық емес ұйымдармен, оның ішінде сауда палаталарымен, салалық қауымдастықтармен толтырылады)\nПоступления от нерезидентов членских взносов или подписка на участие в Вашей организации (заполняется некоммерческими организациями, в том числе торговыми палатами, отраслевыми ассоциациями)",1,null,"593",17,null,0,1,null,null,0,0,null,null,1]
[4583,null,"Платежи нерезидентам членских взносов или подписка на участие  в некоммерческих организациях-нерезидентах, включающих торговые палаты, отраслевые ассоциации","Бейрезиденттердің сауда палаталарына, салалық қауымдастықтарына кіретін коммерциялық емес ұйымдарға мүшелік жарналар немесе қатысуға жазылудағы бейрезиденттерге төленген төлемдер ","Бейрезиденттердің сауда палаталарына, салалық қауымдастықтарына кіретін коммерциялық емес ұйымдарға мүшелік жарналар немесе қатысуға жазылудағы бейрезиденттерге төленген төлемдер \nПлатежи нерезидентам членских взносов или подписка на участие  в некоммерческих организациях-нерезидентах, включающих торговые палаты, отраслевые ассоциации",1,null,"595",17,null,0,1,null,null,0,0,null,null,1]
[121,null,"Капитальные трансферты, полученные от нерезидентов","Бейрезиденттерден алынған күрделі трансферттер","Бейрезиденттерден алынған күрделі трансферттер\nКапитальные трансферты, полученные от нерезидентов",1,null,"600",17,null,0,1,null,null,0,0,null,null,1]
[122,null,"Капитальные трансферты, предоставленные нерезидентам","Бейрезиденттерге ұсынылған күрделі трансферттер","Бейрезиденттерге ұсынылған күрделі трансферттер\nКапитальные трансферты, предоставленные нерезидентам",1,null,"610",17,null,0,1,null,null,0,0,null,null,1]
[]
["Справочник графов"]
["ID","Код слева","Наименование на русском языке","Наименование на казахском языке","Наименование","Перенос текста","Код справа","Код","Раздел","Ширина","Стиль данных","Тип данных","Примечание","Расшифровки","Родитель","Справочник","Свойство"]
[154,null,"В том числе по странам-партнерам","Оның ішінде әріптес-елдер бойынша",{"$f":"CONCATENATE(IF(B485<>\"\",CONCATENATE(B485,\" \"),\"\"),IF(p_language_current_id=1,C485,IF(p_language_current_id=2,D485,IF(C485=D485,C485,CONCATENATE(D485,IF(F485=0,\" / \",CHAR(10)),C485)))),IF(G485<>\"\",CONCATENATE(\" \",G485),\"\"))","v":"Оның ішінде әріптес-елдер бойынша\nВ том числе по странам-партнерам"},1,null,"country",1058,null,0,1,null,null,0,0]
[155,null,"В том числе по странам-партнерам","Оның ішінде әріптес-елдер бойынша","Оның ішінде әріптес-елдер бойынша\nВ том числе по странам-партнерам",1,null,"country",1059,null,0,1,null,null,0,0]
[156,null,"В том числе по странам-партнерам","Оның ішінде әріптес-елдер бойынша","Оның ішінде әріптес-елдер бойынша\nВ том числе по странам-партнерам",1,null,"country",1060,null,0,1,null,null,0,0]
[157,null,"В том числе по странам-партнерам","Оның ішінде әріптес-елдер бойынша","Оның ішінде әріптес-елдер бойынша\nВ том числе по странам-партнерам",1,null,"country",1062,null,0,1,null,null,0,0]
[158,null,"В том числе по странам международных организаций, дипломатических и официальных представительств","Оның ішінде халықаралық ұйымдардың, дипломатиялық және ресми өкілдіктердің елдері бойынша","Оның ішінде халықаралық ұйымдардың, дипломатиялық және ресми өкілдіктердің елдері бойынша\nВ том числе по странам международных организаций, дипломатических и официальных представительств",1,null,"country",19,null,0,1,null,null,0,0]
[36,null,"Всего","Барлығы","Барлығы\nВсего",1,null,"1",161,null,0,1,null,null,0,0]
[159,null,"В том числе по видам транспорта","Оның ішінде көлік түрлері бойынша","Оның ішінде көлік түрлері бойынша\nВ том числе по видам транспорта",1,null,"-",0,null,0,1,null,null,0,0]
[37,null,"автомобильный","автомобиль","автомобиль\nавтомобильный",1,null,"2",161,null,0,1,null,null,159,0]
[38,null,"воздушный","әуе","әуе\nвоздушный",1,null,"3",161,null,0,1,null,null,159,0]
[39,null,"железнодорожный","теміржол","теміржол\nжелезнодорожный",1,null,"4",161,null,0,1,null,null,159,0]
[40,null,"трубопроводный","құбыр жүргізу","құбыр жүргізу\nтрубопроводный",1,null,"5",161,null,0,1,null,null,159,0]
[41,null,"морской","теңіз","теңіз\nморской",1,null,"6",161,null,0,1,null,null,159,0]
[160,null,"В том числе по странам-партнерам","Оның ішінде әріптес-елдер бойынша","Оның ішінде әріптес-елдер бойынша\nВ том числе по странам-партнерам",1,null,"country",18,null,0,1,null,null,0,0]
[161,null,"В том числе по странам-партнерам","Оның ішінде әріптес-елдер бойынша","Оның ішінде әріптес-елдер бойынша\nВ том числе по странам-партнерам",1,null,"country",160,null,0,1,null,null,0,0]
[162,null,"В том числе по странам-партнерам","Оның ішінде әріптес-елдер бойынша","Оның ішінде әріптес-елдер бойынша\nВ том числе по странам-партнерам",1,null,"country",16,null,0,1,null,null,0,0]
[163,null,"В том числе по странам-партнерам","Оның ішінде әріптес-елдер бойынша","Оның ішінде әріптес-елдер бойынша\nВ том числе по странам-партнерам",1,null,"country",17,null,0,1,null,null,0,0]
[]
["Справочник индексов"]
["ID STR","ID COL","Стиль данных","Код строки","Код графы","ID раздела"]
[2071,36,2,"351","1",161]
[2077,36,2,"352","1",161]
[2090,36,2,"371","1",161]
[2091,36,2,"372","1",161]
[4579,36,2,"373","1",161]
[4580,36,2,"376","1",161]
[]
["Справочник справочников"]
["ID","ID меню","Свойство","Справочник","Показывать пользователю"]
[null,100024,null,"p_currency_name",0]
[null,100025,"Country","p_country_name",1]
[null,100056,null,"p_receiptsrepaytype_name",0]
[null,100257,null,null,0]
[null,100180,null,"p_servicetype_name",0]
[]
["Формулы"]
["Левая часть формулы (ID)","Правая часть формулы (ID)","Тип"]
["2065","+[2077]+[2071]",1]
["101","+[4502]+[4501]",1]
["4544","+[4548]+[4547]+[4546]+[4545]",1]
["4458","+[4465]+[4464]+[4463]+[4462]+[4461]+[4460]+[4459]",1]
["2063","+[4577]+[4576]",1]
["2084","+[2091]+[2090]",1]
["4504","+[4510]+[4509]+[4508]+[4507]+[4506]+[4505]",1]
["4549","+[4552]+[4551]+[4550]",1]
["4553","+[4557]+[4556]+[4555]+[4554]",1]
["4468","+[4475]+[4474]+[4473]+[4472]+[4471]+[4470]+[4469]",1]
["4558","+[4565]+[4564]+[4561]+[4560]+[4559]",1]
["4561","+[4563]+[4562]",1]
["1773","+[4517]+[4516]+[4515]",1]
["1771","+[4478]+[4477]+[4476]",1]
["4566","+[4569]+[4568]+[4567]",1]
["1774","+[4519]+[4518]",1]
["1772","+[4480]+[4479]",1]
["4570","+[4573]+[4572]+[4571]",1]
["108","+[4524]+[4523]+[4522]+[4521]",1]
["94","+[4485]+[4484]+[4483]+[4482]",1]
["106","+[4529]+[4528]+[4527]+[4526]+[4525]",1]
["92","+[4490]+[4489]+[4488]+[4487]+[4486]",1]
["2042","+[4531]+[4530]+[2051]+[107]+[2050]+[2049]+[2048]+[2047]+[2046]+[2045]+[2044]+[2043]",1]
["2041","+[4492]+[4491]+[2036]+[93]+[2035]+[2034]+[2033]+[2032]+[2031]+[2030]+[2029]+[2028]",1]
["4532","+[4540]+[4539]+[4538]+[4537]+[4536]+[4535]+[4534]+[4533]",1]
["4493","+[4499]+[4498]+[4497]+[4496]+[4495]+[4494]",1]
["2065,36","+[2071,41]+[2071,40]+[2071,39]+[2071,38]+[2071,37]+[2077,37]+[2077,38]+[2077,39]+[2077,40]+[2077,41]",3]
["2065,37","+[2077,37]+[2071,37]",3]
["2065,38","+[2077,38]+[2071,38]",3]
["2065,39","+[2077,39]+[2071,39]",3]
["2065,40","+[2077,40]+[2071,40]",3]
["2065,41","+[2077,41]+[2071,41]",3]
["2071,36","+[2071,41]+[2071,40]+[2071,39]+[2071,38]+[2071,37]",3]
["2077,36","+[2077,41]+[2077,40]+[2077,39]+[2077,38]+[2077,37]",3]
["2084,36","+[2090,41]+[2090,40]+[2090,39]+[2090,38]+[2090,37]+[2091,37]+[2091,38]+[2091,39]+[2091,40]+[2091,41]",3]
["2084,37","+[2091,37]+[2090,37]",3]
["2084,38","+[2091,38]+[2090,38]",3]
["2084,39","+[2091,39]+[2090,39]",3]
["2084,40","+[2091,40]+[2090,40]",3]
["2084,41","+[2091,41]+[2090,41]",3]
["2090,36","+[2090,41]+[2090,40]+[2090,39]+[2090,38]+[2090,37]",3]
["2091,36","+[2091,41]+[2091,40]+[2091,39]+[2091,38]+[2091,37]",3]
["4579,36","+[4579,41]+[4579,40]+[4579,39]+[4579,38]+[4579,37]",3]
["4580,36","+[4580,41]+[4580,40]+[4580,39]+[4580,38]+[4580,37]",3]
[]
["Логический контроль"]
["Левая часть формулы","Правая часть формулы","Знак"]
[]
["Инвесторы"]
["Наименование","Код","ИИН/БИН","Юр. Лицо","Резидент","Раздел"]

{"sheet":"Расшифровки строк","index":34,"n_rows":23,"n_cols":9,"rows_kept":23,"cut":false,"hidden":true,"merged":[[0,0,0,8]]}
["Справочник расшифровок строк"]
["Код","Код слева","Наименование на русском языке","Наименование на казахском языке","Наименование","Перенос текста","Код справа","Примечание","Родитель"]
["01",null,"   прочие","   басқа да",{"$f":"CONCATENATE(IF(B3<>\"\",CONCATENATE(B3,\" \"),\"\"),IF(p_language_current_id=1,C3,IF(p_language_current_id=2,D3,IF(C3=D3,C3,CONCATENATE(D3,IF(F3=0,\" / \",CHAR(10)),C3)))),IF(G3<>\"\",CONCATENATE(\" \",G3),\"\"))","v":"   басқа да\n   прочие"},1,null,null,15]
["10",null,"Абай область (г. Семей)","Абай облысы (Семей қ.)","Абай облысы (Семей қ.)\nАбай область (г. Семей)",1,null,null,19]
["11",null,"Акмолинская область","Ақмола облысы","Ақмола облысы\nАкмолинская область",1,null,null,19]
["15",null,"Актюбинская область","Ақтөбе облысы","Ақтөбе облысы\nАктюбинская область",1,null,null,19]
["19",null,"Алматинская область (г.Қонаев)","Алматы облысы (г.Қонаев)","Алматы облысы (г.Қонаев)\nАлматинская область (г.Қонаев)",1,null,null,19]
["23",null,"Атырауская область","Атырау облысы","Атырау облысы\nАтырауская область",1,null,null,19]
["27",null,"Западно-Казахстанская область","Батыс Қазақстан облысы","Батыс Қазақстан облысы\nЗападно-Казахстанская область",1,null,null,19]
["31",null,"Жамбылская область","Жамбыл облысы","Жамбыл облысы\nЖамбылская область",1,null,null,19]
["33",null,"Жетісу область (г. Талдыкорган)","Жетісу облысы (қ. Талдыкорган)","Жетісу облысы (қ. Талдыкорган)\nЖетісу область (г. Талдыкорган)",1,null,null,19]
["35",null,"Карагандинская область","Қарағанды облысы","Қарағанды облысы\nКарагандинская область",1,null,null,19]
["39",null,"Костанайская область","Қостанай облысы","Қостанай облысы\nКостанайская область",1,null,null,19]
["43",null,"Кызылординская область","Қызылорда облысы","Қызылорда облысы\nКызылординская область",1,null,null,19]
["47",null,"Мангистауская область","Маңғыстау облысы","Маңғыстау облысы\nМангистауская область",1,null,null,19]
["55",null,"Павлодарская область","Павлодар облысы","Павлодар облысы\nПавлодарская область",1,null,null,19]
["59",null,"Северо-Казахстанская область","Солтүстік Қазақстан облысы","Солтүстік Қазақстан облысы\nСеверо-Казахстанская область",1,null,null,19]
["61",null,"Туркестанская область","Түркістан облысы","Түркістан облысы\nТуркестанская область",1,null,null,19]
["62",null,"Ұлытау область (г. Жезказган)","Ұлытау облысы (г. Жезказган)","Ұлытау облысы (г. Жезказган)\nҰлытау область (г. Жезказган)",1,null,null,19]
["63",null,"Восточно-Казахстанская область","Шығыс Қазақстан облысы","Шығыс Қазақстан облысы\nВосточно-Казахстанская область",1,null,null,19]
["71",null,"г. Астана","Астана қ.","Астана қ.\nг. Астана",1,null,null,19]
["75",null,"г. Алматы","Алматы қ.","Алматы қ.\nг. Алматы",1,null,null,19]
["79",null,"г. Шымкент","Шымкент қ.","Шымкент қ.\nг. Шымкент",1,null,null,19]